Workbook

Sheet 出芽期予測の使用法
C1: 出芽期予測
C3: この色のセルだけ入力もしくは選択してください。 | F3: この色のセルの値は動かさないでください
E4: ↓平年値を使用する場合は○，しない場合は－を入力
C5: 予測地域 | D5: 地域番号 | E5: 平年値 | F5: 当年値 | H5: リスト | I5: モデル式係数
C6: 水戸 | D6: =MATCH($C$6,'気象データ（出芽期予測用）'!$B$4:$P$4,0) -> 9 | E6: － | F6: =IF($E$6="○","－","○") -> ○ | H6: ○ | I6: a | J6: -0.0008678735
H7: － | I7: b | J7: 0.008304801
C8: 播種期を入力→ | D8: 2018-01-13 | E8: 当年10/1を入力→ | F8: 2017-10-01 | I8: c | J8: -5.037176e-05
C9: 当年10/1からの起点日数 | D9: =D8-F8+1 -> 105 | I9: d | J9: -0.0003396053
E10: 出芽期 | F10: =VLOOKUP(1,$A$15:$I$298,2,TRUE)+F8 -> 2018-07-12 | I10: e | J10: 0.0001793694
A13: 出芽数確定値 | B13: 当年10/1からの起点日数 | D13: 当年10/1からの起点日数 | F13: （当年値） | G13: （平年値） | H13: 平年値(℃) | I13: 平年値(℃) | J13: 当年値 | K13: 当年値
A14: 出芽数確定値 | C14: モデル積算値 | E14: モデル式の値 | H14: 日平均気温 | I14: 日最低気温 | J14: 日平均気温 | K14: 日最低気温 | M14: 出芽期予測法使用方法： 入力が必要なのは黄色の部分です。 ①予測地域をプルダウンリストから選択してください。予測したい圃場の最寄の気象観測地点を選びます。 ②平年値を使用する場合は平年値の下のセルのプルダウンリストから○を選びます。当年値を使用する場合はプルダウンリストから－を選択し，気象データ（出芽期予測用）のシートの該当地域の当年値の欄にデータを入力します。以降は平年値のデータをコピーして貼り付けます（デフォルトの当年値は2016年のデータが入力されています）。本年データが多いほうが，予測精度が増します。 ③播種期の日付を選択してください。出芽期を予測できるのは10/1以降です。 ④12月までの播種であれば同じ年の10/1となるよう年に気をつけて10/1と入力します。年明け播種の場合は前年の10/1になるよう入力します。 ⑥気温が平年より高く(低く)推移した場合を予測するには，当年値のデータを適宜変更し，②の平年値の下のセルが－になるように（当年値の下のセルが○）プルダウンリストから選びます。 使用上の注意点: ①圃場が気温測定地点から離れていたり，気象経過が平年と大きく異なる，播種時の砕土率が低かったり，播種深度が深い場合は予測精度が劣る可能性があります。 ②予測日以降の気温が平年と異なる場合は誤差が拡大していくので，当年値のデータを更新し再度予測することで精度が高まります｡ ③出芽予測モデルはうるう年には対応しています。
A15: =IF(C15=0,0, IF(C15>1,2,C14+C15)) -> 0 | B15: 1 | C15: =IF(B15<($D$9+1),0,E15) -> 0 | D15: 1 | E15: =IF($F$6="○",F15,G15) -> -0.0008678735 | F15: =$J$6+$J$7*K15+$J$8*K15^2+$J$9*J15+$J$10*J15^2 -> -0.0008678735 | G15: =$J$6+$J$7*H15+$J$8*H15^2+$J$9*I15+$J$10*I15^2 -> 0.1764217858 | H15: =VLOOKUP($B15,'気象データ（出芽期予測用）'!$B$4:$P$278,$D$6,TRUE) -> 19.3 | I15: =VLOOKUP($B15,'気象データ（出芽期予測用）'!Q4:AE278,$D$6,TRUE) -> 15.1 | J15: =VLOOKUP($B15,'気象データ（出芽期予測用）'!AW4:BM278,$D$6,TRUE) -> 0 | K15: =VLOOKUP($B15,'気象データ（出芽期予測用）'!AF4:AV278,$D$6,TRUE) -> 0 | L15: 2017-10-01
A16: =IF(C16=0,0, IF(A15>1,2,C15+C16)) -> 0 | B16: 2 | C16: =IF(B16<($D$9+1),0,E16)+C15 -> 0 | D16: 2 | E16: -0.0008678735 | F16: =$J$6+$J$7*J16+$J$8*J16^2+$J$9*K16+$J$10*K16^2 -> -0.0008678735 | G16: 0.1741393854 | H16: =VLOOKUP($B16,'気象データ（出芽期予測用）'!$B$4:$P$278,$D$6,TRUE) -> 19.1 | I16: =VLOOKUP($B16,'気象データ（出芽期予測用）'!Q5:AE279,$D$6,TRUE) -> 14.9 | J16: =VLOOKUP($B16,'気象データ（出芽期予測用）'!AW5:BM279,$D$6,TRUE) -> 0 | K16: =VLOOKUP($B16,'気象データ（出芽期予測用）'!AF5:AV279,$D$6,TRUE) -> 0 | L16: 2017-10-02
A17: =IF(C17=0,0, IF(A16>1,2,C16+C17)) -> 0 | B17: 3 | C17: 0 | D17: 3 | E17: -0.0008678735 | F17: -0.0008678735 | G17: 0.1725068759 | H17: =VLOOKUP($B17,'気象データ（出芽期予測用）'!$B$4:$P$278,$D$6,TRUE) -> 19 | I17: =VLOOKUP($B17,'気象データ（出芽期予測用）'!Q6:AE280,$D$6,TRUE) -> 14.7 | J17: =VLOOKUP($B17,'気象データ（出芽期予測用）'!AW6:BM280,$D$6,TRUE) -> 0 | K17: =VLOOKUP($B17,'気象データ（出芽期予測用）'!AF6:AV280,$D$6,TRUE) -> 0 | L17: 2017-10-03
A18: 0 | B18: 4 | C18: 0 | D18: 4 | E18: -0.0008678735 | F18: -0.0008678735 | G18: 0.1707351344 | H18: =VLOOKUP($B18,'気象データ（出芽期予測用）'!$B$4:$P$278,$D$6,TRUE) -> 18.8 | I18: =VLOOKUP($B18,'気象データ（出芽期予測用）'!Q7:AE281,$D$6,TRUE) -> 14.6 | J18: =VLOOKUP($B18,'気象データ（出芽期予測用）'!AW7:BM281,$D$6,TRUE) -> 0 | K18: =VLOOKUP($B18,'気象データ（出芽期予測用）'!AF7:AV281,$D$6,TRUE) -> 0 | L18: 2017-10-04
A19: 0 | B19: 5 | C19: 0 | D19: 5 | E19: -0.0008678735 | F19: -0.0008678735 | G19: 0.1691211269 | H19: =VLOOKUP($B19,'気象データ（出芽期予測用）'!$B$4:$P$278,$D$6,TRUE) -> 18.7 | I19: =VLOOKUP($B19,'気象データ（出芽期予測用）'!Q8:AE282,$D$6,TRUE) -> 14.4 | J19: =VLOOKUP($B19,'気象データ（出芽期予測用）'!AW8:BM282,$D$6,TRUE) -> 0 | K19: =VLOOKUP($B19,'気象データ（出芽期予測用）'!AF8:AV282,$D$6,TRUE) -> 0 | L19: 2017-10-05
A20: 0 | B20: 6 | C20: 0 | D20: 6 | E20: -0.0008678735 | F20: -0.0008678735 | G20: 0.1668768607 | H20: =VLOOKUP($B20,'気象データ（出芽期予測用）'!$B$4:$P$278,$D$6,TRUE) -> 18.5 | I20: =VLOOKUP($B20,'気象データ（出芽期予測用）'!Q9:AE283,$D$6,TRUE) -> 14.2 | J20: =VLOOKUP($B20,'気象データ（出芽期予測用）'!AW9:BM283,$D$6,TRUE) -> 0 | K20: =VLOOKUP($B20,'気象データ（出芽期予測用）'!AF9:AV283,$D$6,TRUE) -> 0 | L20: 2017-10-06
A21: 0 | B21: 7 | C21: 0 | D21: 7 | E21: -0.0008678735 | F21: -0.0008678735 | G21: 0.1641764342 | H21: =VLOOKUP($B21,'気象データ（出芽期予測用）'!$B$4:$P$278,$D$6,TRUE) -> 18.3 | I21: =VLOOKUP($B21,'気象データ（出芽期予測用）'!Q10:AE284,$D$6,TRUE) -> 13.9 | J21: =VLOOKUP($B21,'気象データ（出芽期予測用）'!AW10:BM284,$D$6,TRUE) -> 0 | K21: =VLOOKUP($B21,'気象データ（出芽期予測用）'!AF10:AV284,$D$6,TRUE) -> 0 | L21: 2017-10-07
A22: 0 | B22: 8 | C22: 0 | D22: 8 | E22: -0.0008678735 | F22: -0.0008678735 | G22: 0.1619599824 | H22: =VLOOKUP($B22,'気象データ（出芽期予測用）'!$B$4:$P$278,$D$6,TRUE) -> 18.1 | I22: =VLOOKUP($B22,'気象データ（出芽期予測用）'!Q11:AE285,$D$6,TRUE) -> 13.7 | J22: =VLOOKUP($B22,'気象データ（出芽期予測用）'!AW11:BM285,$D$6,TRUE) -> 0 | K22: =VLOOKUP($B22,'気象データ（出芽期予測用）'!AF11:AV285,$D$6,TRUE) -> 0 | L22: 2017-10-08
A23: 0 | B23: 9 | C23: 0 | D23: 9 | E23: -0.0008678735 | F23: -0.0008678735 | G23: 0.1604034959 | H23: =VLOOKUP($B23,'気象データ（出芽期予測用）'!$B$4:$P$278,$D$6,TRUE) -> 18 | I23: =VLOOKUP($B23,'気象データ（出芽期予測用）'!Q12:AE286,$D$6,TRUE) -> 13.5 | J23: =VLOOKUP($B23,'気象データ（出芽期予測用）'!AW12:BM286,$D$6,TRUE) -> 0 | K23: =VLOOKUP($B23,'気象データ（出芽期予測用）'!AF12:AV286,$D$6,TRUE) -> 0 | L23: 2017-10-09
A24: 0 | B24: 10 | C24: 0 | D24: 10 | E24: -0.0008678735 | F24: -0.0008678735 | G24: 0.1582096985 | H24: =VLOOKUP($B24,'気象データ（出芽期予測用）'!$B$4:$P$278,$D$6,TRUE) -> 17.8 | I24: =VLOOKUP($B24,'気象データ（出芽期予測用）'!Q13:AE287,$D$6,TRUE) -> 13.3 | J24: =VLOOKUP($B24,'気象データ（出芽期予測用）'!AW13:BM287,$D$6,TRUE) -> 0 | K24: =VLOOKUP($B24,'気象データ（出芽期予測用）'!AF13:AV287,$D$6,TRUE) -> 0 | L24: 2017-10-10
A25: 0 | B25: 11 | C25: 0 | D25: 11 | E25: -0.0008678735 | F25: -0.0008678735 | G25: 0.156026221 | H25: =VLOOKUP($B25,'気象データ（出芽期予測用）'!$B$4:$P$278,$D$6,TRUE) -> 17.6 | I25: =VLOOKUP($B25,'気象データ（出芽期予測用）'!Q14:AE288,$D$6,TRUE) -> 13.1 | J25: =VLOOKUP($B25,'気象データ（出芽期予測用）'!AW14:BM288,$D$6,TRUE) -> 0 | K25: =VLOOKUP($B25,'気象データ（出芽期予測用）'!AF14:AV288,$D$6,TRUE) -> 0 | L25: 2017-10-11
A26: 0 | B26: 12 | C26: 0 | D26: 12 | E26: -0.0008678735 | F26: -0.0008678735 | G26: 0.1534260445 | H26: =VLOOKUP($B26,'気象データ（出芽期予測用）'!$B$4:$P$278,$D$6,TRUE) -> 17.4 | I26: =VLOOKUP($B26,'気象データ（出芽期予測用）'!Q15:AE289,$D$6,TRUE) -> 12.8 | J26: =VLOOKUP($B26,'気象データ（出芽期予測用）'!AW15:BM289,$D$6,TRUE) -> 0 | K26: =VLOOKUP($B26,'気象データ（出芽期予測用）'!AF15:AV289,$D$6,TRUE) -> 0 | L26: 2017-10-12
A27: 0 | B27: 13 | C27: 0 | D27: 13 | E27: -0.0008678735 | F27: -0.0008678735 | G27: 0.1512703814 | H27: =VLOOKUP($B27,'気象データ（出芽期予測用）'!$B$4:$P$278,$D$6,TRUE) -> 17.2 | I27: =VLOOKUP($B27,'気象データ（出芽期予測用）'!Q16:AE290,$D$6,TRUE) -> 12.6 | J27: =VLOOKUP($B27,'気象データ（出芽期予測用）'!AW16:BM290,$D$6,TRUE) -> 0 | K27: =VLOOKUP($B27,'気象データ（出芽期予測用）'!AF16:AV290,$D$6,TRUE) -> 0 | L27: 2017-10-13
A28: 0 | B28: 14 | C28: 0 | D28: 14 | E28: -0.0008678735 | F28: -0.0008678735 | G28: 0.1480562364 | H28: =VLOOKUP($B28,'気象データ（出芽期予測用）'!$B$4:$P$278,$D$6,TRUE) -> 16.9 | I28: =VLOOKUP($B28,'気象データ（出芽期予測用）'!Q17:AE291,$D$6,TRUE) -> 12.3 | J28: =VLOOKUP($B28,'気象データ（出芽期予測用）'!AW17:BM291,$D$6,TRUE) -> 0 | K28: =VLOOKUP($B28,'気象データ（出芽期予測用）'!AF17:AV291,$D$6,TRUE) -> 0 | L28: 2017-10-14
A29: 0 | B29: 15 | C29: 0 | D29: 15 | E29: -0.0008678735 | F29: -0.0008678735 | G29: 0.1459263728 | H29: =VLOOKUP($B29,'気象データ（出芽期予測用）'!$B$4:$P$278,$D$6,TRUE) -> 16.7 | I29: =VLOOKUP($B29,'気象データ（出芽期予測用）'!Q18:AE292,$D$6,TRUE) -> 12.1 | J29: =VLOOKUP($B29,'気象データ（出芽期予測用）'!AW18:BM292,$D$6,TRUE) -> 0 | K29: =VLOOKUP($B29,'気象データ（出芽期予測用）'!AF18:AV292,$D$6,TRUE) -> 0 | L29: 2017-10-15
A30: 0 | B30: 16 | C30: 0 | D30: 16 | E30: -0.0008678735 | F30: -0.0008678735 | G30: 0.1434156841 | H30: =VLOOKUP($B30,'気象データ（出芽期予測用）'!$B$4:$P$278,$D$6,TRUE) -> 16.5 | I30: =VLOOKUP($B30,'気象データ（出芽期予測用）'!Q19:AE293,$D$6,TRUE) -> 11.8 | J30: =VLOOKUP($B30,'気象データ（出芽期予測用）'!AW19:BM293,$D$6,TRUE) -> 0 | K30: =VLOOKUP($B30,'気象データ（出芽期予測用）'!AF19:AV293,$D$6,TRUE) -> 0 | L30: 2017-10-16
A31: 0 | B31: 17 | C31: 0 | D31: 17 | E31: -0.0008678735 | F31: -0.0008678735 | G31: 0.1413136349 | H31: =VLOOKUP($B31,'気象データ（出芽期予測用）'!$B$4:$P$278,$D$6,TRUE) -> 16.3 | I31: =VLOOKUP($B31,'気象データ（出芽期予測用）'!Q20:AE294,$D$6,TRUE) -> 11.6 | J31: =VLOOKUP($B31,'気象データ（出芽期予測用）'!AW20:BM294,$D$6,TRUE) -> 0 | K31: =VLOOKUP($B31,'気象データ（出芽期予測用）'!AF20:AV294,$D$6,TRUE) -> 0 | L31: 2017-10-17
A32: 0 | B32: 18 | C32: 0 | D32: 18 | E32: -0.0008678735 | F32: -0.0008678735 | G32: 0.1388486975 | H32: =VLOOKUP($B32,'気象データ（出芽期予測用）'!$B$4:$P$278,$D$6,TRUE) -> 16.1 | I32: =VLOOKUP($B32,'気象データ（出芽期予測用）'!Q21:AE295,$D$6,TRUE) -> 11.3 | J32: =VLOOKUP($B32,'気象データ（出芽期予測用）'!AW21:BM295,$D$6,TRUE) -> 0 | K32: =VLOOKUP($B32,'気象データ（出芽期予測用）'!AF21:AV295,$D$6,TRUE) -> 0 | L32: 2017-10-18
A33: 0 | B33: 19 | C33: 0 | D33: 19 | E33: -0.0008678735 | F33: -0.0008678735 | G33: 0.1364120169 | H33: =VLOOKUP($B33,'気象データ（出芽期予測用）'!$B$4:$P$278,$D$6,TRUE) -> 15.9 | I33: =VLOOKUP($B33,'気象データ（出芽期予測用）'!Q22:AE296,$D$6,TRUE) -> 11 | J33: =VLOOKUP($B33,'気象データ（出芽期予測用）'!AW22:BM296,$D$6,TRUE) -> 0 | K33: =VLOOKUP($B33,'気象データ（出芽期予測用）'!AF22:AV296,$D$6,TRUE) -> 0 | L33: 2017-10-19
A34: 0 | B34: 20 | C34: 0 | D34: 20 | E34: -0.0008678735 | F34: -0.0008678735 | G34: 0.1343552767 | H34: =VLOOKUP($B34,'気象データ（出芽期予測用）'!$B$4:$P$278,$D$6,TRUE) -> 15.7 | I34: =VLOOKUP($B34,'気象データ（出芽期予測用）'!Q23:AE297,$D$6,TRUE) -> 10.8 | J34: =VLOOKUP($B34,'気象データ（出芽期予測用）'!AW23:BM297,$D$6,TRUE) -> 0 | K34: =VLOOKUP($B34,'気象データ（出芽期予測用）'!AF23:AV297,$D$6,TRUE) -> 0 | L34: 2017-10-20
A35: 0 | B35: 21 | C35: 0 | D35: 21 | E35: -0.0008678735 | F35: -0.0008678735 | G35: 0.1319643474 | H35: =VLOOKUP($B35,'気象データ（出芽期予測用）'!$B$4:$P$278,$D$6,TRUE) -> 15.5 | I35: =VLOOKUP($B35,'気象データ（出芽期予測用）'!Q24:AE298,$D$6,TRUE) -> 10.5 | J35: =VLOOKUP($B35,'気象データ（出芽期予測用）'!AW24:BM298,$D$6,TRUE) -> 0 | K35: =VLOOKUP($B35,'気象データ（出芽期予測用）'!AF24:AV298,$D$6,TRUE) -> 0 | L35: 2017-10-21
A36: 0 | B36: 22 | C36: 0 | D36: 22 | E36: -0.0008678735 | F36: -0.0008678735 | G36: 0.1296016748 | H36: =VLOOKUP($B36,'気象データ（出芽期予測用）'!$B$4:$P$278,$D$6,TRUE) -> 15.3 | I36: =VLOOKUP($B36,'気象データ（出芽期予測用）'!Q25:AE299,$D$6,TRUE) -> 10.2 | J36: =VLOOKUP($B36,'気象データ（出芽期予測用）'!AW25:BM299,$D$6,TRUE) -> 0 | K36: =VLOOKUP($B36,'気象データ（出芽期予測用）'!AF25:AV299,$D$6,TRUE) -> 0 | L36: 2017-10-22
A37: 0 | B37: 23 | C37: 0 | D37: 23 | E37: -0.0008678735 | F37: -0.0008678735 | G37: 0.1275902436 | H37: =VLOOKUP($B37,'気象データ（出芽期予測用）'!$B$4:$P$278,$D$6,TRUE) -> 15.1 | I37: =VLOOKUP($B37,'気象データ（出芽期予測用）'!Q26:AE300,$D$6,TRUE) -> 10 | J37: =VLOOKUP($B37,'気象データ（出芽期予測用）'!AW26:BM300,$D$6,TRUE) -> 0 | K37: =VLOOKUP($B37,'気象データ（出芽期予測用）'!AF26:AV300,$D$6,TRUE) -> 0 | L37: 2017-10-23
A38: 0 | B38: 24 | C38: 0 | D38: 24 | E38: -0.0008678735 | F38: -0.0008678735 | G38: 0.1259531909 | H38: =VLOOKUP($B38,'気象データ（出芽期予測用）'!$B$4:$P$278,$D$6,TRUE) -> 15 | I38: =VLOOKUP($B38,'気象データ（出芽期予測用）'!Q27:AE301,$D$6,TRUE) -> 9.7 | J38: =VLOOKUP($B38,'気象データ（出芽期予測用）'!AW27:BM301,$D$6,TRUE) -> 0 | K38: =VLOOKUP($B38,'気象データ（出芽期予測用）'!AF27:AV301,$D$6,TRUE) -> 0 | L38: 2017-10-24
A39: 0 | B39: 25 | C39: 0 | D39: 25 | E39: -0.0008678735 | F39: -0.0008678735 | G39: 0.123971589 | H39: =VLOOKUP($B39,'気象データ（出芽期予測用）'!$B$4:$P$278,$D$6,TRUE) -> 14.8 | I39: =VLOOKUP($B39,'気象データ（出芽期予測用）'!Q28:AE302,$D$6,TRUE) -> 9.5 | J39: =VLOOKUP($B39,'気象データ（出芽期予測用）'!AW28:BM302,$D$6,TRUE) -> 0 | K39: =VLOOKUP($B39,'気象データ（出芽期予測用）'!AF28:AV302,$D$6,TRUE) -> 0 | L39: 2017-10-25
A40: 0 | B40: 26 | C40: 0 | D40: 26 | E40: -0.0008678735 | F40: -0.0008678735 | G40: 0.1220003069 | H40: =VLOOKUP($B40,'気象データ（出芽期予測用）'!$B$4:$P$278,$D$6,TRUE) -> 14.6 | I40: =VLOOKUP($B40,'気象データ（出芽期予測用）'!Q29:AE303,$D$6,TRUE) -> 9.3 | J40: =VLOOKUP($B40,'気象データ（出芽期予測用）'!AW29:BM303,$D$6,TRUE) -> 0 | K40: =VLOOKUP($B40,'気象データ（出芽期予測用）'!AF29:AV303,$D$6,TRUE) -> 0 | L40: 2017-10-26
A41: 0 | B41: 27 | C41: 0 | D41: 27 | E41: -0.0008678735 | F41: -0.0008678735 | G41: 0.1200393445 | H41: =VLOOKUP($B41,'気象データ（出芽期予測用）'!$B$4:$P$278,$D$6,TRUE) -> 14.4 | I41: =VLOOKUP($B41,'気象データ（出芽期予測用）'!Q30:AE304,$D$6,TRUE) -> 9.1 | J41: =VLOOKUP($B41,'気象データ（出芽期予測用）'!AW30:BM304,$D$6,TRUE) -> 0 | K41: =VLOOKUP($B41,'気象データ（出芽期予測用）'!AF30:AV304,$D$6,TRUE) -> 0 | L41: 2017-10-27
A42: 0 | B42: 28 | C42: 0 | D42: 28 | E42: -0.0008678735 | F42: -0.0008678735 | G42: 0.118088702 | H42: =VLOOKUP($B42,'気象データ（出芽期予測用）'!$B$4:$P$278,$D$6,TRUE) -> 14.2 | I42: =VLOOKUP($B42,'気象データ（出芽期予測用）'!Q31:AE305,$D$6,TRUE) -> 8.9 | J42: =VLOOKUP($B42,'気象データ（出芽期予測用）'!AW31:BM305,$D$6,TRUE) -> 0 | K42: =VLOOKUP($B42,'気象データ（出芽期予測用）'!AF31:AV305,$D$6,TRUE) -> 0 | L42: 2017-10-28
A43: 0 | B43: 29 | C43: 0 | D43: 29 | E43: -0.0008678735 | F43: -0.0008678735 | G43: 0.1161483793 | H43: =VLOOKUP($B43,'気象データ（出芽期予測用）'!$B$4:$P$278,$D$6,TRUE) -> 14 | I43: =VLOOKUP($B43,'気象データ（出芽期予測用）'!Q32:AE306,$D$6,TRUE) -> 8.7 | J43: =VLOOKUP($B43,'気象データ（出芽期予測用）'!AW32:BM306,$D$6,TRUE) -> 0 | K43: =VLOOKUP($B43,'気象データ（出芽期予測用）'!AF32:AV306,$D$6,TRUE) -> 0 | L43: 2017-10-29
A44: 0 | B44: 30 | C44: 0 | D44: 30 | E44: -0.0008678735 | F44: -0.0008678735 | G44: 0.1151820879 | H44: =VLOOKUP($B44,'気象データ（出芽期予測用）'!$B$4:$P$278,$D$6,TRUE) -> 13.9 | I44: =VLOOKUP($B44,'気象データ（出芽期予測用）'!Q33:AE307,$D$6,TRUE) -> 8.6 | J44: =VLOOKUP($B44,'気象データ（出芽期予測用）'!AW33:BM307,$D$6,TRUE) -> 0 | K44: =VLOOKUP($B44,'気象データ（出芽期予測用）'!AF33:AV307,$D$6,TRUE) -> 0 | L44: 2017-10-30
A45: 0 | B45: 31 | C45: 0 | D45: 31 | E45: -0.0008678735 | F45: -0.0008678735 | G45: 0.1132572449 | H45: =VLOOKUP($B45,'気象データ（出芽期予測用）'!$B$4:$P$278,$D$6,TRUE) -> 13.7 | I45: =VLOOKUP($B45,'気象データ（出芽期予測用）'!Q34:AE308,$D$6,TRUE) -> 8.4 | J45: =VLOOKUP($B45,'気象データ（出芽期予測用）'!AW34:BM308,$D$6,TRUE) -> 0 | K45: =VLOOKUP($B45,'気象データ（出芽期予測用）'!AF34:AV308,$D$6,TRUE) -> 0 | L45: 2017-10-31
A46: 0 | B46: 32 | C46: 0 | D46: 32 | E46: -0.0008678735 | F46: -0.0008678735 | G46: 0.1113427217 | H46: =VLOOKUP($B46,'気象データ（出芽期予測用）'!$B$4:$P$278,$D$6,TRUE) -> 13.5 | I46: =VLOOKUP($B46,'気象データ（出芽期予測用）'!Q35:AE309,$D$6,TRUE) -> 8.2 | J46: =VLOOKUP($B46,'気象データ（出芽期予測用）'!AW35:BM309,$D$6,TRUE) -> 0 | K46: =VLOOKUP($B46,'気象データ（出芽期予測用）'!AF35:AV309,$D$6,TRUE) -> 0 | L46: 2017-11-01
A47: 0 | B47: 33 | C47: 0 | D47: 33 | E47: =IF($F$6="○",F47,G47) -> -0.0008678735 | F47: =$J$6+$J$7*J47+$J$8*J47^2+$J$9*K47+$J$10*K47^2 -> -0.0008678735 | G47: 0.1096933426 | H47: =VLOOKUP($B47,'気象データ（出芽期予測用）'!$B$4:$P$278,$D$6,TRUE) -> 13.3 | I47: =VLOOKUP($B47,'気象データ（出芽期予測用）'!Q36:AE310,$D$6,TRUE) -> 8.1 | J47: =VLOOKUP($B47,'気象データ（出芽期予測用）'!AW36:BM310,$D$6,TRUE) -> 0 | K47: =VLOOKUP($B47,'気象データ（出芽期予測用）'!AF36:AV310,$D$6,TRUE) -> 0 | L47: 2017-11-02
A48: 0 | B48: 34 | C48: =IF(B48<($D$9+1),0,E48)+C47 -> 0 | D48: 34 | E48: -0.0008678735 | F48: -0.0008678735 | G48: 0.1084902866 | H48: =VLOOKUP($B48,'気象データ（出芽期予測用）'!$B$4:$P$278,$D$6,TRUE) -> 13.2 | I48: =VLOOKUP($B48,'気象データ（出芽期予測用）'!Q37:AE311,$D$6,TRUE) -> 7.9 | J48: =VLOOKUP($B48,'気象データ（出芽期予測用）'!AW37:BM311,$D$6,TRUE) -> 0 | K48: =VLOOKUP($B48,'気象データ（出芽期予測用）'!AF37:AV311,$D$6,TRUE) -> 0 | L48: 2017-11-03
A49: 0 | B49: 35 | C49: 0 | D49: 35 | E49: -0.0008678735 | F49: -0.0008678735 | G49: 0.106845625 | H49: =VLOOKUP($B49,'気象データ（出芽期予測用）'!$B$4:$P$278,$D$6,TRUE) -> 13 | I49: =VLOOKUP($B49,'気象データ（出芽期予測用）'!Q38:AE312,$D$6,TRUE) -> 7.8 | J49: =VLOOKUP($B49,'気象データ（出芽期予測用）'!AW38:BM312,$D$6,TRUE) -> 0 | K49: =VLOOKUP($B49,'気象データ（出芽期予測用）'!AF38:AV312,$D$6,TRUE) -> 0 | L49: 2017-11-04
A50: 0 | B50: 36 | C50: 0 | D50: 36 | E50: -0.0008678735 | F50: -0.0008678735 | G50: 0.1049600464 | H50: =VLOOKUP($B50,'気象データ（出芽期予測用）'!$B$4:$P$278,$D$6,TRUE) -> 12.8 | I50: =VLOOKUP($B50,'気象データ（出芽期予測用）'!Q39:AE313,$D$6,TRUE) -> 7.6 | J50: =VLOOKUP($B50,'気象データ（出芽期予測用）'!AW39:BM313,$D$6,TRUE) -> 0 | K50: =VLOOKUP($B50,'気象データ（出芽期予測用）'!AF39:AV313,$D$6,TRUE) -> 0 | L50: 2017-11-05
A51: 0 | B51: 37 | C51: 0 | D51: 37 | E51: -0.0008678735 | F51: -0.0008678735 | G51: 0.1030847876 | H51: =VLOOKUP($B51,'気象データ（出芽期予測用）'!$B$4:$P$278,$D$6,TRUE) -> 12.6 | I51: =VLOOKUP($B51,'気象データ（出芽期予測用）'!Q40:AE314,$D$6,TRUE) -> 7.4 | J51: =VLOOKUP($B51,'気象データ（出芽期予測用）'!AW40:BM314,$D$6,TRUE) -> 0 | K51: =VLOOKUP($B51,'気象データ（出芽期予測用）'!AF40:AV314,$D$6,TRUE) -> 0 | L51: 2017-11-06
A52: 0 | B52: 38 | C52: 0 | D52: 38 | E52: -0.0008678735 | F52: -0.0008678735 | G52: 0.101924903 | H52: =VLOOKUP($B52,'気象データ（出芽期予測用）'!$B$4:$P$278,$D$6,TRUE) -> 12.5 | I52: =VLOOKUP($B52,'気象データ（出芽期予測用）'!Q41:AE315,$D$6,TRUE) -> 7.2 | J52: =VLOOKUP($B52,'気象データ（出芽期予測用）'!AW41:BM315,$D$6,TRUE) -> 0 | K52: =VLOOKUP($B52,'気象データ（出芽期予測用）'!AF41:AV315,$D$6,TRUE) -> 0 | L52: 2017-11-07
A53: 0 | B53: 39 | C53: 0 | D53: 39 | E53: -0.0008678735 | F53: -0.0008678735 | G53: 0.1002912491 | H53: =VLOOKUP($B53,'気象データ（出芽期予測用）'!$B$4:$P$278,$D$6,TRUE) -> 12.3 | I53: =VLOOKUP($B53,'気象データ（出芽期予測用）'!Q42:AE316,$D$6,TRUE) -> 7.1 | J53: =VLOOKUP($B53,'気象データ（出芽期予測用）'!AW42:BM316,$D$6,TRUE) -> 0 | K53: =VLOOKUP($B53,'気象データ（出芽期予測用）'!AF42:AV316,$D$6,TRUE) -> 0 | L53: 2017-11-08
A54: 0 | B54: 40 | C54: 0 | D54: 40 | E54: -0.0008678735 | F54: -0.0008678735 | G54: 0.09844178978 | H54: =VLOOKUP($B54,'気象データ（出芽期予測用）'!$B$4:$P$278,$D$6,TRUE) -> 12.1 | I54: =VLOOKUP($B54,'気象データ（出芽期予測用）'!Q43:AE317,$D$6,TRUE) -> 6.9 | J54: =VLOOKUP($B54,'気象データ（出芽期予測用）'!AW43:BM317,$D$6,TRUE) -> 0 | K54: =VLOOKUP($B54,'気象データ（出芽期予測用）'!AF43:AV317,$D$6,TRUE) -> 0 | L54: 2017-11-09
A55: 0 | B55: 41 | C55: 0 | D55: 41 | E55: -0.0008678735 | F55: -0.0008678735 | G55: 0.09660265032 | H55: =VLOOKUP($B55,'気象データ（出芽期予測用）'!$B$4:$P$278,$D$6,TRUE) -> 11.9 | I55: =VLOOKUP($B55,'気象データ（出芽期予測用）'!Q44:AE318,$D$6,TRUE) -> 6.7 | J55: =VLOOKUP($B55,'気象データ（出芽期予測用）'!AW44:BM318,$D$6,TRUE) -> 0 | K55: =VLOOKUP($B55,'気象データ（出芽期予測用）'!AF44:AV318,$D$6,TRUE) -> 0 | L55: 2017-11-10
A56: 0 | B56: 42 | C56: 0 | D56: 42 | E56: -0.0008678735 | F56: -0.0008678735 | G56: 0.09477383067 | H56: =VLOOKUP($B56,'気象データ（出芽期予測用）'!$B$4:$P$278,$D$6,TRUE) -> 11.7 | I56: =VLOOKUP($B56,'気象データ（出芽期予測用）'!Q45:AE319,$D$6,TRUE) -> 6.5 | J56: =VLOOKUP($B56,'気象データ（出芽期予測用）'!AW45:BM319,$D$6,TRUE) -> 0 | K56: =VLOOKUP($B56,'気象データ（出芽期予測用）'!AF45:AV319,$D$6,TRUE) -> 0 | L56: 2017-11-11
A57: 0 | B57: 43 | C57: 0 | D57: 43 | E57: -0.0008678735 | F57: -0.0008678735 | G57: 0.09276507962 | H57: =VLOOKUP($B57,'気象データ（出芽期予測用）'!$B$4:$P$278,$D$6,TRUE) -> 11.5 | I57: =VLOOKUP($B57,'気象データ（出芽期予測用）'!Q46:AE320,$D$6,TRUE) -> 6.2 | J57: =VLOOKUP($B57,'気象データ（出芽期予測用）'!AW46:BM320,$D$6,TRUE) -> 0 | K57: =VLOOKUP($B57,'気象データ（出芽期予測用）'!AF46:AV320,$D$6,TRUE) -> 0 | L57: 2017-11-12
A58: 0 | B58: 44 | C58: 0 | D58: 44 | E58: -0.0008678735 | F58: -0.0008678735 | G58: 0.09096407437 | H58: =VLOOKUP($B58,'気象データ（出芽期予測用）'!$B$4:$P$278,$D$6,TRUE) -> 11.3 | I58: =VLOOKUP($B58,'気象データ（出芽期予測用）'!Q47:AE321,$D$6,TRUE) -> 6 | J58: =VLOOKUP($B58,'気象データ（出芽期予測用）'!AW47:BM321,$D$6,TRUE) -> 0 | K58: =VLOOKUP($B58,'気象データ（出芽期予測用）'!AF47:AV321,$D$6,TRUE) -> 0 | L58: 2017-11-13
A59: 0 | B59: 45 | C59: 0 | D59: 45 | E59: -0.0008678735 | F59: -0.0008678735 | G59: 0.08917338893 | H59: =VLOOKUP($B59,'気象データ（出芽期予測用）'!$B$4:$P$278,$D$6,TRUE) -> 11.1 | I59: =VLOOKUP($B59,'気象データ（出芽期予測用）'!Q48:AE322,$D$6,TRUE) -> 5.8 | J59: =VLOOKUP($B59,'気象データ（出芽期予測用）'!AW48:BM322,$D$6,TRUE) -> 0 | K59: =VLOOKUP($B59,'気象データ（出芽期予測用）'!AF48:AV322,$D$6,TRUE) -> 0 | L59: 2017-11-14
A60: 0 | B60: 46 | C60: 0 | D60: 46 | E60: -0.0008678735 | F60: -0.0008678735 | G60: 0.08722788379 | H60: =VLOOKUP($B60,'気象データ（出芽期予測用）'!$B$4:$P$278,$D$6,TRUE) -> 10.9 | I60: =VLOOKUP($B60,'気象データ（出芽期予測用）'!Q49:AE323,$D$6,TRUE) -> 5.5 | J60: =VLOOKUP($B60,'気象データ（出芽期予測用）'!AW49:BM323,$D$6,TRUE) -> 0 | K60: =VLOOKUP($B60,'気象データ（出芽期予測用）'!AF49:AV323,$D$6,TRUE) -> 0 | L60: 2017-11-15
A61: 0 | B61: 47 | C61: 0 | D61: 47 | E61: -0.0008678735 | F61: -0.0008678735 | G61: 0.08546501275 | H61: =VLOOKUP($B61,'気象データ（出芽期予測用）'!$B$4:$P$278,$D$6,TRUE) -> 10.7 | I61: =VLOOKUP($B61,'気象データ（出芽期予測用）'!Q50:AE324,$D$6,TRUE) -> 5.3 | J61: =VLOOKUP($B61,'気象データ（出芽期予測用）'!AW50:BM324,$D$6,TRUE) -> 0 | K61: =VLOOKUP($B61,'気象データ（出芽期予測用）'!AF50:AV324,$D$6,TRUE) -> 0 | L61: 2017-11-16
A62: 0 | B62: 48 | C62: 0 | D62: 48 | E62: -0.0008678735 | F62: -0.0008678735 | G62: 0.08371246152 | H62: =VLOOKUP($B62,'気象データ（出芽期予測用）'!$B$4:$P$278,$D$6,TRUE) -> 10.5 | I62: =VLOOKUP($B62,'気象データ（出芽期予測用）'!Q51:AE325,$D$6,TRUE) -> 5.1 | J62: =VLOOKUP($B62,'気象データ（出芽期予測用）'!AW51:BM325,$D$6,TRUE) -> 0 | K62: =VLOOKUP($B62,'気象データ（出芽期予測用）'!AF51:AV325,$D$6,TRUE) -> 0 | L62: 2017-11-17
A63: 0 | B63: 49 | C63: 0 | D63: 49 | E63: -0.0008678735 | F63: -0.0008678735 | G63: 0.08183020232 | H63: =VLOOKUP($B63,'気象データ（出芽期予測用）'!$B$4:$P$278,$D$6,TRUE) -> 10.3 | I63: =VLOOKUP($B63,'気象データ（出芽期予測用）'!Q52:AE326,$D$6,TRUE) -> 4.8 | J63: =VLOOKUP($B63,'気象データ（出芽期予測用）'!AW52:BM326,$D$6,TRUE) -> 0 | K63: =VLOOKUP($B63,'気象データ（出芽期予測用）'!AF52:AV326,$D$6,TRUE) -> 0 | L63: 2017-11-18
A64: 0 | B64: 50 | C64: 0 | D64: 50 | E64: -0.0008678735 | F64: -0.0008678735 | G64: 0.08010546549 | H64: =VLOOKUP($B64,'気象データ（出芽期予測用）'!$B$4:$P$278,$D$6,TRUE) -> 10.1 | I64: =VLOOKUP($B64,'気象データ（出芽期予測用）'!Q53:AE327,$D$6,TRUE) -> 4.6 | J64: =VLOOKUP($B64,'気象データ（出芽期予測用）'!AW53:BM327,$D$6,TRUE) -> 0 | K64: =VLOOKUP($B64,'気象データ（出芽期予測用）'!AF53:AV327,$D$6,TRUE) -> 0 | L64: 2017-11-19
A65: 0 | B65: 51 | C65: 0 | D65: 51 | E65: -0.0008678735 | F65: -0.0008678735 | G65: 0.07839104847 | H65: =VLOOKUP($B65,'気象データ（出芽期予測用）'!$B$4:$P$278,$D$6,TRUE) -> 9.9 | I65: =VLOOKUP($B65,'気象データ（出芽期予測用）'!Q54:AE328,$D$6,TRUE) -> 4.4 | J65: =VLOOKUP($B65,'気象データ（出芽期予測用）'!AW54:BM328,$D$6,TRUE) -> 0 | K65: =VLOOKUP($B65,'気象データ（出芽期予測用）'!AF54:AV328,$D$6,TRUE) -> 0 | L65: 2017-11-20
A66: 0 | B66: 52 | C66: 0 | D66: 52 | E66: -0.0008678735 | F66: -0.0008678735 | G66: 0.07657203519 | H66: =VLOOKUP($B66,'気象データ（出芽期予測用）'!$B$4:$P$278,$D$6,TRUE) -> 9.7 | I66: =VLOOKUP($B66,'気象データ（出芽期予測用）'!Q55:AE329,$D$6,TRUE) -> 4.1 | J66: =VLOOKUP($B66,'気象データ（出芽期予測用）'!AW55:BM329,$D$6,TRUE) -> 0 | K66: =VLOOKUP($B66,'気象データ（出芽期予測用）'!AF55:AV329,$D$6,TRUE) -> 0 | L66: 2017-11-21
A67: 0 | B67: 53 | C67: 0 | D67: 53 | E67: -0.0008678735 | F67: -0.0008678735 | G67: 0.07488543256 | H67: =VLOOKUP($B67,'気象データ（出芽期予測用）'!$B$4:$P$278,$D$6,TRUE) -> 9.5 | I67: =VLOOKUP($B67,'気象データ（出芽期予測用）'!Q56:AE330,$D$6,TRUE) -> 3.9 | J67: =VLOOKUP($B67,'気象データ（出芽期予測用）'!AW56:BM330,$D$6,TRUE) -> 0 | K67: =VLOOKUP($B67,'気象データ（出芽期予測用）'!AF56:AV330,$D$6,TRUE) -> 0 | L67: 2017-11-22
A68: =IF(C68=0,0, IF(A67>1,2,C68)) -> 0 | B68: 54 | C68: =IF(B68<($D$9+1),0,E68)+C67 -> 0 | D68: 54 | E68: -0.0008678735 | F68: -0.0008678735 | G68: 0.07394543466 | H68: =VLOOKUP($B68,'気象データ（出芽期予測用）'!$B$4:$P$278,$D$6,TRUE) -> 9.4 | I68: =VLOOKUP($B68,'気象データ（出芽期予測用）'!Q57:AE331,$D$6,TRUE) -> 3.7 | J68: =VLOOKUP($B68,'気象データ（出芽期予測用）'!AW57:BM331,$D$6,TRUE) -> 0 | K68: =VLOOKUP($B68,'気象データ（出芽期予測用）'!AF57:AV331,$D$6,TRUE) -> 0 | L68: 2017-11-23
A69: =IF(C69=0,0, IF(A68>1,2,C69)) -> 0 | B69: 55 | C69: 0 | D69: 55 | E69: -0.0008678735 | F69: -0.0008678735 | G69: 0.07228148653 | H69: =VLOOKUP($B69,'気象データ（出芽期予測用）'!$B$4:$P$278,$D$6,TRUE) -> 9.2 | I69: =VLOOKUP($B69,'気象データ（出芽期予測用）'!Q58:AE332,$D$6,TRUE) -> 3.5 | J69: =VLOOKUP($B69,'気象データ（出芽期予測用）'!AW58:BM332,$D$6,TRUE) -> 0 | K69: =VLOOKUP($B69,'気象データ（出芽期予測用）'!AF58:AV332,$D$6,TRUE) -> 0 | L69: 2017-11-24
A70: 0 | B70: 56 | C70: 0 | D70: 56 | E70: -0.0008678735 | F70: -0.0008678735 | G70: 0.07136716543 | H70: =VLOOKUP($B70,'気象データ（出芽期予測用）'!$B$4:$P$278,$D$6,TRUE) -> 9.1 | I70: =VLOOKUP($B70,'気象データ（出芽期予測用）'!Q59:AE333,$D$6,TRUE) -> 3.3 | J70: =VLOOKUP($B70,'気象データ（出芽期予測用）'!AW59:BM333,$D$6,TRUE) -> 0 | K70: =VLOOKUP($B70,'気象データ（出芽期予測用）'!AF59:AV333,$D$6,TRUE) -> 0 | L70: 2017-11-25
A71: 0 | B71: 57 | C71: 0 | D71: 57 | E71: -0.0008678735 | F71: -0.0008678735 | G71: 0.06972587179 | H71: =VLOOKUP($B71,'気象データ（出芽期予測用）'!$B$4:$P$278,$D$6,TRUE) -> 8.9 | I71: =VLOOKUP($B71,'気象データ（出芽期予測用）'!Q60:AE334,$D$6,TRUE) -> 3.1 | J71: =VLOOKUP($B71,'気象データ（出芽期予測用）'!AW60:BM334,$D$6,TRUE) -> 0 | K71: =VLOOKUP($B71,'気象データ（出芽期予測用）'!AF60:AV334,$D$6,TRUE) -> 0 | L71: 2017-11-26
A72: 0 | B72: 58 | C72: 0 | D72: 58 | E72: -0.0008678735 | F72: -0.0008678735 | G72: 0.06890909491 | H72: =VLOOKUP($B72,'気象データ（出芽期予測用）'!$B$4:$P$278,$D$6,TRUE) -> 8.8 | I72: =VLOOKUP($B72,'気象データ（出芽期予測用）'!Q61:AE335,$D$6,TRUE) -> 3 | J72: =VLOOKUP($B72,'気象データ（出芽期予測用）'!AW61:BM335,$D$6,TRUE) -> 0 | K72: =VLOOKUP($B72,'気象データ（出芽期予測用）'!AF61:AV335,$D$6,TRUE) -> 0 | L72: 2017-11-27
A73: 0 | B73: 59 | C73: 0 | D73: 59 | E73: -0.0008678735 | F73: -0.0008678735 | G73: 0.06728328099 | H73: =VLOOKUP($B73,'気象データ（出芽期予測用）'!$B$4:$P$278,$D$6,TRUE) -> 8.6 | I73: =VLOOKUP($B73,'気象データ（出芽期予測用）'!Q62:AE336,$D$6,TRUE) -> 2.8 | J73: =VLOOKUP($B73,'気象データ（出芽期予測用）'!AW62:BM336,$D$6,TRUE) -> 0 | K73: =VLOOKUP($B73,'気象データ（出芽期予測用）'!AF62:AV336,$D$6,TRUE) -> 0 | L73: 2017-11-28
A74: 0 | B74: 60 | C74: 0 | D74: 60 | E74: -0.0008678735 | F74: -0.0008678735 | G74: 0.06566778688 | H74: =VLOOKUP($B74,'気象データ（出芽期予測用）'!$B$4:$P$278,$D$6,TRUE) -> 8.4 | I74: =VLOOKUP($B74,'気象データ（出芽期予測用）'!Q63:AE337,$D$6,TRUE) -> 2.6 | J74: =VLOOKUP($B74,'気象データ（出芽期予測用）'!AW63:BM337,$D$6,TRUE) -> 0 | K74: =VLOOKUP($B74,'気象データ（出芽期予測用）'!AF63:AV337,$D$6,TRUE) -> 0 | L74: 2017-11-29
A75: 0 | B75: 61 | C75: 0 | D75: 61 | E75: -0.0008678735 | F75: -0.0008678735 | G75: 0.06486390975 | H75: =VLOOKUP($B75,'気象データ（出芽期予測用）'!$B$4:$P$278,$D$6,TRUE) -> 8.3 | I75: =VLOOKUP($B75,'気象データ（出芽期予測用）'!Q64:AE338,$D$6,TRUE) -> 2.5 | J75: =VLOOKUP($B75,'気象データ（出芽期予測用）'!AW64:BM338,$D$6,TRUE) -> 0 | K75: =VLOOKUP($B75,'気象データ（出芽期予測用）'!AF64:AV338,$D$6,TRUE) -> 0 | L75: 2017-11-30
A76: 0 | B76: 62 | C76: 0 | D76: 62 | E76: -0.0008678735 | F76: -0.0008678735 | G76: 0.06326389536 | H76: =VLOOKUP($B76,'気象データ（出芽期予測用）'!$B$4:$P$278,$D$6,TRUE) -> 8.1 | I76: =VLOOKUP($B76,'気象データ（出芽期予測用）'!Q65:AE339,$D$6,TRUE) -> 2.3 | J76: =VLOOKUP($B76,'気象データ（出芽期予測用）'!AW65:BM339,$D$6,TRUE) -> 0 | K76: =VLOOKUP($B76,'気象データ（出芽期予測用）'!AF65:AV339,$D$6,TRUE) -> 0 | L76: 2017-12-01
A77: 0 | B77: 63 | C77: =IF(B77<($D$9+1),0,E77)+C76 -> 0 | D77: 63 | E77: -0.0008678735 | F77: -0.0008678735 | G77: 0.06167420078 | H77: =VLOOKUP($B77,'気象データ（出芽期予測用）'!$B$4:$P$278,$D$6,TRUE) -> 7.9 | I77: =VLOOKUP($B77,'気象データ（出芽期予測用）'!Q66:AE340,$D$6,TRUE) -> 2.1 | J77: =VLOOKUP($B77,'気象データ（出芽期予測用）'!AW66:BM340,$D$6,TRUE) -> 0 | K77: =VLOOKUP($B77,'気象データ（出芽期予測用）'!AF66:AV340,$D$6,TRUE) -> 0 | L77: 2017-12-02
A78: 0 | B78: 64 | C78: =IF(B78<($D$9+1),0,E78)+C77 -> 0 | D78: 64 | E78: -0.0008678735 | F78: -0.0008678735 | G78: 0.06013081955 | H78: =VLOOKUP($B78,'気象データ（出芽期予測用）'!$B$4:$P$278,$D$6,TRUE) -> 7.7 | I78: =VLOOKUP($B78,'気象データ（出芽期予測用）'!Q67:AE341,$D$6,TRUE) -> 2 | J78: =VLOOKUP($B78,'気象データ（出芽期予測用）'!AW67:BM341,$D$6,TRUE) -> 0 | K78: =VLOOKUP($B78,'気象データ（出芽期予測用）'!AF67:AV341,$D$6,TRUE) -> 0 | L78: 2017-12-03
A79: 0 | B79: 65 | C79: =IF(B79<($D$9+1),0,E79)+C78 -> 0 | D79: 65 | E79: =IF($F$6="○",F79,G79) -> -0.0008678735 | F79: =$J$6+$J$7*J79+$J$8*J79^2+$J$9*K79+$J$10*K79^2 -> -0.0008678735 | G79: =$J$6+$J$7*H79+$J$8*H79^2+$J$9*I79+$J$10*I79^2 -> 0.05858699596 | H79: =VLOOKUP($B79,'気象データ（出芽期予測用）'!$B$4:$P$278,$D$6,TRUE) -> 7.5 | I79: =VLOOKUP($B79,'気象データ（出芽期予測用）'!Q68:AE342,$D$6,TRUE) -> 1.9 | J79: =VLOOKUP($B79,'気象データ（出芽期予測用）'!AW68:BM342,$D$6,TRUE) -> 0 | K79: =VLOOKUP($B79,'気象データ（出芽期予測用）'!AF68:AV342,$D$6,TRUE) -> 0 | L79: 2017-12-04
A80: 0 | B80: 66 | C80: 0 | D80: 66 | E80: =IF($F$6="○",F80,G80) -> -0.0008678735 | F80: -0.0008678735 | G80: 0.05701391127 | H80: =VLOOKUP($B80,'気象データ（出芽期予測用）'!$B$4:$P$278,$D$6,TRUE) -> 7.3 | I80: =VLOOKUP($B80,'気象データ（出芽期予測用）'!Q69:AE343,$D$6,TRUE) -> 1.7 | J80: =VLOOKUP($B80,'気象データ（出芽期予測用）'!AW69:BM343,$D$6,TRUE) -> 0 | K80: =VLOOKUP($B80,'気象データ（出芽期予測用）'!AF69:AV343,$D$6,TRUE) -> 0 | L80: 2017-12-05
A81: 0 | B81: 67 | C81: 0 | D81: 67 | E81: -0.0008678735 | F81: -0.0008678735 | G81: 0.05547279036 | H81: =VLOOKUP($B81,'気象データ（出芽期予測用）'!$B$4:$P$278,$D$6,TRUE) -> 7.1 | I81: =VLOOKUP($B81,'気象データ（出芽期予測用）'!Q70:AE344,$D$6,TRUE) -> 1.6 | J81: =VLOOKUP($B81,'気象データ（出芽期予測用）'!AW70:BM344,$D$6,TRUE) -> 0 | K81: =VLOOKUP($B81,'気象データ（出芽期予測用）'!AF70:AV344,$D$6,TRUE) -> 0 | L81: 2017-12-06
A82: 0 | B82: 68 | C82: 0 | D82: 68 | E82: -0.0008678735 | F82: -0.0008678735 | G82: 0.05391317051 | H82: =VLOOKUP($B82,'気象データ（出芽期予測用）'!$B$4:$P$278,$D$6,TRUE) -> 6.9 | I82: =VLOOKUP($B82,'気象データ（出芽期予測用）'!Q71:AE345,$D$6,TRUE) -> 1.4 | J82: =VLOOKUP($B82,'気象データ（出芽期予測用）'!AW71:BM345,$D$6,TRUE) -> 0 | K82: =VLOOKUP($B82,'気象データ（出芽期予測用）'!AF71:AV345,$D$6,TRUE) -> 0 | L82: 2017-12-07
A83: 0 | B83: 69 | C83: 0 | D83: 69 | E83: -0.0008678735 | F83: -0.0008678735 | G83: 0.05237475229 | H83: =VLOOKUP($B83,'気象データ（出芽期予測用）'!$B$4:$P$278,$D$6,TRUE) -> 6.7 | I83: =VLOOKUP($B83,'気象データ（出芽期予測用）'!Q72:AE346,$D$6,TRUE) -> 1.3 | J83: =VLOOKUP($B83,'気象データ（出芽期予測用）'!AW72:BM346,$D$6,TRUE) -> 0 | K83: =VLOOKUP($B83,'気象データ（出芽期予測用）'!AF72:AV346,$D$6,TRUE) -> 0 | L83: 2017-12-08
A84: 0 | B84: 70 | C84: 0 | D84: 70 | E84: -0.0008678735 | F84: -0.0008678735 | G84: 0.05083589172 | H84: =VLOOKUP($B84,'気象データ（出芽期予測用）'!$B$4:$P$278,$D$6,TRUE) -> 6.5 | I84: =VLOOKUP($B84,'気象データ（出芽期予測用）'!Q73:AE347,$D$6,TRUE) -> 1.2 | J84: =VLOOKUP($B84,'気象データ（出芽期予測用）'!AW73:BM347,$D$6,TRUE) -> 0 | K84: =VLOOKUP($B84,'気象データ（出芽期予測用）'!AF73:AV347,$D$6,TRUE) -> 0 | L84: 2017-12-09
A85: 0 | B85: 71 | C85: 0 | D85: 71 | E85: -0.0008678735 | F85: -0.0008678735 | G85: 0.05005938971 | H85: =VLOOKUP($B85,'気象データ（出芽期予測用）'!$B$4:$P$278,$D$6,TRUE) -> 6.4 | I85: =VLOOKUP($B85,'気象データ（出芽期予測用）'!Q74:AE348,$D$6,TRUE) -> 1 | J85: =VLOOKUP($B85,'気象データ（出芽期予測用）'!AW74:BM348,$D$6,TRUE) -> 0 | K85: =VLOOKUP($B85,'気象データ（出芽期予測用）'!AF74:AV348,$D$6,TRUE) -> 0 | L85: 2017-12-10
A86: 0 | B86: 72 | C86: 0 | D86: 72 | E86: -0.0008678735 | F86: -0.0008678735 | G86: 0.04852524669 | H86: =VLOOKUP($B86,'気象データ（出芽期予測用）'!$B$4:$P$278,$D$6,TRUE) -> 6.2 | I86: =VLOOKUP($B86,'気象データ（出芽期予測用）'!Q75:AE349,$D$6,TRUE) -> 0.9 | J86: =VLOOKUP($B86,'気象データ（出芽期予測用）'!AW75:BM349,$D$6,TRUE) -> 0 | K86: =VLOOKUP($B86,'気象データ（出芽期予測用）'!AF75:AV349,$D$6,TRUE) -> 0 | L86: 2017-12-11
A87: 0 | B87: 73 | C87: 0 | D87: 73 | E87: -0.0008678735 | F87: -0.0008678735 | G87: 0.04699771644 | H87: =VLOOKUP($B87,'気象データ（出芽期予測用）'!$B$4:$P$278,$D$6,TRUE) -> 6 | I87: =VLOOKUP($B87,'気象データ（出芽期予測用）'!Q76:AE350,$D$6,TRUE) -> 0.7 | J87: =VLOOKUP($B87,'気象データ（出芽期予測用）'!AW76:BM350,$D$6,TRUE) -> 0 | K87: =VLOOKUP($B87,'気象データ（出芽期予測用）'!AF76:AV350,$D$6,TRUE) -> 0 | L87: 2017-12-12
A88: 0 | B88: 74 | C88: 0 | D88: 74 | E88: -0.0008678735 | F88: -0.0008678735 | G88: 0.04623782124 | H88: =VLOOKUP($B88,'気象データ（出芽期予測用）'!$B$4:$P$278,$D$6,TRUE) -> 5.9 | I88: =VLOOKUP($B88,'気象データ（出芽期予測用）'!Q77:AE351,$D$6,TRUE) -> 0.6 | J88: =VLOOKUP($B88,'気象データ（出芽期予測用）'!AW77:BM351,$D$6,TRUE) -> 0 | K88: =VLOOKUP($B88,'気象データ（出芽期予測用）'!AF77:AV351,$D$6,TRUE) -> 0 | L88: 2017-12-13
A89: 0 | B89: 75 | C89: 0 | D89: 75 | E89: -0.0008678735 | F89: -0.0008678735 | G89: 0.0447257707 | H89: =VLOOKUP($B89,'気象データ（出芽期予測用）'!$B$4:$P$278,$D$6,TRUE) -> 5.7 | I89: =VLOOKUP($B89,'気象データ（出芽期予測用）'!Q78:AE352,$D$6,TRUE) -> 0.4 | J89: =VLOOKUP($B89,'気象データ（出芽期予測用）'!AW78:BM352,$D$6,TRUE) -> 0 | K89: =VLOOKUP($B89,'気象データ（出芽期予測用）'!AF78:AV352,$D$6,TRUE) -> 0 | L89: 2017-12-14
A90: 0 | B90: 76 | C90: 0 | D90: 76 | E90: -0.0008678735 | F90: -0.0008678735 | G90: 0.04397361536 | H90: =VLOOKUP($B90,'気象データ（出芽期予測用）'!$B$4:$P$278,$D$6,TRUE) -> 5.6 | I90: =VLOOKUP($B90,'気象データ（出芽期予測用）'!Q79:AE353,$D$6,TRUE) -> 0.3 | J90: =VLOOKUP($B90,'気象データ（出芽期予測用）'!AW79:BM353,$D$6,TRUE) -> 0 | K90: =VLOOKUP($B90,'気象データ（出芽期予測用）'!AF79:AV353,$D$6,TRUE) -> 0 | L90: 2017-12-15
A91: 0 | B91: 77 | C91: 0 | D91: 77 | E91: -0.0008678735 | F91: -0.0008678735 | G91: 0.04247704454 | H91: =VLOOKUP($B91,'気象データ（出芽期予測用）'!$B$4:$P$278,$D$6,TRUE) -> 5.4 | I91: =VLOOKUP($B91,'気象データ（出芽期予測用）'!Q80:AE354,$D$6,TRUE) -> 0.1 | J91: =VLOOKUP($B91,'気象データ（出芽期予測用）'!AW80:BM354,$D$6,TRUE) -> 0 | K91: =VLOOKUP($B91,'気象データ（出芽期予測用）'!AF80:AV354,$D$6,TRUE) -> 0 | L91: 2017-12-16
A92: 0 | B92: 78 | C92: 0 | D92: 78 | E92: -0.0008678735 | F92: -0.0008678735 | G92: 0.04176838329 | H92: =VLOOKUP($B92,'気象データ（出芽期予測用）'!$B$4:$P$278,$D$6,TRUE) -> 5.3 | I92: =VLOOKUP($B92,'気象データ（出芽期予測用）'!Q81:AE355,$D$6,TRUE) -> -0.1 | J92: =VLOOKUP($B92,'気象データ（出芽期予測用）'!AW81:BM355,$D$6,TRUE) -> 0 | K92: =VLOOKUP($B92,'気象データ（出芽期予測用）'!AF81:AV355,$D$6,TRUE) -> 0 | L92: 2017-12-17
A93: 0 | B93: 79 | C93: 0 | D93: 79 | E93: -0.0008678735 | F93: -0.0008678735 | G93: 0.04103013515 | H93: =VLOOKUP($B93,'気象データ（出芽期予測用）'!$B$4:$P$278,$D$6,TRUE) -> 5.2 | I93: =VLOOKUP($B93,'気象データ（出芽期予測用）'!Q82:AE356,$D$6,TRUE) -> -0.2 | J93: =VLOOKUP($B93,'気象データ（出芽期予測用）'!AW82:BM356,$D$6,TRUE) -> 0 | K93: =VLOOKUP($B93,'気象データ（出芽期予測用）'!AF82:AV356,$D$6,TRUE) -> 0 | L93: 2017-12-18
A94: 0 | B94: 80 | C94: 0 | D94: 80 | E94: -0.0008678735 | F94: -0.0008678735 | G94: 0.04034098335 | H94: =VLOOKUP($B94,'気象データ（出芽期予測用）'!$B$4:$P$278,$D$6,TRUE) -> 5.1 | I94: =VLOOKUP($B94,'気象データ（出芽期予測用）'!Q83:AE357,$D$6,TRUE) -> -0.4 | J94: =VLOOKUP($B94,'気象データ（出芽期予測用）'!AW83:BM357,$D$6,TRUE) -> 0 | K94: =VLOOKUP($B94,'気象データ（出芽期予測用）'!AF83:AV357,$D$6,TRUE) -> 0 | L94: 2017-12-19
A95: 0 | B95: 81 | C95: 0 | D95: 81 | E95: -0.0008678735 | F95: -0.0008678735 | G95: 0.0396114825 | H95: =VLOOKUP($B95,'気象データ（出芽期予測用）'!$B$4:$P$278,$D$6,TRUE) -> 5 | I95: =VLOOKUP($B95,'気象データ（出芽期予測用）'!Q84:AE358,$D$6,TRUE) -> -0.5 | J95: =VLOOKUP($B95,'気象データ（出芽期予測用）'!AW84:BM358,$D$6,TRUE) -> 0 | K95: =VLOOKUP($B95,'気象データ（出芽期予測用）'!AF84:AV358,$D$6,TRUE) -> 0 | L95: 2017-12-20
A96: 0 | B96: 82 | C96: 0 | D96: 82 | E96: -0.0008678735 | F96: -0.0008678735 | G96: 0.03888456161 | H96: =VLOOKUP($B96,'気象データ（出芽期予測用）'!$B$4:$P$278,$D$6,TRUE) -> 4.9 | I96: =VLOOKUP($B96,'気象データ（出芽期予測用）'!Q85:AE359,$D$6,TRUE) -> -0.6 | J96: =VLOOKUP($B96,'気象データ（出芽期予測用）'!AW85:BM359,$D$6,TRUE) -> 0 | K96: =VLOOKUP($B96,'気象データ（出芽期予測用）'!AF85:AV359,$D$6,TRUE) -> 0 | L96: 2017-12-21
A97: 0 | B97: 83 | C97: 0 | D97: 83 | E97: -0.0008678735 | F97: -0.0008678735 | G97: 0.03816022067 | H97: =VLOOKUP($B97,'気象データ（出芽期予測用）'!$B$4:$P$278,$D$6,TRUE) -> 4.8 | I97: =VLOOKUP($B97,'気象データ（出芽期予測用）'!Q86:AE360,$D$6,TRUE) -> -0.7 | J97: =VLOOKUP($B97,'気象データ（出芽期予測用）'!AW86:BM360,$D$6,TRUE) -> 0 | K97: =VLOOKUP($B97,'気象データ（出芽期予測用）'!AF86:AV360,$D$6,TRUE) -> 0 | L97: 2017-12-22
A98: 0 | B98: 84 | C98: =IF(B98<($D$9+1),0,E98)+C97 -> 0 | D98: 84 | E98: -0.0008678735 | F98: -0.0008678735 | G98: 0.03750291301 | H98: =VLOOKUP($B98,'気象データ（出芽期予測用）'!$B$4:$P$278,$D$6,TRUE) -> 4.7 | I98: =VLOOKUP($B98,'気象データ（出芽期予測用）'!Q87:AE361,$D$6,TRUE) -> -0.9 | J98: =VLOOKUP($B98,'気象データ（出芽期予測用）'!AW87:BM361,$D$6,TRUE) -> 0 | K98: =VLOOKUP($B98,'気象データ（出芽期予測用）'!AF87:AV361,$D$6,TRUE) -> 0 | L98: 2017-12-23
A99: 0 | B99: 85 | C99: 0 | D99: 85 | E99: -0.0008678735 | F99: -0.0008678735 | G99: 0.03678731936 | H99: =VLOOKUP($B99,'気象データ（出芽期予測用）'!$B$4:$P$278,$D$6,TRUE) -> 4.6 | I99: =VLOOKUP($B99,'気象データ（出芽期予測用）'!Q88:AE362,$D$6,TRUE) -> -1 | J99: =VLOOKUP($B99,'気象データ（出芽期予測用）'!AW88:BM362,$D$6,TRUE) -> 0 | K99: =VLOOKUP($B99,'気象データ（出芽期予測用）'!AF88:AV362,$D$6,TRUE) -> 0 | L99: 2017-12-24
A100: 0 | B100: 86 | C100: 0 | D100: 86 | E100: -0.0008678735 | F100: -0.0008678735 | G100: 0.03528865643 | H100: =VLOOKUP($B100,'気象データ（出芽期予測用）'!$B$4:$P$278,$D$6,TRUE) -> 4.4 | I100: =VLOOKUP($B100,'気象データ（出芽期予測用）'!Q89:AE363,$D$6,TRUE) -> -1.1 | J100: =VLOOKUP($B100,'気象データ（出芽期予測用）'!AW89:BM363,$D$6,TRUE) -> 0 | K100: =VLOOKUP($B100,'気象データ（出芽期予測用）'!AF89:AV363,$D$6,TRUE) -> 0 | L100: 2017-12-25
A101: 0 | B101: 87 | C101: 0 | D101: 87 | E101: -0.0008678735 | F101: -0.0008678735 | G101: 0.03450199976 | H101: =VLOOKUP($B101,'気象データ（出芽期予測用）'!$B$4:$P$278,$D$6,TRUE) -> 4.3 | I101: =VLOOKUP($B101,'気象データ（出芽期予測用）'!Q90:AE364,$D$6,TRUE) -> -1.1 | J101: =VLOOKUP($B101,'気象データ（出芽期予測用）'!AW90:BM364,$D$6,TRUE) -> 0 | K101: =VLOOKUP($B101,'気象データ（出芽期予測用）'!AF90:AV364,$D$6,TRUE) -> 0 | L101: 2017-12-26
A102: 0 | B102: 88 | C102: 0 | D102: 88 | E102: -0.0008678735 | F102: -0.0008678735 | G102: 0.03378955115 | H102: =VLOOKUP($B102,'気象データ（出芽期予測用）'!$B$4:$P$278,$D$6,TRUE) -> 4.2 | I102: =VLOOKUP($B102,'気象データ（出芽期予測用）'!Q91:AE365,$D$6,TRUE) -> -1.2 | J102: =VLOOKUP($B102,'気象データ（出芽期予測用）'!AW91:BM365,$D$6,TRUE) -> 0 | K102: =VLOOKUP($B102,'気象データ（出芽期予測用）'!AF91:AV365,$D$6,TRUE) -> 0 | L102: 2017-12-27
A103: 0 | B103: 89 | C103: 0 | D103: 89 | E103: -0.0008678735 | F103: -0.0008678735 | G103: 0.03307968249 | H103: =VLOOKUP($B103,'気象データ（出芽期予測用）'!$B$4:$P$278,$D$6,TRUE) -> 4.1 | I103: =VLOOKUP($B103,'気象データ（出芽期予測用）'!Q92:AE366,$D$6,TRUE) -> -1.3 | J103: =VLOOKUP($B103,'気象データ（出芽期予測用）'!AW92:BM366,$D$6,TRUE) -> 0 | K103: =VLOOKUP($B103,'気象データ（出芽期予測用）'!AF92:AV366,$D$6,TRUE) -> 0 | L103: 2017-12-28
A104: 0 | B104: 90 | C104: 0 | D104: 90 | E104: -0.0008678735 | F104: -0.0008678735 | G104: 0.03237239378 | H104: =VLOOKUP($B104,'気象データ（出芽期予測用）'!$B$4:$P$278,$D$6,TRUE) -> 4 | I104: =VLOOKUP($B104,'気象データ（出芽期予測用）'!Q93:AE367,$D$6,TRUE) -> -1.4 | J104: =VLOOKUP($B104,'気象データ（出芽期予測用）'!AW93:BM367,$D$6,TRUE) -> 0 | K104: =VLOOKUP($B104,'気象データ（出芽期予測用）'!AF93:AV367,$D$6,TRUE) -> 0 | L104: 2017-12-29
A105: 0 | B105: 91 | C105: 0 | D105: 91 | E105: -0.0008678735 | F105: -0.0008678735 | G105: 0.03166768503 | H105: =VLOOKUP($B105,'気象データ（出芽期予測用）'!$B$4:$P$278,$D$6,TRUE) -> 3.9 | I105: =VLOOKUP($B105,'気象データ（出芽期予測用）'!Q94:AE368,$D$6,TRUE) -> -1.5 | J105: =VLOOKUP($B105,'気象データ（出芽期予測用）'!AW94:BM368,$D$6,TRUE) -> 0 | K105: =VLOOKUP($B105,'気象データ（出芽期予測用）'!AF94:AV368,$D$6,TRUE) -> 0 | L105: 2017-12-30
A106: 0 | B106: 92 | C106: 0 | D106: 92 | E106: -0.0008678735 | F106: -0.0008678735 | G106: 0.03096555623 | H106: =VLOOKUP($B106,'気象データ（出芽期予測用）'!$B$4:$P$278,$D$6,TRUE) -> 3.8 | I106: =VLOOKUP($B106,'気象データ（出芽期予測用）'!Q95:AE369,$D$6,TRUE) -> -1.6 | J106: =VLOOKUP($B106,'気象データ（出芽期予測用）'!AW95:BM369,$D$6,TRUE) -> 0 | K106: =VLOOKUP($B106,'気象データ（出芽期予測用）'!AF95:AV369,$D$6,TRUE) -> 0 | L106: 2017-12-31
A107: 0 | B107: 93 | C107: 0 | D107: 93 | E107: -0.0008678735 | F107: -0.0008678735 | G107: 0.03017285495 | H107: =VLOOKUP($B107,'気象データ（出芽期予測用）'!$B$4:$P$278,$D$6,TRUE) -> 3.7 | I107: =VLOOKUP($B107,'気象データ（出芽期予測用）'!Q96:AE370,$D$6,TRUE) -> -1.6 | J107: =VLOOKUP($B107,'気象データ（出芽期予測用）'!AW96:BM370,$D$6,TRUE) -> 0 | K107: =VLOOKUP($B107,'気象データ（出芽期予測用）'!AF96:AV370,$D$6,TRUE) -> 0 | L107: 2018-01-01
A108: 0 | B108: 94 | C108: 0 | D108: 94 | E108: -0.0008678735 | F108: -0.0008678735 | G108: 0.02947229867 | H108: =VLOOKUP($B108,'気象データ（出芽期予測用）'!$B$4:$P$278,$D$6,TRUE) -> 3.6 | I108: =VLOOKUP($B108,'気象データ（出芽期予測用）'!Q97:AE371,$D$6,TRUE) -> -1.7 | J108: =VLOOKUP($B108,'気象データ（出芽期予測用）'!AW97:BM371,$D$6,TRUE) -> 0 | K108: =VLOOKUP($B108,'気象データ（出芽期予測用）'!AF97:AV371,$D$6,TRUE) -> 0 | L108: 2018-01-02
A109: 0 | B109: 95 | C109: 0 | D109: 95 | E109: -0.0008678735 | F109: -0.0008678735 | G109: 0.02956903849 | H109: =VLOOKUP($B109,'気象データ（出芽期予測用）'!$B$4:$P$278,$D$6,TRUE) -> 3.6 | I109: =VLOOKUP($B109,'気象データ（出芽期予測用）'!Q98:AE372,$D$6,TRUE) -> -1.8 | J109: =VLOOKUP($B109,'気象データ（出芽期予測用）'!AW98:BM372,$D$6,TRUE) -> 0 | K109: =VLOOKUP($B109,'気象データ（出芽期予測用）'!AF98:AV372,$D$6,TRUE) -> 0 | L109: 2018-01-03
A110: 0 | B110: 96 | C110: 0 | D110: 96 | E110: -0.0008678735 | F110: -0.0008678735 | G110: 0.02877432234 | H110: =VLOOKUP($B110,'気象データ（出芽期予測用）'!$B$4:$P$278,$D$6,TRUE) -> 3.5 | I110: =VLOOKUP($B110,'気象データ（出芽期予測用）'!Q99:AE373,$D$6,TRUE) -> -1.8 | J110: =VLOOKUP($B110,'気象データ（出芽期予測用）'!AW99:BM373,$D$6,TRUE) -> 0 | K110: =VLOOKUP($B110,'気象データ（出芽期予測用）'!AF99:AV373,$D$6,TRUE) -> 0 | L110: 2018-01-04
A111: 0 | B111: 97 | C111: 0 | D111: 97 | E111: -0.0008678735 | F111: -0.0008678735 | G111: 0.02877432234 | H111: =VLOOKUP($B111,'気象データ（出芽期予測用）'!$B$4:$P$278,$D$6,TRUE) -> 3.5 | I111: =VLOOKUP($B111,'気象データ（出芽期予測用）'!Q100:AE374,$D$6,TRUE) -> -1.8 | J111: =VLOOKUP($B111,'気象データ（出芽期予測用）'!AW100:BM374,$D$6,TRUE) -> 0 | K111: =VLOOKUP($B111,'気象データ（出芽期予測用）'!AF100:AV374,$D$6,TRUE) -> 0 | L111: 2018-01-05
A112: 0 | B112: 98 | C112: =IF(B112<($D$9+1),0,E112)+C111 -> 0 | D112: 98 | E112: -0.0008678735 | F112: -0.0008678735 | G112: 0.02887464954 | H112: =VLOOKUP($B112,'気象データ（出芽期予測用）'!$B$4:$P$278,$D$6,TRUE) -> 3.5 | I112: =VLOOKUP($B112,'気象データ（出芽期予測用）'!Q101:AE375,$D$6,TRUE) -> -1.9 | J112: =VLOOKUP($B112,'気象データ（出芽期予測用）'!AW101:BM375,$D$6,TRUE) -> 0 | K112: =VLOOKUP($B112,'気象データ（出芽期予測用）'!AF101:AV375,$D$6,TRUE) -> 0 | L112: 2018-01-06
A113: 0 | B113: 99 | C113: 0 | D113: 99 | E113: -0.0008678735 | F113: -0.0008678735 | G113: 0.02807892596 | H113: =VLOOKUP($B113,'気象データ（出芽期予測用）'!$B$4:$P$278,$D$6,TRUE) -> 3.4 | I113: =VLOOKUP($B113,'気象データ（出芽期予測用）'!Q102:AE376,$D$6,TRUE) -> -1.9 | J113: =VLOOKUP($B113,'気象データ（出芽期予測用）'!AW102:BM376,$D$6,TRUE) -> 0 | K113: =VLOOKUP($B113,'気象データ（出芽期予測用）'!AF102:AV376,$D$6,TRUE) -> 0 | L113: 2018-01-07
A114: 0 | B114: 100 | C114: 0 | D114: 100 | E114: -0.0008678735 | F114: -0.0008678735 | G114: 0.02818284055 | H114: =VLOOKUP($B114,'気象データ（出芽期予測用）'!$B$4:$P$278,$D$6,TRUE) -> 3.4 | I114: =VLOOKUP($B114,'気象データ（出芽期予測用）'!Q103:AE377,$D$6,TRUE) -> -2 | J114: =VLOOKUP($B114,'気象データ（出芽期予測用）'!AW103:BM377,$D$6,TRUE) -> 0 | K114: =VLOOKUP($B114,'気象データ（出芽期予測用）'!AF103:AV377,$D$6,TRUE) -> 0 | L114: 2018-01-08
A115: 0 | B115: 101 | C115: 0 | D115: 101 | E115: -0.0008678735 | F115: -0.0008678735 | G115: 0.02738610953 | H115: =VLOOKUP($B115,'気象データ（出芽期予測用）'!$B$4:$P$278,$D$6,TRUE) -> 3.3 | I115: =VLOOKUP($B115,'気象データ（出芽期予測用）'!Q104:AE378,$D$6,TRUE) -> -2 | J115: =VLOOKUP($B115,'気象データ（出芽期予測用）'!AW104:BM378,$D$6,TRUE) -> 0 | K115: =VLOOKUP($B115,'気象データ（出芽期予測用）'!AF104:AV378,$D$6,TRUE) -> 0 | L115: 2018-01-09
A116: 0 | B116: 102 | C116: 0 | D116: 102 | E116: -0.0008678735 | F116: -0.0008678735 | G116: 0.02738610953 | H116: =VLOOKUP($B116,'気象データ（出芽期予測用）'!$B$4:$P$278,$D$6,TRUE) -> 3.3 | I116: =VLOOKUP($B116,'気象データ（出芽期予測用）'!Q105:AE379,$D$6,TRUE) -> -2 | J116: =VLOOKUP($B116,'気象データ（出芽期予測用）'!AW105:BM379,$D$6,TRUE) -> 0 | K116: =VLOOKUP($B116,'気象データ（出芽期予測用）'!AF105:AV379,$D$6,TRUE) -> 0 | L116: 2018-01-10
A117: 0 | B117: 103 | C117: 0 | D117: 103 | E117: -0.0008678735 | F117: -0.0008678735 | G117: 0.02738610953 | H117: =VLOOKUP($B117,'気象データ（出芽期予測用）'!$B$4:$P$278,$D$6,TRUE) -> 3.3 | I117: =VLOOKUP($B117,'気象データ（出芽期予測用）'!Q106:AE380,$D$6,TRUE) -> -2 | J117: =VLOOKUP($B117,'気象データ（出芽期予測用）'!AW106:BM380,$D$6,TRUE) -> 0 | K117: =VLOOKUP($B117,'気象データ（出芽期予測用）'!AF106:AV380,$D$6,TRUE) -> 0 | L117: 2018-01-11
A118: 0 | B118: 104 | C118: 0 | D118: 104 | E118: -0.0008678735 | F118: -0.0008678735 | G118: 0.02749361152 | H118: =VLOOKUP($B118,'気象データ（出芽期予測用）'!$B$4:$P$278,$D$6,TRUE) -> 3.3 | I118: =VLOOKUP($B118,'気象データ（出芽期予測用）'!Q107:AE381,$D$6,TRUE) -> -2.1 | J118: =VLOOKUP($B118,'気象データ（出芽期予測用）'!AW107:BM381,$D$6,TRUE) -> 0 | K118: =VLOOKUP($B118,'気象データ（出芽期予測用）'!AF107:AV381,$D$6,TRUE) -> 0 | L118: 2018-01-12
A119: 0 | B119: 105 | C119: 0 | D119: 105 | E119: -0.0008678735 | F119: -0.0008678735 | G119: 0.02749361152 | H119: =VLOOKUP($B119,'気象データ（出芽期予測用）'!$B$4:$P$278,$D$6,TRUE) -> 3.3 | I119: =VLOOKUP($B119,'気象データ（出芽期予測用）'!Q108:AE382,$D$6,TRUE) -> -2.1 | J119: =VLOOKUP($B119,'気象データ（出芽期予測用）'!AW108:BM382,$D$6,TRUE) -> 0 | K119: =VLOOKUP($B119,'気象データ（出芽期予測用）'!AF108:AV382,$D$6,TRUE) -> 0 | L119: 2018-01-13
A120: -0.0008678735 | B120: 106 | C120: -0.0008678735 | D120: 106 | E120: -0.0008678735 | F120: -0.0008678735 | G120: 0.02669587306 | H120: =VLOOKUP($B120,'気象データ（出芽期予測用）'!$B$4:$P$278,$D$6,TRUE) -> 3.2 | I120: =VLOOKUP($B120,'気象データ（出芽期予測用）'!Q109:AE383,$D$6,TRUE) -> -2.1 | J120: =VLOOKUP($B120,'気象データ（出芽期予測用）'!AW109:BM383,$D$6,TRUE) -> 0 | K120: =VLOOKUP($B120,'気象データ（出芽期予測用）'!AF109:AV383,$D$6,TRUE) -> 0 | L120: 2018-01-14
A121: -0.001735747 | B121: 107 | C121: -0.001735747 | D121: 107 | E121: -0.0008678735 | F121: -0.0008678735 | G121: 0.02669587306 | H121: =VLOOKUP($B121,'気象データ（出芽期予測用）'!$B$4:$P$278,$D$6,TRUE) -> 3.2 | I121: =VLOOKUP($B121,'気象データ（出芽期予測用）'!Q110:AE384,$D$6,TRUE) -> -2.1 | J121: =VLOOKUP($B121,'気象データ（出芽期予測用）'!AW110:BM384,$D$6,TRUE) -> 0 | K121: =VLOOKUP($B121,'気象データ（出芽期予測用）'!AF110:AV384,$D$6,TRUE) -> 0 | L121: 2018-01-15
A122: -0.0026036205 | B122: 108 | C122: -0.0026036205 | D122: 108 | E122: -0.0008678735 | F122: -0.0008678735 | G122: 0.02669587306 | H122: =VLOOKUP($B122,'気象データ（出芽期予測用）'!$B$4:$P$278,$D$6,TRUE) -> 3.2 | I122: =VLOOKUP($B122,'気象データ（出芽期予測用）'!Q111:AE385,$D$6,TRUE) -> -2.1 | J122: =VLOOKUP($B122,'気象データ（出芽期予測用）'!AW111:BM385,$D$6,TRUE) -> 0 | K122: =VLOOKUP($B122,'気象データ（出芽期予測用）'!AF111:AV385,$D$6,TRUE) -> 0 | L122: 2018-01-16
A123: -0.003471494 | B123: 109 | C123: -0.003471494 | D123: 109 | E123: -0.0008678735 | F123: -0.0008678735 | G123: 0.02669587306 | H123: =VLOOKUP($B123,'気象データ（出芽期予測用）'!$B$4:$P$278,$D$6,TRUE) -> 3.2 | I123: =VLOOKUP($B123,'気象データ（出芽期予測用）'!Q112:AE386,$D$6,TRUE) -> -2.1 | J123: =VLOOKUP($B123,'気象データ（出芽期予測用）'!AW112:BM386,$D$6,TRUE) -> 0 | K123: =VLOOKUP($B123,'気象データ（出芽期予測用）'!AF112:AV386,$D$6,TRUE) -> 0 | L123: 2018-01-17
A124: -0.0043393675 | B124: 110 | C124: -0.0043393675 | D124: 110 | E124: -0.0008678735 | F124: -0.0008678735 | G124: 0.02680696243 | H124: =VLOOKUP($B124,'気象データ（出芽期予測用）'!$B$4:$P$278,$D$6,TRUE) -> 3.2 | I124: =VLOOKUP($B124,'気象データ（出芽期予測用）'!Q113:AE387,$D$6,TRUE) -> -2.2 | J124: =VLOOKUP($B124,'気象データ（出芽期予測用）'!AW113:BM387,$D$6,TRUE) -> 0 | K124: =VLOOKUP($B124,'気象データ（出芽期予測用）'!AF113:AV387,$D$6,TRUE) -> 0 | L124: 2018-01-18
A125: -0.005207241 | B125: 111 | C125: -0.005207241 | D125: 111 | E125: -0.0008678735 | F125: -0.0008678735 | G125: 0.02680696243 | H125: =VLOOKUP($B125,'気象データ（出芽期予測用）'!$B$4:$P$278,$D$6,TRUE) -> 3.2 | I125: =VLOOKUP($B125,'気象データ（出芽期予測用）'!Q114:AE388,$D$6,TRUE) -> -2.2 | J125: =VLOOKUP($B125,'気象データ（出芽期予測用）'!AW114:BM388,$D$6,TRUE) -> 0 | K125: =VLOOKUP($B125,'気象データ（出芽期予測用）'!AF114:AV388,$D$6,TRUE) -> 0 | L125: 2018-01-19
A126: -0.0060751145 | B126: 112 | C126: -0.0060751145 | D126: 112 | E126: -0.0008678735 | F126: -0.0008678735 | G126: 0.02680696243 | H126: =VLOOKUP($B126,'気象データ（出芽期予測用）'!$B$4:$P$278,$D$6,TRUE) -> 3.2 | I126: =VLOOKUP($B126,'気象データ（出芽期予測用）'!Q115:AE389,$D$6,TRUE) -> -2.2 | J126: =VLOOKUP($B126,'気象データ（出芽期予測用）'!AW115:BM389,$D$6,TRUE) -> 0 | K126: =VLOOKUP($B126,'気象データ（出芽期予測用）'!AF115:AV389,$D$6,TRUE) -> 0 | L126: 2018-01-20
A127: -0.006942988 | B127: 113 | C127: -0.006942988 | D127: 113 | E127: -0.0008678735 | F127: -0.0008678735 | G127: 0.02680696243 | H127: =VLOOKUP($B127,'気象データ（出芽期予測用）'!$B$4:$P$278,$D$6,TRUE) -> 3.2 | I127: =VLOOKUP($B127,'気象データ（出芽期予測用）'!Q116:AE390,$D$6,TRUE) -> -2.2 | J127: =VLOOKUP($B127,'気象データ（出芽期予測用）'!AW116:BM390,$D$6,TRUE) -> 0 | K127: =VLOOKUP($B127,'気象データ（出芽期予測用）'!AF116:AV390,$D$6,TRUE) -> 0 | L127: 2018-01-21
A128: -0.0078108615 | B128: 114 | C128: -0.0078108615 | D128: 114 | E128: -0.0008678735 | F128: -0.0008678735 | G128: 0.02680696243 | H128: =VLOOKUP($B128,'気象データ（出芽期予測用）'!$B$4:$P$278,$D$6,TRUE) -> 3.2 | I128: =VLOOKUP($B128,'気象データ（出芽期予測用）'!Q117:AE391,$D$6,TRUE) -> -2.2 | J128: =VLOOKUP($B128,'気象データ（出芽期予測用）'!AW117:BM391,$D$6,TRUE) -> 0 | K128: =VLOOKUP($B128,'気象データ（出芽期予測用）'!AF117:AV391,$D$6,TRUE) -> 0 | L128: 2018-01-22
A129: -0.008678735 | B129: 115 | C129: -0.008678735 | D129: 115 | E129: -0.0008678735 | F129: -0.0008678735 | G129: 0.02692163919 | H129: =VLOOKUP($B129,'気象データ（出芽期予測用）'!$B$4:$P$278,$D$6,TRUE) -> 3.2 | I129: =VLOOKUP($B129,'気象データ（出芽期予測用）'!Q118:AE392,$D$6,TRUE) -> -2.3 | J129: =VLOOKUP($B129,'気象データ（出芽期予測用）'!AW118:BM392,$D$6,TRUE) -> 0 | K129: =VLOOKUP($B129,'気象データ（出芽期予測用）'!AF118:AV392,$D$6,TRUE) -> 0 | L129: 2018-01-23
A130: -0.0095466085 | B130: 116 | C130: -0.0095466085 | D130: 116 | E130: -0.0008678735 | F130: -0.0008678735 | G130: 0.02692163919 | H130: =VLOOKUP($B130,'気象データ（出芽期予測用）'!$B$4:$P$278,$D$6,TRUE) -> 3.2 | I130: =VLOOKUP($B130,'気象データ（出芽期予測用）'!Q119:AE393,$D$6,TRUE) -> -2.3 | J130: =VLOOKUP($B130,'気象データ（出芽期予測用）'!AW119:BM393,$D$6,TRUE) -> 0 | K130: =VLOOKUP($B130,'気象データ（出芽期予測用）'!AF119:AV393,$D$6,TRUE) -> 0 | L130: 2018-01-24
A131: -0.010414482 | B131: 117 | C131: -0.010414482 | D131: 117 | E131: -0.0008678735 | F131: -0.0008678735 | G131: 0.02692163919 | H131: =VLOOKUP($B131,'気象データ（出芽期予測用）'!$B$4:$P$278,$D$6,TRUE) -> 3.2 | I131: =VLOOKUP($B131,'気象データ（出芽期予測用）'!Q120:AE394,$D$6,TRUE) -> -2.3 | J131: =VLOOKUP($B131,'気象データ（出芽期予測用）'!AW120:BM394,$D$6,TRUE) -> 0 | K131: =VLOOKUP($B131,'気象データ（出芽期予測用）'!AF120:AV394,$D$6,TRUE) -> 0 | L131: 2018-01-25
A132: -0.0112823555 | B132: 118 | C132: -0.0112823555 | D132: 118 | E132: -0.0008678735 | F132: -0.0008678735 | G132: 0.02703990334 | H132: =VLOOKUP($B132,'気象データ（出芽期予測用）'!$B$4:$P$278,$D$6,TRUE) -> 3.2 | I132: =VLOOKUP($B132,'気象データ（出芽期予測用）'!Q121:AE395,$D$6,TRUE) -> -2.4 | J132: =VLOOKUP($B132,'気象データ（出芽期予測用）'!AW121:BM395,$D$6,TRUE) -> 0 | K132: =VLOOKUP($B132,'気象データ（出芽期予測用）'!AF121:AV395,$D$6,TRUE) -> 0 | L132: 2018-01-26
A133: =IF(C133=0,0, IF(A132>1,2,C133)) -> -0.012150229 | B133: 119 | C133: -0.012150229 | D133: 119 | E133: -0.0008678735 | F133: -0.0008678735 | G133: 0.02703990334 | H133: =VLOOKUP($B133,'気象データ（出芽期予測用）'!$B$4:$P$278,$D$6,TRUE) -> 3.2 | I133: =VLOOKUP($B133,'気象データ（出芽期予測用）'!Q122:AE396,$D$6,TRUE) -> -2.4 | J133: =VLOOKUP($B133,'気象データ（出芽期予測用）'!AW122:BM396,$D$6,TRUE) -> 0 | K133: =VLOOKUP($B133,'気象データ（出芽期予測用）'!AF122:AV396,$D$6,TRUE) -> 0 | L133: 2018-01-27
A134: -0.0130181025 | B134: 120 | C134: -0.0130181025 | D134: 120 | E134: -0.0008678735 | F134: -0.0008678735 | G134: 0.02716175488 | H134: =VLOOKUP($B134,'気象データ（出芽期予測用）'!$B$4:$P$278,$D$6,TRUE) -> 3.2 | I134: =VLOOKUP($B134,'気象データ（出芽期予測用）'!Q123:AE397,$D$6,TRUE) -> -2.5 | J134: =VLOOKUP($B134,'気象データ（出芽期予測用）'!AW123:BM397,$D$6,TRUE) -> 0 | K134: =VLOOKUP($B134,'気象データ（出芽期予測用）'!AF123:AV397,$D$6,TRUE) -> 0 | L134: 2018-01-28
A135: -0.013885976 | B135: 121 | C135: -0.013885976 | D135: 121 | E135: -0.0008678735 | F135: -0.0008678735 | G135: 0.02716175488 | H135: =VLOOKUP($B135,'気象データ（出芽期予測用）'!$B$4:$P$278,$D$6,TRUE) -> 3.2 | I135: =VLOOKUP($B135,'気象データ（出芽期予測用）'!Q124:AE398,$D$6,TRUE) -> -2.5 | J135: =VLOOKUP($B135,'気象データ（出芽期予測用）'!AW124:BM398,$D$6,TRUE) -> 0 | K135: =VLOOKUP($B135,'気象データ（出芽期予測用）'!AF124:AV398,$D$6,TRUE) -> 0 | L135: 2018-01-29
A136: -0.0147538495 | B136: 122 | C136: -0.0147538495 | D136: 122 | E136: -0.0008678735 | F136: -0.0008678735 | G136: 0.02716175488 | H136: =VLOOKUP($B136,'気象データ（出芽期予測用）'!$B$4:$P$278,$D$6,TRUE) -> 3.2 | I136: =VLOOKUP($B136,'気象データ（出芽期予測用）'!Q125:AE399,$D$6,TRUE) -> -2.5 | J136: =VLOOKUP($B136,'気象データ（出芽期予測用）'!AW125:BM399,$D$6,TRUE) -> 0 | K136: =VLOOKUP($B136,'気象データ（出芽期予測用）'!AF125:AV399,$D$6,TRUE) -> 0 | L136: 2018-01-30
A137: -0.015621723 | B137: 123 | C137: -0.015621723 | D137: 123 | E137: -0.0008678735 | F137: -0.0008678735 | G137: 0.02716175488 | H137: =VLOOKUP($B137,'気象データ（出芽期予測用）'!$B$4:$P$278,$D$6,TRUE) -> 3.2 | I137: =VLOOKUP($B137,'気象データ（出芽期予測用）'!Q126:AE400,$D$6,TRUE) -> -2.5 | J137: =VLOOKUP($B137,'気象データ（出芽期予測用）'!AW126:BM400,$D$6,TRUE) -> 0 | K137: =VLOOKUP($B137,'気象データ（出芽期予測用）'!AF126:AV400,$D$6,TRUE) -> 0 | L137: 2018-01-31
A138: -0.0164895965 | B138: 124 | C138: -0.0164895965 | D138: 124 | E138: -0.0008678735 | F138: -0.0008678735 | G138: 0.02716175488 | H138: =VLOOKUP($B138,'気象データ（出芽期予測用）'!$B$4:$P$278,$D$6,TRUE) -> 3.2 | I138: =VLOOKUP($B138,'気象データ（出芽期予測用）'!Q127:AE401,$D$6,TRUE) -> -2.5 | J138: =VLOOKUP($B138,'気象データ（出芽期予測用）'!AW127:BM401,$D$6,TRUE) -> 0 | K138: =VLOOKUP($B138,'気象データ（出芽期予測用）'!AF127:AV401,$D$6,TRUE) -> 0 | L138: 2018-02-01
A139: -0.01735747 | B139: 125 | C139: -0.01735747 | D139: 125 | E139: -0.0008678735 | F139: -0.0008678735 | G139: 0.02716175488 | H139: =VLOOKUP($B139,'気象データ（出芽期予測用）'!$B$4:$P$278,$D$6,TRUE) -> 3.2 | I139: =VLOOKUP($B139,'気象データ（出芽期予測用）'!Q128:AE402,$D$6,TRUE) -> -2.5 | J139: =VLOOKUP($B139,'気象データ（出芽期予測用）'!AW128:BM402,$D$6,TRUE) -> 0 | K139: =VLOOKUP($B139,'気象データ（出芽期予測用）'!AF128:AV402,$D$6,TRUE) -> 0 | L139: 2018-02-02
A140: -0.0182253435 | B140: 126 | C140: -0.0182253435 | D140: 126 | E140: -0.0008678735 | F140: -0.0008678735 | G140: 0.0278376418 | H140: =VLOOKUP($B140,'気象データ（出芽期予測用）'!$B$4:$P$278,$D$6,TRUE) -> 3.3 | I140: =VLOOKUP($B140,'気象データ（出芽期予測用）'!Q129:AE403,$D$6,TRUE) -> -2.4 | J140: =VLOOKUP($B140,'気象データ（出芽期予測用）'!AW129:BM403,$D$6,TRUE) -> 0 | K140: =VLOOKUP($B140,'気象データ（出芽期予測用）'!AF129:AV403,$D$6,TRUE) -> 0 | L140: 2018-02-03
A141: -0.019093217 | B141: 127 | C141: -0.019093217 | D141: 127 | E141: -0.0008678735 | F141: -0.0008678735 | G141: 0.0278376418 | H141: =VLOOKUP($B141,'気象データ（出芽期予測用）'!$B$4:$P$278,$D$6,TRUE) -> 3.3 | I141: =VLOOKUP($B141,'気象データ（出芽期予測用）'!Q130:AE404,$D$6,TRUE) -> -2.4 | J141: =VLOOKUP($B141,'気象データ（出芽期予測用）'!AW130:BM404,$D$6,TRUE) -> 0 | K141: =VLOOKUP($B141,'気象データ（出芽期予測用）'!AF130:AV404,$D$6,TRUE) -> 0 | L141: 2018-02-04
A142: -0.0199610905 | B142: 128 | C142: -0.0199610905 | D142: 128 | E142: -0.0008678735 | F142: -0.0008678735 | G142: 0.02771937765 | H142: =VLOOKUP($B142,'気象データ（出芽期予測用）'!$B$4:$P$278,$D$6,TRUE) -> 3.3 | I142: =VLOOKUP($B142,'気象データ（出芽期予測用）'!Q131:AE405,$D$6,TRUE) -> -2.3 | J142: =VLOOKUP($B142,'気象データ（出芽期予測用）'!AW131:BM405,$D$6,TRUE) -> 0 | K142: =VLOOKUP($B142,'気象データ（出芽期予測用）'!AF131:AV405,$D$6,TRUE) -> 0 | L142: 2018-02-05
A143: -0.020828964 | B143: 129 | C143: -0.020828964 | D143: 129 | E143: -0.0008678735 | F143: =$J$6+$J$7*J143+$J$8*J143^2+$J$9*K143+$J$10*K143^2 -> -0.0008678735 | G143: =$J$6+$J$7*H143+$J$8*H143^2+$J$9*I143+$J$10*I143^2 -> 0.02851610867 | H143: =VLOOKUP($B143,'気象データ（出芽期予測用）'!$B$4:$P$278,$D$6,TRUE) -> 3.4 | I143: =VLOOKUP($B143,'気象データ（出芽期予測用）'!Q132:AE406,$D$6,TRUE) -> -2.3 | J143: =VLOOKUP($B143,'気象データ（出芽期予測用）'!AW132:BM406,$D$6,TRUE) -> 0 | K143: =VLOOKUP($B143,'気象データ（出芽期予測用）'!AF132:AV406,$D$6,TRUE) -> 0 | L143: 2018-02-06
A144: -0.0216968375 | B144: 130 | C144: -0.0216968375 | D144: 130 | E144: =IF($F$6="○",F144,G144) -> -0.0008678735 | F144: -0.0008678735 | G144: 0.02840143191 | H144: =VLOOKUP($B144,'気象データ（出芽期予測用）'!$B$4:$P$278,$D$6,TRUE) -> 3.4 | I144: =VLOOKUP($B144,'気象データ（出芽期予測用）'!Q133:AE407,$D$6,TRUE) -> -2.2 | J144: =VLOOKUP($B144,'気象データ（出芽期予測用）'!AW133:BM407,$D$6,TRUE) -> 0 | K144: =VLOOKUP($B144,'気象データ（出芽期予測用）'!AF133:AV407,$D$6,TRUE) -> 0 | L144: 2018-02-07
A145: -0.022564711 | B145: 131 | C145: -0.022564711 | D145: 131 | E145: -0.0008678735 | F145: -0.0008678735 | G145: 0.02908606612 | H145: =VLOOKUP($B145,'気象データ（出芽期予測用）'!$B$4:$P$278,$D$6,TRUE) -> 3.5 | I145: =VLOOKUP($B145,'気象データ（出芽期予測用）'!Q134:AE408,$D$6,TRUE) -> -2.1 | J145: =VLOOKUP($B145,'気象データ（出芽期予測用）'!AW134:BM408,$D$6,TRUE) -> 0 | K145: =VLOOKUP($B145,'気象データ（出芽期予測用）'!AF134:AV408,$D$6,TRUE) -> 0 | L145: 2018-02-08
A146: -0.0234325845 | B146: 132 | C146: -0.0234325845 | D146: 132 | E146: -0.0008678735 | F146: -0.0008678735 | G146: 0.02977328029 | H146: =VLOOKUP($B146,'気象データ（出芽期予測用）'!$B$4:$P$278,$D$6,TRUE) -> 3.6 | I146: =VLOOKUP($B146,'気象データ（出芽期予測用）'!Q135:AE409,$D$6,TRUE) -> -2 | J146: =VLOOKUP($B146,'気象データ（出芽期予測用）'!AW135:BM409,$D$6,TRUE) -> 0 | K146: =VLOOKUP($B146,'気象データ（出芽期予測用）'!AF135:AV409,$D$6,TRUE) -> 0 | L146: 2018-02-09
A147: -0.024300458 | B147: 133 | C147: -0.024300458 | D147: 133 | E147: -0.0008678735 | F147: -0.0008678735 | G147: 0.02966936569 | H147: =VLOOKUP($B147,'気象データ（出芽期予測用）'!$B$4:$P$278,$D$6,TRUE) -> 3.6 | I147: =VLOOKUP($B147,'気象データ（出芽期予測用）'!Q136:AE410,$D$6,TRUE) -> -1.9 | J147: =VLOOKUP($B147,'気象データ（出芽期予測用）'!AW136:BM410,$D$6,TRUE) -> 0 | K147: =VLOOKUP($B147,'気象データ（出芽期予測用）'!AF136:AV410,$D$6,TRUE) -> 0 | L147: 2018-02-10
A148: -0.0251683315 | B148: 134 | C148: -0.0251683315 | D148: 134 | E148: -0.0008678735 | F148: -0.0008678735 | G148: 0.0303627472 | H148: =VLOOKUP($B148,'気象データ（出芽期予測用）'!$B$4:$P$278,$D$6,TRUE) -> 3.7 | I148: =VLOOKUP($B148,'気象データ（出芽期予測用）'!Q137:AE411,$D$6,TRUE) -> -1.8 | J148: =VLOOKUP($B148,'気象データ（出芽期予測用）'!AW137:BM411,$D$6,TRUE) -> 0 | K148: =VLOOKUP($B148,'気象データ（出芽期予測用）'!AF137:AV411,$D$6,TRUE) -> 0 | L148: 2018-02-11
A149: -0.026036205 | B149: 135 | C149: -0.026036205 | D149: 135 | E149: -0.0008678735 | F149: -0.0008678735 | G149: 0.03105870866 | H149: =VLOOKUP($B149,'気象データ（出芽期予測用）'!$B$4:$P$278,$D$6,TRUE) -> 3.8 | I149: =VLOOKUP($B149,'気象データ（出芽期予測用）'!Q138:AE412,$D$6,TRUE) -> -1.7 | J149: =VLOOKUP($B149,'気象データ（出芽期予測用）'!AW138:BM412,$D$6,TRUE) -> 0 | K149: =VLOOKUP($B149,'気象データ（出芽期予測用）'!AF138:AV412,$D$6,TRUE) -> 0 | L149: 2018-02-12
A150: -0.0269040785 | B150: 136 | C150: -0.0269040785 | D150: 136 | E150: -0.0008678735 | F150: -0.0008678735 | G150: 0.03175725007 | H150: =VLOOKUP($B150,'気象データ（出芽期予測用）'!$B$4:$P$278,$D$6,TRUE) -> 3.9 | I150: =VLOOKUP($B150,'気象データ（出芽期予測用）'!Q139:AE413,$D$6,TRUE) -> -1.6 | J150: =VLOOKUP($B150,'気象データ（出芽期予測用）'!AW139:BM413,$D$6,TRUE) -> 0 | K150: =VLOOKUP($B150,'気象データ（出芽期予測用）'!AF139:AV413,$D$6,TRUE) -> 0 | L150: 2018-02-13
A151: -0.027771952 | B151: 137 | C151: -0.027771952 | D151: 137 | E151: -0.0008678735 | F151: -0.0008678735 | G151: 0.03245837144 | H151: =VLOOKUP($B151,'気象データ（出芽期予測用）'!$B$4:$P$278,$D$6,TRUE) -> 4 | I151: =VLOOKUP($B151,'気象データ（出芽期予測用）'!Q140:AE414,$D$6,TRUE) -> -1.5 | J151: =VLOOKUP($B151,'気象データ（出芽期予測用）'!AW140:BM414,$D$6,TRUE) -> 0 | K151: =VLOOKUP($B151,'気象データ（出芽期予測用）'!AF140:AV414,$D$6,TRUE) -> 0 | L151: 2018-02-14
A152: -0.0286398255 | B152: 138 | C152: -0.0286398255 | D152: 138 | E152: -0.0008678735 | F152: -0.0008678735 | G152: 0.03237239378 | H152: =VLOOKUP($B152,'気象データ（出芽期予測用）'!$B$4:$P$278,$D$6,TRUE) -> 4 | I152: =VLOOKUP($B152,'気象データ（出芽期予測用）'!Q141:AE415,$D$6,TRUE) -> -1.4 | J152: =VLOOKUP($B152,'気象データ（出芽期予測用）'!AW141:BM415,$D$6,TRUE) -> 0 | K152: =VLOOKUP($B152,'気象データ（出芽期予測用）'!AF141:AV415,$D$6,TRUE) -> 0 | L152: 2018-02-15
A153: -0.029507699 | B153: 139 | C153: -0.029507699 | D153: 139 | E153: -0.0008678735 | F153: -0.0008678735 | G153: 0.03307968249 | H153: =VLOOKUP($B153,'気象データ（出芽期予測用）'!$B$4:$P$278,$D$6,TRUE) -> 4.1 | I153: =VLOOKUP($B153,'気象データ（出芽期予測用）'!Q142:AE416,$D$6,TRUE) -> -1.3 | J153: =VLOOKUP($B153,'気象データ（出芽期予測用）'!AW142:BM416,$D$6,TRUE) -> 0 | K153: =VLOOKUP($B153,'気象データ（出芽期予測用）'!AF142:AV416,$D$6,TRUE) -> 0 | L153: 2018-02-16
A154: -0.0303755725 | B154: 140 | C154: -0.0303755725 | D154: 140 | E154: -0.0008678735 | F154: -0.0008678735 | G154: 0.03378955115 | H154: =VLOOKUP($B154,'気象データ（出芽期予測用）'!$B$4:$P$278,$D$6,TRUE) -> 4.2 | I154: =VLOOKUP($B154,'気象データ（出芽期予測用）'!Q143:AE417,$D$6,TRUE) -> -1.2 | J154: =VLOOKUP($B154,'気象データ（出芽期予測用）'!AW143:BM417,$D$6,TRUE) -> 0 | K154: =VLOOKUP($B154,'気象データ（出芽期予測用）'!AF143:AV417,$D$6,TRUE) -> 0 | L154: 2018-02-17
A155: -0.031243446 | B155: 141 | C155: -0.031243446 | D155: 141 | E155: -0.0008678735 | F155: -0.0008678735 | G155: 0.03457721525 | H155: =VLOOKUP($B155,'気象データ（出芽期予測用）'!$B$4:$P$278,$D$6,TRUE) -> 4.3 | I155: =VLOOKUP($B155,'気象データ（出芽期予測用）'!Q144:AE418,$D$6,TRUE) -> -1.2 | J155: =VLOOKUP($B155,'気象データ（出芽期予測用）'!AW144:BM418,$D$6,TRUE) -> 0 | K155: =VLOOKUP($B155,'気象データ（出芽期予測用）'!AF144:AV418,$D$6,TRUE) -> 0 | L155: 2018-02-18
A156: -0.0321113195 | B156: 142 | C156: -0.0321113195 | D156: 142 | E156: -0.0008678735 | F156: -0.0008678735 | G156: 0.03528865643 | H156: =VLOOKUP($B156,'気象データ（出芽期予測用）'!$B$4:$P$278,$D$6,TRUE) -> 4.4 | I156: =VLOOKUP($B156,'気象データ（出芽期予測用）'!Q145:AE419,$D$6,TRUE) -> -1.1 | J156: =VLOOKUP($B156,'気象データ（出芽期予測用）'!AW145:BM419,$D$6,TRUE) -> 0 | K156: =VLOOKUP($B156,'気象データ（出芽期予測用）'!AF145:AV419,$D$6,TRUE) -> 0 | L156: 2018-02-19
A157: -0.032979193 | B157: 143 | C157: -0.032979193 | D157: 143 | E157: -0.0008678735 | F157: -0.0008678735 | G157: 0.03600267756 | H157: =VLOOKUP($B157,'気象データ（出芽期予測用）'!$B$4:$P$278,$D$6,TRUE) -> 4.5 | I157: =VLOOKUP($B157,'気象データ（出芽期予測用）'!Q146:AE420,$D$6,TRUE) -> -1 | J157: =VLOOKUP($B157,'気象データ（出芽期予測用）'!AW146:BM420,$D$6,TRUE) -> 0 | K157: =VLOOKUP($B157,'気象データ（出芽期予測用）'!AF146:AV420,$D$6,TRUE) -> 0 | L157: 2018-02-20
A158: -0.0338470665 | B158: 144 | C158: -0.0338470665 | D158: 144 | E158: -0.0008678735 | F158: -0.0008678735 | G158: 0.03671927864 | H158: =VLOOKUP($B158,'気象データ（出芽期予測用）'!$B$4:$P$278,$D$6,TRUE) -> 4.6 | I158: =VLOOKUP($B158,'気象データ（出芽期予測用）'!Q147:AE421,$D$6,TRUE) -> -0.9 | J158: =VLOOKUP($B158,'気象データ（出芽期予測用）'!AW147:BM421,$D$6,TRUE) -> 0 | K158: =VLOOKUP($B158,'気象データ（出芽期予測用）'!AF147:AV421,$D$6,TRUE) -> 0 | L158: 2018-02-21
A159: -0.03471494 | B159: 145 | C159: -0.03471494 | D159: 145 | E159: -0.0008678735 | F159: -0.0008678735 | G159: 0.03743845968 | H159: =VLOOKUP($B159,'気象データ（出芽期予測用）'!$B$4:$P$278,$D$6,TRUE) -> 4.7 | I159: =VLOOKUP($B159,'気象データ（出芽期予測用）'!Q148:AE422,$D$6,TRUE) -> -0.8 | J159: =VLOOKUP($B159,'気象データ（出芽期予測用）'!AW148:BM422,$D$6,TRUE) -> 0 | K159: =VLOOKUP($B159,'気象データ（出芽期予測用）'!AF148:AV422,$D$6,TRUE) -> 0 | L159: 2018-02-22
A160: -0.0355828135 | B160: 146 | C160: -0.0355828135 | D160: 146 | E160: -0.0008678735 | F160: -0.0008678735 | G160: 0.03822108661 | H160: =VLOOKUP($B160,'気象データ（出芽期予測用）'!$B$4:$P$278,$D$6,TRUE) -> 4.8 | I160: =VLOOKUP($B160,'気象データ（出芽期予測用）'!Q149:AE423,$D$6,TRUE) -> -0.8 | J160: =VLOOKUP($B160,'気象データ（出芽期予測用）'!AW149:BM423,$D$6,TRUE) -> 0 | K160: =VLOOKUP($B160,'気象データ（出芽期予測用）'!AF149:AV423,$D$6,TRUE) -> 0 | L160: 2018-02-23
A161: -0.036450687 | B161: 147 | C161: -0.036450687 | D161: 147 | E161: -0.0008678735 | F161: -0.0008678735 | G161: 0.03894184016 | H161: =VLOOKUP($B161,'気象データ（出芽期予測用）'!$B$4:$P$278,$D$6,TRUE) -> 4.9 | I161: =VLOOKUP($B161,'気象データ（出芽期予測用）'!Q150:AE424,$D$6,TRUE) -> -0.7 | J161: =VLOOKUP($B161,'気象データ（出芽期予測用）'!AW150:BM424,$D$6,TRUE) -> 0 | K161: =VLOOKUP($B161,'気象データ（出芽期予測用）'!AF150:AV424,$D$6,TRUE) -> 0 | L161: 2018-02-24
A162: -0.0373185605 | B162: 148 | C162: -0.0373185605 | D162: 148 | E162: -0.0008678735 | F162: -0.0008678735 | G162: 0.03966517366 | H162: =VLOOKUP($B162,'気象データ（出芽期予測用）'!$B$4:$P$278,$D$6,TRUE) -> 5 | I162: =VLOOKUP($B162,'気象データ（出芽期予測用）'!Q151:AE425,$D$6,TRUE) -> -0.6 | J162: =VLOOKUP($B162,'気象データ（出芽期予測用）'!AW151:BM425,$D$6,TRUE) -> 0 | K162: =VLOOKUP($B162,'気象データ（出芽期予測用）'!AF151:AV425,$D$6,TRUE) -> 0 | L162: 2018-02-25
A163: -0.038186434 | B163: 149 | C163: -0.038186434 | D163: 149 | E163: -0.0008678735 | F163: -0.0008678735 | G163: 0.04039108712 | H163: =VLOOKUP($B163,'気象データ（出芽期予測用）'!$B$4:$P$278,$D$6,TRUE) -> 5.1 | I163: =VLOOKUP($B163,'気象データ（出芽期予測用）'!Q152:AE426,$D$6,TRUE) -> -0.5 | J163: =VLOOKUP($B163,'気象データ（出芽期予測用）'!AW152:BM426,$D$6,TRUE) -> 0 | K163: =VLOOKUP($B163,'気象データ（出芽期予測用）'!AF152:AV426,$D$6,TRUE) -> 0 | L163: 2018-02-26
A164: -0.0390543075 | B164: 150 | C164: -0.0390543075 | D164: 150 | E164: -0.0008678735 | F164: -0.0008678735 | G164: 0.04189717029 | H164: =VLOOKUP($B164,'気象データ（出芽期予測用）'!$B$4:$P$278,$D$6,TRUE) -> 5.3 | I164: =VLOOKUP($B164,'気象データ（出芽期予測用）'!Q153:AE427,$D$6,TRUE) -> -0.4 | J164: =VLOOKUP($B164,'気象データ（出芽期予測用）'!AW153:BM427,$D$6,TRUE) -> 0 | K164: =VLOOKUP($B164,'気象データ（出芽期予測用）'!AF153:AV427,$D$6,TRUE) -> 0 | L164: 2018-02-27
A165: -0.039922181 | B165: 151 | C165: -0.039922181 | D165: 151 | E165: -0.0008678735 | F165: -0.0008678735 | G165: 0.04262723621 | H165: =VLOOKUP($B165,'気象データ（出芽期予測用）'!$B$4:$P$278,$D$6,TRUE) -> 5.4 | I165: =VLOOKUP($B165,'気象データ（出芽期予測用）'!Q154:AE428,$D$6,TRUE) -> -0.3 | J165: =VLOOKUP($B165,'気象データ（出芽期予測用）'!AW154:BM428,$D$6,TRUE) -> 0 | K165: =VLOOKUP($B165,'気象データ（出芽期予測用）'!AF154:AV428,$D$6,TRUE) -> 0 | L165: 2018-02-28
A166: -0.0407900545 | B166: 152 | C166: -0.0407900545 | D166: 152 | E166: -0.0008678735 | F166: -0.0008678735 | G166: 0.0433598821 | H166: =VLOOKUP($B166,'気象データ（出芽期予測用）'!$B$4:$P$278,$D$6,TRUE) -> 5.5 | I166: =VLOOKUP($B166,'気象データ（出芽期予測用）'!Q155:AE429,$D$6,TRUE) -> -0.2 | J166: =VLOOKUP($B166,'気象データ（出芽期予測用）'!AW155:BM429,$D$6,TRUE) -> 0 | K166: =VLOOKUP($B166,'気象データ（出芽期予測用）'!AF155:AV429,$D$6,TRUE) -> 0 | L166: 2018-03-01
A167: -0.041657928 | B167: 153 | C167: -0.041657928 | D167: 153 | E167: -0.0008678735 | F167: -0.0008678735 | G167: 0.0433598821 | H167: =VLOOKUP($B167,'気象データ（出芽期予測用）'!$B$4:$P$278,$D$6,TRUE) -> 5.5 | I167: =VLOOKUP($B167,'気象データ（出芽期予測用）'!Q156:AE430,$D$6,TRUE) -> -0.2 | J167: =VLOOKUP($B167,'気象データ（出芽期予測用）'!AW156:BM430,$D$6,TRUE) -> 0 | K167: =VLOOKUP($B167,'気象データ（出芽期予測用）'!AF156:AV430,$D$6,TRUE) -> 0 | L167: 2018-03-02
A168: -0.0425258015 | B168: 154 | C168: -0.0425258015 | D168: 154 | E168: -0.0008678735 | F168: -0.0008678735 | G168: 0.04409510793 | H168: =VLOOKUP($B168,'気象データ（出芽期予測用）'!$B$4:$P$278,$D$6,TRUE) -> 5.6 | I168: =VLOOKUP($B168,'気象データ（出芽期予測用）'!Q157:AE431,$D$6,TRUE) -> -0.1 | J168: =VLOOKUP($B168,'気象データ（出芽期予測用）'!AW157:BM431,$D$6,TRUE) -> 0 | K168: =VLOOKUP($B168,'気象データ（出芽期予測用）'!AF157:AV431,$D$6,TRUE) -> 0 | L168: 2018-03-03
A169: -0.043393675 | B169: 155 | C169: -0.043393675 | D169: 155 | E169: -0.0008678735 | F169: -0.0008678735 | G169: 0.04483291372 | H169: =VLOOKUP($B169,'気象データ（出芽期予測用）'!$B$4:$P$278,$D$6,TRUE) -> 5.7 | I169: =VLOOKUP($B169,'気象データ（出芽期予測用）'!Q158:AE432,$D$6,TRUE) -> 0 | J169: =VLOOKUP($B169,'気象データ（出芽期予測用）'!AW158:BM432,$D$6,TRUE) -> 0 | K169: =VLOOKUP($B169,'気象データ（出芽期予測用）'!AF158:AV432,$D$6,TRUE) -> 0 | L169: 2018-03-04
A170: -0.0442615485 | B170: 156 | C170: -0.0442615485 | D170: 156 | E170: -0.0008678735 | F170: -0.0008678735 | G170: 0.04557329946 | H170: =VLOOKUP($B170,'気象データ（出芽期予測用）'!$B$4:$P$278,$D$6,TRUE) -> 5.8 | I170: =VLOOKUP($B170,'気象データ（出芽期予測用）'!Q159:AE433,$D$6,TRUE) -> 0.1 | J170: =VLOOKUP($B170,'気象データ（出芽期予測用）'!AW159:BM433,$D$6,TRUE) -> 0 | K170: =VLOOKUP($B170,'気象データ（出芽期予測用）'!AF159:AV433,$D$6,TRUE) -> 0 | L170: 2018-03-05
A171: -0.045129422 | B171: 157 | C171: -0.045129422 | D171: 157 | E171: -0.0008678735 | F171: -0.0008678735 | G171: 0.04631626515 | H171: =VLOOKUP($B171,'気象データ（出芽期予測用）'!$B$4:$P$278,$D$6,TRUE) -> 5.9 | I171: =VLOOKUP($B171,'気象データ（出芽期予測用）'!Q160:AE434,$D$6,TRUE) -> 0.2 | J171: =VLOOKUP($B171,'気象データ（出芽期予測用）'!AW160:BM434,$D$6,TRUE) -> 0 | K171: =VLOOKUP($B171,'気象データ（出芽期予測用）'!AF160:AV434,$D$6,TRUE) -> 0 | L171: 2018-03-06
A172: -0.0459972955 | B172: 158 | C172: -0.0459972955 | D172: 158 | E172: -0.0008678735 | F172: -0.0008678735 | G172: 0.0470618108 | H172: =VLOOKUP($B172,'気象データ（出芽期予測用）'!$B$4:$P$278,$D$6,TRUE) -> 6 | I172: =VLOOKUP($B172,'気象データ（出芽期予測用）'!Q161:AE435,$D$6,TRUE) -> 0.3 | J172: =VLOOKUP($B172,'気象データ（出芽期予測用）'!AW161:BM435,$D$6,TRUE) -> 0 | K172: =VLOOKUP($B172,'気象データ（出芽期予測用）'!AF161:AV435,$D$6,TRUE) -> 0 | L172: 2018-03-07
A173: -0.046865169 | B173: 159 | C173: -0.046865169 | D173: 159 | E173: -0.0008678735 | F173: -0.0008678735 | G173: 0.04783134107 | H173: =VLOOKUP($B173,'気象データ（出芽期予測用）'!$B$4:$P$278,$D$6,TRUE) -> 6.1 | I173: =VLOOKUP($B173,'気象データ（出芽期予測用）'!Q162:AE436,$D$6,TRUE) -> 0.3 | J173: =VLOOKUP($B173,'気象データ（出芽期予測用）'!AW162:BM436,$D$6,TRUE) -> 0 | K173: =VLOOKUP($B173,'気象データ（出芽期予測用）'!AF162:AV436,$D$6,TRUE) -> 0 | L173: 2018-03-08
A174: -0.0477330425 | B174: 160 | C174: -0.0477330425 | D174: 160 | E174: -0.0008678735 | F174: -0.0008678735 | G174: 0.04932815735 | H174: =VLOOKUP($B174,'気象データ（出芽期予測用）'!$B$4:$P$278,$D$6,TRUE) -> 6.3 | I174: =VLOOKUP($B174,'気象データ（出芽期予測用）'!Q163:AE437,$D$6,TRUE) -> 0.5 | J174: =VLOOKUP($B174,'気象データ（出芽期予測用）'!AW163:BM437,$D$6,TRUE) -> 0 | K174: =VLOOKUP($B174,'気象データ（出芽期予測用）'!AF163:AV437,$D$6,TRUE) -> 0 | L174: 2018-03-09
A175: -0.048600916 | B175: 161 | C175: -0.048600916 | D175: 161 | E175: -0.0008678735 | F175: -0.0008678735 | G175: 0.05008043541 | H175: =VLOOKUP($B175,'気象データ（出芽期予測用）'!$B$4:$P$278,$D$6,TRUE) -> 6.4 | I175: =VLOOKUP($B175,'気象データ（出芽期予測用）'!Q164:AE438,$D$6,TRUE) -> 0.6 | J175: =VLOOKUP($B175,'気象データ（出芽期予測用）'!AW164:BM438,$D$6,TRUE) -> 0 | K175: =VLOOKUP($B175,'気象データ（出芽期予測用）'!AF164:AV438,$D$6,TRUE) -> 0 | L175: 2018-03-10
A176: -0.0494687895 | B176: 162 | C176: =IF(B176<($D$9+1),0,E176)+C175 -> -0.0494687895 | D176: 162 | E176: -0.0008678735 | F176: -0.0008678735 | G176: 0.05083529344 | H176: =VLOOKUP($B176,'気象データ（出芽期予測用）'!$B$4:$P$278,$D$6,TRUE) -> 6.5 | I176: =VLOOKUP($B176,'気象データ（出芽期予測用）'!Q165:AE439,$D$6,TRUE) -> 0.7 | J176: =VLOOKUP($B176,'気象データ（出芽期予測用）'!AW165:BM439,$D$6,TRUE) -> 0 | K176: =VLOOKUP($B176,'気象データ（出芽期予測用）'!AF165:AV439,$D$6,TRUE) -> 0 | L176: 2018-03-11
A177: -0.050336663 | B177: 163 | C177: -0.050336663 | D177: 163 | E177: -0.0008678735 | F177: -0.0008678735 | G177: 0.05159273141 | H177: =VLOOKUP($B177,'気象データ（出芽期予測用）'!$B$4:$P$278,$D$6,TRUE) -> 6.6 | I177: =VLOOKUP($B177,'気象データ（出芽期予測用）'!Q166:AE440,$D$6,TRUE) -> 0.8 | J177: =VLOOKUP($B177,'気象データ（出芽期予測用）'!AW166:BM440,$D$6,TRUE) -> 0 | K177: =VLOOKUP($B177,'気象データ（出芽期予測用）'!AF166:AV440,$D$6,TRUE) -> 0 | L177: 2018-03-12
A178: -0.0512045365 | B178: 164 | C178: -0.0512045365 | D178: 164 | E178: -0.0008678735 | F178: -0.0008678735 | G178: 0.05311534722 | H178: =VLOOKUP($B178,'気象データ（出芽期予測用）'!$B$4:$P$278,$D$6,TRUE) -> 6.8 | I178: =VLOOKUP($B178,'気象データ（出芽期予測用）'!Q167:AE441,$D$6,TRUE) -> 1 | J178: =VLOOKUP($B178,'気象データ（出芽期予測用）'!AW167:BM441,$D$6,TRUE) -> 0 | K178: =VLOOKUP($B178,'気象データ（出芽期予測用）'!AF167:AV441,$D$6,TRUE) -> 0 | L178: 2018-03-13
A179: -0.05207241 | B179: 165 | C179: -0.05207241 | D179: 165 | E179: -0.0008678735 | F179: -0.0008678735 | G179: 0.05388052505 | H179: =VLOOKUP($B179,'気象データ（出芽期予測用）'!$B$4:$P$278,$D$6,TRUE) -> 6.9 | I179: =VLOOKUP($B179,'気象データ（出芽期予測用）'!Q168:AE442,$D$6,TRUE) -> 1.1 | J179: =VLOOKUP($B179,'気象データ（出芽期予測用）'!AW168:BM442,$D$6,TRUE) -> 0 | K179: =VLOOKUP($B179,'気象データ（出芽期予測用）'!AF168:AV442,$D$6,TRUE) -> 0 | L179: 2018-03-14
A180: -0.0529402835 | B180: 166 | C180: -0.0529402835 | D180: 166 | E180: -0.0008678735 | F180: -0.0008678735 | G180: 0.05541862057 | H180: =VLOOKUP($B180,'気象データ（出芽期予測用）'!$B$4:$P$278,$D$6,TRUE) -> 7.1 | I180: =VLOOKUP($B180,'気象データ（出芽期予測用）'!Q169:AE443,$D$6,TRUE) -> 1.3 | J180: =VLOOKUP($B180,'気象データ（出芽期予測用）'!AW169:BM443,$D$6,TRUE) -> 0 | K180: =VLOOKUP($B180,'気象データ（出芽期予測用）'!AF169:AV443,$D$6,TRUE) -> 0 | L180: 2018-03-15
A181: -0.053808157 | B181: 167 | C181: -0.053808157 | D181: 167 | E181: -0.0008678735 | F181: -0.0008678735 | G181: 0.05619153827 | H181: =VLOOKUP($B181,'気象データ（出芽期予測用）'!$B$4:$P$278,$D$6,TRUE) -> 7.2 | I181: =VLOOKUP($B181,'気象データ（出芽期予測用）'!Q170:AE444,$D$6,TRUE) -> 1.4 | J181: =VLOOKUP($B181,'気象データ（出芽期予測用）'!AW170:BM444,$D$6,TRUE) -> 0 | K181: =VLOOKUP($B181,'気象データ（出芽期予測用）'!AF170:AV444,$D$6,TRUE) -> 0 | L181: 2018-03-16
A182: -0.0546760305 | B182: 168 | C182: -0.0546760305 | D182: 168 | E182: -0.0008678735 | F182: -0.0008678735 | G182: 0.05774511351 | H182: =VLOOKUP($B182,'気象データ（出芽期予測用）'!$B$4:$P$278,$D$6,TRUE) -> 7.4 | I182: =VLOOKUP($B182,'気象データ（出芽期予測用）'!Q171:AE445,$D$6,TRUE) -> 1.6 | J182: =VLOOKUP($B182,'気象データ（出芽期予測用）'!AW171:BM445,$D$6,TRUE) -> 0 | K182: =VLOOKUP($B182,'気象データ（出芽期予測用）'!AF171:AV445,$D$6,TRUE) -> 0 | L182: 2018-03-17
A183: -0.055543904 | B183: 169 | C183: -0.055543904 | D183: 169 | E183: -0.0008678735 | F183: -0.0008678735 | G183: 0.05855458982 | H183: =VLOOKUP($B183,'気象データ（出芽期予測用）'!$B$4:$P$278,$D$6,TRUE) -> 7.5 | I183: =VLOOKUP($B183,'気象データ（出芽期予測用）'!Q172:AE446,$D$6,TRUE) -> 1.8 | J183: =VLOOKUP($B183,'気象データ（出芽期予測用）'!AW172:BM446,$D$6,TRUE) -> 0 | K183: =VLOOKUP($B183,'気象データ（出芽期予測用）'!AF172:AV446,$D$6,TRUE) -> 0 | L183: 2018-03-18
A184: -0.0564117775 | B184: 170 | C184: -0.0564117775 | D184: 170 | E184: -0.0008678735 | F184: -0.0008678735 | G184: 0.06009482601 | H184: =VLOOKUP($B184,'気象データ（出芽期予測用）'!$B$4:$P$278,$D$6,TRUE) -> 7.7 | I184: =VLOOKUP($B184,'気象データ（出芽期予測用）'!Q173:AE447,$D$6,TRUE) -> 1.9 | J184: =VLOOKUP($B184,'気象データ（出芽期予測用）'!AW173:BM447,$D$6,TRUE) -> 0 | K184: =VLOOKUP($B184,'気象データ（出芽期予測用）'!AF173:AV447,$D$6,TRUE) -> 0 | L184: 2018-03-19
A185: -0.057279651 | B185: 171 | C185: -0.057279651 | D185: 171 | E185: -0.0008678735 | F185: -0.0008678735 | G185: 0.06092280435 | H185: =VLOOKUP($B185,'気象データ（出芽期予測用）'!$B$4:$P$278,$D$6,TRUE) -> 7.8 | I185: =VLOOKUP($B185,'気象データ（出芽期予測用）'!Q174:AE448,$D$6,TRUE) -> 2.1 | J185: =VLOOKUP($B185,'気象データ（出芽期予測用）'!AW174:BM448,$D$6,TRUE) -> 0 | K185: =VLOOKUP($B185,'気象データ（出芽期予測用）'!AF174:AV448,$D$6,TRUE) -> 0 | L185: 2018-03-20
A186: -0.0581475245 | B186: 172 | C186: -0.0581475245 | D186: 172 | E186: -0.0008678735 | F186: -0.0008678735 | G186: 0.06171736909 | H186: =VLOOKUP($B186,'気象データ（出芽期予測用）'!$B$4:$P$278,$D$6,TRUE) -> 7.9 | I186: =VLOOKUP($B186,'気象データ（出芽期予測用）'!Q175:AE449,$D$6,TRUE) -> 2.2 | J186: =VLOOKUP($B186,'気象データ（出芽期予測用）'!AW175:BM449,$D$6,TRUE) -> 0 | K186: =VLOOKUP($B186,'気象データ（出芽期予測用）'!AF175:AV449,$D$6,TRUE) -> 0 | L186: 2018-03-21
A187: -0.059015398 | B187: 173 | C187: -0.059015398 | D187: 173 | E187: -0.0008678735 | F187: -0.0008678735 | G187: 0.06256485688 | H187: =VLOOKUP($B187,'気象データ（出芽期予測用）'!$B$4:$P$278,$D$6,TRUE) -> 8 | I187: =VLOOKUP($B187,'気象データ（出芽期予測用）'!Q176:AE450,$D$6,TRUE) -> 2.4 | J187: =VLOOKUP($B187,'気象データ（出芽期予測用）'!AW176:BM450,$D$6,TRUE) -> 0 | K187: =VLOOKUP($B187,'気象データ（出芽期予測用）'!AF176:AV450,$D$6,TRUE) -> 0 | L187: 2018-03-22
A188: -0.0598832715 | B188: 174 | C188: -0.0598832715 | D188: 174 | E188: -0.0008678735 | F188: -0.0008678735 | G188: 0.06411654306 | H188: =VLOOKUP($B188,'気象データ（出芽期予測用）'!$B$4:$P$278,$D$6,TRUE) -> 8.2 | I188: =VLOOKUP($B188,'気象データ（出芽期予測用）'!Q177:AE451,$D$6,TRUE) -> 2.5 | J188: =VLOOKUP($B188,'気象データ（出芽期予測用）'!AW177:BM451,$D$6,TRUE) -> 0 | K188: =VLOOKUP($B188,'気象データ（出芽期予測用）'!AF177:AV451,$D$6,TRUE) -> 0 | L188: 2018-03-23
A189: -0.060751145 | B189: 175 | C189: -0.060751145 | D189: 175 | E189: -0.0008678735 | F189: -0.0008678735 | G189: 0.06492142762 | H189: =VLOOKUP($B189,'気象データ（出芽期予測用）'!$B$4:$P$278,$D$6,TRUE) -> 8.3 | I189: =VLOOKUP($B189,'気象データ（出芽期予測用）'!Q178:AE452,$D$6,TRUE) -> 2.6 | J189: =VLOOKUP($B189,'気象データ（出芽期予測用）'!AW178:BM452,$D$6,TRUE) -> 0 | K189: =VLOOKUP($B189,'気象データ（出芽期予測用）'!AF178:AV452,$D$6,TRUE) -> 0 | L189: 2018-03-24
A190: -0.0616190185 | B190: 176 | C190: -0.0616190185 | D190: 176 | E190: -0.0008678735 | F190: -0.0008678735 | G190: 0.06579358477 | H190: =VLOOKUP($B190,'気象データ（出芽期予測用）'!$B$4:$P$278,$D$6,TRUE) -> 8.4 | I190: =VLOOKUP($B190,'気象データ（出芽期予測用）'!Q179:AE453,$D$6,TRUE) -> 2.8 | J190: =VLOOKUP($B190,'気象データ（出芽期予測用）'!AW179:BM453,$D$6,TRUE) -> 0 | K190: =VLOOKUP($B190,'気象データ（出芽期予測用）'!AF179:AV453,$D$6,TRUE) -> 0 | L190: 2018-03-25
A191: -0.062486892 | B191: 177 | C191: -0.062486892 | D191: 177 | E191: -0.0008678735 | F191: -0.0008678735 | G191: 0.06660721662 | H191: =VLOOKUP($B191,'気象データ（出芽期予測用）'!$B$4:$P$278,$D$6,TRUE) -> 8.5 | I191: =VLOOKUP($B191,'気象データ（出芽期予測用）'!Q180:AE454,$D$6,TRUE) -> 2.9 | J191: =VLOOKUP($B191,'気象データ（出芽期予測用）'!AW180:BM454,$D$6,TRUE) -> 0 | K191: =VLOOKUP($B191,'気象データ（出芽期予測用）'!AF180:AV454,$D$6,TRUE) -> 0 | L191: 2018-03-26
A192: -0.0633547655 | B192: 178 | C192: -0.0633547655 | D192: 178 | E192: -0.0008678735 | F192: -0.0008678735 | G192: 0.06816676539 | H192: =VLOOKUP($B192,'気象データ（出芽期予測用）'!$B$4:$P$278,$D$6,TRUE) -> 8.7 | I192: =VLOOKUP($B192,'気象データ（出芽期予測用）'!Q181:AE455,$D$6,TRUE) -> 3 | J192: =VLOOKUP($B192,'気象データ（出芽期予測用）'!AW181:BM455,$D$6,TRUE) -> 0 | K192: =VLOOKUP($B192,'気象データ（出芽期予測用）'!AF181:AV455,$D$6,TRUE) -> 0 | L192: 2018-03-27
A193: -0.064222639 | B193: 179 | C193: -0.064222639 | D193: 179 | E193: -0.0008678735 | F193: -0.0008678735 | G193: 0.06898454971 | H193: =VLOOKUP($B193,'気象データ（出芽期予測用）'!$B$4:$P$278,$D$6,TRUE) -> 8.8 | I193: =VLOOKUP($B193,'気象データ（出芽期予測用）'!Q182:AE456,$D$6,TRUE) -> 3.1 | J193: =VLOOKUP($B193,'気象データ（出芽期予測用）'!AW182:BM456,$D$6,TRUE) -> 0 | K193: =VLOOKUP($B193,'気象データ（出芽期予測用）'!AF182:AV456,$D$6,TRUE) -> 0 | L193: 2018-03-28
A194: -0.0650905125 | B194: 180 | C194: -0.0650905125 | D194: 180 | E194: -0.0008678735 | F194: -0.0008678735 | G194: 0.07062785822 | H194: =VLOOKUP($B194,'気象データ（出芽期予測用）'!$B$4:$P$278,$D$6,TRUE) -> 9 | I194: =VLOOKUP($B194,'気象データ（出芽期予測用）'!Q183:AE457,$D$6,TRUE) -> 3.3 | J194: =VLOOKUP($B194,'気象データ（出芽期予測用）'!AW183:BM457,$D$6,TRUE) -> 0 | K194: =VLOOKUP($B194,'気象データ（出芽期予測用）'!AF183:AV457,$D$6,TRUE) -> 0 | L194: 2018-03-29
A195: -0.065958386 | B195: 181 | C195: -0.065958386 | D195: 181 | E195: -0.0008678735 | F195: -0.0008678735 | G195: 0.07219168218 | H195: =VLOOKUP($B195,'気象データ（出芽期予測用）'!$B$4:$P$278,$D$6,TRUE) -> 9.2 | I195: =VLOOKUP($B195,'気象データ（出芽期予測用）'!Q184:AE458,$D$6,TRUE) -> 3.4 | J195: =VLOOKUP($B195,'気象データ（出芽期予測用）'!AW184:BM458,$D$6,TRUE) -> 0 | K195: =VLOOKUP($B195,'気象データ（出芽期予測用）'!AF184:AV458,$D$6,TRUE) -> 0 | L195: 2018-03-30
A196: -0.0668262595 | B196: 182 | C196: -0.0668262595 | D196: 182 | E196: -0.0008678735 | F196: -0.0008678735 | G196: 0.07311217062 | H196: =VLOOKUP($B196,'気象データ（出芽期予測用）'!$B$4:$P$278,$D$6,TRUE) -> 9.3 | I196: =VLOOKUP($B196,'気象データ（出芽期予測用）'!Q185:AE459,$D$6,TRUE) -> 3.6 | J196: =VLOOKUP($B196,'気象データ（出芽期予測用）'!AW185:BM459,$D$6,TRUE) -> 0 | K196: =VLOOKUP($B196,'気象データ（出芽期予測用）'!AF185:AV459,$D$6,TRUE) -> 0 | L196: 2018-03-31
A197: =IF(C197=0,0, IF(A196>1,2,C197)) -> -0.067694133 | B197: 183 | C197: -0.067694133 | D197: 183 | E197: -0.0008678735 | F197: -0.0008678735 | G197: 0.07468071214 | H197: =VLOOKUP($B197,'気象データ（出芽期予測用）'!$B$4:$P$278,$D$6,TRUE) -> 9.5 | I197: =VLOOKUP($B197,'気象データ（出芽期予測用）'!Q186:AE460,$D$6,TRUE) -> 3.7 | J197: =VLOOKUP($B197,'気象データ（出芽期予測用）'!AW186:BM460,$D$6,TRUE) -> 0 | K197: =VLOOKUP($B197,'気象データ（出芽期予測用）'!AF186:AV460,$D$6,TRUE) -> 0 | L197: 2018-04-01
A198: -0.0685620065 | B198: 184 | C198: -0.0685620065 | D198: 184 | E198: -0.0008678735 | F198: -0.0008678735 | G198: 0.07635296521 | H198: =VLOOKUP($B198,'気象データ（出芽期予測用）'!$B$4:$P$278,$D$6,TRUE) -> 9.7 | I198: =VLOOKUP($B198,'気象データ（出芽期予測用）'!Q187:AE461,$D$6,TRUE) -> 3.9 | J198: =VLOOKUP($B198,'気象データ（出芽期予測用）'!AW187:BM461,$D$6,TRUE) -> 0 | K198: =VLOOKUP($B198,'気象データ（出芽期予測用）'!AF187:AV461,$D$6,TRUE) -> 0 | L198: 2018-04-02
A199: -0.06942988 | B199: 185 | C199: -0.06942988 | D199: 185 | E199: -0.0008678735 | F199: -0.0008678735 | G199: 0.07803553809 | H199: =VLOOKUP($B199,'気象データ（出芽期予測用）'!$B$4:$P$278,$D$6,TRUE) -> 9.9 | I199: =VLOOKUP($B199,'気象データ（出芽期予測用）'!Q188:AE462,$D$6,TRUE) -> 4.1 | J199: =VLOOKUP($B199,'気象データ（出芽期予測用）'!AW188:BM462,$D$6,TRUE) -> 0 | K199: =VLOOKUP($B199,'気象データ（出芽期予測用）'!AF188:AV462,$D$6,TRUE) -> 0 | L199: 2018-04-03
A200: -0.0702977535 | B200: 186 | C200: -0.0702977535 | D200: 186 | E200: -0.0008678735 | F200: -0.0008678735 | G200: 0.07972843078 | H200: =VLOOKUP($B200,'気象データ（出芽期予測用）'!$B$4:$P$278,$D$6,TRUE) -> 10.1 | I200: =VLOOKUP($B200,'気象データ（出芽期予測用）'!Q189:AE463,$D$6,TRUE) -> 4.3 | J200: =VLOOKUP($B200,'気象データ（出芽期予測用）'!AW189:BM463,$D$6,TRUE) -> 0 | K200: =VLOOKUP($B200,'気象データ（出芽期予測用）'!AF189:AV463,$D$6,TRUE) -> 0 | L200: 2018-04-04
A201: -0.071165627 | B201: 187 | C201: -0.071165627 | D201: 187 | E201: -0.0008678735 | F201: -0.0008678735 | G201: 0.08143164328 | H201: =VLOOKUP($B201,'気象データ（出芽期予測用）'!$B$4:$P$278,$D$6,TRUE) -> 10.3 | I201: =VLOOKUP($B201,'気象データ（出芽期予測用）'!Q190:AE464,$D$6,TRUE) -> 4.5 | J201: =VLOOKUP($B201,'気象データ（出芽期予測用）'!AW190:BM464,$D$6,TRUE) -> 0 | K201: =VLOOKUP($B201,'気象データ（出芽期予測用）'!AF190:AV464,$D$6,TRUE) -> 0 | L201: 2018-04-05
A202: -0.0720335005 | B202: 188 | C202: -0.0720335005 | D202: 188 | E202: -0.0008678735 | F202: -0.0008678735 | G202: 0.083281616 | H202: =VLOOKUP($B202,'気象データ（出芽期予測用）'!$B$4:$P$278,$D$6,TRUE) -> 10.5 | I202: =VLOOKUP($B202,'気象データ（出芽期予測用）'!Q191:AE465,$D$6,TRUE) -> 4.8 | J202: =VLOOKUP($B202,'気象データ（出芽期予測用）'!AW191:BM465,$D$6,TRUE) -> 0 | K202: =VLOOKUP($B202,'気象データ（出芽期予測用）'!AF191:AV465,$D$6,TRUE) -> 0 | L202: 2018-04-06
A203: -0.072901374 | B203: 189 | C203: -0.072901374 | D203: 189 | E203: -0.0008678735 | F203: -0.0008678735 | G203: 0.08428945465 | H203: =VLOOKUP($B203,'気象データ（出芽期予測用）'!$B$4:$P$278,$D$6,TRUE) -> 10.6 | I203: =VLOOKUP($B203,'気象データ（出芽期予測用）'!Q192:AE466,$D$6,TRUE) -> 5 | J203: =VLOOKUP($B203,'気象データ（出芽期予測用）'!AW192:BM466,$D$6,TRUE) -> 0 | K203: =VLOOKUP($B203,'気象データ（出芽期予測用）'!AF192:AV466,$D$6,TRUE) -> 0 | L203: 2018-04-07
... 95 more rows

Sheet 出芽期予測
C1: 出芽期予測 | M1: 出芽期予測法使用方法： 入力が必要なのは黄色の部分です。 ①予測地域をプルダウンリストから選択してください。予測したい圃場の最寄の気象観測地点を選びます。 ②平年値を使用する場合は平年値の下のセルのプルダウンリストから○を選びます。当年値を使用する場合はプルダウンリストから－を選択し，気象データ（出芽期予測用）のシートの該当地域の当年値の欄にデータを入力します。以降は平年値のデータをコピーして貼り付けます（デフォルトの当年値は2016年のデータが入力されています）。本年データが多いほうが，予測精度が増します。 ③播種期の日付を選択してください。出芽期を予測できるのは10/1以降です。 ④12月までの播種であれば同じ年の10/1となるよう年に気をつけて10/1と入力します。年明け播種の場合は前年の10/1になるよう入力します。 ⑥気温が平年より高く(低く)推移した場合を予測するには，当年値のデータを適宜変更し，②の平年値の下のセルが－になるように（当年値の下のセルが○）プルダウンリストから選びます。 使用上の注意点: ①圃場が気温測定地点から離れていたり，気象経過が平年と大きく異なる，播種時の砕土率が低かったり，播種深度が深い場合は予測精度が劣る可能性があります。 ②予測日以降の気温が平年と異なる場合は誤差が拡大していくので，当年値のデータを更新し再度予測することで精度が高まります｡ ③出芽予測モデルはうるう年には対応しています。
C3: この色のセルだけ入力もしくは選択してください。 | F3: この色のセルの値は動かさないでください | I3: DVR=ａ+ｂ*ｔ+ｃ*ｔ^2+ｄ*m+ｅ*m^2
E4: ↓平年値を使用する場合は○，しない場合は－を入力 | I4: ｔ:日平均気温 m:日最低気温
C5: 予測地域 | D5: 地域番号 | E5: 平年値 | F5: 当年値 | H5: リスト | I5: モデル式係数
C6: 常陸大宮 | D6: =MATCH($C$6,'気象データ（出芽期予測用）'!$B$4:$P$4,0) -> 8 | E6: ○ | F6: =IF($E$6="○","－","○") -> － | H6: ○ | I6: a | J6: -0.0008678735
H7: － | I7: b | J7: 0.008304801
C8: 播種期を入力→ | D8: 2018-01-13 | E8: 当年10/1を入力→ | F8: 2017-10-01 | I8: c | J8: -5.037176e-05
C9: 当年10/1からの起点日数 | D9: =D8-F8+1 -> 105 | I9: d | J9: -0.0003396053
E10: 出芽期 | F10: =VLOOKUP(1,$A$17:$I$300,2,TRUE)+F8 -> 2018-02-28 | I10: e | J10: 0.0001793694
A15: 出芽数確定値 | B15: 当年10/1からの起点日数 | D15: 当年10/1からの起点日数 | F15: （当年値） | G15: （平年値） | H15: 平年値(℃) | I15: 平年値(℃) | J15: 当年値 | K15: 当年値
A16: 出芽数確定値 | C16: モデル積算値 | E16: モデル式の値 | H16: 日平均気温 | I16: 日最低気温 | J16: 日平均気温 | K16: 日最低気温
A17: =IF(C17=0,0, IF(C17>1,2,C16+C17)) -> 0 | B17: 1 | C17: =IF(B17<($D$9+1),0,E17) -> 0 | D17: 1 | E17: =IF($F$6="○",F17,G17) -> 0.1606035908 | F17: =$J$6+$J$7*K17+$J$8*K17^2+$J$9*J17+$J$10*J17^2 -> 0.2276145852 | G17: =$J$6+$J$7*H17+$J$8*H17^2+$J$9*I17+$J$10*I17^2 -> 0.1606035908 | H17: =VLOOKUP($B17,'気象データ（出芽期予測用）'!$B$4:$P$278,$D$6,TRUE) -> 18.1 | I17: =VLOOKUP($B17,'気象データ（出芽期予測用）'!Q4:AE278,$D$6,TRUE) -> 13.4 | J17: =VLOOKUP($B17,'気象データ（出芽期予測用）'!AW4:BM278,$D$6,TRUE) -> 22.5 | K17: =VLOOKUP($B17,'気象データ（出芽期予測用）'!AF4:AV278,$D$6,TRUE) -> 19.9 | L17: 2017-10-01
A18: =IF(C18=0,0, IF(A17>1,2,C17+C18)) -> 0 | B18: 2 | C18: =IF(B18<($D$9+1),0,E18)+C17 -> 0 | D18: 2 | E18: 0.1584189831 | F18: =$J$6+$J$7*J18+$J$8*J18^2+$J$9*K18+$J$10*K18^2 -> 0.2131726364 | G18: 0.1584189831 | H18: =VLOOKUP($B18,'気象データ（出芽期予測用）'!$B$4:$P$278,$D$6,TRUE) -> 17.9 | I18: =VLOOKUP($B18,'気象データ（出芽期予測用）'!Q5:AE279,$D$6,TRUE) -> 13.2 | J18: =VLOOKUP($B18,'気象データ（出芽期予測用）'!AW5:BM279,$D$6,TRUE) -> 22.1 | K18: =VLOOKUP($B18,'気象データ（出芽期予測用）'!AF5:AV279,$D$6,TRUE) -> 18.5 | L18: 2017-10-02
A19: =IF(C19=0,0, IF(A18>1,2,C18+C19)) -> 0 | B19: 3 | C19: 0 | D19: 3 | E19: 0.1568963556 | F19: 0.2273293002 | G19: 0.1568963556 | H19: =VLOOKUP($B19,'気象データ（出芽期予測用）'!$B$4:$P$278,$D$6,TRUE) -> 17.8 | I19: =VLOOKUP($B19,'気象データ（出芽期予測用）'!Q6:AE280,$D$6,TRUE) -> 13 | J19: =VLOOKUP($B19,'気象データ（出芽期予測用）'!AW6:BM280,$D$6,TRUE) -> 23.6 | K19: =VLOOKUP($B19,'気象データ（出芽期予測用）'!AF6:AV280,$D$6,TRUE) -> 19.3 | L19: 2017-10-03
A20: 0 | B20: 4 | C20: 0 | D20: 4 | E20: 0.1547344024 | F20: 0.2538084343 | G20: 0.1547344024 | H20: =VLOOKUP($B20,'気象データ（出芽期予測用）'!$B$4:$P$278,$D$6,TRUE) -> 17.6 | I20: =VLOOKUP($B20,'気象データ（出芽期予測用）'!Q7:AE281,$D$6,TRUE) -> 12.8 | J20: =VLOOKUP($B20,'気象データ（出芽期予測用）'!AW7:BM281,$D$6,TRUE) -> 24.6 | K20: =VLOOKUP($B20,'気象データ（出芽期予測用）'!AF7:AV281,$D$6,TRUE) -> 22.2 | L20: 2017-10-04
A21: 0 | B21: 5 | C21: 0 | D21: 5 | E21: 0.1532374517 | F21: 0.2410229347 | G21: 0.1532374517 | H21: =VLOOKUP($B21,'気象データ（出芽期予測用）'!$B$4:$P$278,$D$6,TRUE) -> 17.5 | I21: =VLOOKUP($B21,'気象データ（出芽期予測用）'!Q8:AE282,$D$6,TRUE) -> 12.6 | J21: =VLOOKUP($B21,'気象データ（出芽期予測用）'!AW8:BM282,$D$6,TRUE) -> 24.3 | K21: =VLOOKUP($B21,'気象データ（出芽期予測用）'!AF8:AV282,$D$6,TRUE) -> 20.7 | L21: 2017-10-05
A22: 0 | B22: 6 | C22: 0 | D22: 6 | E22: 0.151098153 | F22: 0.2109982736 | G22: 0.151098153 | H22: =VLOOKUP($B22,'気象データ（出芽期予測用）'!$B$4:$P$278,$D$6,TRUE) -> 17.3 | I22: =VLOOKUP($B22,'気象データ（出芽期予測用）'!Q9:AE283,$D$6,TRUE) -> 12.4 | J22: =VLOOKUP($B22,'気象データ（出芽期予測用）'!AW9:BM283,$D$6,TRUE) -> 20.8 | K22: =VLOOKUP($B22,'気象データ（出芽期予測用）'!AF9:AV283,$D$6,TRUE) -> 19.4 | L22: 2017-10-06
A23: 0 | B23: 7 | C23: 0 | D23: 7 | E23: 0.1489691741 | F23: 0.2052617409 | G23: 0.1489691741 | H23: =VLOOKUP($B23,'気象データ（出芽期予測用）'!$B$4:$P$278,$D$6,TRUE) -> 17.1 | I23: =VLOOKUP($B23,'気象データ（出芽期予測用）'!Q10:AE284,$D$6,TRUE) -> 12.2 | J23: =VLOOKUP($B23,'気象データ（出芽期予測用）'!AW10:BM284,$D$6,TRUE) -> 20.3 | K23: =VLOOKUP($B23,'気象データ（出芽期予測用）'!AF10:AV284,$D$6,TRUE) -> 19 | L23: 2017-10-07
A24: 0 | B24: 8 | C24: 0 | D24: 8 | E24: 0.146850515 | F24: 0.2220118735 | G24: 0.146850515 | H24: =VLOOKUP($B24,'気象データ（出芽期予測用）'!$B$4:$P$278,$D$6,TRUE) -> 16.9 | I24: =VLOOKUP($B24,'気象データ（出芽期予測用）'!Q11:AE285,$D$6,TRUE) -> 12 | J24: =VLOOKUP($B24,'気象データ（出芽期予測用）'!AW11:BM285,$D$6,TRUE) -> 22.6 | K24: =VLOOKUP($B24,'気象データ（出芽期予測用）'!AF11:AV285,$D$6,TRUE) -> 19.4 | L24: 2017-10-08
A25: 0 | B25: 9 | C25: 0 | D25: 9 | E25: 0.1447421758 | F25: 0.2020683673 | G25: 0.1447421758 | H25: =VLOOKUP($B25,'気象データ（出芽期予測用）'!$B$4:$P$278,$D$6,TRUE) -> 16.7 | I25: =VLOOKUP($B25,'気象データ（出芽期予測用）'!Q12:AE286,$D$6,TRUE) -> 11.8 | J25: =VLOOKUP($B25,'気象データ（出芽期予測用）'!AW12:BM286,$D$6,TRUE) -> 20.3 | K25: =VLOOKUP($B25,'気象データ（出芽期予測用）'!AF12:AV286,$D$6,TRUE) -> 18.5 | L25: 2017-10-09
A26: 0 | B26: 10 | C26: 0 | D26: 10 | E26: 0.1422637735 | F26: 0.1861928134 | G26: 0.1422637735 | H26: =VLOOKUP($B26,'気象データ（出芽期予測用）'!$B$4:$P$278,$D$6,TRUE) -> 16.5 | I26: =VLOOKUP($B26,'気象データ（出芽期予測用）'!Q13:AE287,$D$6,TRUE) -> 11.5 | J26: =VLOOKUP($B26,'気象データ（出芽期予測用）'!AW13:BM287,$D$6,TRUE) -> 20.1 | K26: =VLOOKUP($B26,'気象データ（出芽期予測用）'!AF13:AV287,$D$6,TRUE) -> 16 | L26: 2017-10-10
A27: 0 | B27: 11 | C27: 0 | D27: 11 | E27: 0.1401832487 | F27: 0.2058171281 | G27: 0.1401832487 | H27: =VLOOKUP($B27,'気象データ（出芽期予測用）'!$B$4:$P$278,$D$6,TRUE) -> 16.3 | I27: =VLOOKUP($B27,'気象データ（出芽期予測用）'!Q14:AE288,$D$6,TRUE) -> 11.3 | J27: =VLOOKUP($B27,'気象データ（出芽期予測用）'!AW14:BM288,$D$6,TRUE) -> 20.8 | K27: =VLOOKUP($B27,'気象データ（出芽期予測用）'!AF14:AV288,$D$6,TRUE) -> 18.6 | L27: 2017-10-11
A28: 0 | B28: 12 | C28: 0 | D28: 12 | E28: 0.1377505978 | F28: 0.2387923975 | G28: 0.1377505978 | H28: =VLOOKUP($B28,'気象データ（出芽期予測用）'!$B$4:$P$278,$D$6,TRUE) -> 16.1 | I28: =VLOOKUP($B28,'気象データ（出芽期予測用）'!Q15:AE289,$D$6,TRUE) -> 11 | J28: =VLOOKUP($B28,'気象データ（出芽期予測用）'!AW15:BM289,$D$6,TRUE) -> 23.8 | K28: =VLOOKUP($B28,'気象データ（出芽期予測用）'!AF15:AV289,$D$6,TRUE) -> 20.8 | L28: 2017-10-12
A29: 0 | B29: 13 | C29: 0 | D29: 13 | E29: 0.1356978873 | F29: 0.232439812 | G29: 0.1356978873 | H29: =VLOOKUP($B29,'気象データ（出芽期予測用）'!$B$4:$P$278,$D$6,TRUE) -> 15.9 | I29: =VLOOKUP($B29,'気象データ（出芽期予測用）'!Q16:AE290,$D$6,TRUE) -> 10.8 | J29: =VLOOKUP($B29,'気象データ（出芽期予測用）'!AW16:BM290,$D$6,TRUE) -> 23.9 | K29: =VLOOKUP($B29,'気象データ（出芽期予測用）'!AF16:AV290,$D$6,TRUE) -> 19.8 | L29: 2017-10-13
A30: 0 | B30: 14 | C30: 0 | D30: 14 | E30: 0.1333109878 | F30: 0.1852672865 | G30: 0.1333109878 | H30: =VLOOKUP($B30,'気象データ（出芽期予測用）'!$B$4:$P$278,$D$6,TRUE) -> 15.7 | I30: =VLOOKUP($B30,'気象データ（出芽期予測用）'!Q17:AE291,$D$6,TRUE) -> 10.5 | J30: =VLOOKUP($B30,'気象データ（出芽期予測用）'!AW17:BM291,$D$6,TRUE) -> 18.8 | K30: =VLOOKUP($B30,'気象データ（出芽期予測用）'!AF17:AV291,$D$6,TRUE) -> 17.3 | L30: 2017-10-14
A31: 0 | B31: 15 | C31: 0 | D31: 15 | E31: 0.1312860917 | F31: 0.1797313509 | G31: 0.1312860917 | H31: =VLOOKUP($B31,'気象データ（出芽期予測用）'!$B$4:$P$278,$D$6,TRUE) -> 15.5 | I31: =VLOOKUP($B31,'気象データ（出芽期予測用）'!Q18:AE292,$D$6,TRUE) -> 10.3 | J31: =VLOOKUP($B31,'気象データ（出芽期予測用）'!AW18:BM292,$D$6,TRUE) -> 18.3 | K31: =VLOOKUP($B31,'気象データ（出芽期予測用）'!AF18:AV292,$D$6,TRUE) -> 16.9 | L31: 2017-10-15
A32: 0 | B32: 16 | C32: 0 | D32: 16 | E32: 0.1289449435 | F32: 0.1554151034 | G32: 0.1289449435 | H32: =VLOOKUP($B32,'気象データ（出芽期予測用）'!$B$4:$P$278,$D$6,TRUE) -> 15.3 | I32: =VLOOKUP($B32,'気象データ（出芽期予測用）'!Q19:AE293,$D$6,TRUE) -> 10 | J32: =VLOOKUP($B32,'気象データ（出芽期予測用）'!AW19:BM293,$D$6,TRUE) -> 16.6 | K32: =VLOOKUP($B32,'気象データ（出芽期予測用）'!AF19:AV293,$D$6,TRUE) -> 14.4 | L32: 2017-10-16
A33: 0 | B33: 17 | C33: 0 | D33: 17 | E33: 0.1259531909 | F33: 0.1705204917 | G33: 0.1259531909 | H33: =VLOOKUP($B33,'気象データ（出芽期予測用）'!$B$4:$P$278,$D$6,TRUE) -> 15 | I33: =VLOOKUP($B33,'気象データ（出芽期予測用）'!Q20:AE294,$D$6,TRUE) -> 9.7 | J33: =VLOOKUP($B33,'気象データ（出芽期予測用）'!AW20:BM294,$D$6,TRUE) -> 18.3 | K33: =VLOOKUP($B33,'気象データ（出芽期予測用）'!AF20:AV294,$D$6,TRUE) -> 15.2 | L33: 2017-10-17
A34: 0 | B34: 18 | C34: 0 | D34: 18 | E34: 0.1236665414 | F34: 0.1804510606 | G34: 0.1236665414 | H34: =VLOOKUP($B34,'気象データ（出芽期予測用）'!$B$4:$P$278,$D$6,TRUE) -> 14.8 | I34: =VLOOKUP($B34,'気象データ（出芽期予測用）'!Q21:AE295,$D$6,TRUE) -> 9.4 | J34: =VLOOKUP($B34,'気象データ（出芽期予測用）'!AW21:BM295,$D$6,TRUE) -> 18.5 | K34: =VLOOKUP($B34,'気象データ（出芽期予測用）'!AF21:AV295,$D$6,TRUE) -> 16.8 | L34: 2017-10-18
A35: 0 | B35: 19 | C35: 0 | D35: 19 | E35: 0.1214081485 | F35: 0.1939482254 | G35: 0.1214081485 | H35: =VLOOKUP($B35,'気象データ（出芽期予測用）'!$B$4:$P$278,$D$6,TRUE) -> 14.6 | I35: =VLOOKUP($B35,'気象データ（出芽期予測用）'!Q22:AE296,$D$6,TRUE) -> 9.1 | J35: =VLOOKUP($B35,'気象データ（出芽期予測用）'!AW22:BM296,$D$6,TRUE) -> 19.6 | K35: =VLOOKUP($B35,'気象データ（出芽期予測用）'!AF22:AV296,$D$6,TRUE) -> 17.9 | L35: 2017-10-19
A36: 0 | B36: 20 | C36: 0 | D36: 20 | E36: 0.1191780124 | F36: 0.2008144109 | G36: 0.1191780124 | H36: =VLOOKUP($B36,'気象データ（出芽期予測用）'!$B$4:$P$278,$D$6,TRUE) -> 14.4 | I36: =VLOOKUP($B36,'気象データ（出芽期予測用）'!Q23:AE297,$D$6,TRUE) -> 8.8 | J36: =VLOOKUP($B36,'気象データ（出芽期予測用）'!AW23:BM297,$D$6,TRUE) -> 20.1 | K36: =VLOOKUP($B36,'気象データ（出芽期予測用）'!AF23:AV297,$D$6,TRUE) -> 18.5 | L36: 2017-10-20
A37: 0 | B37: 21 | C37: 0 | D37: 21 | E37: 0.1172488943 | F37: 0.1864963163 | G37: 0.1172488943 | H37: =VLOOKUP($B37,'気象データ（出芽期予測用）'!$B$4:$P$278,$D$6,TRUE) -> 14.2 | I37: =VLOOKUP($B37,'気象データ（出芽期予測用）'!Q24:AE298,$D$6,TRUE) -> 8.6 | J37: =VLOOKUP($B37,'気象データ（出芽期予測用）'!AW24:BM298,$D$6,TRUE) -> 18.9 | K37: =VLOOKUP($B37,'気象データ（出芽期予測用）'!AF24:AV298,$D$6,TRUE) -> 17.4 | L37: 2017-10-21
A38: 0 | B38: 22 | C38: 0 | D38: 22 | E38: 0.1150645095 | F38: 0.1573966155 | G38: 0.1150645095 | H38: =VLOOKUP($B38,'気象データ（出芽期予測用）'!$B$4:$P$278,$D$6,TRUE) -> 14 | I38: =VLOOKUP($B38,'気象データ（出芽期予測用）'!Q25:AE299,$D$6,TRUE) -> 8.3 | J38: =VLOOKUP($B38,'気象データ（出芽期予測用）'!AW25:BM299,$D$6,TRUE) -> 16.3 | K38: =VLOOKUP($B38,'気象データ（出芽期予測用）'!AF25:AV299,$D$6,TRUE) -> 15.2 | L38: 2017-10-22
A39: 0 | B39: 23 | C39: 0 | D39: 23 | E39: 0.1129083815 | F39: 0.1659331383 | G39: 0.1129083815 | H39: =VLOOKUP($B39,'気象データ（出芽期予測用）'!$B$4:$P$278,$D$6,TRUE) -> 13.8 | I39: =VLOOKUP($B39,'気象データ（出芽期予測用）'!Q26:AE300,$D$6,TRUE) -> 8 | J39: =VLOOKUP($B39,'気象データ（出芽期予測用）'!AW26:BM300,$D$6,TRUE) -> 18.5 | K39: =VLOOKUP($B39,'気象データ（出芽期予測用）'!AF26:AV300,$D$6,TRUE) -> 14 | L39: 2017-10-23
A40: 0 | B40: 24 | C40: 0 | D40: 24 | E40: 0.1110245723 | F40: 0.1970283634 | G40: 0.1110245723 | H40: =VLOOKUP($B40,'気象データ（出芽期予測用）'!$B$4:$P$278,$D$6,TRUE) -> 13.6 | I40: =VLOOKUP($B40,'気象データ（出芽期予測用）'!Q27:AE301,$D$6,TRUE) -> 7.8 | J40: =VLOOKUP($B40,'気象データ（出芽期予測用）'!AW27:BM301,$D$6,TRUE) -> 19.5 | K40: =VLOOKUP($B40,'気象データ（出芽期予測用）'!AF27:AV301,$D$6,TRUE) -> 18.5 | L40: 2017-10-24
A41: 0 | B41: 25 | C41: 0 | D41: 25 | E41: 0.1089141957 | F41: 0.1747683157 | G41: 0.1089141957 | H41: =VLOOKUP($B41,'気象データ（出芽期予測用）'!$B$4:$P$278,$D$6,TRUE) -> 13.4 | I41: =VLOOKUP($B41,'気象データ（出芽期予測用）'!Q28:AE302,$D$6,TRUE) -> 7.5 | J41: =VLOOKUP($B41,'気象データ（出芽期予測用）'!AW28:BM302,$D$6,TRUE) -> 18.8 | K41: =VLOOKUP($B41,'気象データ（出芽期予測用）'!AF28:AV302,$D$6,TRUE) -> 15.4 | L41: 2017-10-25
A42: 0 | B42: 26 | C42: 0 | D42: 26 | E42: 0.1070582009 | F42: 0.1768078818 | G42: 0.1070582009 | H42: =VLOOKUP($B42,'気象データ（出芽期予測用）'!$B$4:$P$278,$D$6,TRUE) -> 13.2 | I42: =VLOOKUP($B42,'気象データ（出芽期予測用）'!Q29:AE303,$D$6,TRUE) -> 7.3 | J42: =VLOOKUP($B42,'気象データ（出芽期予測用）'!AW29:BM303,$D$6,TRUE) -> 19.2 | K42: =VLOOKUP($B42,'気象データ（出芽期予測用）'!AF29:AV303,$D$6,TRUE) -> 15.3 | L42: 2017-10-26
A43: 0 | B43: 27 | C43: 0 | D43: 27 | E43: 0.1052125259 | F43: 0.183983107 | G43: 0.1052125259 | H43: =VLOOKUP($B43,'気象データ（出芽期予測用）'!$B$4:$P$278,$D$6,TRUE) -> 13 | I43: =VLOOKUP($B43,'気象データ（出芽期予測用）'!Q30:AE304,$D$6,TRUE) -> 7.1 | J43: =VLOOKUP($B43,'気象データ（出芽期予測用）'!AW30:BM304,$D$6,TRUE) -> 18.6 | K43: =VLOOKUP($B43,'気象データ（出芽期予測用）'!AF30:AV304,$D$6,TRUE) -> 17.3 | L43: 2017-10-27
A44: 0 | B44: 28 | C44: 0 | D44: 28 | E44: 0.1033771707 | F44: 0.171160882 | G44: 0.1033771707 | H44: =VLOOKUP($B44,'気象データ（出芽期予測用）'!$B$4:$P$278,$D$6,TRUE) -> 12.8 | I44: =VLOOKUP($B44,'気象データ（出芽期予測用）'!Q31:AE305,$D$6,TRUE) -> 6.9 | J44: =VLOOKUP($B44,'気象データ（出芽期予測用）'!AW31:BM305,$D$6,TRUE) -> 17.5 | K44: =VLOOKUP($B44,'気象データ（出芽期予測用）'!AF31:AV305,$D$6,TRUE) -> 16.3 | L44: 2017-10-28
A45: 0 | B45: 29 | C45: 0 | D45: 29 | E45: 0.1017603235 | F45: 0.1515190381 | G45: 0.1017603235 | H45: =VLOOKUP($B45,'気象データ（出芽期予測用）'!$B$4:$P$278,$D$6,TRUE) -> 12.6 | I45: =VLOOKUP($B45,'気象データ（出芽期予測用）'!Q32:AE306,$D$6,TRUE) -> 6.8 | J45: =VLOOKUP($B45,'気象データ（出芽期予測用）'!AW32:BM306,$D$6,TRUE) -> 16.3 | K45: =VLOOKUP($B45,'気象データ（出芽期予測用）'!AF32:AV306,$D$6,TRUE) -> 14 | L45: 2017-10-29
A46: 0 | B46: 30 | C46: 0 | D46: 30 | E46: 0.09993843317 | F46: 0.1431512919 | G46: 0.09993843317 | H46: =VLOOKUP($B46,'気象データ（出芽期予測用）'!$B$4:$P$278,$D$6,TRUE) -> 12.4 | I46: =VLOOKUP($B46,'気象データ（出芽期予測用）'!Q33:AE307,$D$6,TRUE) -> 6.6 | J46: =VLOOKUP($B46,'気象データ（出芽期予測用）'!AW33:BM307,$D$6,TRUE) -> 16.1 | K46: =VLOOKUP($B46,'気象データ（出芽期予測用）'!AF33:AV307,$D$6,TRUE) -> 12.4 | L46: 2017-10-30
A47: 0 | B47: 31 | C47: 0 | D47: 31 | E47: 0.09812686265 | F47: 0.1547695549 | G47: 0.09812686265 | H47: =VLOOKUP($B47,'気象データ（出芽期予測用）'!$B$4:$P$278,$D$6,TRUE) -> 12.2 | I47: =VLOOKUP($B47,'気象データ（出芽期予測用）'!Q34:AE308,$D$6,TRUE) -> 6.4 | J47: =VLOOKUP($B47,'気象データ（出芽期予測用）'!AW34:BM308,$D$6,TRUE) -> 17 | K47: =VLOOKUP($B47,'気象データ（出芽期予測用）'!AF34:AV308,$D$6,TRUE) -> 13.7 | L47: 2017-10-31
A48: 0 | B48: 32 | C48: 0 | D48: 32 | E48: 0.09651586316 | F48: 0.1403652905 | G48: 0.09651586316 | H48: =VLOOKUP($B48,'気象データ（出芽期予測用）'!$B$4:$P$278,$D$6,TRUE) -> 12 | I48: =VLOOKUP($B48,'気象データ（出芽期予測用）'!Q35:AE309,$D$6,TRUE) -> 6.3 | J48: =VLOOKUP($B48,'気象データ（出芽期予測用）'!AW35:BM309,$D$6,TRUE) -> 16.6 | K48: =VLOOKUP($B48,'気象データ（出芽期予測用）'!AF35:AV309,$D$6,TRUE) -> 10.8 | L48: 2017-11-01
A49: 0 | B49: 33 | C49: 0 | D49: 33 | E49: 0.09471775748 | F49: 0.1400610184 | G49: 0.09471775748 | H49: =VLOOKUP($B49,'気象データ（出芽期予測用）'!$B$4:$P$278,$D$6,TRUE) -> 11.8 | I49: =VLOOKUP($B49,'気象データ（出芽期予測用）'!Q36:AE310,$D$6,TRUE) -> 6.1 | J49: =VLOOKUP($B49,'気象データ（出芽期予測用）'!AW36:BM310,$D$6,TRUE) -> 15.7 | K49: =VLOOKUP($B49,'気象データ（出芽期予測用）'!AF36:AV310,$D$6,TRUE) -> 12.3 | L49: 2017-11-02
A50: 0 | B50: 34 | C50: 0 | D50: 34 | E50: 0.09310946067 | F50: 0.1414183907 | G50: 0.09310946067 | H50: =VLOOKUP($B50,'気象データ（出芽期予測用）'!$B$4:$P$278,$D$6,TRUE) -> 11.6 | I50: =VLOOKUP($B50,'気象データ（出芽期予測用）'!Q37:AE311,$D$6,TRUE) -> 6 | J50: =VLOOKUP($B50,'気象データ（出芽期予測用）'!AW37:BM311,$D$6,TRUE) -> 16.2 | K50: =VLOOKUP($B50,'気象データ（出芽期予測用）'!AF37:AV311,$D$6,TRUE) -> 11.8 | L50: 2017-11-03
A51: 0 | B51: 35 | C51: 0 | D51: 35 | E51: 0.09203994862 | F51: 0.1272379545 | G51: 0.09203994862 | H51: =VLOOKUP($B51,'気象データ（出芽期予測用）'!$B$4:$P$278,$D$6,TRUE) -> 11.5 | I51: =VLOOKUP($B51,'気象データ（出芽期予測用）'!Q38:AE312,$D$6,TRUE) -> 5.8 | J51: =VLOOKUP($B51,'気象データ（出芽期予測用）'!AW38:BM312,$D$6,TRUE) -> 15 | K51: =VLOOKUP($B51,'気象データ（出芽期予測用）'!AF38:AV312,$D$6,TRUE) -> 10.1 | L51: 2017-11-04
A52: 0 | B52: 36 | C52: 0 | D52: 36 | E52: 0.09026764247 | F52: 0.1040395114 | G52: 0.09026764247 | H52: =VLOOKUP($B52,'気象データ（出芽期予測用）'!$B$4:$P$278,$D$6,TRUE) -> 11.3 | I52: =VLOOKUP($B52,'気象データ（出芽期予測用）'!Q39:AE313,$D$6,TRUE) -> 5.6 | J52: =VLOOKUP($B52,'気象データ（出芽期予測用）'!AW39:BM313,$D$6,TRUE) -> 12.6 | K52: =VLOOKUP($B52,'気象データ（出芽期予測用）'!AF39:AV313,$D$6,TRUE) -> 7.8 | L52: 2017-11-05
A53: 0 | B53: 37 | C53: 0 | D53: 37 | E53: 0.08850565613 | F53: 0.1139492027 | G53: 0.08850565613 | H53: =VLOOKUP($B53,'気象データ（出芽期予測用）'!$B$4:$P$278,$D$6,TRUE) -> 11.1 | I53: =VLOOKUP($B53,'気象データ（出芽期予測用）'!Q40:AE314,$D$6,TRUE) -> 5.4 | J53: =VLOOKUP($B53,'気象データ（出芽期予測用）'!AW40:BM314,$D$6,TRUE) -> 13.8 | K53: =VLOOKUP($B53,'気象データ（出芽期予測用）'!AF40:AV314,$D$6,TRUE) -> 8.4 | L53: 2017-11-06
A54: 0 | B54: 38 | C54: 0 | D54: 38 | E54: 0.08690836695 | F54: 0.1420450384 | G54: 0.08690836695 | H54: =VLOOKUP($B54,'気象データ（出芽期予測用）'!$B$4:$P$278,$D$6,TRUE) -> 10.9 | I54: =VLOOKUP($B54,'気象データ（出芽期予測用）'!Q41:AE315,$D$6,TRUE) -> 5.3 | J54: =VLOOKUP($B54,'気象データ（出芽期予測用）'!AW41:BM315,$D$6,TRUE) -> 16.8 | K54: =VLOOKUP($B54,'気象データ（出芽期予測用）'!AF41:AV315,$D$6,TRUE) -> 10.9 | L54: 2017-11-07
A55: 0 | B55: 39 | C55: 0 | D55: 39 | E55: 0.08515984546 | F55: 0.1258853534 | G55: 0.08515984546 | H55: =VLOOKUP($B55,'気象データ（出芽期予測用）'!$B$4:$P$278,$D$6,TRUE) -> 10.7 | I55: =VLOOKUP($B55,'気象データ（出芽期予測用）'!Q42:AE316,$D$6,TRUE) -> 5.1 | J55: =VLOOKUP($B55,'気象データ（出芽期予測用）'!AW42:BM316,$D$6,TRUE) -> 14.4 | K55: =VLOOKUP($B55,'気象データ（出芽期予測用）'!AF42:AV316,$D$6,TRUE) -> 10.9 | L55: 2017-11-08
A56: 0 | B56: 40 | C56: 0 | D56: 40 | E56: 0.08414583947 | F56: 0.1175779451 | G56: 0.08414583947 | H56: =VLOOKUP($B56,'気象データ（出芽期予測用）'!$B$4:$P$278,$D$6,TRUE) -> 10.6 | I56: =VLOOKUP($B56,'気象データ（出芽期予測用）'!Q43:AE317,$D$6,TRUE) -> 4.9 | J56: =VLOOKUP($B56,'気象データ（出芽期予測用）'!AW43:BM317,$D$6,TRUE) -> 13.3 | K56: =VLOOKUP($B56,'気象データ（出芽期予測用）'!AF43:AV317,$D$6,TRUE) -> 10.7 | L56: 2017-11-09
A57: 0 | B57: 41 | C57: 0 | D57: 41 | E57: 0.08241997247 | F57: 0.1137991798 | G57: 0.08241997247 | H57: =VLOOKUP($B57,'気象データ（出芽期予測用）'!$B$4:$P$278,$D$6,TRUE) -> 10.4 | I57: =VLOOKUP($B57,'気象データ（出芽期予測用）'!Q44:AE318,$D$6,TRUE) -> 4.7 | J57: =VLOOKUP($B57,'気象データ（出芽期予測用）'!AW44:BM318,$D$6,TRUE) -> 13.7 | K57: =VLOOKUP($B57,'気象データ（出芽期予測用）'!AF44:AV318,$D$6,TRUE) -> 8.6 | L57: 2017-11-10
A58: 0 | B58: 42 | C58: 0 | D58: 42 | E58: 0.08057874705 | F58: 0.1309581861 | G58: 0.08057874705 | H58: =VLOOKUP($B58,'気象データ（出芽期予測用）'!$B$4:$P$278,$D$6,TRUE) -> 10.2 | I58: =VLOOKUP($B58,'気象データ（出芽期予測用）'!Q45:AE319,$D$6,TRUE) -> 4.4 | J58: =VLOOKUP($B58,'気象データ（出芽期予測用）'!AW45:BM319,$D$6,TRUE) -> 15.3 | K58: =VLOOKUP($B58,'気象データ（出芽期予測用）'!AF45:AV319,$D$6,TRUE) -> 10.6 | L58: 2017-11-11
A59: 0 | B59: 43 | C59: 0 | D59: 43 | E59: 0.07815045416 | F59: 0.1265883979 | G59: 0.07815045416 | H59: =VLOOKUP($B59,'気象データ（出芽期予測用）'!$B$4:$P$278,$D$6,TRUE) -> 9.9 | I59: =VLOOKUP($B59,'気象データ（出芽期予測用）'!Q46:AE320,$D$6,TRUE) -> 4.2 | J59: =VLOOKUP($B59,'気象データ（出芽期予測用）'!AW46:BM320,$D$6,TRUE) -> 15 | K59: =VLOOKUP($B59,'気象データ（出芽期予測用）'!AF46:AV320,$D$6,TRUE) -> 9.9 | L59: 2017-11-12
A60: 0 | B60: 44 | C60: 0 | D60: 44 | E60: 0.07635296521 | F60: 0.1280272173 | G60: 0.07635296521 | H60: =VLOOKUP($B60,'気象データ（出芽期予測用）'!$B$4:$P$278,$D$6,TRUE) -> 9.7 | I60: =VLOOKUP($B60,'気象データ（出芽期予測用）'!Q47:AE321,$D$6,TRUE) -> 3.9 | J60: =VLOOKUP($B60,'気象データ（出芽期予測用）'!AW47:BM321,$D$6,TRUE) -> 14.5 | K60: =VLOOKUP($B60,'気象データ（出芽期予測用）'!AF47:AV321,$D$6,TRUE) -> 11.3 | L60: 2017-11-13
A61: 0 | B61: 45 | C61: 0 | D61: 45 | E61: 0.07468071214 | F61: 0.1484653183 | G61: 0.07468071214 | H61: =VLOOKUP($B61,'気象データ（出芽期予測用）'!$B$4:$P$278,$D$6,TRUE) -> 9.5 | I61: =VLOOKUP($B61,'気象データ（出芽期予測用）'!Q48:AE322,$D$6,TRUE) -> 3.7 | J61: =VLOOKUP($B61,'気象データ（出芽期予測用）'!AW48:BM322,$D$6,TRUE) -> 16.9 | K61: =VLOOKUP($B61,'気象データ（出芽期予測用）'!AF48:AV322,$D$6,TRUE) -> 12.4 | L61: 2017-11-14
A62: 0 | B62: 46 | C62: 0 | D62: 46 | E62: 0.07292897452 | F62: 0.1098374605 | G62: 0.07292897452 | H62: =VLOOKUP($B62,'気象データ（出芽期予測用）'!$B$4:$P$278,$D$6,TRUE) -> 9.3 | I62: =VLOOKUP($B62,'気象データ（出芽期予測用）'!Q49:AE323,$D$6,TRUE) -> 3.4 | J62: =VLOOKUP($B62,'気象データ（出芽期予測用）'!AW49:BM323,$D$6,TRUE) -> 12.8 | K62: =VLOOKUP($B62,'気象データ（出芽期予測用）'!AF49:AV323,$D$6,TRUE) -> 9.4 | L62: 2017-11-15
A63: 0 | B63: 47 | C63: 0 | D63: 47 | E63: 0.07128453585 | F63: 0.1013475346 | G63: 0.07128453585 | H63: =VLOOKUP($B63,'気象データ（出芽期予測用）'!$B$4:$P$278,$D$6,TRUE) -> 9.1 | I63: =VLOOKUP($B63,'気象データ（出芽期予測用）'!Q50:AE324,$D$6,TRUE) -> 3.2 | J63: =VLOOKUP($B63,'気象データ（出芽期予測用）'!AW50:BM324,$D$6,TRUE) -> 12.6 | K63: =VLOOKUP($B63,'気象データ（出芽期予測用）'!AF50:AV324,$D$6,TRUE) -> 6.6 | L63: 2017-11-16
A64: 0 | B64: 48 | C64: 0 | D64: 48 | E64: 0.06957854957 | F64: 0.1168939899 | G64: 0.06957854957 | H64: =VLOOKUP($B64,'気象データ（出芽期予測用）'!$B$4:$P$278,$D$6,TRUE) -> 8.9 | I64: =VLOOKUP($B64,'気象データ（出芽期予測用）'!Q51:AE325,$D$6,TRUE) -> 2.9 | J64: =VLOOKUP($B64,'気象データ（出芽期予測用）'!AW51:BM325,$D$6,TRUE) -> 13.9 | K64: =VLOOKUP($B64,'気象データ（出芽期予測用）'!AF51:AV325,$D$6,TRUE) -> 9.2 | L64: 2017-11-17
A65: 0 | B65: 49 | C65: 0 | D65: 49 | E65: 0.0679619253 | F65: 0.134980177 | G65: 0.0679619253 | H65: =VLOOKUP($B65,'気象データ（出芽期予測用）'!$B$4:$P$278,$D$6,TRUE) -> 8.7 | I65: =VLOOKUP($B65,'気象データ（出芽期予測用）'!Q52:AE326,$D$6,TRUE) -> 2.7 | J65: =VLOOKUP($B65,'気象データ（出芽期予測用）'!AW52:BM326,$D$6,TRUE) -> 16.1 | K65: =VLOOKUP($B65,'気象データ（出芽期予測用）'!AF52:AV326,$D$6,TRUE) -> 10.2 | L65: 2017-11-18
A66: 0 | B66: 50 | C66: 0 | D66: 50 | E66: 0.06635562084 | F66: 0.146823809 | G66: 0.06635562084 | H66: =VLOOKUP($B66,'気象データ（出芽期予測用）'!$B$4:$P$278,$D$6,TRUE) -> 8.5 | I66: =VLOOKUP($B66,'気象データ（出芽期予測用）'!Q53:AE327,$D$6,TRUE) -> 2.5 | J66: =VLOOKUP($B66,'気象データ（出芽期予測用）'!AW53:BM327,$D$6,TRUE) -> 16.4 | K66: =VLOOKUP($B66,'気象データ（出芽期予測用）'!AF53:AV327,$D$6,TRUE) -> 12.8 | L66: 2017-11-19
A67: 0 | B67: 51 | C67: 0 | D67: 51 | E67: 0.06471288049 | F67: 0.09661720187 | G67: 0.06471288049 | H67: =VLOOKUP($B67,'気象データ（出芽期予測用）'!$B$4:$P$278,$D$6,TRUE) -> 8.3 | I67: =VLOOKUP($B67,'気象データ（出芽期予測用）'!Q54:AE328,$D$6,TRUE) -> 2.2 | J67: =VLOOKUP($B67,'気象データ（出芽期予測用）'!AW54:BM328,$D$6,TRUE) -> 11.3 | K67: =VLOOKUP($B67,'気象データ（出芽期予測用）'!AF54:AV328,$D$6,TRUE) -> 8.5 | L67: 2017-11-20
A68: 0 | B68: 52 | C68: 0 | D68: 52 | E68: 0.06313439043 | F68: 0.0824118378 | G68: 0.06313439043 | H68: =VLOOKUP($B68,'気象データ（出芽期予測用）'!$B$4:$P$278,$D$6,TRUE) -> 8.1 | I68: =VLOOKUP($B68,'気象データ（出芽期予測用）'!Q55:AE329,$D$6,TRUE) -> 2 | J68: =VLOOKUP($B68,'気象データ（出芽期予測用）'!AW55:BM329,$D$6,TRUE) -> 10.3 | K68: =VLOOKUP($B68,'気象データ（出芽期予測用）'!AF55:AV329,$D$6,TRUE) -> 5.2 | L68: 2017-11-21
A69: 0 | B69: 53 | C69: 0 | D69: 53 | E69: 0.06231660918 | F69: 0.09456425868 | G69: 0.06231660918 | H69: =VLOOKUP($B69,'気象データ（出芽期予測用）'!$B$4:$P$278,$D$6,TRUE) -> 8 | I69: =VLOOKUP($B69,'気象データ（出芽期予測用）'!Q56:AE330,$D$6,TRUE) -> 1.8 | J69: =VLOOKUP($B69,'気象データ（出芽期予測用）'!AW56:BM330,$D$6,TRUE) -> 11.3 | K69: =VLOOKUP($B69,'気象データ（出芽期予測用）'!AF56:AV330,$D$6,TRUE) -> 7.7 | L69: 2017-11-22
A70: =IF(C70=0,0, IF(A69>1,2,C70)) -> 0 | B70: 54 | C70: =IF(B70<($D$9+1),0,E70)+C69 -> 0 | D70: 54 | E70: 0.06076077361 | F70: 0.1406262098 | G70: 0.06076077361 | H70: =VLOOKUP($B70,'気象データ（出芽期予測用）'!$B$4:$P$278,$D$6,TRUE) -> 7.8 | I70: =VLOOKUP($B70,'気象データ（出芽期予測用）'!Q57:AE331,$D$6,TRUE) -> 1.6 | J70: =VLOOKUP($B70,'気象データ（出芽期予測用）'!AW57:BM331,$D$6,TRUE) -> 15.6 | K70: =VLOOKUP($B70,'気象データ（出芽期予測用）'!AF57:AV331,$D$6,TRUE) -> 12.6 | L70: 2017-11-23
A71: =IF(C71=0,0, IF(A70>1,2,C71)) -> 0 | B71: 55 | C71: 0 | D71: 55 | E71: 0.05921525785 | F71: 0.1833982431 | G71: 0.05921525785 | H71: =VLOOKUP($B71,'気象データ（出芽期予測用）'!$B$4:$P$278,$D$6,TRUE) -> 7.6 | I71: =VLOOKUP($B71,'気象データ（出芽期予測用）'!Q58:AE332,$D$6,TRUE) -> 1.4 | J71: =VLOOKUP($B71,'気象データ（出芽期予測用）'!AW58:BM332,$D$6,TRUE) -> 18.6 | K71: =VLOOKUP($B71,'気象データ（出芽期予測用）'!AF58:AV332,$D$6,TRUE) -> 17.2 | L71: 2017-11-24
A72: 0 | B72: 56 | C72: 0 | D72: 56 | E72: 0.05843548808 | F72: 0.1423367155 | G72: 0.05843548808 | H72: =VLOOKUP($B72,'気象データ（出芽期予測用）'!$B$4:$P$278,$D$6,TRUE) -> 7.5 | I72: =VLOOKUP($B72,'気象データ（出芽期予測用）'!Q59:AE333,$D$6,TRUE) -> 1.2 | J72: =VLOOKUP($B72,'気象データ（出芽期予測用）'!AW59:BM333,$D$6,TRUE) -> 16.1 | K72: =VLOOKUP($B72,'気象データ（出芽期予測用）'!AF59:AV333,$D$6,TRUE) -> 12.2 | L72: 2017-11-25
A73: 0 | B73: 57 | C73: 0 | D73: 57 | E73: 0.05691262681 | F73: 0.08905755637 | G73: 0.05691262681 | H73: =VLOOKUP($B73,'気象データ（出芽期予測用）'!$B$4:$P$278,$D$6,TRUE) -> 7.3 | I73: =VLOOKUP($B73,'気象データ（出芽期予測用）'!Q60:AE334,$D$6,TRUE) -> 1 | J73: =VLOOKUP($B73,'気象データ（出芽期予測用）'!AW60:BM334,$D$6,TRUE) -> 10.1 | K73: =VLOOKUP($B73,'気象データ（出芽期予測用）'!AF60:AV334,$D$6,TRUE) -> 8.9 | L73: 2017-11-26
A74: 0 | B74: 58 | C74: 0 | D74: 58 | E74: 0.05615506611 | F74: 0.09488322476 | G74: 0.05615506611 | H74: =VLOOKUP($B74,'気象データ（出芽期予測用）'!$B$4:$P$278,$D$6,TRUE) -> 7.2 | I74: =VLOOKUP($B74,'気象データ（出芽期予測用）'!Q61:AE335,$D$6,TRUE) -> 0.9 | J74: =VLOOKUP($B74,'気象データ（出芽期予測用）'!AW61:BM335,$D$6,TRUE) -> 10.7 | K74: =VLOOKUP($B74,'気象データ（出芽期予測用）'!AF61:AV335,$D$6,TRUE) -> 9.4 | L74: 2017-11-27
A75: 0 | B75: 59 | C75: 0 | D75: 59 | E75: 0.05464768456 | F75: 0.07540666536 | G75: 0.05464768456 | H75: =VLOOKUP($B75,'気象データ（出芽期予測用）'!$B$4:$P$278,$D$6,TRUE) -> 7 | I75: =VLOOKUP($B75,'気象データ（出芽期予測用）'!Q62:AE336,$D$6,TRUE) -> 0.7 | J75: =VLOOKUP($B75,'気象データ（出芽期予測用）'!AW62:BM336,$D$6,TRUE) -> 9.3 | K75: =VLOOKUP($B75,'気象データ（出芽期予測用）'!AF62:AV336,$D$6,TRUE) -> 5.4 | L75: 2017-11-28
A76: 0 | B76: 60 | C76: 0 | D76: 60 | E76: 0.05315062282 | F76: 0.04483518718 | G76: 0.05315062282 | H76: =VLOOKUP($B76,'気象データ（出芽期予測用）'!$B$4:$P$278,$D$6,TRUE) -> 6.8 | I76: =VLOOKUP($B76,'気象データ（出芽期予測用）'!Q63:AE337,$D$6,TRUE) -> 0.5 | J76: =VLOOKUP($B76,'気象データ（出芽期予測用）'!AW63:BM337,$D$6,TRUE) -> 5.7 | K76: =VLOOKUP($B76,'気象データ（出芽期予測用）'!AF63:AV337,$D$6,TRUE) -> 1.9 | L76: 2017-11-29
A77: 0 | B77: 61 | C77: 0 | D77: 61 | E77: 0.05164247622 | F77: 0.0471498226 | G77: 0.05164247622 | H77: =VLOOKUP($B77,'気象データ（出芽期予測用）'!$B$4:$P$278,$D$6,TRUE) -> 6.6 | I77: =VLOOKUP($B77,'気象データ（出芽期予測用）'!Q64:AE338,$D$6,TRUE) -> 0.4 | J77: =VLOOKUP($B77,'気象データ（出芽期予測用）'!AW64:BM338,$D$6,TRUE) -> 6 | K77: =VLOOKUP($B77,'気象データ（出芽期予測用）'!AF64:AV338,$D$6,TRUE) -> 1.9 | L77: 2017-11-30
A78: 0 | B78: 62 | C78: 0 | D78: 62 | E78: 0.05015887933 | F78: 0.06783657633 | G78: 0.05015887933 | H78: =VLOOKUP($B78,'気象データ（出芽期予測用）'!$B$4:$P$278,$D$6,TRUE) -> 6.4 | I78: =VLOOKUP($B78,'気象データ（出芽期予測用）'!Q65:AE339,$D$6,TRUE) -> 0.2 | J78: =VLOOKUP($B78,'気象データ（出芽期予測用）'!AW65:BM339,$D$6,TRUE) -> 8.6 | K78: =VLOOKUP($B78,'気象データ（出芽期予測用）'!AF65:AV339,$D$6,TRUE) -> 3.5 | L78: 2017-12-01
A79: 0 | B79: 63 | C79: =IF(B79<($D$9+1),0,E79)+C78 -> 0 | D79: 63 | E79: 0.04865343541 | F79: 0.1165609662 | G79: 0.04865343541 | H79: =VLOOKUP($B79,'気象データ（出芽期予測用）'!$B$4:$P$278,$D$6,TRUE) -> 6.2 | I79: =VLOOKUP($B79,'気象データ（出芽期予測用）'!Q66:AE340,$D$6,TRUE) -> 0.1 | J79: =VLOOKUP($B79,'気象データ（出芽期予測用）'!AW66:BM340,$D$6,TRUE) -> 14.1 | K79: =VLOOKUP($B79,'気象データ（出芽期予測用）'!AF66:AV340,$D$6,TRUE) -> 8.6 | L79: 2017-12-02
A80: 0 | B80: 64 | C80: =IF(B80<($D$9+1),0,E80)+C79 -> 0 | D80: 64 | E80: 0.04718330336 | F80: 0.1054171067 | G80: 0.04718330336 | H80: =VLOOKUP($B80,'気象データ（出芽期予測用）'!$B$4:$P$278,$D$6,TRUE) -> 6 | I80: =VLOOKUP($B80,'気象データ（出芽期予測用）'!Q67:AE341,$D$6,TRUE) -> -0.1 | J80: =VLOOKUP($B80,'気象データ（出芽期予測用）'!AW67:BM341,$D$6,TRUE) -> 12.5 | K80: =VLOOKUP($B80,'気象データ（出芽期予測用）'!AF67:AV341,$D$6,TRUE) -> 8.6 | L80: 2017-12-03
A81: 0 | B81: 65 | C81: =IF(B81<($D$9+1),0,E81)+C80 -> 0 | D81: 65 | E81: =IF($F$6="○",F81,G81) -> 0.04568056213 | F81: 0.07567981825 | G81: =$J$6+$J$7*H81+$J$8*H81^2+$J$9*I81+$J$10*I81^2 -> 0.04568056213 | H81: =VLOOKUP($B81,'気象データ（出芽期予測用）'!$B$4:$P$278,$D$6,TRUE) -> 5.8 | I81: =VLOOKUP($B81,'気象データ（出芽期予測用）'!Q68:AE342,$D$6,TRUE) -> -0.2 | J81: =VLOOKUP($B81,'気象データ（出芽期予測用）'!AW68:BM342,$D$6,TRUE) -> 9.4 | K81: =VLOOKUP($B81,'気象データ（出芽期予測用）'!AF68:AV342,$D$6,TRUE) -> 5.1 | L81: 2017-12-04
A82: 0 | B82: 66 | C82: 0 | D82: 66 | E82: 0.04422389493 | F82: =$J$6+$J$7*J82+$J$8*J82^2+$J$9*K82+$J$10*K82^2 -> 0.06812751373 | G82: 0.04422389493 | H82: =VLOOKUP($B82,'気象データ（出芽期予測用）'!$B$4:$P$278,$D$6,TRUE) -> 5.6 | I82: =VLOOKUP($B82,'気象データ（出芽期予測用）'!Q69:AE343,$D$6,TRUE) -> -0.4 | J82: =VLOOKUP($B82,'気象データ（出芽期予測用）'!AW69:BM343,$D$6,TRUE) -> 8.6 | K82: =VLOOKUP($B82,'気象データ（出芽期予測用）'!AF69:AV343,$D$6,TRUE) -> 3.8 | L82: 2017-12-05
A83: 0 | B83: 67 | C83: 0 | D83: 67 | E83: 0.04272385638 | F83: 0.0649092323 | G83: 0.04272385638 | H83: =VLOOKUP($B83,'気象データ（出芽期予測用）'!$B$4:$P$278,$D$6,TRUE) -> 5.4 | I83: =VLOOKUP($B83,'気象データ（出芽期予測用）'!Q70:AE344,$D$6,TRUE) -> -0.5 | J83: =VLOOKUP($B83,'気象データ（出芽期予測用）'!AW70:BM344,$D$6,TRUE) -> 7.8 | K83: =VLOOKUP($B83,'気象データ（出芽期予測用）'!AF70:AV344,$D$6,TRUE) -> 5.8 | L83: 2017-12-06
A84: 0 | B84: 68 | C84: 0 | D84: 68 | E84: 0.04122337547 | F84: 0.04706618584 | G84: 0.04122337547 | H84: =VLOOKUP($B84,'気象データ（出芽期予測用）'!$B$4:$P$278,$D$6,TRUE) -> 5.2 | I84: =VLOOKUP($B84,'気象データ（出芽期予測用）'!Q71:AE345,$D$6,TRUE) -> -0.6 | J84: =VLOOKUP($B84,'気象データ（出芽期予測用）'!AW71:BM345,$D$6,TRUE) -> 5.7 | K84: =VLOOKUP($B84,'気象データ（出芽期予測用）'!AF71:AV345,$D$6,TRUE) -> 4.6 | L84: 2017-12-07
A85: 0 | B85: 69 | C85: 0 | D85: 69 | E85: 0.03972245222 | F85: 0.05594764179 | G85: 0.03972245222 | H85: =VLOOKUP($B85,'気象データ（出芽期予測用）'!$B$4:$P$278,$D$6,TRUE) -> 5 | I85: =VLOOKUP($B85,'気象データ（出芽期予測用）'!Q72:AE346,$D$6,TRUE) -> -0.7 | J85: =VLOOKUP($B85,'気象データ（出芽期予測用）'!AW72:BM346,$D$6,TRUE) -> 7.1 | K85: =VLOOKUP($B85,'気象データ（出芽期予測用）'!AF72:AV346,$D$6,TRUE) -> 2.7 | L85: 2017-12-08
A86: 0 | B86: 70 | C86: 0 | D86: 70 | E86: 0.03906715943 | F86: 0.07708522037 | G86: 0.03906715943 | H86: =VLOOKUP($B86,'気象データ（出芽期予測用）'!$B$4:$P$278,$D$6,TRUE) -> 4.9 | I86: =VLOOKUP($B86,'気象データ（出芽期予測用）'!Q73:AE347,$D$6,TRUE) -> -0.9 | J86: =VLOOKUP($B86,'気象データ（出芽期予測用）'!AW73:BM347,$D$6,TRUE) -> 9.8 | K86: =VLOOKUP($B86,'気象データ（出芽期予測用）'!AF73:AV347,$D$6,TRUE) -> 3.9 | L86: 2017-12-09
A87: 0 | B87: 71 | C87: 0 | D87: 71 | E87: 0.03757095372 | F87: 0.09551816174 | G87: 0.03757095372 | H87: =VLOOKUP($B87,'気象データ（出芽期予測用）'!$B$4:$P$278,$D$6,TRUE) -> 4.7 | I87: =VLOOKUP($B87,'気象データ（出芽期予測用）'!Q74:AE348,$D$6,TRUE) -> -1 | J87: =VLOOKUP($B87,'気象データ（出芽期予測用）'!AW74:BM348,$D$6,TRUE) -> 11.5 | K87: =VLOOKUP($B87,'気象データ（出芽期予測用）'!AF74:AV348,$D$6,TRUE) -> 7.5 | L87: 2017-12-10
A88: 0 | B88: 72 | C88: 0 | D88: 72 | E88: 0.03614952116 | F88: 0.1176281183 | G88: 0.03614952116 | H88: =VLOOKUP($B88,'気象データ（出芽期予測用）'!$B$4:$P$278,$D$6,TRUE) -> 4.5 | I88: =VLOOKUP($B88,'気象データ（出芽期予測用）'!Q75:AE349,$D$6,TRUE) -> -1.2 | J88: =VLOOKUP($B88,'気象データ（出芽期予測用）'!AW75:BM349,$D$6,TRUE) -> 13.6 | K88: =VLOOKUP($B88,'気象データ（出芽期予測用）'!AF75:AV349,$D$6,TRUE) -> 10.1 | L88: 2017-12-11
A89: 0 | B89: 73 | C89: 0 | D89: 73 | E89: 0.03465601813 | F89: 0.09168021057 | G89: 0.03465601813 | H89: =VLOOKUP($B89,'気象データ（出芽期予測用）'!$B$4:$P$278,$D$6,TRUE) -> 4.3 | I89: =VLOOKUP($B89,'気象データ（出芽期予測用）'!Q76:AE350,$D$6,TRUE) -> -1.3 | J89: =VLOOKUP($B89,'気象データ（出芽期予測用）'!AW76:BM350,$D$6,TRUE) -> 11.4 | K89: =VLOOKUP($B89,'気象データ（出芽期予測用）'!AF76:AV350,$D$6,TRUE) -> 6 | L89: 2017-12-12
A90: 0 | B90: 74 | C90: 0 | D90: 74 | E90: 0.03403672195 | F90: 0.05653961944 | G90: 0.03403672195 | H90: =VLOOKUP($B90,'気象データ（出芽期予測用）'!$B$4:$P$278,$D$6,TRUE) -> 4.2 | I90: =VLOOKUP($B90,'気象データ（出芽期予測用）'!Q77:AE351,$D$6,TRUE) -> -1.5 | J90: =VLOOKUP($B90,'気象データ（出芽期予測用）'!AW77:BM351,$D$6,TRUE) -> 6.9 | K90: =VLOOKUP($B90,'気象データ（出芽期予測用）'!AF77:AV351,$D$6,TRUE) -> 4.8 | L90: 2017-12-13
A91: 0 | B91: 75 | C91: 0 | D91: 75 | E91: 0.03264108892 | F91: 0.07625248803 | G91: 0.03264108892 | H91: =VLOOKUP($B91,'気象データ（出芽期予測用）'!$B$4:$P$278,$D$6,TRUE) -> 4 | I91: =VLOOKUP($B91,'気象データ（出芽期予測用）'!Q78:AE352,$D$6,TRUE) -> -1.7 | J91: =VLOOKUP($B91,'気象データ（出芽期予測用）'!AW78:BM352,$D$6,TRUE) -> 9.2 | K91: =VLOOKUP($B91,'気象データ（出芽期予測用）'!AF78:AV352,$D$6,TRUE) -> 6.3 | L91: 2017-12-14
A92: 0 | B92: 76 | C92: 0 | D92: 76 | E92: 0.03204746953 | F92: 0.06396955974 | G92: 0.03204746953 | H92: =VLOOKUP($B92,'気象データ（出芽期予測用）'!$B$4:$P$278,$D$6,TRUE) -> 3.9 | I92: =VLOOKUP($B92,'気象データ（出芽期予測用）'!Q79:AE353,$D$6,TRUE) -> -1.9 | J92: =VLOOKUP($B92,'気象データ（出芽期予測用）'!AW79:BM353,$D$6,TRUE) -> 8 | K92: =VLOOKUP($B92,'気象データ（出芽期予測用）'!AF79:AV353,$D$6,TRUE) -> 4.1 | L92: 2017-12-15
A93: 0 | B93: 77 | C93: 0 | D93: 77 | E93: 0.03135969029 | F93: 0.05729097773 | G93: 0.03135969029 | H93: =VLOOKUP($B93,'気象データ（出芽期予測用）'!$B$4:$P$278,$D$6,TRUE) -> 3.8 | I93: =VLOOKUP($B93,'気象データ（出芽期予測用）'!Q80:AE354,$D$6,TRUE) -> -2 | J93: =VLOOKUP($B93,'気象データ（出芽期予測用）'!AW80:BM354,$D$6,TRUE) -> 7.3 | K93: =VLOOKUP($B93,'気象データ（出芽期予測用）'!AF80:AV354,$D$6,TRUE) -> 2.4 | L93: 2017-12-16
A94: 0 | B94: 78 | C94: 0 | D94: 78 | E94: 0.02999187165 | F94: 0.07799484729 | G94: 0.02999187165 | H94: =VLOOKUP($B94,'気象データ（出芽期予測用）'!$B$4:$P$278,$D$6,TRUE) -> 3.6 | I94: =VLOOKUP($B94,'気象データ（出芽期予測用）'!Q81:AE355,$D$6,TRUE) -> -2.2 | J94: =VLOOKUP($B94,'気象データ（出芽期予測用）'!AW81:BM355,$D$6,TRUE) -> 9.3 | K94: =VLOOKUP($B94,'気象データ（出芽期予測用）'!AF81:AV355,$D$6,TRUE) -> 6.8 | L94: 2017-12-17
A95: 0 | B95: 79 | C95: 0 | D95: 79 | E95: 0.0294300964 | F95: 0.08417235487 | G95: 0.0294300964 | H95: =VLOOKUP($B95,'気象データ（出芽期予測用）'!$B$4:$P$278,$D$6,TRUE) -> 3.5 | I95: =VLOOKUP($B95,'気象データ（出芽期予測用）'!Q82:AE356,$D$6,TRUE) -> -2.4 | J95: =VLOOKUP($B95,'気象データ（出芽期予測用）'!AW82:BM356,$D$6,TRUE) -> 10.2 | K95: =VLOOKUP($B95,'気象データ（出芽期予測用）'!AF82:AV356,$D$6,TRUE) -> 6.6 | L95: 2017-12-18
A96: 0 | B96: 80 | C96: 0 | D96: 80 | E96: 0.02875622435 | F96: 0.08443257112 | G96: 0.02875622435 | H96: =VLOOKUP($B96,'気象データ（出芽期予測用）'!$B$4:$P$278,$D$6,TRUE) -> 3.4 | I96: =VLOOKUP($B96,'気象データ（出芽期予測用）'!Q83:AE357,$D$6,TRUE) -> -2.5 | J96: =VLOOKUP($B96,'気象データ（出芽期予測用）'!AW83:BM357,$D$6,TRUE) -> 9.9 | K96: =VLOOKUP($B96,'気象データ（出芽期予測用）'!AF83:AV357,$D$6,TRUE) -> 7.7 | L96: 2017-12-19
A97: 0 | B97: 81 | C97: 0 | D97: 81 | E97: 0.02821395857 | F97: 0.08211237091 | G97: 0.02821395857 | H97: =VLOOKUP($B97,'気象データ（出芽期予測用）'!$B$4:$P$278,$D$6,TRUE) -> 3.3 | I97: =VLOOKUP($B97,'気象データ（出芽期予測用）'!Q84:AE358,$D$6,TRUE) -> -2.7 | J97: =VLOOKUP($B97,'気象データ（出芽期予測用）'!AW84:BM358,$D$6,TRUE) -> 10.1 | K97: =VLOOKUP($B97,'気象データ（出芽期予測用）'!AF84:AV358,$D$6,TRUE) -> 5.9 | L97: 2017-12-20
A98: 0 | B98: 82 | C98: 0 | D98: 82 | E98: 0.02754883381 | F98: 0.07219884243 | G98: 0.02754883381 | H98: =VLOOKUP($B98,'気象データ（出芽期予測用）'!$B$4:$P$278,$D$6,TRUE) -> 3.2 | I98: =VLOOKUP($B98,'気象データ（出芽期予測用）'!Q85:AE359,$D$6,TRUE) -> -2.8 | J98: =VLOOKUP($B98,'気象データ（出芽期予測用）'!AW85:BM359,$D$6,TRUE) -> 8.6 | K98: =VLOOKUP($B98,'気象データ（出芽期予測用）'!AF85:AV359,$D$6,TRUE) -> 6.5 | L98: 2017-12-21
A99: 0 | B99: 83 | C99: 0 | D99: 83 | E99: 0.02688628901 | F99: 0.06976133079 | G99: 0.02688628901 | H99: =VLOOKUP($B99,'気象データ（出芽期予測用）'!$B$4:$P$278,$D$6,TRUE) -> 3.1 | I99: =VLOOKUP($B99,'気象データ（出芽期予測用）'!Q86:AE360,$D$6,TRUE) -> -2.9 | J99: =VLOOKUP($B99,'気象データ（出芽期予測用）'!AW86:BM360,$D$6,TRUE) -> 8.6 | K99: =VLOOKUP($B99,'気象データ（出芽期予測用）'!AF86:AV360,$D$6,TRUE) -> 5.1 | L99: 2017-12-22
A100: 0 | B100: 84 | C100: 0 | D100: 84 | E100: 0.02622632416 | F100: 0.06061550482 | G100: 0.02622632416 | H100: =VLOOKUP($B100,'気象データ（出芽期予測用）'!$B$4:$P$278,$D$6,TRUE) -> 3 | I100: =VLOOKUP($B100,'気象データ（出芽期予測用）'!Q87:AE361,$D$6,TRUE) -> -3 | J100: =VLOOKUP($B100,'気象データ（出芽期予測用）'!AW87:BM361,$D$6,TRUE) -> 7.4 | K100: =VLOOKUP($B100,'気象データ（出芽期予測用）'!AF87:AV361,$D$6,TRUE) -> 5 | L100: 2017-12-23
A101: 0 | B101: 85 | C101: 0 | D101: 85 | E101: 0.02491413432 | F101: 0.05638960845 | G101: 0.02491413432 | H101: =VLOOKUP($B101,'気象データ（出芽期予測用）'!$B$4:$P$278,$D$6,TRUE) -> 2.8 | I101: =VLOOKUP($B101,'気象データ（出芽期予測用）'!Q88:AE362,$D$6,TRUE) -> -3.2 | J101: =VLOOKUP($B101,'気象データ（出芽期予測用）'!AW88:BM362,$D$6,TRUE) -> 7.1 | K101: =VLOOKUP($B101,'気象データ（出芽期予測用）'!AF88:AV362,$D$6,TRUE) -> 3.3 | L101: 2017-12-24
A102: 0 | B102: 86 | C102: 0 | D102: 86 | E102: 0.02426190933 | F102: 0.05065214512 | G102: 0.02426190933 | H102: =VLOOKUP($B102,'気象データ（出芽期予測用）'!$B$4:$P$278,$D$6,TRUE) -> 2.7 | I102: =VLOOKUP($B102,'気象データ（出芽期予測用）'!Q89:AE363,$D$6,TRUE) -> -3.3 | J102: =VLOOKUP($B102,'気象データ（出芽期予測用）'!AW89:BM363,$D$6,TRUE) -> 6.3 | K102: =VLOOKUP($B102,'気象データ（出芽期予測用）'!AF89:AV363,$D$6,TRUE) -> 3.7 | L102: 2017-12-25
A103: 0 | B103: 87 | C103: 0 | D103: 87 | E103: 0.02361226429 | F103: 0.07172819119 | G103: 0.02361226429 | H103: =VLOOKUP($B103,'気象データ（出芽期予測用）'!$B$4:$P$278,$D$6,TRUE) -> 2.6 | I103: =VLOOKUP($B103,'気象データ（出芽期予測用）'!Q90:AE364,$D$6,TRUE) -> -3.4 | J103: =VLOOKUP($B103,'気象データ（出芽期予測用）'!AW90:BM364,$D$6,TRUE) -> 9.2 | K103: =VLOOKUP($B103,'気象データ（出芽期予測用）'!AF90:AV364,$D$6,TRUE) -> 2.8 | L103: 2017-12-26
A104: 0 | B104: 88 | C104: 0 | D104: 88 | E104: 0.0229651992 | F104: 0.06676896829 | G104: 0.0229651992 | H104: =VLOOKUP($B104,'気象データ（出芽期予測用）'!$B$4:$P$278,$D$6,TRUE) -> 2.5 | I104: =VLOOKUP($B104,'気象データ（出芽期予測用）'!Q91:AE365,$D$6,TRUE) -> -3.5 | J104: =VLOOKUP($B104,'気象データ（出芽期予測用）'!AW91:BM365,$D$6,TRUE) -> 8.6 | K104: =VLOOKUP($B104,'気象データ（出芽期予測用）'!AF91:AV365,$D$6,TRUE) -> 1.7 | L104: 2017-12-27
A105: 0 | B105: 89 | C105: 0 | D105: 89 | E105: 0.02232071407 | F105: 0.03616120164 | G105: 0.02232071407 | H105: =VLOOKUP($B105,'気象データ（出芽期予測用）'!$B$4:$P$278,$D$6,TRUE) -> 2.4 | I105: =VLOOKUP($B105,'気象データ（出芽期予測用）'!Q92:AE366,$D$6,TRUE) -> -3.6 | J105: =VLOOKUP($B105,'気象データ（出芽期予測用）'!AW92:BM366,$D$6,TRUE) -> 4.6 | K105: =VLOOKUP($B105,'気象データ（出芽期予測用）'!AF92:AV366,$D$6,TRUE) -> 0.4 | L105: 2017-12-28
A106: 0 | B106: 90 | C106: 0 | D106: 90 | E106: 0.02151390869 | F106: 0.04622717873 | G106: 0.02151390869 | H106: =VLOOKUP($B106,'気象データ（出芽期予測用）'!$B$4:$P$278,$D$6,TRUE) -> 2.3 | I106: =VLOOKUP($B106,'気象データ（出芽期予測用）'!Q93:AE367,$D$6,TRUE) -> -3.6 | J106: =VLOOKUP($B106,'気象データ（出芽期予測用）'!AW93:BM367,$D$6,TRUE) -> 5.9 | K106: =VLOOKUP($B106,'気象データ（出芽期予測用）'!AF93:AV367,$D$6,TRUE) -> 0.7 | L106: 2017-12-29
A107: 0 | B107: 91 | C107: 0 | D107: 91 | E107: 0.02087099608 | F107: 0.0542237045 | G107: 0.02087099608 | H107: =VLOOKUP($B107,'気象データ（出芽期予測用）'!$B$4:$P$278,$D$6,TRUE) -> 2.2 | I107: =VLOOKUP($B107,'気象データ（出芽期予測用）'!Q94:AE368,$D$6,TRUE) -> -3.7 | J107: =VLOOKUP($B107,'気象データ（出芽期予測用）'!AW94:BM368,$D$6,TRUE) -> 6.5 | K107: =VLOOKUP($B107,'気象データ（出芽期予測用）'!AF94:AV368,$D$6,TRUE) -> 5.3 | L107: 2017-12-30
A108: 0 | B108: 92 | C108: 0 | D108: 92 | E108: 0.02023066341 | F108: 0.0629392356 | G108: 0.02023066341 | H108: =VLOOKUP($B108,'気象データ（出芽期予測用）'!$B$4:$P$278,$D$6,TRUE) -> 2.1 | I108: =VLOOKUP($B108,'気象データ（出芽期予測用）'!Q95:AE369,$D$6,TRUE) -> -3.8 | J108: =VLOOKUP($B108,'気象データ（出芽期予測用）'!AW95:BM369,$D$6,TRUE) -> 8.1 | K108: =VLOOKUP($B108,'気象データ（出芽期予測用）'!AF95:AV369,$D$6,TRUE) -> 0.8 | L108: 2017-12-31
A109: 0 | B109: 93 | C109: 0 | D109: 93 | E109: 0.0195929107 | F109: 0.03648298966 | G109: 0.0195929107 | H109: =VLOOKUP($B109,'気象データ（出芽期予測用）'!$B$4:$P$278,$D$6,TRUE) -> 2 | I109: =VLOOKUP($B109,'気象データ（出芽期予測用）'!Q96:AE370,$D$6,TRUE) -> -3.9 | J109: =VLOOKUP($B109,'気象データ（出芽期予測用）'!AW96:BM370,$D$6,TRUE) -> 4.6 | K109: =VLOOKUP($B109,'気象データ（出芽期予測用）'!AF96:AV370,$D$6,TRUE) -> -0.5 | L109: 2018-01-01
A110: 0 | B110: 94 | C110: 0 | D110: 94 | E110: 0.01878207559 | F110: 0.04467602589 | G110: 0.01878207559 | H110: =VLOOKUP($B110,'気象データ（出芽期予測用）'!$B$4:$P$278,$D$6,TRUE) -> 1.9 | I110: =VLOOKUP($B110,'気象データ（出芽期予測用）'!Q97:AE371,$D$6,TRUE) -> -3.9 | J110: =VLOOKUP($B110,'気象データ（出芽期予測用）'!AW97:BM371,$D$6,TRUE) -> 5.7 | K110: =VLOOKUP($B110,'気象データ（出芽期予測用）'!AF97:AV371,$D$6,TRUE) -> 0.8 | L110: 2018-01-02
A111: 0 | B111: 95 | C111: 0 | D111: 95 | E111: 0.01895773795 | F111: 0.05005938971 | G111: 0.01895773795 | H111: =VLOOKUP($B111,'気象データ（出芽期予測用）'!$B$4:$P$278,$D$6,TRUE) -> 1.9 | I111: =VLOOKUP($B111,'気象データ（出芽期予測用）'!Q98:AE372,$D$6,TRUE) -> -4 | J111: =VLOOKUP($B111,'気象データ（出芽期予測用）'!AW98:BM372,$D$6,TRUE) -> 6.4 | K111: =VLOOKUP($B111,'気象データ（出芽期予測用）'!AF98:AV372,$D$6,TRUE) -> 1 | L111: 2018-01-03
A112: 0 | B112: 96 | C112: 0 | D112: 96 | E112: 0.0181458954 | F112: 0.05601233443 | G112: 0.0181458954 | H112: =VLOOKUP($B112,'気象データ（出芽期予測用）'!$B$4:$P$278,$D$6,TRUE) -> 1.8 | I112: =VLOOKUP($B112,'気象データ（出芽期予測用）'!Q99:AE373,$D$6,TRUE) -> -4 | J112: =VLOOKUP($B112,'気象データ（出芽期予測用）'!AW99:BM373,$D$6,TRUE) -> 7.1 | K112: =VLOOKUP($B112,'気象データ（出芽期予測用）'!AF99:AV373,$D$6,TRUE) -> 2.8 | L112: 2018-01-04
A113: 0 | B113: 97 | C113: 0 | D113: 97 | E113: 0.01832514514 | F113: 0.03616251786 | G113: 0.01832514514 | H113: =VLOOKUP($B113,'気象データ（出芽期予測用）'!$B$4:$P$278,$D$6,TRUE) -> 1.8 | I113: =VLOOKUP($B113,'気象データ（出芽期予測用）'!Q100:AE374,$D$6,TRUE) -> -4.1 | J113: =VLOOKUP($B113,'気象データ（出芽期予測用）'!AW100:BM374,$D$6,TRUE) -> 4.6 | K113: =VLOOKUP($B113,'気象データ（出芽期予測用）'!AF100:AV374,$D$6,TRUE) -> 1.5 | L113: 2018-01-05
A114: 0 | B114: 98 | C114: 0 | D114: 98 | E114: 0.01751229516 | F114: 0.03956137872 | G114: 0.01751229516 | H114: =VLOOKUP($B114,'気象データ（出芽期予測用）'!$B$4:$P$278,$D$6,TRUE) -> 1.7 | I114: =VLOOKUP($B114,'気象データ（出芽期予測用）'!Q101:AE375,$D$6,TRUE) -> -4.1 | J114: =VLOOKUP($B114,'気象データ（出芽期予測用）'!AW101:BM375,$D$6,TRUE) -> 5 | K114: =VLOOKUP($B114,'気象データ（出芽期予測用）'!AF101:AV375,$D$6,TRUE) -> -0.4 | L114: 2018-01-06
A115: 0 | B115: 99 | C115: 0 | D115: 99 | E115: 0.01769513229 | F115: 0.06047188965 | G115: 0.01769513229 | H115: =VLOOKUP($B115,'気象データ（出芽期予測用）'!$B$4:$P$278,$D$6,TRUE) -> 1.7 | I115: =VLOOKUP($B115,'気象データ（出芽期予測用）'!Q102:AE376,$D$6,TRUE) -> -4.2 | J115: =VLOOKUP($B115,'気象データ（出芽期予測用）'!AW102:BM376,$D$6,TRUE) -> 7.4 | K115: =VLOOKUP($B115,'気象データ（出芽期予測用）'!AF102:AV376,$D$6,TRUE) -> 4.9 | L115: 2018-01-07
A116: 0 | B116: 100 | C116: 0 | D116: 100 | E116: 0.01769513229 | F116: 0.05474637702 | G116: 0.01769513229 | H116: =VLOOKUP($B116,'気象データ（出芽期予測用）'!$B$4:$P$278,$D$6,TRUE) -> 1.7 | I116: =VLOOKUP($B116,'気象データ（出芽期予測用）'!Q103:AE377,$D$6,TRUE) -> -4.2 | J116: =VLOOKUP($B116,'気象データ（出芽期予測用）'!AW103:BM377,$D$6,TRUE) -> 6.7 | K116: =VLOOKUP($B116,'気象データ（出芽期予測用）'!AF103:AV377,$D$6,TRUE) -> 4.6 | L116: 2018-01-08
A117: 0 | B117: 101 | C117: 0 | D117: 101 | E117: 0.01769513229 | F117: 0.0777740499 | G117: 0.01769513229 | H117: =VLOOKUP($B117,'気象データ（出芽期予測用）'!$B$4:$P$278,$D$6,TRUE) -> 1.7 | I117: =VLOOKUP($B117,'気象データ（出芽期予測用）'!Q104:AE378,$D$6,TRUE) -> -4.2 | J117: =VLOOKUP($B117,'気象データ（出芽期予測用）'!AW104:BM378,$D$6,TRUE) -> 9.6 | K117: =VLOOKUP($B117,'気象データ（出芽期予測用）'!AF104:AV378,$D$6,TRUE) -> 5.5 | L117: 2018-01-09
A118: 0 | B118: 102 | C118: 0 | D118: 102 | E118: 0.01688127487 | F118: 0.07570802686 | G118: 0.01688127487 | H118: =VLOOKUP($B118,'気象データ（出芽期予測用）'!$B$4:$P$278,$D$6,TRUE) -> 1.6 | I118: =VLOOKUP($B118,'気象データ（出芽期予測用）'!Q105:AE379,$D$6,TRUE) -> -4.2 | J118: =VLOOKUP($B118,'気象データ（出芽期予測用）'!AW105:BM379,$D$6,TRUE) -> 9.1 | K118: =VLOOKUP($B118,'気象データ（出芽期予測用）'!AF105:AV379,$D$6,TRUE) -> 6.4 | L118: 2018-01-10
A119: 0 | B119: 103 | C119: 0 | D119: 103 | E119: 0.01706769939 | F119: 0.05326110843 | G119: 0.01706769939 | H119: =VLOOKUP($B119,'気象データ（出芽期予測用）'!$B$4:$P$278,$D$6,TRUE) -> 1.6 | I119: =VLOOKUP($B119,'気象データ（出芽期予測用）'!Q106:AE380,$D$6,TRUE) -> -4.3 | J119: =VLOOKUP($B119,'気象データ（出芽期予測用）'!AW106:BM380,$D$6,TRUE) -> 6.6 | K119: =VLOOKUP($B119,'気象データ（出芽期予測用）'!AF106:AV380,$D$6,TRUE) -> 4 | L119: 2018-01-11
A120: 0 | B120: 104 | C120: 0 | D120: 104 | E120: 0.01706769939 | F120: 0.05371213237 | G120: 0.01706769939 | H120: =VLOOKUP($B120,'気象データ（出芽期予測用）'!$B$4:$P$278,$D$6,TRUE) -> 1.6 | I120: =VLOOKUP($B120,'気象データ（出芽期予測用）'!Q107:AE381,$D$6,TRUE) -> -4.3 | J120: =VLOOKUP($B120,'気象データ（出芽期予測用）'!AW107:BM381,$D$6,TRUE) -> 6.7 | K120: =VLOOKUP($B120,'気象データ（出芽期予測用）'!AF107:AV381,$D$6,TRUE) -> 3.7 | L120: 2018-01-12
A121: 0 | B121: 105 | C121: 0 | D121: 105 | E121: 0.01706769939 | F121: 0.06823166763 | G121: 0.01706769939 | H121: =VLOOKUP($B121,'気象データ（出芽期予測用）'!$B$4:$P$278,$D$6,TRUE) -> 1.6 | I121: =VLOOKUP($B121,'気象データ（出芽期予測用）'!Q108:AE382,$D$6,TRUE) -> -4.3 | J121: =VLOOKUP($B121,'気象データ（出芽期予測用）'!AW108:BM382,$D$6,TRUE) -> 8.6 | K121: =VLOOKUP($B121,'気象データ（出芽期予測用）'!AF108:AV382,$D$6,TRUE) -> 3.9 | L121: 2018-01-13
A122: 0.01706769939 | B122: 106 | C122: 0.01706769939 | D122: 106 | E122: 0.01706769939 | F122: 0.06759506454 | G122: 0.01706769939 | H122: =VLOOKUP($B122,'気象データ（出芽期予測用）'!$B$4:$P$278,$D$6,TRUE) -> 1.6 | I122: =VLOOKUP($B122,'気象データ（出芽期予測用）'!Q109:AE383,$D$6,TRUE) -> -4.3 | J122: =VLOOKUP($B122,'気象データ（出芽期予測用）'!AW109:BM383,$D$6,TRUE) -> 8.5 | K122: =VLOOKUP($B122,'気象データ（出芽期予測用）'!AF109:AV383,$D$6,TRUE) -> 4 | L122: 2018-01-14
A123: 0.03413539878 | B123: 107 | C123: 0.03413539878 | D123: 107 | E123: 0.01706769939 | F123: 0.05956703028 | G123: 0.01706769939 | H123: =VLOOKUP($B123,'気象データ（出芽期予測用）'!$B$4:$P$278,$D$6,TRUE) -> 1.6 | I123: =VLOOKUP($B123,'気象データ（出芽期予測用）'!Q110:AE384,$D$6,TRUE) -> -4.3 | J123: =VLOOKUP($B123,'気象データ（出芽期予測用）'!AW110:BM384,$D$6,TRUE) -> 7.4 | K123: =VLOOKUP($B123,'気象データ（出芽期予測用）'!AF110:AV384,$D$6,TRUE) -> 4.2 | L123: 2018-01-15
A124: 0.05139311008 | B124: 108 | C124: 0.05139311008 | D124: 108 | E124: 0.0172577113 | F124: 0.04468367929 | G124: 0.0172577113 | H124: =VLOOKUP($B124,'気象データ（出芽期予測用）'!$B$4:$P$278,$D$6,TRUE) -> 1.6 | I124: =VLOOKUP($B124,'気象データ（出芽期予測用）'!Q111:AE385,$D$6,TRUE) -> -4.4 | J124: =VLOOKUP($B124,'気象データ（出芽期予測用）'!AW111:BM385,$D$6,TRUE) -> 5.7 | K124: =VLOOKUP($B124,'気象データ（出芽期予測用）'!AF111:AV385,$D$6,TRUE) -> 1.2 | L124: 2018-01-16
A125: 0.06865082138 | B125: 109 | C125: 0.06865082138 | D125: 109 | E125: 0.0172577113 | F125: 0.06377836749 | G125: 0.0172577113 | H125: =VLOOKUP($B125,'気象データ（出芽期予測用）'!$B$4:$P$278,$D$6,TRUE) -> 1.6 | I125: =VLOOKUP($B125,'気象データ（出芽期予測用）'!Q112:AE386,$D$6,TRUE) -> -4.4 | J125: =VLOOKUP($B125,'気象データ（出芽期予測用）'!AW112:BM386,$D$6,TRUE) -> 7.8 | K125: =VLOOKUP($B125,'気象データ（出芽期予測用）'!AF112:AV386,$D$6,TRUE) -> 5.1 | L125: 2018-01-17
A126: 0.08590853268 | B126: 110 | C126: 0.08590853268 | D126: 110 | E126: 0.0172577113 | F126: 0.04652431854 | G126: 0.0172577113 | H126: =VLOOKUP($B126,'気象データ（出芽期予測用）'!$B$4:$P$278,$D$6,TRUE) -> 1.6 | I126: =VLOOKUP($B126,'気象データ（出芽期予測用）'!Q113:AE387,$D$6,TRUE) -> -4.4 | J126: =VLOOKUP($B126,'気象データ（出芽期予測用）'!AW113:BM387,$D$6,TRUE) -> 5.8 | K126: =VLOOKUP($B126,'気象データ（出芽期予測用）'!AF113:AV387,$D$6,TRUE) -> 3.4 | L126: 2018-01-18
A127: 0.103166244 | B127: 111 | C127: 0.103166244 | D127: 111 | E127: 0.0172577113 | F127: 0.04799492733 | G127: 0.0172577113 | H127: =VLOOKUP($B127,'気象データ（出芽期予測用）'!$B$4:$P$278,$D$6,TRUE) -> 1.6 | I127: =VLOOKUP($B127,'気象データ（出芽期予測用）'!Q114:AE388,$D$6,TRUE) -> -4.4 | J127: =VLOOKUP($B127,'気象データ（出芽期予測用）'!AW114:BM388,$D$6,TRUE) -> 6.1 | K127: =VLOOKUP($B127,'気象データ（出芽期予測用）'!AF114:AV388,$D$6,TRUE) -> 2.1 | L127: 2018-01-19
A128: 0.1204239553 | B128: 112 | C128: 0.1204239553 | D128: 112 | E128: 0.0172577113 | F128: 0.06026032449 | G128: 0.0172577113 | H128: =VLOOKUP($B128,'気象データ（出芽期予測用）'!$B$4:$P$278,$D$6,TRUE) -> 1.6 | I128: =VLOOKUP($B128,'気象データ（出芽期予測用）'!Q115:AE389,$D$6,TRUE) -> -4.4 | J128: =VLOOKUP($B128,'気象データ（出芽期予測用）'!AW115:BM389,$D$6,TRUE) -> 7.7 | K128: =VLOOKUP($B128,'気象データ（出芽期予測用）'!AF115:AV389,$D$6,TRUE) -> 2.3 | L128: 2018-01-20
A129: 0.1378752659 | B129: 113 | C129: 0.1378752659 | D129: 113 | E129: 0.01745131059 | F129: 0.04953096557 | G129: 0.01745131059 | H129: =VLOOKUP($B129,'気象データ（出芽期予測用）'!$B$4:$P$278,$D$6,TRUE) -> 1.6 | I129: =VLOOKUP($B129,'気象データ（出芽期予測用）'!Q116:AE390,$D$6,TRUE) -> -4.5 | J129: =VLOOKUP($B129,'気象データ（出芽期予測用）'!AW116:BM390,$D$6,TRUE) -> 6.3 | K129: =VLOOKUP($B129,'気象データ（出芽期予測用）'!AF116:AV390,$D$6,TRUE) -> 2.1 | L129: 2018-01-21
A130: 0.1553265765 | B130: 114 | C130: 0.1553265765 | D130: 114 | E130: 0.01745131059 | F130: 0.03614446126 | G130: 0.01745131059 | H130: =VLOOKUP($B130,'気象データ（出芽期予測用）'!$B$4:$P$278,$D$6,TRUE) -> 1.6 | I130: =VLOOKUP($B130,'気象データ（出芽期予測用）'!Q117:AE391,$D$6,TRUE) -> -4.5 | J130: =VLOOKUP($B130,'気象データ（出芽期予測用）'!AW117:BM391,$D$6,TRUE) -> 4.6 | K130: =VLOOKUP($B130,'気象データ（出芽期予測用）'!AF117:AV391,$D$6,TRUE) -> 1.4 | L130: 2018-01-22
A131: 0.1729750737 | B131: 115 | C131: 0.1729750737 | D131: 115 | E131: 0.01764849728 | F131: 0.05599654474 | G131: 0.01764849728 | H131: =VLOOKUP($B131,'気象データ（出芽期予測用）'!$B$4:$P$278,$D$6,TRUE) -> 1.6 | I131: =VLOOKUP($B131,'気象データ（出芽期予測用）'!Q118:AE392,$D$6,TRUE) -> -4.6 | J131: =VLOOKUP($B131,'気象データ（出芽期予測用）'!AW118:BM392,$D$6,TRUE) -> 7 | K131: =VLOOKUP($B131,'気象データ（出芽期予測用）'!AF118:AV392,$D$6,TRUE) -> 3.7 | L131: 2018-01-23
A132: 0.190623571 | B132: 116 | C132: 0.190623571 | D132: 116 | E132: 0.01764849728 | F132: 0.08101546325 | G132: 0.01764849728 | H132: =VLOOKUP($B132,'気象データ（出芽期予測用）'!$B$4:$P$278,$D$6,TRUE) -> 1.6 | I132: =VLOOKUP($B132,'気象データ（出芽期予測用）'!Q119:AE393,$D$6,TRUE) -> -4.6 | J132: =VLOOKUP($B132,'気象データ（出芽期予測用）'!AW119:BM393,$D$6,TRUE) -> 9.9 | K132: =VLOOKUP($B132,'気象データ（出芽期予測用）'!AF119:AV393,$D$6,TRUE) -> 6.1 | L132: 2018-01-24
A133: 0.2084728424 | B133: 117 | C133: 0.2084728424 | D133: 117 | E133: 0.01784927135 | F133: 0.05653525122 | G133: 0.01784927135 | H133: =VLOOKUP($B133,'気象データ（出芽期予測用）'!$B$4:$P$278,$D$6,TRUE) -> 1.6 | I133: =VLOOKUP($B133,'気象データ（出芽期予測用）'!Q120:AE394,$D$6,TRUE) -> -4.7 | J133: =VLOOKUP($B133,'気象データ（出芽期予測用）'!AW120:BM394,$D$6,TRUE) -> 7 | K133: =VLOOKUP($B133,'気象データ（出芽期予測用）'!AF120:AV394,$D$6,TRUE) -> 4.2 | L133: 2018-01-25
A134: 0.2263221137 | B134: 118 | C134: 0.2263221137 | D134: 118 | E134: 0.01784927135 | F134: 0.04370823885 | G134: 0.01784927135 | H134: =VLOOKUP($B134,'気象データ（出芽期予測用）'!$B$4:$P$278,$D$6,TRUE) -> 1.6 | I134: =VLOOKUP($B134,'気象データ（出芽期予測用）'!Q121:AE395,$D$6,TRUE) -> -4.7 | J134: =VLOOKUP($B134,'気象データ（出芽期予測用）'!AW121:BM395,$D$6,TRUE) -> 5.4 | K134: =VLOOKUP($B134,'気象データ（出芽期予測用）'!AF121:AV395,$D$6,TRUE) -> 3.7 | L134: 2018-01-26
A135: =IF(C135=0,0, IF(A134>1,2,C135)) -> 0.2443757465 | B135: 119 | C135: 0.2443757465 | D135: 119 | E135: 0.01805363281 | F135: 0.05504571051 | G135: 0.01805363281 | H135: =VLOOKUP($B135,'気象データ（出芽期予測用）'!$B$4:$P$278,$D$6,TRUE) -> 1.6 | I135: =VLOOKUP($B135,'気象データ（出芽期予測用）'!Q122:AE396,$D$6,TRUE) -> -4.8 | J135: =VLOOKUP($B135,'気象データ（出芽期予測用）'!AW122:BM396,$D$6,TRUE) -> 6.9 | K135: =VLOOKUP($B135,'気象データ（出芽期予測用）'!AF122:AV396,$D$6,TRUE) -> 3.5 | L135: 2018-01-27
A136: 0.2624293793 | B136: 120 | C136: 0.2624293793 | D136: 120 | E136: 0.01805363281 | F136: 0.08965451361 | G136: 0.01805363281 | H136: =VLOOKUP($B136,'気象データ（出芽期予測用）'!$B$4:$P$278,$D$6,TRUE) -> 1.6 | I136: =VLOOKUP($B136,'気象データ（出芽期予測用）'!Q123:AE397,$D$6,TRUE) -> -4.8 | J136: =VLOOKUP($B136,'気象データ（出芽期予測用）'!AW123:BM397,$D$6,TRUE) -> 10.9 | K136: =VLOOKUP($B136,'気象データ（出芽期予測用）'!AF123:AV397,$D$6,TRUE) -> 6.8 | L136: 2018-01-28
A137: 0.280690961 | B137: 121 | C137: 0.280690961 | D137: 121 | E137: 0.01826158166 | F137: 0.1099026256 | G137: 0.01826158166 | H137: =VLOOKUP($B137,'気象データ（出芽期予測用）'!$B$4:$P$278,$D$6,TRUE) -> 1.6 | I137: =VLOOKUP($B137,'気象データ（出芽期予測用）'!Q124:AE398,$D$6,TRUE) -> -4.9 | J137: =VLOOKUP($B137,'気象データ（出芽期予測用）'!AW124:BM398,$D$6,TRUE) -> 13.1 | K137: =VLOOKUP($B137,'気象データ（出芽期予測用）'!AF124:AV398,$D$6,TRUE) -> 8.7 | L137: 2018-01-29
A138: 0.2989525427 | B138: 122 | C138: 0.2989525427 | D138: 122 | E138: 0.01826158166 | F138: 0.08936961264 | G138: 0.01826158166 | H138: =VLOOKUP($B138,'気象データ（出芽期予測用）'!$B$4:$P$278,$D$6,TRUE) -> 1.6 | I138: =VLOOKUP($B138,'気象データ（出芽期予測用）'!Q125:AE399,$D$6,TRUE) -> -4.9 | J138: =VLOOKUP($B138,'気象データ（出芽期予測用）'!AW125:BM399,$D$6,TRUE) -> 11 | K138: =VLOOKUP($B138,'気象データ（出芽期予測用）'!AF125:AV399,$D$6,TRUE) -> 6.3 | L138: 2018-01-30
A139: 0.3172141243 | B139: 123 | C139: 0.3172141243 | D139: 123 | E139: 0.01826158166 | F139: 0.05774382621 | G139: 0.01826158166 | H139: =VLOOKUP($B139,'気象データ（出芽期予測用）'!$B$4:$P$278,$D$6,TRUE) -> 1.6 | I139: =VLOOKUP($B139,'気象データ（出芽期予測用）'!Q126:AE400,$D$6,TRUE) -> -4.9 | J139: =VLOOKUP($B139,'気象データ（出芽期予測用）'!AW126:BM400,$D$6,TRUE) -> 7.3 | K139: =VLOOKUP($B139,'気象データ（出芽期予測用）'!AF126:AV400,$D$6,TRUE) -> 3.1 | L139: 2018-01-31
A140: 0.335475706 | B140: 124 | C140: 0.335475706 | D140: 124 | E140: 0.01826158166 | F140: 0.05335343104 | G140: 0.01826158166 | H140: =VLOOKUP($B140,'気象データ（出芽期予測用）'!$B$4:$P$278,$D$6,TRUE) -> 1.6 | I140: =VLOOKUP($B140,'気象データ（出芽期予測用）'!Q127:AE401,$D$6,TRUE) -> -4.9 | J140: =VLOOKUP($B140,'気象データ（出芽期予測用）'!AW127:BM401,$D$6,TRUE) -> 6.8 | K140: =VLOOKUP($B140,'気象データ（出芽期予測用）'!AF127:AV401,$D$6,TRUE) -> 2.1 | L140: 2018-02-01
A141: 0.3537372876 | B141: 125 | C141: 0.3537372876 | D141: 125 | E141: 0.01826158166 | F141: 0.04853576954 | G141: 0.01826158166 | H141: =VLOOKUP($B141,'気象データ（出芽期予測用）'!$B$4:$P$278,$D$6,TRUE) -> 1.6 | I141: =VLOOKUP($B141,'気象データ（出芽期予測用）'!Q128:AE402,$D$6,TRUE) -> -4.9 | J141: =VLOOKUP($B141,'気象データ（出芽期予測用）'!AW128:BM402,$D$6,TRUE) -> 6.2 | K141: =VLOOKUP($B141,'気象データ（出芽期予測用）'!AF128:AV402,$D$6,TRUE) -> 0.7 | L141: 2018-02-02
A142: 0.3726047779 | B142: 126 | C142: 0.3726047779 | D142: 126 | E142: 0.01886749023 | F142: 0.0732511582 | G142: 0.01886749023 | H142: =VLOOKUP($B142,'気象データ（出芽期予測用）'!$B$4:$P$278,$D$6,TRUE) -> 1.7 | I142: =VLOOKUP($B142,'気象データ（出芽期予測用）'!Q129:AE403,$D$6,TRUE) -> -4.8 | J142: =VLOOKUP($B142,'気象データ（出芽期予測用）'!AW129:BM403,$D$6,TRUE) -> 9.2 | K142: =VLOOKUP($B142,'気象データ（出芽期予測用）'!AF129:AV403,$D$6,TRUE) -> 4.4 | L142: 2018-02-03
A143: 0.3914722681 | B143: 127 | C143: 0.3914722681 | D143: 127 | E143: 0.01886749023 | F143: 0.0648493074 | G143: 0.01886749023 | H143: =VLOOKUP($B143,'気象データ（出芽期予測用）'!$B$4:$P$278,$D$6,TRUE) -> 1.7 | I143: =VLOOKUP($B143,'気象データ（出芽期予測用）'!Q130:AE404,$D$6,TRUE) -> -4.8 | J143: =VLOOKUP($B143,'気象データ（出芽期予測用）'!AW130:BM404,$D$6,TRUE) -> 8 | K143: =VLOOKUP($B143,'気象データ（出芽期予測用）'!AF130:AV404,$D$6,TRUE) -> 4.8 | L143: 2018-02-04
A144: 0.4109482468 | B144: 128 | C144: 0.4109482468 | D144: 128 | E144: 0.01947597875 | F144: 0.05473856582 | G144: 0.01947597875 | H144: =VLOOKUP($B144,'気象データ（出芽期予測用）'!$B$4:$P$278,$D$6,TRUE) -> 1.8 | I144: =VLOOKUP($B144,'気象データ（出芽期予測用）'!Q131:AE405,$D$6,TRUE) -> -4.7 | J144: =VLOOKUP($B144,'気象データ（出芽期予測用）'!AW131:BM405,$D$6,TRUE) -> 7 | K144: =VLOOKUP($B144,'気象データ（出芽期予測用）'!AF131:AV405,$D$6,TRUE) -> 1.7 | L144: 2018-02-05
A145: 0.4302234515 | B145: 129 | C145: =IF(B145<($D$9+1),0,E145)+C144 -> 0.4302234515 | D145: 129 | E145: =IF($F$6="○",F145,G145) -> 0.01927520468 | F145: 0.01782470768 | G145: =$J$6+$J$7*H145+$J$8*H145^2+$J$9*I145+$J$10*I145^2 -> 0.01927520468 | H145: =VLOOKUP($B145,'気象データ（出芽期予測用）'!$B$4:$P$278,$D$6,TRUE) -> 1.8 | I145: =VLOOKUP($B145,'気象データ（出芽期予測用）'!Q132:AE406,$D$6,TRUE) -> -4.6 | J145: =VLOOKUP($B145,'気象データ（出芽期予測用）'!AW132:BM406,$D$6,TRUE) -> 2.2 | K145: =VLOOKUP($B145,'気象データ（出芽期予測用）'!AF132:AV406,$D$6,TRUE) -> -1.2 | L145: 2018-02-06
A146: 0.4501133121 | B146: 130 | C146: 0.4501133121 | D146: 130 | E146: 0.01988986055 | F146: =$J$6+$J$7*J146+$J$8*J146^2+$J$9*K146+$J$10*K146^2 -> 0.01938342662 | G146: 0.01988986055 | H146: =VLOOKUP($B146,'気象データ（出芽期予測用）'!$B$4:$P$278,$D$6,TRUE) -> 1.9 | I146: =VLOOKUP($B146,'気象データ（出芽期予測用）'!Q133:AE407,$D$6,TRUE) -> -4.5 | J146: =VLOOKUP($B146,'気象データ（出芽期予測用）'!AW133:BM407,$D$6,TRUE) -> 2.2 | K146: =VLOOKUP($B146,'気象データ（出芽期予測用）'!AF133:AV407,$D$6,TRUE) -> -2.7 | L146: 2018-02-07
A147: 0.4706204084 | B147: 131 | C147: 0.4706204084 | D147: 131 | E147: 0.02050709636 | F147: 0.04250921138 | G147: 0.02050709636 | H147: =VLOOKUP($B147,'気象データ（出芽期予測用）'!$B$4:$P$278,$D$6,TRUE) -> 2 | I147: =VLOOKUP($B147,'気象データ（出芽期予測用）'!Q134:AE408,$D$6,TRUE) -> -4.4 | J147: =VLOOKUP($B147,'気象データ（出芽期予測用）'!AW134:BM408,$D$6,TRUE) -> 5.4 | K147: =VLOOKUP($B147,'気象データ（出芽期予測用）'!AF134:AV408,$D$6,TRUE) -> 0 | L147: 2018-02-08
A148: 0.4909374929 | B148: 132 | C148: 0.4909374929 | D148: 132 | E148: 0.02031708446 | F148: 0.01990492022 | G148: 0.02031708446 | H148: =VLOOKUP($B148,'気象データ（出芽期予測用）'!$B$4:$P$278,$D$6,TRUE) -> 2 | I148: =VLOOKUP($B148,'気象データ（出芽期予測用）'!Q135:AE409,$D$6,TRUE) -> -4.3 | J148: =VLOOKUP($B148,'気象データ（出芽期予測用）'!AW135:BM409,$D$6,TRUE) -> 2.5 | K148: =VLOOKUP($B148,'気象データ（出芽期予測用）'!AF135:AV409,$D$6,TRUE) -> -0.7 | L148: 2018-02-09
A149: 0.5118779805 | B149: 133 | C149: 0.5118779805 | D149: 133 | E149: 0.02094048761 | F149: 0.0276131638 | G149: 0.02094048761 | H149: =VLOOKUP($B149,'気象データ（出芽期予測用）'!$B$4:$P$278,$D$6,TRUE) -> 2.1 | I149: =VLOOKUP($B149,'気象データ（出芽期予測用）'!Q136:AE410,$D$6,TRUE) -> -4.2 | J149: =VLOOKUP($B149,'気象データ（出芽期予測用）'!AW136:BM410,$D$6,TRUE) -> 3.4 | K149: =VLOOKUP($B149,'気象データ（出芽期予測用）'!AF136:AV410,$D$6,TRUE) -> -1.4 | L149: 2018-02-10
A150: 0.5334444512 | B150: 134 | C150: 0.5334444512 | D150: 134 | E150: 0.02156647073 | F150: 0.04167367762 | G150: 0.02156647073 | H150: =VLOOKUP($B150,'気象データ（出芽期予測用）'!$B$4:$P$278,$D$6,TRUE) -> 2.2 | I150: =VLOOKUP($B150,'気象データ（出芽期予測用）'!Q137:AE411,$D$6,TRUE) -> -4.1 | J150: =VLOOKUP($B150,'気象データ（出芽期予測用）'!AW137:BM411,$D$6,TRUE) -> 5.3 | K150: =VLOOKUP($B150,'気象データ（出芽期予測用）'!AF137:AV411,$D$6,TRUE) -> 1.7 | L150: 2018-02-11
A151: 0.555639485 | B151: 135 | C151: 0.555639485 | D151: 135 | E151: 0.02219503379 | F151: 0.06890567387 | G151: 0.02219503379 | H151: =VLOOKUP($B151,'気象データ（出芽期予測用）'!$B$4:$P$278,$D$6,TRUE) -> 2.3 | I151: =VLOOKUP($B151,'気象データ（出芽期予測用）'!Q138:AE412,$D$6,TRUE) -> -4 | J151: =VLOOKUP($B151,'気象データ（出芽期予測用）'!AW138:BM412,$D$6,TRUE) -> 8.9 | K151: =VLOOKUP($B151,'気象データ（出芽期予測用）'!AF138:AV412,$D$6,TRUE) -> 1.2 | L151: 2018-02-12
A152: 0.5784656618 | B152: 136 | C152: 0.5784656618 | D152: 136 | E152: 0.02282617681 | F152: 0.09718228424 | G152: 0.02282617681 | H152: =VLOOKUP($B152,'気象データ（出芽期予測用）'!$B$4:$P$278,$D$6,TRUE) -> 2.4 | I152: =VLOOKUP($B152,'気象データ（出芽期予測用）'!Q139:AE413,$D$6,TRUE) -> -3.9 | J152: =VLOOKUP($B152,'気象データ（出芽期予測用）'!AW139:BM413,$D$6,TRUE) -> 11.7 | K152: =VLOOKUP($B152,'気象データ（出芽期予測用）'!AF139:AV413,$D$6,TRUE) -> 7.6 | L152: 2018-02-13
A153: 0.6019255616 | B153: 137 | C153: 0.6019255616 | D153: 137 | E153: 0.02345989978 | F153: 0.1003641474 | G153: 0.02345989978 | H153: =VLOOKUP($B153,'気象データ（出芽期予測用）'!$B$4:$P$278,$D$6,TRUE) -> 2.5 | I153: =VLOOKUP($B153,'気象データ（出芽期予測用）'!Q140:AE414,$D$6,TRUE) -> -3.8 | J153: =VLOOKUP($B153,'気象データ（出芽期予測用）'!AW140:BM414,$D$6,TRUE) -> 11.9 | K153: =VLOOKUP($B153,'気象データ（出芽期予測用）'!AF140:AV414,$D$6,TRUE) -> 8.3 | L153: 2018-02-14
A154: 0.6260217643 | B154: 138 | C154: 0.6260217643 | D154: 138 | E154: 0.0240962027 | F154: 0.09802182607 | G154: 0.0240962027 | H154: =VLOOKUP($B154,'気象データ（出芽期予測用）'!$B$4:$P$278,$D$6,TRUE) -> 2.6 | I154: =VLOOKUP($B154,'気象データ（出芽期予測用）'!Q141:AE415,$D$6,TRUE) -> -3.7 | J154: =VLOOKUP($B154,'気象データ（出芽期予測用）'!AW141:BM415,$D$6,TRUE) -> 12.1 | K154: =VLOOKUP($B154,'気象データ（出芽期予測用）'!AF141:AV415,$D$6,TRUE) -> 6.7 | L154: 2018-02-15
A155: 0.6507568499 | B155: 139 | C155: 0.6507568499 | D155: 139 | E155: 0.02473508557 | F155: 0.08858272278 | G155: 0.02473508557 | H155: =VLOOKUP($B155,'気象データ（出芽期予測用）'!$B$4:$P$278,$D$6,TRUE) -> 2.7 | I155: =VLOOKUP($B155,'気象データ（出芽期予測用）'!Q142:AE416,$D$6,TRUE) -> -3.6 | J155: =VLOOKUP($B155,'気象データ（出芽期予測用）'!AW142:BM416,$D$6,TRUE) -> 10.6 | K155: =VLOOKUP($B155,'気象データ（出芽期予測用）'!AF142:AV416,$D$6,TRUE) -> 7.3 | L155: 2018-02-16
A156: 0.6761333983 | B156: 140 | C156: 0.6761333983 | D156: 140 | E156: 0.0253765484 | F156: 0.09000581066 | G156: 0.0253765484 | H156: =VLOOKUP($B156,'気象データ（出芽期予測用）'!$B$4:$P$278,$D$6,TRUE) -> 2.8 | I156: =VLOOKUP($B156,'気象データ（出芽期予測用）'!Q143:AE417,$D$6,TRUE) -> -3.5 | J156: =VLOOKUP($B156,'気象データ（出芽期予測用）'!AW143:BM417,$D$6,TRUE) -> 10.7 | K156: =VLOOKUP($B156,'気象データ（出芽期予測用）'!AF143:AV417,$D$6,TRUE) -> 7.6 | L156: 2018-02-17
A157: 0.7021539895 | B157: 141 | C157: 0.7021539895 | D157: 141 | E157: 0.02602059118 | F157: 0.0517518927 | G157: 0.02602059118 | H157: =VLOOKUP($B157,'気象データ（出芽期予測用）'!$B$4:$P$278,$D$6,TRUE) -> 2.9 | I157: =VLOOKUP($B157,'気象データ（出芽期予測用）'!Q144:AE418,$D$6,TRUE) -> -3.4 | J157: =VLOOKUP($B157,'気象データ（出芽期予測用）'!AW144:BM418,$D$6,TRUE) -> 6.6 | K157: =VLOOKUP($B157,'気象データ（出芽期予測用）'!AF144:AV418,$D$6,TRUE) -> 1.9 | L157: 2018-02-18
A158: 0.7288212034 | B158: 142 | C158: 0.7288212034 | D158: 142 | E158: 0.02666721392 | F158: 0.05559524018 | G158: 0.02666721392 | H158: =VLOOKUP($B158,'気象データ（出芽期予測用）'!$B$4:$P$278,$D$6,TRUE) -> 3 | I158: =VLOOKUP($B158,'気象データ（出芽期予測用）'!Q145:AE419,$D$6,TRUE) -> -3.3 | J158: =VLOOKUP($B158,'気象データ（出芽期予測用）'!AW145:BM419,$D$6,TRUE) -> 7.1 | K158: =VLOOKUP($B158,'気象データ（出芽期予測用）'!AF145:AV419,$D$6,TRUE) -> 2 | L158: 2018-02-19
A159: 0.75613762 | B159: 143 | C159: 0.75613762 | D159: 143 | E159: 0.0273164166 | F159: 0.07189922944 | G159: 0.0273164166 | H159: =VLOOKUP($B159,'気象データ（出芽期予測用）'!$B$4:$P$278,$D$6,TRUE) -> 3.1 | I159: =VLOOKUP($B159,'気象データ（出芽期予測用）'!Q146:AE420,$D$6,TRUE) -> -3.2 | J159: =VLOOKUP($B159,'気象データ（出芽期予測用）'!AW146:BM420,$D$6,TRUE) -> 9 | K159: =VLOOKUP($B159,'気象データ（出芽期予測用）'!AF146:AV420,$D$6,TRUE) -> 4.5 | L159: 2018-02-20
A160: 0.7841058192 | B160: 144 | C160: 0.7841058192 | D160: 144 | E160: 0.02796819924 | F160: 0.0859057597 | G160: 0.02796819924 | H160: =VLOOKUP($B160,'気象データ（出芽期予測用）'!$B$4:$P$278,$D$6,TRUE) -> 3.2 | I160: =VLOOKUP($B160,'気象データ（出芽期予測用）'!Q147:AE421,$D$6,TRUE) -> -3.1 | J160: =VLOOKUP($B160,'気象データ（出芽期予測用）'!AW147:BM421,$D$6,TRUE) -> 10 | K160: =VLOOKUP($B160,'気象データ（出芽期予測用）'!AF147:AV421,$D$6,TRUE) -> 8 | L160: 2018-02-21
A161: 0.8127283811 | B161: 145 | C161: 0.8127283811 | D161: 145 | E161: 0.02862256183 | F161: 0.1134291639 | G161: 0.02862256183 | H161: =VLOOKUP($B161,'気象データ（出芽期予測用）'!$B$4:$P$278,$D$6,TRUE) -> 3.3 | I161: =VLOOKUP($B161,'気象データ（出芽期予測用）'!Q148:AE422,$D$6,TRUE) -> -3 | J161: =VLOOKUP($B161,'気象データ（出芽期予測用）'!AW148:BM422,$D$6,TRUE) -> 13.4 | K161: =VLOOKUP($B161,'気象データ（出芽期予測用）'!AF148:AV422,$D$6,TRUE) -> 9.2 | L161: 2018-02-22
A162: 0.8420078854 | B162: 146 | C162: 0.8420078854 | D162: 146 | E162: 0.02927950438 | F162: 0.08302008539 | G162: 0.02927950438 | H162: =VLOOKUP($B162,'気象データ（出芽期予測用）'!$B$4:$P$278,$D$6,TRUE) -> 3.4 | I162: =VLOOKUP($B162,'気象データ（出芽期予測用）'!Q149:AE423,$D$6,TRUE) -> -2.9 | J162: =VLOOKUP($B162,'気象データ（出芽期予測用）'!AW149:BM423,$D$6,TRUE) -> 10.2 | K162: =VLOOKUP($B162,'気象データ（出芽期予測用）'!AF149:AV423,$D$6,TRUE) -> 6 | L162: 2018-02-23
A163: 0.8719469123 | B163: 147 | C163: 0.8719469123 | D163: 147 | E163: 0.02993902688 | F163: 0.06848135814 | G163: 0.02993902688 | H163: =VLOOKUP($B163,'気象データ（出芽期予測用）'!$B$4:$P$278,$D$6,TRUE) -> 3.5 | I163: =VLOOKUP($B163,'気象データ（出芽期予測用）'!Q150:AE424,$D$6,TRUE) -> -2.8 | J163: =VLOOKUP($B163,'気象データ（出芽期予測用）'!AW150:BM424,$D$6,TRUE) -> 8.8 | K163: =VLOOKUP($B163,'気象データ（出芽期予測用）'!AF150:AV424,$D$6,TRUE) -> 2.3 | L163: 2018-02-24
A164: 0.9033417504 | B164: 148 | C164: 0.9033417504 | D164: 148 | E164: 0.03139483804 | F164: 0.0785167267 | G164: 0.03139483804 | H164: =VLOOKUP($B164,'気象データ（出芽期予測用）'!$B$4:$P$278,$D$6,TRUE) -> 3.7 | I164: =VLOOKUP($B164,'気象データ（出芽期予測用）'!Q151:AE425,$D$6,TRUE) -> -2.7 | J164: =VLOOKUP($B164,'気象データ（出芽期予測用）'!AW151:BM425,$D$6,TRUE) -> 9.9 | K164: =VLOOKUP($B164,'気象データ（出芽期予測用）'!AF151:AV425,$D$6,TRUE) -> 4.5 | L164: 2018-02-25
A165: 0.9354002634 | B165: 149 | C165: 0.9354002634 | D165: 149 | E165: 0.03205851301 | F165: 0.07613438493 | G165: 0.03205851301 | H165: =VLOOKUP($B165,'気象データ（出芽期予測用）'!$B$4:$P$278,$D$6,TRUE) -> 3.8 | I165: =VLOOKUP($B165,'気象データ（出芽期予測用）'!Q152:AE426,$D$6,TRUE) -> -2.6 | J165: =VLOOKUP($B165,'気象データ（出芽期予測用）'!AW152:BM426,$D$6,TRUE) -> 8.9 | K165: =VLOOKUP($B165,'気象データ（出芽期予測用）'!AF152:AV426,$D$6,TRUE) -> 7.3 | L165: 2018-02-26
A166: 0.9681250313 | B166: 150 | C166: 0.9681250313 | D166: 150 | E166: 0.03272476793 | F166: 0.04945539111 | G166: 0.03272476793 | H166: =VLOOKUP($B166,'気象データ（出芽期予測用）'!$B$4:$P$278,$D$6,TRUE) -> 3.9 | I166: =VLOOKUP($B166,'気象データ（出芽期予測用）'!Q153:AE427,$D$6,TRUE) -> -2.5 | J166: =VLOOKUP($B166,'気象データ（出芽期予測用）'!AW153:BM427,$D$6,TRUE) -> 6.3 | K166: =VLOOKUP($B166,'気象データ（出芽期予測用）'!AF153:AV427,$D$6,TRUE) -> 1.9 | L166: 2018-02-27
A167: 1.001518634 | B167: 151 | C167: 1.001518634 | D167: 151 | E167: 0.0333936028 | F167: 0.04315982596 | G167: 0.0333936028 | H167: =VLOOKUP($B167,'気象データ（出芽期予測用）'!$B$4:$P$278,$D$6,TRUE) -> 4 | I167: =VLOOKUP($B167,'気象データ（出芽期予測用）'!Q154:AE428,$D$6,TRUE) -> -2.4 | J167: =VLOOKUP($B167,'気象データ（出芽期予測用）'!AW154:BM428,$D$6,TRUE) -> 5.5 | K167: =VLOOKUP($B167,'気象データ（出芽期予測用）'!AF154:AV428,$D$6,TRUE) -> 0.5 | L167: 2018-02-28
A168: 2 | B168: 152 | C168: 1.035583652 | D168: 152 | E168: 0.03406501763 | F168: 0.08041245526 | G168: 0.03406501763 | H168: =VLOOKUP($B168,'気象データ（出芽期予測用）'!$B$4:$P$278,$D$6,TRUE) -> 4.1 | I168: =VLOOKUP($B168,'気象データ（出芽期予測用）'!Q155:AE429,$D$6,TRUE) -> -2.3 | J168: =VLOOKUP($B168,'気象データ（出芽期予測用）'!AW155:BM429,$D$6,TRUE) -> 9.6 | K168: =VLOOKUP($B168,'気象データ（出芽期予測用）'!AF155:AV429,$D$6,TRUE) -> 6.9 | L168: 2018-03-01
A169: 2 | B169: 153 | C169: 1.070437341 | D169: 153 | E169: 0.03485368917 | F169: 0.08917936142 | G169: 0.03485368917 | H169: =VLOOKUP($B169,'気象データ（出芽期予測用）'!$B$4:$P$278,$D$6,TRUE) -> 4.2 | I169: =VLOOKUP($B169,'気象データ（出芽期予測用）'!Q156:AE430,$D$6,TRUE) -> -2.3 | J169: =VLOOKUP($B169,'気象データ（出芽期予測用）'!AW156:BM430,$D$6,TRUE) -> 11 | K169: =VLOOKUP($B169,'気象データ（出芽期予測用）'!AF156:AV430,$D$6,TRUE) -> 6.2 | L169: 2018-03-02
A170: 2 | B170: 154 | C170: 1.105964017 | D170: 154 | E170: 0.03552667651 | F170: 0.07281264475 | G170: 0.03552667651 | H170: =VLOOKUP($B170,'気象データ（出芽期予測用）'!$B$4:$P$278,$D$6,TRUE) -> 4.3 | I170: =VLOOKUP($B170,'気象データ（出芽期予測用）'!Q157:AE431,$D$6,TRUE) -> -2.2 | J170: =VLOOKUP($B170,'気象データ（出芽期予測用）'!AW157:BM431,$D$6,TRUE) -> 8.6 | K170: =VLOOKUP($B170,'気象データ（出芽期予測用）'!AF157:AV431,$D$6,TRUE) -> 6.8 | L170: 2018-03-03
A171: 2 | B171: 155 | C171: 1.142166261 | D171: 155 | E171: 0.03620224381 | F171: 0.07826895762 | G171: 0.03620224381 | H171: =VLOOKUP($B171,'気象データ（出芽期予測用）'!$B$4:$P$278,$D$6,TRUE) -> 4.4 | I171: =VLOOKUP($B171,'気象データ（出芽期予測用）'!Q158:AE432,$D$6,TRUE) -> -2.1 | J171: =VLOOKUP($B171,'気象データ（出芽期予測用）'!AW158:BM432,$D$6,TRUE) -> 9.9 | K171: =VLOOKUP($B171,'気象データ（出芽期予測用）'!AF158:AV432,$D$6,TRUE) -> 4.3 | L171: 2018-03-04
A172: 2 | B172: 156 | C172: 1.179046652 | D172: 156 | E172: 0.03688039106 | F172: 0.08913125713 | G172: 0.03688039106 | H172: =VLOOKUP($B172,'気象データ（出芽期予測用）'!$B$4:$P$278,$D$6,TRUE) -> 4.5 | I172: =VLOOKUP($B172,'気象データ（出芽期予測用）'!Q159:AE433,$D$6,TRUE) -> -2 | J172: =VLOOKUP($B172,'気象データ（出芽期予測用）'!AW159:BM433,$D$6,TRUE) -> 10.3 | K172: =VLOOKUP($B172,'気象データ（出芽期予測用）'!AF159:AV433,$D$6,TRUE) -> 8.4 | L172: 2018-03-05
A173: 2 | B173: 157 | C173: 1.216607771 | D173: 157 | E173: 0.03756111826 | F173: 0.0722055478 | G173: 0.03756111826 | H173: =VLOOKUP($B173,'気象データ（出芽期予測用）'!$B$4:$P$278,$D$6,TRUE) -> 4.6 | I173: =VLOOKUP($B173,'気象データ（出芽期予測用）'!Q160:AE434,$D$6,TRUE) -> -1.9 | J173: =VLOOKUP($B173,'気象データ（出芽期予測用）'!AW160:BM434,$D$6,TRUE) -> 8.8 | K173: =VLOOKUP($B173,'気象データ（出芽期予測用）'!AF160:AV434,$D$6,TRUE) -> 5.7 | L173: 2018-03-06
A174: 2 | B174: 158 | C174: 1.254852196 | D174: 158 | E174: 0.03824442542 | F174: 0.06348679204 | G174: 0.03824442542 | H174: =VLOOKUP($B174,'気象データ（出芽期予測用）'!$B$4:$P$278,$D$6,TRUE) -> 4.7 | I174: =VLOOKUP($B174,'気象データ（出芽期予測用）'!Q161:AE435,$D$6,TRUE) -> -1.8 | J174: =VLOOKUP($B174,'気象データ（出芽期予測用）'!AW161:BM435,$D$6,TRUE) -> 8.1 | K174: =VLOOKUP($B174,'気象データ（出芽期予測用）'!AF161:AV435,$D$6,TRUE) -> 2.7 | L174: 2018-03-07
A175: 2 | B175: 159 | C175: 1.293879248 | D175: 159 | E175: 0.03902705235 | F175: 0.07071988133 | G175: 0.03902705235 | H175: =VLOOKUP($B175,'気象データ（出芽期予測用）'!$B$4:$P$278,$D$6,TRUE) -> 4.8 | I175: =VLOOKUP($B175,'気象データ（出芽期予測用）'!Q162:AE436,$D$6,TRUE) -> -1.8 | J175: =VLOOKUP($B175,'気象データ（出芽期予測用）'!AW162:BM436,$D$6,TRUE) -> 8.6 | K175: =VLOOKUP($B175,'気象データ（出芽期予測用）'!AF162:AV436,$D$6,TRUE) -> 5.7 | L175: 2018-03-08
A176: 2 | B176: 160 | C176: 1.333498028 | D176: 160 | E176: 0.03961877959 | F176: 0.07886347381 | G176: 0.03961877959 | H176: =VLOOKUP($B176,'気象データ（出芽期予測用）'!$B$4:$P$278,$D$6,TRUE) -> 4.9 | I176: =VLOOKUP($B176,'気象データ（出芽期予測用）'!Q163:AE437,$D$6,TRUE) -> -1.6 | J176: =VLOOKUP($B176,'気象データ（出芽期予測用）'!AW163:BM437,$D$6,TRUE) -> 9.3 | K176: =VLOOKUP($B176,'気象データ（出芽期予測用）'!AF163:AV437,$D$6,TRUE) -> 7.2 | L176: 2018-03-09
A177: 2 | B177: 161 | C177: 1.373807854 | D177: 161 | E177: 0.0403098266 | F177: 0.1106430574 | G177: 0.0403098266 | H177: =VLOOKUP($B177,'気象データ（出芽期予測用）'!$B$4:$P$278,$D$6,TRUE) -> 5 | I177: =VLOOKUP($B177,'気象データ（出芽期予測用）'!Q164:AE438,$D$6,TRUE) -> -1.5 | J177: =VLOOKUP($B177,'気象データ（出芽期予測用）'!AW164:BM438,$D$6,TRUE) -> 12.6 | K177: =VLOOKUP($B177,'気象データ（出芽期予測用）'!AF164:AV438,$D$6,TRUE) -> 10.1 | L177: 2018-03-10
A178: 2 | B178: 162 | C178: 1.414811308 | D178: 162 | E178: 0.04100345357 | F178: 0.1421423017 | G178: 0.04100345357 | H178: =VLOOKUP($B178,'気象データ（出芽期予測用）'!$B$4:$P$278,$D$6,TRUE) -> 5.1 | I178: =VLOOKUP($B178,'気象データ（出芽期予測用）'!Q165:AE439,$D$6,TRUE) -> -1.4 | J178: =VLOOKUP($B178,'気象データ（出芽期予測用）'!AW165:BM439,$D$6,TRUE) -> 15.7 | K178: =VLOOKUP($B178,'気象データ（出芽期予測用）'!AF165:AV439,$D$6,TRUE) -> 12.8 | L178: 2018-03-11
A179: 2 | B179: 163 | C179: 1.457288558 | D179: 163 | E179: 0.04247725024 | F179: 0.1317705623 | G179: 0.04247725024 | H179: =VLOOKUP($B179,'気象データ（出芽期予測用）'!$B$4:$P$278,$D$6,TRUE) -> 5.3 | I179: =VLOOKUP($B179,'気象データ（出芽期予測用）'!Q166:AE440,$D$6,TRUE) -> -1.3 | J179: =VLOOKUP($B179,'気象データ（出芽期予測用）'!AW166:BM440,$D$6,TRUE) -> 16 | K179: =VLOOKUP($B179,'気象データ（出芽期予測用）'!AF166:AV440,$D$6,TRUE) -> 9.4 | L179: 2018-03-12
A180: 2 | B180: 164 | C180: 1.500388372 | D180: 164 | E180: 0.04309981418 | F180: 0.08215851399 | G180: 0.04309981418 | H180: =VLOOKUP($B180,'気象データ（出芽期予測用）'!$B$4:$P$278,$D$6,TRUE) -> 5.4 | I180: =VLOOKUP($B180,'気象データ（出芽期予測用）'!Q167:AE441,$D$6,TRUE) -> -1.1 | J180: =VLOOKUP($B180,'気象データ（出芽期予測用）'!AW167:BM441,$D$6,TRUE) -> 10.2 | K180: =VLOOKUP($B180,'気象データ（出芽期予測用）'!AF167:AV441,$D$6,TRUE) -> 5.5 | L180: 2018-03-13
A181: 2 | B181: 165 | C181: 1.544966701 | D181: 165 | E181: 0.04457832841 | F181: 0.1044898593 | G181: 0.04457832841 | H181: =VLOOKUP($B181,'気象データ（出芽期予測用）'!$B$4:$P$278,$D$6,TRUE) -> 5.6 | I181: =VLOOKUP($B181,'気象データ（出芽期予測用）'!Q168:AE442,$D$6,TRUE) -> -1 | J181: =VLOOKUP($B181,'気象データ（出芽期予測用）'!AW168:BM442,$D$6,TRUE) -> 12.8 | K181: =VLOOKUP($B181,'気象データ（出芽期予測用）'!AF168:AV442,$D$6,TRUE) -> 7.4 | L181: 2018-03-14
A182: 2 | B182: 166 | C182: 1.590186095 | D182: 166 | E182: 0.04521939437 | F182: 0.05523608138 | G182: 0.04521939437 | H182: =VLOOKUP($B182,'気象データ（出芽期予測用）'!$B$4:$P$278,$D$6,TRUE) -> 5.7 | I182: =VLOOKUP($B182,'気象データ（出芽期予測用）'!Q169:AE443,$D$6,TRUE) -> -0.8 | J182: =VLOOKUP($B182,'気象データ（出芽期予測用）'!AW169:BM443,$D$6,TRUE) -> 6.9 | K182: =VLOOKUP($B182,'気象データ（出芽期予測用）'!AF169:AV443,$D$6,TRUE) -> 3.7 | L182: 2018-03-15
A183: 2 | B183: 167 | C183: 1.636888721 | D183: 167 | E183: 0.04670262615 | F183: 0.05268087683 | G183: 0.04670262615 | H183: =VLOOKUP($B183,'気象データ（出芽期予測用）'!$B$4:$P$278,$D$6,TRUE) -> 5.9 | I183: =VLOOKUP($B183,'気象データ（出芽期予測用）'!Q170:AE444,$D$6,TRUE) -> -0.7 | J183: =VLOOKUP($B183,'気象データ（出芽期予測用）'!AW170:BM444,$D$6,TRUE) -> 6.7 | K183: =VLOOKUP($B183,'気象データ（出芽期予測用）'!AF170:AV444,$D$6,TRUE) -> 2.3 | L183: 2018-03-16
A184: 2 | B184: 168 | C184: 1.684250916 | D184: 168 | E184: 0.04736219414 | F184: 0.05696703591 | G184: 0.04736219414 | H184: =VLOOKUP($B184,'気象データ（出芽期予測用）'!$B$4:$P$278,$D$6,TRUE) -> 6 | I184: =VLOOKUP($B184,'気象データ（出芽期予測用）'!Q171:AE445,$D$6,TRUE) -> -0.5 | J184: =VLOOKUP($B184,'気象データ（出芽期予測用）'!AW171:BM445,$D$6,TRUE) -> 7.3 | K184: =VLOOKUP($B184,'気象データ（出芽期予測用）'!AF171:AV445,$D$6,TRUE) -> 1.5 | L184: 2018-03-17
A185: 2 | B185: 169 | C185: 1.733054543 | D185: 169 | E185: 0.04880362708 | F185: 0.05054524033 | G185: 0.04880362708 | H185: =VLOOKUP($B185,'気象データ（出芽期予測用）'!$B$4:$P$278,$D$6,TRUE) -> 6.2 | I185: =VLOOKUP($B185,'気象データ（出芽期予測用）'!Q172:AE446,$D$6,TRUE) -> -0.3 | J185: =VLOOKUP($B185,'気象データ（出芽期予測用）'!AW172:BM446,$D$6,TRUE) -> 6.4 | K185: =VLOOKUP($B185,'気象データ（出芽期予測用）'!AF172:AV446,$D$6,TRUE) -> -0.7 | L185: 2018-03-18
A186: 2 | B186: 170 | C186: 1.782582756 | D186: 170 | E186: 0.04952821348 | F186: 0.0897134067 | G186: 0.04952821348 | H186: =VLOOKUP($B186,'気象データ（出芽期予測用）'!$B$4:$P$278,$D$6,TRUE) -> 6.3 | I186: =VLOOKUP($B186,'気象データ（出芽期予測用）'!Q173:AE447,$D$6,TRUE) -> -0.2 | J186: =VLOOKUP($B186,'気象データ（出芽期予測用）'!AW173:BM447,$D$6,TRUE) -> 11.5 | K186: =VLOOKUP($B186,'気象データ（出芽期予測用）'!AF173:AV447,$D$6,TRUE) -> 4.2 | L186: 2018-03-19
A187: 2 | B187: 171 | C187: 1.832802382 | D187: 171 | E187: 0.05021962561 | F187: 0.1130655796 | G187: 0.05021962561 | H187: =VLOOKUP($B187,'気象データ（出芽期予測用）'!$B$4:$P$278,$D$6,TRUE) -> 6.4 | I187: =VLOOKUP($B187,'気象データ（出芽期予測用）'!Q174:AE448,$D$6,TRUE) -> 0 | J187: =VLOOKUP($B187,'気象データ（出芽期予測用）'!AW174:BM448,$D$6,TRUE) -> 14.4 | K187: =VLOOKUP($B187,'気象データ（出芽期予測用）'!AF174:AV448,$D$6,TRUE) -> 6.2 | L187: 2018-03-20
A188: 2 | B188: 172 | C188: 1.884519834 | D188: 172 | E188: 0.0517174524 | F188: 0.1077835702 | G188: 0.0517174524 | H188: =VLOOKUP($B188,'気象データ（出芽期予測用）'!$B$4:$P$278,$D$6,TRUE) -> 6.6 | I188: =VLOOKUP($B188,'気象データ（出芽期予測用）'!Q175:AE449,$D$6,TRUE) -> 0.1 | J188: =VLOOKUP($B188,'気象データ（出芽期予測用）'!AW175:BM449,$D$6,TRUE) -> 13.4 | K188: =VLOOKUP($B188,'気象データ（出芽期予測用）'!AF175:AV449,$D$6,TRUE) -> 7 | L188: 2018-03-21
A189: 2 | B189: 173 | C189: 1.936947201 | D189: 173 | E189: 0.05242736655 | F189: 0.09162650364 | G189: 0.05242736655 | H189: =VLOOKUP($B189,'気象データ（出芽期予測用）'!$B$4:$P$278,$D$6,TRUE) -> 6.7 | I189: =VLOOKUP($B189,'気象データ（出芽期予測用）'!Q176:AE450,$D$6,TRUE) -> 0.3 | J189: =VLOOKUP($B189,'気象データ（出芽期予測用）'!AW176:BM450,$D$6,TRUE) -> 11.8 | K189: =VLOOKUP($B189,'気象データ（出芽期予測用）'!AF176:AV450,$D$6,TRUE) -> 4 | L189: 2018-03-22
A190: 2 | B190: 174 | C190: 1.990115641 | D190: 174 | E190: 0.0531684401 | F190: 0.1290658815 | G190: 0.0531684401 | H190: =VLOOKUP($B190,'気象データ（出芽期予測用）'!$B$4:$P$278,$D$6,TRUE) -> 6.8 | I190: =VLOOKUP($B190,'気象データ（出芽期予測用）'!Q177:AE451,$D$6,TRUE) -> 0.4 | J190: =VLOOKUP($B190,'気象データ（出芽期予測用）'!AW177:BM451,$D$6,TRUE) -> 15.9 | K190: =VLOOKUP($B190,'気象データ（出芽期予測用）'!AF177:AV451,$D$6,TRUE) -> 8.7 | L190: 2018-03-23
A191: 2 | B191: 175 | C191: 2.044027734 | D191: 175 | E191: 0.05391209361 | F191: 0.08613610632 | G191: 0.05391209361 | H191: =VLOOKUP($B191,'気象データ（出芽期予測用）'!$B$4:$P$278,$D$6,TRUE) -> 6.9 | I191: =VLOOKUP($B191,'気象データ（出芽期予測用）'!Q178:AE452,$D$6,TRUE) -> 0.5 | J191: =VLOOKUP($B191,'気象データ（出芽期予測用）'!AW178:BM452,$D$6,TRUE) -> 10.1 | K191: =VLOOKUP($B191,'気象データ（出芽期予測用）'!AF178:AV452,$D$6,TRUE) -> 7.8 | L191: 2018-03-24
A192: 2 | B192: 176 | C192: 2.099445517 | D192: 176 | E192: 0.05541778298 | F192: 0.05817491105 | G192: 0.05541778298 | H192: =VLOOKUP($B192,'気象データ（出芽期予測用）'!$B$4:$P$278,$D$6,TRUE) -> 7.1 | I192: =VLOOKUP($B192,'気象データ（出芽期予測用）'!Q179:AE453,$D$6,TRUE) -> 0.6 | J192: =VLOOKUP($B192,'気象データ（出芽期予測用）'!AW179:BM453,$D$6,TRUE) -> 7.3 | K192: =VLOOKUP($B192,'気象データ（出芽期予測用）'!AF179:AV453,$D$6,TRUE) -> 3.6 | L192: 2018-03-25
A193: 2 | B193: 177 | C193: 2.155604051 | D193: 177 | E193: 0.05615853384 | F193: 0.06147246946 | G193: 0.05615853384 | H193: =VLOOKUP($B193,'気象データ（出芽期予測用）'!$B$4:$P$278,$D$6,TRUE) -> 7.2 | I193: =VLOOKUP($B193,'気象データ（出芽期予測用）'!Q180:AE454,$D$6,TRUE) -> 0.8 | J193: =VLOOKUP($B193,'気象データ（出芽期予測用）'!AW180:BM454,$D$6,TRUE) -> 7.9 | K193: =VLOOKUP($B193,'気象データ（出芽期予測用）'!AF180:AV454,$D$6,TRUE) -> 1.4 | L193: 2018-03-26
A194: 2 | B194: 178 | C194: 2.213272992 | D194: 178 | E194: 0.05766894077 | F194: 0.09580338442 | G194: 0.05766894077 | H194: =VLOOKUP($B194,'気象データ（出芽期予測用）'!$B$4:$P$278,$D$6,TRUE) -> 7.4 | I194: =VLOOKUP($B194,'気象データ（出芽期予測用）'!Q181:AE455,$D$6,TRUE) -> 0.9 | J194: =VLOOKUP($B194,'気象データ（出芽期予測用）'!AW181:BM455,$D$6,TRUE) -> 12.1 | K194: =VLOOKUP($B194,'気象データ（出芽期予測用）'!AF181:AV455,$D$6,TRUE) -> 5.5 | L194: 2018-03-27
A195: 2 | B195: 179 | C195: 2.271697479 | D195: 179 | E195: 0.0584244866 | F195: 0.1297356757 | G195: 0.0584244866 | H195: =VLOOKUP($B195,'気象データ（出芽期予測用）'!$B$4:$P$278,$D$6,TRUE) -> 7.5 | I195: =VLOOKUP($B195,'気象データ（出芽期予測用）'!Q182:AE456,$D$6,TRUE) -> 1 | J195: =VLOOKUP($B195,'気象データ（出芽期予測用）'!AW182:BM456,$D$6,TRUE) -> 16 | K195: =VLOOKUP($B195,'気象データ（出芽期予測用）'!AF182:AV456,$D$6,TRUE) -> 8.7 | L195: 2018-03-28
A196: 2 | B196: 180 | C196: 2.331633502 | D196: 180 | E196: 0.05993602369 | F196: 0.1179787019 | G196: 0.05993602369 | H196: =VLOOKUP($B196,'気象データ（出芽期予測用）'!$B$4:$P$278,$D$6,TRUE) -> 7.7 | I196: =VLOOKUP($B196,'気象データ（出芽期予測用）'!Q183:AE457,$D$6,TRUE) -> 1.1 | J196: =VLOOKUP($B196,'気象データ（出芽期予測用）'!AW183:BM457,$D$6,TRUE) -> 14.5 | K196: =VLOOKUP($B196,'気象データ（出芽期予測用）'!AF183:AV457,$D$6,TRUE) -> 8.1 | L196: 2018-03-29
A197: 2 | B197: 181 | C197: 2.393080621 | D197: 181 | E197: 0.06144711843 | F197: 0.04680449377 | G197: 0.06144711843 | H197: =VLOOKUP($B197,'気象データ（出芽期予測用）'!$B$4:$P$278,$D$6,TRUE) -> 7.9 | I197: =VLOOKUP($B197,'気象データ（出芽期予測用）'!Q184:AE458,$D$6,TRUE) -> 1.2 | J197: =VLOOKUP($B197,'気象データ（出芽期予測用）'!AW184:BM458,$D$6,TRUE) -> 5.8 | K197: =VLOOKUP($B197,'気象データ（出芽期予測用）'!AF184:AV458,$D$6,TRUE) -> 3.7 | L197: 2018-03-30
A198: 2 | B198: 182 | C198: 2.456052861 | D198: 182 | E198: 0.06297224003 | F198: 0.07255091478 | G198: 0.06297224003 | H198: =VLOOKUP($B198,'気象データ（出芽期予測用）'!$B$4:$P$278,$D$6,TRUE) -> 8.1 | I198: =VLOOKUP($B198,'気象データ（出芽期予測用）'!Q185:AE459,$D$6,TRUE) -> 1.4 | J198: =VLOOKUP($B198,'気象データ（出芽期予測用）'!AW185:BM459,$D$6,TRUE) -> 8.7 | K198: =VLOOKUP($B198,'気象データ（出芽期予測用）'!AF185:AV459,$D$6,TRUE) -> 6.3 | L198: 2018-03-31
A199: =IF(C199=0,0, IF(A198>1,2,C199)) -> 2 | B199: 183 | C199: 2.520560542 | D199: 183 | E199: 0.06450768144 | F199: 0.08807369825 | G199: 0.06450768144 | H199: =VLOOKUP($B199,'気象データ（出芽期予測用）'!$B$4:$P$278,$D$6,TRUE) -> 8.3 | I199: =VLOOKUP($B199,'気象データ（出芽期予測用）'!Q186:AE460,$D$6,TRUE) -> 1.6 | J199: =VLOOKUP($B199,'気象データ（出芽期予測用）'!AW186:BM460,$D$6,TRUE) -> 10.4 | K199: =VLOOKUP($B199,'気象データ（出芽期予測用）'!AF186:AV460,$D$6,TRUE) -> 7.7 | L199: 2018-04-01
A200: 2 | B200: 184 | C200: 2.586613985 | D200: 184 | E200: 0.06605344266 | F200: 0.1134986243 | G200: 0.06605344266 | H200: =VLOOKUP($B200,'気象データ（出芽期予測用）'!$B$4:$P$278,$D$6,TRUE) -> 8.5 | I200: =VLOOKUP($B200,'気象データ（出芽期予測用）'!Q187:AE461,$D$6,TRUE) -> 1.8 | J200: =VLOOKUP($B200,'気象データ（出芽期予測用）'!AW187:BM461,$D$6,TRUE) -> 13.1 | K200: =VLOOKUP($B200,'気象データ（出芽期予測用）'!AF187:AV461,$D$6,TRUE) -> 9.9 | L200: 2018-04-02
A201: 2 | B201: 185 | C201: 2.654223509 | D201: 185 | E201: 0.06760952369 | F201: 0.1037003885 | G201: 0.06760952369 | H201: =VLOOKUP($B201,'気象データ（出芽期予測用）'!$B$4:$P$278,$D$6,TRUE) -> 8.7 | I201: =VLOOKUP($B201,'気象データ（出芽期予測用）'!Q188:AE462,$D$6,TRUE) -> 2 | J201: =VLOOKUP($B201,'気象データ（出芽期予測用）'!AW188:BM462,$D$6,TRUE) -> 13.1 | K201: =VLOOKUP($B201,'気象データ（出芽期予測用）'!AF188:AV462,$D$6,TRUE) -> 6 | L201: 2018-04-03
A202: 2 | B202: 186 | C202: 2.723399433 | D202: 186 | E202: 0.06917592453 | F202: 0.09293995296 | G202: 0.06917592453 | H202: =VLOOKUP($B202,'気象データ（出芽期予測用）'!$B$4:$P$278,$D$6,TRUE) -> 8.9 | I202: =VLOOKUP($B202,'気象データ（出芽期予測用）'!Q189:AE463,$D$6,TRUE) -> 2.2 | J202: =VLOOKUP($B202,'気象データ（出芽期予測用）'!AW189:BM463,$D$6,TRUE) -> 12 | K202: =VLOOKUP($B202,'気象データ（出芽期予測用）'!AF189:AV463,$D$6,TRUE) -> 3.9 | L202: 2018-04-04
A203: 2 | B203: 187 | C203: 2.794206009 | D203: 187 | E203: 0.07080657565 | F203: 0.1413136349 | G203: 0.07080657565 | H203: =VLOOKUP($B203,'気象データ（出芽期予測用）'!$B$4:$P$278,$D$6,TRUE) -> 9.1 | I203: =VLOOKUP($B203,'気象データ（出芽期予測用）'!Q190:AE464,$D$6,TRUE) -> 2.5 | J203: =VLOOKUP($B203,'気象データ（出芽期予測用）'!AW190:BM464,$D$6,TRUE) -> 16.3 | K203: =VLOOKUP($B203,'気象データ（出芽期予測用）'!AF190:AV464,$D$6,TRUE) -> 11.6 | L203: 2018-04-05
A204: 2 | B204: 188 | C204: 2.8666068 | D204: 188 | E204: 0.07240079089 | F204: 0.07753770989 | G204: 0.07240079089 | H204: =VLOOKUP($B204,'気象データ（出芽期予測用）'!$B$4:$P$278,$D$6,TRUE) -> 9.3 | I204: =VLOOKUP($B204,'気象データ（出芽期予測用）'!Q191:AE465,$D$6,TRUE) -> 2.7 | J204: =VLOOKUP($B204,'気象データ（出芽期予測用）'!AW191:BM465,$D$6,TRUE) -> 9.8 | K204: =VLOOKUP($B204,'気象データ（出芽期予測用）'!AF191:AV465,$D$6,TRUE) -> 4.3 | L204: 2018-04-06
A205: 2 | B205: 189 | C205: 2.940612126 | D205: 189 | E205: 0.07400532594 | F205: 0.08662322666 | G205: 0.07400532594 | H205: =VLOOKUP($B205,'気象データ（出芽期予測用）'!$B$4:$P$278,$D$6,TRUE) -> 9.5 | I205: =VLOOKUP($B205,'気象データ（出芽期予測用）'!Q192:AE466,$D$6,TRUE) -> 2.9 | J205: =VLOOKUP($B205,'気象データ（出芽期予測用）'!AW192:BM466,$D$6,TRUE) -> 11 | K205: =VLOOKUP($B205,'気象データ（出芽期予測用）'!AF192:AV466,$D$6,TRUE) -> 4.6 | L205: 2018-04-07
... 95 more rows

Sheet 使用法
N2: 予測実施日 | Q2: 2020-01-08
B3: 出芽期から予測
B5: 予測地域 | D5: 地名コード | N5: 予測値
B6: 水戸 | D6: G | N6: 播 種 期: | P6: - | Q6: -
N7: 出 芽 期: | P7: 2002-11-15 | Q7: 2002-11-15
B8: 出芽期 | N8: 茎 立 期: | P8: 2003-03-15 | Q8: 2003-03-15 | U8: 平年比
B9: 月 | C9: 日 | N9: 出 穂 期: | P9: 2003-04-23 | Q9: 2003-04-23 | U9: 0 | V9: ℃
B10: 11 | C10: 15 | N10: 成 熟 期: | P10: 2003-06-14 | Q10: 2003-06-14 | U10: で推移した場合
B12: 月･日 | C12: 出芽後 日数 | D12: 出芽後 | E12: 日長(時間) | H12: 予測する本年の気温(出芽期～予測日)と生育値 | L12: 判 定 | P12: 月･日 | Q12: 平年平均 気温(℃) (水戸地方気象台1981-2010) | R12: 本年 平均 気温 (℃) | S12: 予測用データ
D13: 日数 | F13: DVR1 | G13: DVR1積算 | H13: DVR2 | I13: DVR2積算 | J13: DVR3 | K13: DVR3積算 | L13: 出 芽 期 | M13: 茎立期 | N13: 出 穂 期 | O13: 成 熟 期
B14: 2002-10-15 | C14: 0 | D14: 0 | E14: 11.26513481 | G14: 0 | I14: 0 | K14: 0 | L14: - | M14: - | N14: - | O14: - | P14: 2002-10-15 | Q14: 16.3 | U14: 使用方法： ①予測の起点としたい生育ステージ(出芽期，茎立期，出穂期)によってシートを選択してください。 入力が必要なのは黄色の部分です。 ②予測地域を選択してください。予測したい圃場の最寄の気象観測地点を選びます。 ③起点としたい生育ステージ(播種期，出芽期，茎立期，出穂期)に達した日付を選択してください。予測できるのは10/15以降です。 ④判明している範囲の本年の日平均気温を入力してください。本年データが多いほうが，予測精度が増します。未入力部分は平年値を用いて自動的に計算されます。予測起点以前のデータも自動的に除外されて計算されます。｢クリア｣ボタンを押すと入力した気温データが消去されます｡ ⑤青い欄に予測結果が表示されます。 ⑥気温が平年より高く(低く)推移した場合を予測するには，平年比の欄に数値を入力することで，数値を反映した平年値で計算されます。 使用上の注意点: ①播種期からの予測は，出芽期からの予測よりも精度が劣りますので，出来るだけ出芽期を把握して予測に用いてください。 ②圃場が気温測定地点から離れていたり，気象経過が平年と大きく異なる，あるいは倒伏・湿害等による生育への影響が大きい場合には，予測の精度が劣る可能性があります。 ③予測日以降の気温が平年と異なる場合は誤差が拡大していくので，後日再度予測することで精度が高まります｡ ④出穂期，成熟期等の平年遅速は予測モデルに頼りすぎないで，現地の状況や研究所発行の生育状況などを勘案し，総合的に判断してください｡ ⑤うるう年には対応していません。うるう年で，予測結果が3月1日以降で表示された場合は，表示された日から1日引いた日が正しい予測日となります。
B15: 2002-10-16 | C15: 0 | D15: 0 | E15: 11.22772598 | G15: 0 | I15: 0 | K15: 0 | L15: - | M15: - | N15: - | O15: - | P15: 2002-10-16 | Q15: 16.1
B16: 2002-10-17 | C16: 0 | D16: 0 | E16: 11.19043636 | G16: 0 | I16: 0 | K16: 0 | L16: - | M16: - | N16: - | O16: - | P16: 2002-10-17 | Q16: 15.8
B17: 2002-10-18 | C17: 0 | D17: 0 | E17: 11.15327644 | G17: 0 | I17: 0 | K17: 0 | L17: - | M17: - | N17: - | O17: - | P17: 2002-10-18 | Q17: 15.6
B18: 2002-10-19 | C18: 0 | D18: 0 | E18: 11.1162529 | G18: 0 | I18: 0 | K18: 0 | L18: - | M18: - | N18: - | O18: - | P18: 2002-10-19 | Q18: 15.4
B19: 2002-10-20 | C19: 0 | D19: 0 | E19: 11.07937431 | G19: 0 | I19: 0 | K19: 0 | L19: - | M19: - | N19: - | O19: - | P19: 2002-10-20 | Q19: 15.2
B20: 2002-10-21 | C20: 0 | D20: 0 | E20: 11.04265022 | G20: 0 | I20: 0 | K20: 0 | L20: - | M20: - | N20: - | O20: - | P20: 2002-10-21 | Q20: 15
B21: 2002-10-22 | C21: 0 | D21: 0 | E21: 11.00609016 | G21: 0 | I21: 0 | K21: 0 | L21: - | M21: - | N21: - | O21: - | P21: 2002-10-22 | Q21: 14.8
B22: 2002-10-23 | C22: 0 | D22: 0 | E22: 10.96970272 | G22: 0 | I22: 0 | K22: 0 | L22: - | M22: - | N22: - | O22: - | P22: 2002-10-23 | Q22: 14.5
B23: 2002-10-24 | C23: 0 | D23: 0 | E23: 10.93349838 | G23: 0 | I23: 0 | K23: 0 | L23: - | M23: - | N23: - | O23: - | P23: 2002-10-24 | Q23: 14.4
B24: 2002-10-25 | C24: 0 | D24: 0 | E24: 10.89748669 | G24: 0 | I24: 0 | K24: 0 | L24: - | M24: - | N24: - | O24: - | P24: 2002-10-25 | Q24: 14.2
B25: 2002-10-26 | C25: 0 | D25: 0 | E25: 10.86167908 | G25: 0 | I25: 0 | K25: 0 | L25: - | M25: - | N25: - | O25: - | P25: 2002-10-26 | Q25: 14
B26: 2002-10-27 | C26: 0 | D26: 0 | E26: 10.82608414 | G26: 0 | I26: 0 | K26: 0 | L26: - | M26: - | N26: - | O26: - | P26: 2002-10-27 | Q26: 13.8
B27: 2002-10-28 | C27: 0 | D27: 0 | E27: 10.79072 | G27: 0 | I27: 0 | K27: 0 | L27: - | M27: - | N27: - | O27: - | P27: 2002-10-28 | Q27: 13.7
B28: 2002-10-29 | C28: 0 | D28: 0 | E28: 10.75558 | G28: 0 | I28: 0 | K28: 0 | L28: - | M28: - | N28: - | O28: - | P28: 2002-10-29 | Q28: 13.5
B29: 2002-10-30 | C29: 0 | D29: 0 | E29: 10.7207 | G29: 0 | I29: 0 | K29: 0 | L29: - | M29: - | N29: - | O29: - | P29: 2002-10-30 | Q29: 13.4
B30: 2002-10-31 | C30: 0 | D30: 0 | E30: 10.68607 | G30: 0 | I30: 0 | K30: 0 | L30: - | M30: - | N30: - | O30: - | P30: 2002-10-31 | Q30: 13.2
B31: 2002-11-01 | C31: 0 | D31: 0 | E31: 10.65172 | G31: 0 | I31: 0 | K31: 0 | L31: - | M31: - | N31: - | O31: - | P31: 2002-11-01 | Q31: 13.1
B32: 2002-11-02 | C32: 0 | D32: 0 | E32: 10.61765 | G32: 0 | I32: 0 | K32: 0 | L32: - | M32: - | N32: - | O32: - | P32: 2002-11-02 | Q32: 12.9
B33: 2002-11-03 | C33: 0 | D33: 0 | E33: 10.58388 | G33: 0 | I33: 0 | K33: 0 | L33: - | M33: - | N33: - | O33: - | P33: 2002-11-03 | Q33: 12.8
B34: 2002-11-04 | C34: 0 | D34: 0 | E34: 10.55042 | G34: 0 | I34: 0 | K34: 0 | L34: - | M34: - | N34: - | O34: - | P34: 2002-11-04 | Q34: 12.6
B35: 2002-11-05 | C35: 0 | D35: 0 | E35: 10.51728821 | G35: 0 | I35: 0 | K35: 0 | L35: - | M35: - | N35: - | O35: - | P35: 2002-11-05 | Q35: 12.5
B36: 2002-11-06 | C36: 0 | D36: 0 | E36: 10.48449326 | G36: 0 | I36: 0 | K36: 0 | L36: - | M36: - | N36: - | O36: - | P36: 2002-11-06 | Q36: 12.3
B37: 2002-11-07 | C37: 0 | D37: 0 | E37: 10.45205116 | G37: 0 | I37: 0 | K37: 0 | L37: - | M37: - | N37: - | O37: - | P37: 2002-11-07 | Q37: 12.1
B38: 2002-11-08 | C38: 0 | D38: 0 | E38: 10.41997719 | G38: 0 | I38: 0 | K38: 0 | L38: - | M38: - | N38: - | O38: - | P38: 2002-11-08 | Q38: 12
B39: 2002-11-09 | C39: 0 | D39: 0 | E39: 10.38828659 | G39: 0 | I39: 0 | K39: 0 | L39: - | M39: - | N39: - | O39: - | P39: 2002-11-09 | Q39: 11.8
B40: 2002-11-10 | C40: 0 | D40: 0 | E40: 10.35699272 | G40: 0 | I40: 0 | K40: 0 | L40: - | M40: - | N40: - | O40: - | P40: 2002-11-10 | Q40: 11.6
B41: 2002-11-11 | C41: 0 | D41: 0 | E41: 10.32611275 | G41: 0 | I41: 0 | K41: 0 | L41: - | M41: - | N41: - | O41: - | P41: 2002-11-11 | Q41: 11.4
B42: 2002-11-12 | C42: 0 | D42: 0 | E42: 10.29566193 | G42: 0 | I42: 0 | K42: 0 | L42: - | M42: - | N42: - | O42: - | P42: 2002-11-12 | Q42: 11.1
B43: 2002-11-13 | C43: 0 | D43: 0 | E43: 10.26565647 | G43: 0 | I43: 0 | K43: 0 | L43: - | M43: - | N43: - | O43: - | P43: 2002-11-13 | Q43: 10.9
B44: 2002-11-14 | C44: 0 | D44: 0 | E44: 10.23611164 | G44: 0 | I44: 0 | K44: 0 | L44: - | M44: - | N44: - | O44: - | P44: 2002-11-14 | Q44: 10.7
B45: 2002-11-15 | C45: 0 | D45: 0 | E45: 10.2070446 | G45: 0 | I45: 0 | K45: 0 | L45: ◎ | M45: - | N45: - | O45: - | P45: 2002-11-15 | Q45: 10.5
B46: 2002-11-16 | C46: 1 | D46: 1 | E46: 10.17847252 | F46: 0.013156736 | G46: 0.013156736 | H46: 0.02665154013 | I46: 0 | J46: 0.003824226844 | K46: 0 | L46: - | M46: - | N46: - | O46: - | P46: 2002-11-16 | Q46: 10.2
B47: 2002-11-17 | C47: 2 | D47: 1 | E47: 10.15041161 | F47: 0.01277931415 | G47: 0.02593605015 | H47: 0.02552311357 | I47: 0 | J47: 0.003618881863 | K47: 0 | L47: - | M47: - | N47: - | O47: - | P47: 2002-11-17 | Q47: 10
B48: 2002-11-18 | C48: 3 | D48: 1 | E48: 10.12287998 | F48: 0.01240603134 | G48: 0.03834208149 | H48: 0.02441650857 | I48: 0 | J48: 0.003423824574 | K48: 0 | L48: - | M48: - | N48: - | O48: - | P48: 2002-11-18 | Q48: 9.8
B49: 2002-11-19 | C49: 4 | D49: 1 | E49: 10.09589291 | F49: 0.01196389757 | G49: 0.05030597906 | H49: 0.0228015306 | I49: 0 | J49: 0.003149573786 | K49: 0 | L49: - | M49: - | N49: - | O49: - | P49: 2002-11-19 | Q49: 9.5
B50: 2002-11-20 | C50: 5 | D50: 1 | E50: 10.0694685 | F50: 0.0115993208 | G50: 0.06190529986 | H50: 0.02175720086 | I50: 0 | J50: 0.002978344303 | K50: 0 | L50: - | M50: - | N50: - | O50: - | P50: 2002-11-20 | Q50: 9.3
B51: 2002-11-21 | C51: 6 | D51: 1 | E51: 10.04362488 | F51: 0.01123997432 | G51: 0.07314527418 | H51: 0.02074037111 | I51: 0 | J51: 0.002815917774 | K51: 0 | L51: - | M51: - | N51: - | O51: - | P51: 2002-11-21 | Q51: 9.1
B52: 2002-11-22 | C52: 7 | D52: 1 | E52: 10.01837826 | F52: 0.01088618126 | G52: 0.08403145544 | H52: 0.01975222897 | I52: 0 | J52: 0.002661895579 | K52: 0 | L52: - | M52: - | N52: - | O52: - | P52: 2002-11-22 | Q52: 8.9
B53: 2002-11-23 | C53: 8 | D53: 1 | E53: 9.993746758 | F53: 0.01061347136 | G53: 0.09464492679 | H53: 0.01926923352 | I53: 0 | J53: 0.002587914878 | K53: 0 | L53: - | M53: - | N53: - | O53: - | P53: 2002-11-23 | Q53: 8.8
B54: 2002-11-24 | C54: 9 | D54: 1 | E54: 9.969747543 | F54: 0.01027204497 | G54: 0.1049169718 | H54: 0.01832592397 | I54: 0 | J54: 0.002445778642 | K54: 0 | L54: - | M54: - | N54: - | O54: - | P54: 2002-11-24 | Q54: 8.6
B55: 2002-11-25 | C55: 10 | D55: 1 | E55: 9.946398735 | F55: 0.009937047612 | G55: 0.1148540194 | H55: 0.01741342562 | I55: 0 | J55: 0.002311104377 | K55: 0 | L55: - | M55: - | N55: - | O55: - | P55: 2002-11-25 | Q55: 8.4
B56: 2002-11-26 | C56: 11 | D56: 1 | E56: 9.923715591 | F56: 0.009683846122 | G56: 0.1245378655 | H56: 0.01696890119 | I56: 0 | J56: 0.002246454137 | K56: 0 | L56: - | M56: - | N56: - | O56: - | P56: 2002-11-26 | Q56: 8.3
B57: 2002-11-27 | C57: 12 | D57: 1 | E57: 9.90171814 | F57: 0.009362651652 | G57: 0.1339005171 | H57: 0.0161035461 | I57: 0 | J57: 0.002122311776 | K57: 0 | L57: - | M57: - | N57: - | O57: - | P57: 2002-11-27 | Q57: 8.1
B58: 2002-11-28 | C58: 13 | D58: 1 | E58: 9.880420685 | F58: 0.009123176096 | G58: 0.1430236932 | H58: 0.01568278127 | I58: 0 | J58: 0.0020627358 | K58: 0 | L58: - | M58: - | N58: - | O58: - | P58: 2002-11-28 | Q58: 8
B59: 2002-11-29 | C59: 14 | D59: 1 | E59: 9.859841347 | F59: 0.00881655264 | G59: 0.1518402459 | H59: 0.01486516584 | I59: 0 | J59: 0.001948370628 | K59: 0 | L59: - | M59: - | N59: - | O59: - | P59: 2002-11-29 | Q59: 7.8
B60: 2002-11-30 | C60: 15 | D60: 1 | E60: 9.839997292 | F60: 0.008591392718 | G60: 0.1604316386 | H60: 0.0144683218 | I60: 0 | J60: 0.001893502373 | K60: 0 | L60: - | M60: - | N60: - | O60: - | P60: 2002-11-30 | Q60: 7.7
B61: 2002-12-01 | C61: 16 | D61: 1 | E61: 9.820902824 | F61: 0.008299987861 | G61: 0.1687316265 | H61: 0.01369850951 | I61: 0 | J61: 0.001788202806 | K61: 0 | L61: - | M61: - | N61: - | O61: - | P61: 2002-12-01 | Q61: 7.5
B62: 2002-12-02 | C62: 17 | D62: 1 | E62: 9.802576065 | F62: 0.00808959919 | G62: 0.1768212257 | H62: 0.013325495 | I62: 0 | J62: 0.001737697159 | K62: 0 | L62: - | M62: - | N62: - | O62: - | P62: 2002-12-02 | Q62: 7.4
B63: 2002-12-03 | C63: 18 | D63: 1 | E63: 9.785032272 | F63: 0.00781392145 | G63: 0.1846351471 | H63: 0.01260307406 | I63: 0 | J63: 0.001640794101 | K63: 0 | L63: - | M63: - | N63: - | O63: - | P63: 2002-12-03 | Q63: 7.2
B64: 2002-12-04 | C64: 19 | D64: 1 | E64: 9.768284798 | F64: 0.007618633558 | G64: 0.1922537807 | H64: 0.01225357541 | I64: 0 | J64: 0.001594326965 | K64: 0 | L64: - | M64: - | N64: - | O64: - | P64: 2002-12-04 | Q64: 7.1
B65: 2002-12-05 | C65: 20 | D65: 1 | E65: 9.752350807 | F65: 0.007359002253 | G65: 0.1996127829 | H65: 0.01157772046 | I65: 0 | J65: 0.001505192804 | K65: 0 | L65: - | M65: - | N65: - | O65: - | P65: 2002-12-05 | Q65: 6.9
B66: 2002-12-06 | C66: 21 | D66: 1 | E66: 9.737242699 | F66: 0.007179013729 | G66: 0.2067917966 | H66: 0.01125123301 | I66: 0 | J66: 0.001462460524 | K66: 0 | L66: - | M66: - | N66: - | O66: - | P66: 2002-12-06 | Q66: 6.8
B67: 2002-12-07 | C67: 22 | D67: 1 | E67: 9.722975731 | F67: 0.006935590693 | G67: 0.2137273873 | H67: 0.01062076829 | I67: 0 | J67: 0.001380507866 | K67: 0 | L67: - | M67: - | N67: - | O67: - | P67: 2002-12-07 | Q67: 6.6
B68: 2002-12-08 | C68: 23 | D68: 1 | E68: 9.709562302 | F68: 0.006770946374 | G68: 0.2204983337 | H68: 0.01031662788 | I68: 0 | J68: 0.001341226539 | K68: 0 | L68: - | M68: - | N68: - | O68: - | P68: 2002-12-08 | Q68: 6.5
B69: 2002-12-09 | C69: 24 | D69: 1 | E69: 9.697014809 | F69: 0.00654371449 | G69: 0.2270420482 | H69: 0.009730089467 | I69: 0 | J69: 0.001265906731 | K69: 0 | L69: - | M69: - | N69: - | O69: - | P69: 2002-12-09 | Q69: 6.3
B70: 2002-12-10 | C70: 25 | D70: 1 | E70: 9.685344696 | F70: 0.006394294371 | G70: 0.2334363426 | H70: 0.009447502954 | I70: 0 | J70: 0.001229811427 | K70: 0 | L70: - | M70: - | N70: - | O70: - | P70: 2002-12-10 | Q70: 6.2
B71: 2002-12-11 | C71: 26 | D71: 1 | E71: 9.674565315 | F71: 0.00618306807 | G71: 0.2396194106 | H71: 0.008903198281 | I71: 0 | J71: 0.001160612933 | K71: 0 | L71: - | M71: - | N71: - | O71: - | P71: 2002-12-11 | Q71: 6
B72: 2002-12-12 | C72: 27 | D72: 1 | E72: 9.664684296 | F72: 0.006048618687 | G72: 0.2456680293 | H72: 0.008641272394 | I72: 0 | J72: 0.001127456855 | K72: 0 | L72: - | M72: - | N72: - | O72: - | P72: 2002-12-12 | Q72: 5.9
B73: 2002-12-13 | C73: 28 | D73: 1 | E73: 9.655714035 | F73: 0.005853025639 | G73: 0.251521055 | H73: 0.008137335645 | I73: 0 | J73: 0.001063903535 | K73: 0 | L73: - | M73: - | N73: - | O73: - | P73: 2002-12-13 | Q73: 5.7
B74: 2002-12-14 | C74: 29 | D74: 1 | E74: 9.647662163 | F74: 0.005665230069 | G74: 0.257186285 | H74: 0.007659211703 | I74: 0 | J74: 0.001003865813 | K74: 0 | L74: - | M74: - | N74: - | O74: - | P74: 2002-12-14 | Q74: 5.5
B75: 2002-12-15 | C75: 30 | D75: 1 | E75: 9.640536308 | F75: 0.005552654587 | G75: 0.2627389396 | H75: 0.007429545952 | I75: 0 | J75: 0.0009751064601 | K75: 0 | L75: - | M75: - | N75: - | O75: - | P75: 2002-12-15 | Q75: 5.4
B76: 2002-12-16 | C76: 31 | D76: 1 | E76: 9.634345055 | F76: 0.005379639743 | G76: 0.2681185794 | H76: 0.00698842958 | I76: 0 | J76: 0.000919994135 | K76: 0 | L76: - | M76: - | N76: - | O76: - | P76: 2002-12-16 | Q76: 5.2
B77: 2002-12-17 | C77: 32 | D77: 1 | E77: 9.629094124 | F77: 0.005280730182 | G77: 0.2733993095 | H77: 0.006776745696 | I77: 0 | J77: 0.0008935977837 | K77: 0 | L77: - | M77: - | N77: - | O77: - | P77: 2002-12-17 | Q77: 5.1
B78: 2002-12-18 | C78: 33 | D78: 1 | E78: 9.624789238 | F78: 0.005188220605 | G78: 0.2785875302 | H78: 0.006570821714 | I78: 0 | J78: 0.0008679466256 | K78: 0 | L78: - | M78: - | N78: - | O78: - | P78: 2002-12-18 | Q78: 5
B79: 2002-12-19 | C79: 34 | D79: 1 | E79: 9.621434212 | F79: 0.00503575803 | G79: 0.2836232882 | H79: 0.006175783403 | I79: 0 | J79: 0.0008187990119 | K79: 0 | L79: - | M79: - | N79: - | O79: - | P79: 2002-12-19 | Q79: 4.8
B80: 2002-12-20 | C80: 35 | D80: 1 | E80: 9.619033813 | F80: 0.004955811003 | G80: 0.2885790992 | H80: 0.005986434214 | I80: 0 | J80: 0.0007952633981 | K80: 0 | L80: - | M80: - | N80: - | O80: - | P80: 2002-12-20 | Q80: 4.7
B81: 2002-12-21 | C81: 36 | D81: 1 | E81: 9.617589951 | F81: 0.004881721593 | G81: 0.2934608208 | H81: 0.005802375549 | I81: 0 | J81: 0.0007723946396 | K81: 0 | L81: - | M81: - | N81: - | O81: - | P81: 2002-12-21 | Q81: 4.6
B82: 2002-12-22 | C82: 37 | D82: 1 | E82: 9.617105484 | F82: 0.004813312562 | G82: 0.2982741333 | H82: 0.005623490893 | I82: 0 | J82: 0.0007501743895 | K82: 0 | L82: - | M82: - | N82: - | O82: - | P82: 2002-12-22 | Q82: 4.5
B83: 2002-12-23 | C83: 38 | D83: 1 | E83: 9.617580414 | F83: 0.004750386884 | G83: 0.3030245202 | H83: 0.005449664365 | I83: 0 | J83: 0.0007285847744 | K83: 0 | L83: - | M83: - | N83: - | O83: - | P83: 2002-12-23 | Q83: 4.4
B84: 2002-12-24 | C84: 39 | D84: 1 | E84: 9.619013786 | F84: 0.004692739645 | G84: 0.3077172599 | H84: 0.005280780856 | I84: 0 | J84: 0.0007076083842 | K84: 0 | L84: - | M84: - | N84: - | O84: - | P84: 2002-12-24 | Q84: 4.3
B85: 2002-12-25 | C85: 40 | D85: 1 | E85: 9.621405602 | F85: 0.004640169091 | G85: 0.312357429 | H85: 0.005116726146 | I85: 0 | J85: 0.0006872282618 | K85: 0 | L85: - | M85: - | N85: - | O85: - | P85: 2002-12-25 | Q85: 4.2
B86: 2002-12-26 | C86: 41 | D86: 1 | E86: 9.624753952 | F86: 0.004658129401 | G86: 0.3170155584 | H86: 0.005116726146 | I86: 0 | J86: 0.0006872282618 | K86: 0 | L86: - | M86: - | N86: - | O86: - | P86: 2002-12-26 | Q86: 4.2
B87: 2002-12-27 | C87: 42 | D87: 1 | E87: 9.629055977 | F87: 0.00461519347 | G87: 0.3216307518 | H87: 0.004957387022 | I87: 0 | J87: 0.0006674278925 | K87: 0 | L87: - | M87: - | N87: - | O87: - | P87: 2002-12-27 | Q87: 4.1
B88: 2002-12-28 | C88: 43 | D88: 1 | E88: 9.634305954 | F88: 0.004576715239 | G88: 0.3262074671 | H88: 0.004802651382 | I88: 0 | J88: 0.0006481911948 | K88: 0 | L88: - | M88: - | N88: - | O88: - | P88: 2002-12-28 | Q88: 4
B89: 2002-12-29 | C89: 44 | D89: 1 | E89: 9.640501022 | F89: 0.004542475107 | G89: 0.3307499422 | H89: 0.004652408331 | I89: 0 | J89: 0.0006295025095 | K89: 0 | L89: - | M89: - | N89: - | O89: - | P89: 2002-12-29 | Q89: 3.9
B90: 2002-12-30 | C90: 45 | D90: 1 | E90: 9.647634506 | F90: 0.004512234953 | G90: 0.3352621771 | H90: 0.004506548266 | I90: 0 | J90: 0.0006113465906 | K90: 0 | L90: - | M90: - | N90: - | O90: - | P90: 2002-12-30 | Q90: 3.8
B91: 2002-12-31 | C91: 46 | D91: 1 | E91: 9.65569973 | F91: 0.004485759034 | G91: 0.3397479362 | H91: 0.004364962962 | I91: 0 | J91: 0.0005937085953 | K91: 0 | L91: - | M91: - | N91: - | O91: - | P91: 2002-12-31 | Q91: 3.7
B92: 2003-01-01 | C92: 47 | D92: 1 | E92: 9.66468811 | F92: 0.004462805108 | G92: 0.3442107413 | H92: 0.004227545634 | I92: 0 | J92: 0.0005765740748 | K92: 0 | L92: - | M92: - | N92: - | O92: - | P92: 2003-01-01 | Q92: 3.6
B93: 2003-01-02 | C93: 48 | D93: 1 | E93: 9.674592972 | F93: 0.004510998022 | G93: 0.3487217393 | H93: 0.004227545634 | I93: 0 | J93: 0.0005765740748 | K93: 0 | L93: - | M93: - | N93: - | O93: - | P93: 2003-01-02 | Q93: 3.6
B94: 2003-01-03 | C94: 49 | D94: 1 | E94: 9.685404778 | F94: 0.004494844143 | G94: 0.3532165834 | H94: 0.00409419101 | I94: 0 | J94: 0.0005599289648 | K94: 0 | L94: - | M94: - | N94: - | O94: - | P94: 2003-01-03 | Q94: 3.5
B95: 2003-01-04 | C95: 50 | D95: 1 | E95: 9.697113037 | F95: 0.004481540276 | G95: 0.3576981237 | H95: 0.003964795385 | I95: 0 | J95: 0.0005437595763 | K95: 0 | L95: - | M95: - | N95: - | O95: - | P95: 2003-01-04 | Q95: 3.4
B96: 2003-01-05 | C96: 51 | D96: 1 | E96: 9.70970726 | F96: 0.004540553541 | G96: 0.3622386773 | H96: 0.003964795385 | I96: 0 | J96: 0.0005437595763 | K96: 0 | L96: - | M96: - | N96: - | O96: - | P96: 2003-01-05 | Q96: 3.4
B97: 2003-01-06 | C97: 52 | D97: 1 | E97: 9.723175049 | F97: 0.004532816391 | G97: 0.3667714936 | H97: 0.003839256669 | I97: 0 | J97: 0.0005280525869 | K97: 0 | L97: - | M97: - | N97: - | O97: - | P97: 2003-01-06 | Q97: 3.3
B98: 2003-01-07 | C98: 53 | D98: 1 | E98: 9.737504959 | F98: 0.004598553733 | G98: 0.3713700474 | H98: 0.003839256669 | I98: 0 | J98: 0.0005280525869 | K98: 0 | L98: - | M98: - | N98: - | O98: - | P98: 2003-01-07 | Q98: 3.3
B99: 2003-01-08 | C99: 54 | D99: 1 | E99: 9.752685547 | F99: 0.004595600306 | G99: 0.3759656477 | H99: 0.003717474435 | I99: 0 | J99: 0.0005127950314 | K99: 0 | L99: - | M99: - | N99: - | O99: - | P99: 2003-01-08 | Q99: 3.2
B100: 2003-01-09 | C100: 55 | D100: 1 | E100: 9.768701553 | F100: 0.004667467215 | G100: 0.3806331149 | H100: 0.003717474435 | I100: 0 | J100: 0.0005127950314 | K100: 0 | L100: - | M100: - | N100: - | O100: - | P100: 2003-01-09 | Q100: 3.2
B101: 2003-01-10 | C101: 56 | D101: 1 | E101: 9.785539627 | F101: 0.004668501746 | G101: 0.3853016166 | H101: 0.003599349957 | I101: 0 | J101: 0.0004979742936 | K101: 0 | L101: - | M101: - | N101: - | O101: - | P101: 2003-01-10 | Q101: 3.1
B102: 2003-01-11 | C102: 57 | D102: 1 | E102: 9.803184509 | F102: 0.004745881202 | G102: 0.3900474978 | H102: 0.003599349957 | I102: 0 | J102: 0.0004979742936 | K102: 0 | L102: - | M102: - | N102: - | O102: - | P102: 2003-01-11 | Q102: 3.1
B103: 2003-01-12 | C103: 58 | D103: 1 | E103: 9.821622849 | F103: 0.004826430152 | G103: 0.394873928 | H103: 0.003599349957 | I103: 0 | J103: 0.0004979742936 | K103: 0 | L103: - | M103: - | N103: - | O103: - | P103: 2003-01-12 | Q103: 3.1
B104: 2003-01-13 | C104: 59 | D104: 1 | E104: 9.840839386 | F104: 0.004832422306 | G104: 0.3997063503 | H104: 0.00348478624 | I104: 0 | J104: 0.0004835780975 | K104: 0 | L104: - | M104: - | N104: - | O104: - | P104: 2003-01-13 | Q104: 3
B105: 2003-01-14 | C105: 60 | D105: 1 | E105: 9.860816956 | F105: 0.004917615739 | G105: 0.404623966 | H105: 0.00348478624 | I105: 0 | J105: 0.0004835780975 | K105: 0 | L105: - | M105: - | N105: - | O105: - | P105: 2003-01-14 | Q105: 3
B106: 2003-01-15 | C106: 61 | D106: 1 | E106: 9.881539345 | F106: 0.005005603233 | G106: 0.4096295693 | H106: 0.00348478624 | I106: 0 | J106: 0.0004835780975 | K106: 0 | L106: - | M106: - | N106: - | O106: - | P106: 2003-01-15 | Q106: 3
B107: 2003-01-16 | C107: 62 | D107: 1 | E107: 9.902991295 | F107: 0.005014948432 | G107: 0.4146445177 | H107: 0.003373688049 | I107: 0 | J107: 0.0004695944989 | K107: 0 | L107: - | M107: - | N107: - | O107: - | P107: 2003-01-16 | Q107: 2.9
B108: 2003-01-17 | C108: 63 | D108: 1 | E108: 9.925156593 | F108: 0.00510671829 | G108: 0.419751236 | H108: 0.003373688049 | I108: 0 | J108: 0.0004695944989 | K108: 0 | L108: - | M108: - | N108: - | O108: - | P108: 2003-01-17 | Q108: 2.9
B109: 2003-01-18 | C109: 64 | D109: 1 | E109: 9.948016167 | F109: 0.0052009099 | G109: 0.4249521459 | H109: 0.003373688049 | I109: 0 | J109: 0.0004695944989 | K109: 0 | L109: - | M109: - | N109: - | O109: - | P109: 2003-01-18 | Q109: 2.9
B110: 2003-01-19 | C110: 65 | D110: 1 | E110: 9.971554756 | F110: 0.005297421307 | G110: 0.4302495672 | H110: 0.003373688049 | I110: 0 | J110: 0.0004695944989 | K110: 0 | L110: - | M110: - | N110: - | O110: - | P110: 2003-01-19 | Q110: 2.9
B111: 2003-01-20 | C111: 66 | D111: 1 | E111: 9.995755196 | F111: 0.005396143219 | G111: 0.4356457104 | H111: 0.003373688049 | I111: 0 | J111: 0.0004695944989 | K111: 0 | L111: - | M111: - | N111: - | O111: - | P111: 2003-01-20 | Q111: 2.9
B112: 2003-01-21 | C112: 67 | D112: 1 | E112: 10.02059841 | F112: 0.005496959315 | G112: 0.4411426697 | H112: 0.003373688049 | I112: 0 | J112: 0.0004695944989 | K112: 0 | L112: - | M112: - | N112: - | O112: - | P112: 2003-01-21 | Q112: 2.9
B113: 2003-01-22 | C113: 68 | D113: 1 | E113: 10.04606915 | F113: 0.00559976959 | G113: 0.4467424393 | H113: 0.003373688049 | I113: 0 | J113: 0.0004695944989 | K113: 0 | L113: - | M113: - | N113: - | O113: - | P113: 2003-01-22 | Q113: 2.9
B114: 2003-01-23 | C114: 69 | D114: 1 | E114: 10.07214832 | F114: 0.005704459495 | G114: 0.4524468988 | H114: 0.003373688049 | I114: 0 | J114: 0.0004695944989 | K114: 0 | L114: - | M114: - | N114: - | O114: - | P114: 2003-01-23 | Q114: 2.9
B115: 2003-01-24 | C115: 70 | D115: 1 | E115: 10.09881878 | F115: 0.005717317388 | G115: 0.4581642162 | H115: 0.003265961933 | I115: 0 | J115: 0.0004560118775 | K115: 0 | L115: - | M115: - | N115: - | O115: - | P115: 2003-01-24 | Q115: 2.8
B116: 2003-01-25 | C116: 71 | D116: 1 | E116: 10.1260643 | F116: 0.00582371208 | G116: 0.4639879283 | H116: 0.003265961933 | I116: 0 | J116: 0.0004560118775 | K116: 0 | L116: - | M116: - | N116: - | O116: - | P116: 2003-01-25 | Q116: 2.8
B117: 2003-01-26 | C117: 72 | D117: 1 | E117: 10.15386677 | F117: 0.005931647064 | G117: 0.4699195754 | H117: 0.003265961933 | I117: 0 | J117: 0.0004560118775 | K117: 0 | L117: - | M117: - | N117: - | O117: - | P117: 2003-01-26 | Q117: 2.8
B118: 2003-01-27 | C118: 73 | D118: 1 | E118: 10.18220806 | F118: 0.006041018001 | G118: 0.4759605934 | H118: 0.003265961933 | I118: 0 | J118: 0.0004560118775 | K118: 0 | L118: - | M118: - | N118: - | O118: - | P118: 2003-01-27 | Q118: 2.8
B119: 2003-01-28 | C119: 74 | D119: 1 | E119: 10.21107292 | F119: 0.006151732875 | G119: 0.4821123262 | H119: 0.003265961933 | I119: 0 | J119: 0.0004560118775 | K119: 0 | L119: - | M119: - | N119: - | O119: - | P119: 2003-01-28 | Q119: 2.8
B120: 2003-01-29 | C120: 75 | D120: 1 | E120: 10.24044228 | F120: 0.006263686354 | G120: 0.4883760126 | H120: 0.003265961933 | I120: 0 | J120: 0.0004560118775 | K120: 0 | L120: - | M120: - | N120: - | O120: - | P120: 2003-01-29 | Q120: 2.8
B121: 2003-01-30 | C121: 76 | D121: 1 | E121: 10.27030087 | F121: 0.006273121091 | G121: 0.4946491337 | H121: 0.00316151624 | I121: 0 | J121: 0.0004428189283 | K121: 0 | L121: - | M121: - | N121: - | O121: - | P121: 2003-01-30 | Q121: 2.7
B122: 2003-01-31 | C122: 77 | D122: 1 | E122: 10.30063152 | F122: 0.006385422097 | G122: 0.5010345558 | H122: 0.00316151624 | I122: 0 | J122: 0.0004428189283 | K122: 0 | L122: - | M122: - | N122: - | O122: - | P122: 2003-01-31 | Q122: 2.7
B123: 2003-02-01 | C123: 78 | D123: 1 | E123: 10.33141708 | F123: 0.006606063297 | G123: 0.5076406191 | H123: 0.003265961933 | I123: 0 | J123: 0.0004560118775 | K123: 0 | L123: - | M123: - | N123: - | O123: - | P123: 2003-02-01 | Q123: 2.8
B124: 2003-02-02 | C124: 79 | D124: 1 | E124: 10.36264324 | F124: 0.006722059595 | G124: 0.5143626787 | H124: 0.003265961933 | I124: 0 | J124: 0.0004560118775 | K124: 0 | L124: - | M124: - | N124: - | O124: - | P124: 2003-02-02 | Q124: 2.8
B125: 2003-02-03 | C125: 80 | D125: 1 | E125: 10.39429188 | F125: 0.006838840713 | G125: 0.5212015194 | H125: 0.003265961933 | I125: 0 | J125: 0.0004560118775 | K125: 0 | L125: - | M125: - | N125: - | O125: - | P125: 2003-02-03 | Q125: 2.8
B126: 2003-02-04 | C126: 81 | D126: 1 | E126: 10.42634869 | F126: 0.007070219531 | G126: 0.5282717389 | H126: 0.003373688049 | I126: 0 | J126: 0.0004695944989 | K126: 0 | L126: - | M126: - | N126: - | O126: - | P126: 2003-02-04 | Q126: 2.9
B127: 2003-02-05 | C127: 82 | D127: 1 | E127: 10.45879745 | F127: 0.007306873966 | G127: 0.5355786129 | H127: 0.00348478624 | I127: 0 | J127: 0.0004835780975 | K127: 0 | L127: - | M127: - | N127: - | O127: - | P127: 2003-02-05 | Q127: 3
B128: 2003-02-06 | C128: 83 | D128: 1 | E128: 10.49162292 | F128: 0.007429425745 | G128: 0.5430080386 | H128: 0.00348478624 | I128: 0 | J128: 0.0004835780975 | K128: 0 | L128: - | M128: - | N128: - | O128: - | P128: 2003-02-06 | Q128: 3
B129: 2003-02-07 | C129: 84 | D129: 1 | E129: 10.52481174 | F129: 0.007673776984 | G129: 0.5506818156 | H129: 0.003599349957 | I129: 0 | J129: 0.0004979742936 | K129: 0 | L129: - | M129: - | N129: - | O129: - | P129: 2003-02-07 | Q129: 3.1
B130: 2003-02-08 | C130: 85 | D130: 1 | E130: 10.5583477 | F130: 0.007923261066 | G130: 0.5586050767 | H130: 0.003717474435 | I130: 0 | J130: 0.0005127950314 | K130: 0 | L130: - | M130: - | N130: - | O130: - | P130: 2003-02-08 | Q130: 3.2
B131: 2003-02-09 | C131: 86 | D131: 1 | E131: 10.59221745 | F131: 0.008177826918 | G131: 0.5667829036 | H131: 0.003839256669 | I131: 0 | J131: 0.0005280525869 | K131: 0 | L131: - | M131: - | N131: - | O131: - | P131: 2003-02-09 | Q131: 3.3
B132: 2003-02-10 | C132: 87 | D132: 1 | E132: 10.62640762 | F132: 0.008437417632 | G132: 0.5752203212 | H132: 0.003964795385 | I132: 0 | J132: 0.0005437595763 | K132: 0 | L132: - | M132: - | N132: - | O132: - | P132: 2003-02-10 | Q132: 3.4
B133: 2003-02-11 | C133: 88 | D133: 1 | E133: 10.66090298 | F133: 0.008701963082 | G133: 0.5839222843 | H133: 0.00409419101 | I133: 0 | J133: 0.0005599289648 | K133: 0 | L133: - | M133: - | N133: - | O133: - | P133: 2003-02-11 | Q133: 3.5
B134: 2003-02-12 | C134: 89 | D134: 1 | E134: 10.69569111 | F134: 0.00897139832 | G134: 0.5928936826 | H134: 0.004227545634 | I134: 0 | J134: 0.0005765740748 | K134: 0 | L134: - | M134: - | N134: - | O134: - | P134: 2003-02-12 | Q134: 3.6
B135: 2003-02-13 | C135: 90 | D135: 1 | E135: 10.73075962 | F135: 0.009108020563 | G135: 0.6020017032 | H135: 0.004227545634 | I135: 0 | J135: 0.0005765740748 | K135: 0 | L135: - | M135: - | N135: - | O135: - | P135: 2003-02-13 | Q135: 3.6
B136: 2003-02-14 | C136: 91 | D136: 1 | E136: 10.76609516 | F136: 0.009384351753 | G136: 0.6113860549 | H136: 0.004364962962 | I136: 0 | J136: 0.0005937085953 | K136: 0 | L136: - | M136: - | N136: - | O136: - | P136: 2003-02-14 | Q136: 3.7
B137: 2003-02-15 | C137: 92 | D137: 1 | E137: 10.80168533 | F137: 0.009522999003 | G137: 0.6209090539 | H137: 0.004364962962 | I137: 0 | J137: 0.0005937085953 | K137: 0 | L137: - | M137: - | N137: - | O137: - | P137: 2003-02-15 | Q137: 3.7
B138: 2003-02-16 | C138: 93 | D138: 1 | E138: 10.83751965 | F138: 0.009805978297 | G138: 0.6307150322 | H138: 0.004506548266 | I138: 0 | J138: 0.0006113465906 | K138: 0 | L138: - | M138: - | N138: - | O138: - | P138: 2003-02-16 | Q138: 3.8
B139: 2003-02-17 | C139: 94 | D139: 1 | E139: 10.87358475 | F139: 0.009946416164 | G139: 0.6406614484 | H139: 0.004506548266 | I139: 0 | J139: 0.0006113465906 | K139: 0 | L139: - | M139: - | N139: - | O139: - | P139: 2003-02-17 | Q139: 3.8
B140: 2003-02-18 | C140: 95 | D140: 1 | E140: 10.90987015 | F140: 0.01023578842 | G140: 0.6508972368 | H140: 0.004652408331 | I140: 0 | J140: 0.0006295025095 | K140: 0 | L140: - | M140: - | N140: - | O140: - | P140: 2003-02-18 | Q140: 3.9
B141: 2003-02-19 | C141: 96 | D141: 1 | E141: 10.9463644 | F141: 0.01052956792 | G141: 0.6614268047 | H141: 0.004802651382 | I141: 0 | J141: 0.0006481911948 | K141: 0 | L141: - | M141: - | N141: - | O141: - | P141: 2003-02-19 | Q141: 4
B142: 2003-02-20 | C142: 97 | D142: 1 | E142: 10.98305702 | F142: 0.01067330201 | G142: 0.6721001068 | H142: 0.004802651382 | I142: 0 | J142: 0.0006481911948 | K142: 0 | L142: - | M142: - | N142: - | O142: - | P142: 2003-02-20 | Q142: 4
B143: 2003-02-21 | C143: 98 | D143: 1 | E143: 11.01993847 | F143: 0.01097308441 | G143: 0.6830731912 | H143: 0.004957387022 | I143: 0 | J143: 0.0006674278925 | K143: 0 | L143: - | M143: - | N143: - | O143: - | P143: 2003-02-21 | Q143: 4.1
B144: 2003-02-22 | C144: 99 | D144: 1 | E144: 11.0569973 | F144: 0.01127703478 | G144: 0.6943502259 | H144: 0.005116726146 | I144: 0 | J144: 0.0006872282618 | K144: 0 | L144: - | M144: - | N144: - | O144: - | P144: 2003-02-22 | Q144: 4.2
B145: 2003-02-23 | C145: 100 | D145: 1 | E145: 11.09422493 | F145: 0.01142358626 | G145: 0.7057738122 | H145: 0.005116726146 | I145: 0 | J145: 0.0006872282618 | K145: 0 | L145: - | M145: - | N145: - | O145: - | P145: 2003-02-23 | Q145: 4.2
B146: 2003-02-24 | C146: 101 | D146: 1 | E146: 11.13161182 | F146: 0.01173313762 | G146: 0.7175069498 | H146: 0.005280780856 | I146: 0 | J146: 0.0007076083842 | K146: 0 | L146: - | M146: - | N146: - | O146: - | P146: 2003-02-24 | Q146: 4.3
B147: 2003-02-25 | C147: 102 | D147: 1 | E147: 11.16914845 | F147: 0.01204660872 | G147: 0.7295535585 | H147: 0.005449664365 | I147: 0 | J147: 0.0007285847744 | K147: 0 | L147: - | M147: - | N147: - | O147: - | P147: 2003-02-25 | Q147: 4.4
B148: 2003-02-26 | C148: 103 | D148: 1 | E148: 11.20682526 | F148: 0.01236389279 | G148: 0.7419174513 | H148: 0.005623490893 | I148: 0 | J148: 0.0007501743895 | K148: 0 | L148: - | M148: - | N148: - | O148: - | P148: 2003-02-26 | Q148: 4.5
B149: 2003-02-27 | C149: 104 | D149: 1 | E149: 11.24463463 | F149: 0.01268488652 | G149: 0.7546023379 | H149: 0.005802375549 | I149: 0 | J149: 0.0007723946396 | K149: 0 | L149: - | M149: - | N149: - | O149: - | P149: 2003-02-27 | Q149: 4.6
B150: 2003-02-28 | C150: 105 | D150: 1 | E150: 11.28256798 | F150: 0.0130094789 | G150: 0.7676118168 | H150: 0.005986434214 | I150: 0 | J150: 0.0007952633981 | K150: 0 | L150: - | M150: - | N150: - | O150: - | P150: 2003-02-28 | Q150: 4.7
B151: 2003-03-01 | C151: 106 | D151: 1 | E151: 11.32061672 | F151: 0.01333755508 | G151: 0.7809493718 | H151: 0.006175783403 | I151: 0 | J151: 0.0008187990119 | K151: 0 | L151: - | M151: - | N151: - | O151: - | P151: 2003-03-01 | Q151: 4.8
B152: 2003-03-02 | C152: 107 | D152: 1 | E152: 11.35877419 | F152: 0.01366900431 | G152: 0.7946183761 | H152: 0.006370540122 | I152: 0 | J152: 0.0008430203123 | K152: 0 | L152: - | M152: - | N152: - | O152: - | P152: 2003-03-02 | Q152: 4.9
B153: 2003-03-03 | C153: 108 | D153: 1 | E153: 11.39703083 | F153: 0.01400370076 | G153: 0.8086220769 | H153: 0.006570821714 | I153: 0 | J153: 0.0008679466256 | K153: 0 | L153: - | M153: - | N153: - | O153: - | P153: 2003-03-03 | Q153: 5
B154: 2003-03-04 | C154: 109 | D154: 1 | E154: 11.43538094 | F154: 0.01434153088 | G154: 0.8229636078 | H154: 0.006776745696 | I154: 0 | J154: 0.0008935977837 | K154: 0 | L154: - | M154: - | N154: - | O154: - | P154: 2003-03-04 | Q154: 5.1
B155: 2003-03-05 | C155: 110 | D155: 1 | E155: 11.47381592 | F155: 0.01486565366 | G155: 0.8378292614 | H155: 0.007205990688 | I155: 0 | J155: 0.0009471565556 | K155: 0 | L155: - | M155: - | N155: - | O155: - | P155: 2003-03-05 | Q155: 5.3
B156: 2003-03-06 | C156: 111 | D156: 1 | E156: 11.51233006 | F156: 0.01521118306 | G156: 0.8530404445 | H156: 0.007429545952 | I156: 0 | J156: 0.0009751064601 | K156: 0 | L156: - | M156: - | N156: - | O156: - | P156: 2003-03-06 | Q156: 5.4
B157: 2003-03-07 | C157: 112 | D157: 1 | E157: 11.55091572 | F157: 0.01555939117 | G157: 0.8685998357 | H157: 0.007659211703 | I157: 0 | J157: 0.001003865813 | K157: 0 | L157: - | M157: - | N157: - | O157: - | P157: 2003-03-07 | Q157: 5.5
B158: 2003-03-08 | C158: 113 | D158: 1 | E158: 11.58956623 | F158: 0.01591014737 | G158: 0.884509983 | H158: 0.007895103451 | I158: 0 | J158: 0.001033457139 | K158: 0 | L158: - | M158: - | N158: - | O158: - | P158: 2003-03-08 | Q158: 5.6
B159: 2003-03-09 | C159: 114 | D159: 1 | E159: 11.62827587 | F159: 0.01645295318 | G159: 0.9009629362 | H159: 0.008386021431 | I159: 0 | J159: 0.001095228682 | K159: 0 | L159: - | M159: - | N159: - | O159: - | P159: 2003-03-09 | Q159: 5.8
B160: 2003-03-10 | C160: 115 | D160: 1 | E160: 11.66703701 | F160: 0.01680983387 | G160: 0.9177727701 | H160: 0.008641272394 | I160: 0 | J160: 0.001127456855 | K160: 0 | L160: - | M160: - | N160: - | O160: - | P160: 2003-03-10 | Q160: 5.9
B161: 2003-03-11 | C161: 116 | D161: 1 | E161: 11.70584488 | F161: 0.01736056571 | G161: 0.9351333358 | H161: 0.009171906728 | I161: 0 | J161: 0.001194722416 | K161: 0 | L161: - | M161: - | N161: - | O161: - | P161: 2003-03-11 | Q161: 6.1
B162: 2003-03-12 | C162: 117 | D162: 1 | E162: 11.74469185 | F162: 0.01772262784 | G162: 0.9528559636 | H162: 0.009447502954 | I162: 0 | J162: 0.001229811427 | K162: 0 | L162: - | M162: - | N162: - | O162: - | P162: 2003-03-12 | Q162: 6.2
B163: 2003-03-13 | C163: 118 | D163: 1 | E163: 11.7835741 | F163: 0.0182796716 | G163: 0.9711356352 | H163: 0.01001976574 | I163: 0 | J163: 0.001303035743 | K163: 0 | L163: - | M163: - | N163: - | O163: - | P163: 2003-03-13 | Q163: 6.4
B164: 2003-03-14 | C164: 119 | D164: 1 | E164: 11.82248402 | F164: 0.01864595503 | G164: 0.9897815903 | H164: 0.01031662788 | I164: 0 | J164: 0.001341226539 | K164: 0 | L164: - | M164: - | N164: - | O164: - | P164: 2003-03-14 | Q164: 6.5
B165: 2003-03-15 | C165: 120 | D165: 1 | E165: 11.86141682 | F165: 0.01920767024 | G165: 1.008989261 | H165: 0.01093227535 | I165: 0.01093227535 | J165: 0.001420909153 | K165: 0 | L165: - | M165: ◎ | N165: - | O165: - | P165: 2003-03-15 | Q165: 6.7
B166: 2003-03-16 | C166: 121 | D166: 1 | E166: 11.90036583 | F166: 0.01957719633 | G166: 1.028566457 | H166: 0.01125123301 | I166: 0.02218350836 | J166: 0.001462460524 | K166: 0 | L166: - | M166: - | N166: - | O166: - | P166: 2003-03-16 | Q166: 6.8
B167: 2003-03-17 | C167: 122 | D167: 1 | E167: 11.93932724 | F167: 0.02014194426 | G167: 1.048708401 | H167: 0.01191181175 | I167: 0.03409532011 | J167: 0.00154913753 | K167: 0 | L167: - | M167: - | N167: - | O167: - | P167: 2003-03-17 | Q167: 7
B168: 2003-03-18 | C168: 123 | D168: 1 | E168: 11.97829533 | F168: 0.02051374828 | G168: 1.069222149 | H168: 0.01225357541 | I168: 0.04634889551 | J168: 0.001594326965 | K168: 0 | L168: - | M168: - | N168: - | O168: - | P168: 2003-03-18 | Q168: 7.1
B169: 2003-03-19 | C169: 124 | D169: 1 | E169: 12.01726341 | F169: 0.02088615403 | G169: 1.090108303 | H169: 0.01260307406 | I169: 0.05895196957 | J169: 0.001640794101 | K169: 0 | L169: - | M169: - | N169: - | O169: - | P169: 2003-03-19 | Q169: 7.2
B170: 2003-03-20 | C170: 125 | D170: 1 | E170: 12.05622673 | F170: 0.02145301 | G170: 1.111561313 | H170: 0.013325495 | I170: 0.07227746457 | J170: 0.001737697159 | K170: 0 | L170: - | M170: - | N170: - | O170: - | P170: 2003-03-20 | Q170: 7.4
B171: 2003-03-21 | C171: 126 | D171: 1 | E171: 12.09518051 | F171: 0.02182636365 | G171: 1.133387677 | H171: 0.01369850951 | I171: 0.08597597408 | J171: 0.001788202806 | K171: 0 | L171: - | M171: - | N171: - | O171: - | P171: 2003-03-21 | Q171: 7.5
B172: 2003-03-22 | C172: 127 | D172: 1 | E172: 12.13411808 | F172: 0.02219982203 | G172: 1.155587499 | H172: 0.01407944269 | I172: 0.1000554168 | J172: 0.001840125618 | K172: 0 | L172: - | M172: - | N172: - | O172: - | P172: 2003-03-22 | Q172: 7.6
B173: 2003-03-23 | C173: 128 | D173: 1 | E173: 12.17303658 | F173: 0.02257326221 | G173: 1.178160761 | H173: 0.0144683218 | I173: 0.1145237386 | J173: 0.001893502373 | K173: 0 | L173: - | M173: - | N173: - | O173: - | P173: 2003-03-23 | Q173: 7.7
B174: 2003-03-24 | C174: 129 | D174: 1 | E174: 12.21192932 | F174: 0.02294654497 | G174: 1.201107306 | H174: 0.01486516584 | I174: 0.1293889044 | J174: 0.001948370628 | K174: 0 | L174: - | M174: - | N174: - | O174: - | P174: 2003-03-24 | Q174: 7.8
B175: 2003-03-25 | C175: 130 | D175: 1 | E175: 12.2507906 | F175: 0.02331953693 | G175: 1.224426843 | H175: 0.0152699852 | I175: 0.1446588896 | J175: 0.002004768727 | K175: 0 | L175: - | M175: - | N175: - | O175: - | P175: 2003-03-25 | Q175: 7.9
B176: 2003-03-26 | C176: 131 | D176: 1 | E176: 12.28961658 | F176: 0.02369211518 | G176: 1.248118958 | H176: 0.01568278127 | I176: 0.1603416709 | J176: 0.0020627358 | K176: 0 | L176: - | M176: - | N176: - | O176: - | P176: 2003-03-26 | Q176: 8
B177: 2003-03-27 | C177: 132 | D177: 1 | E177: 12.32840061 | F177: 0.02425558686 | G177: 1.272374545 | H177: 0.01653226198 | I177: 0.1768739329 | J177: 0.00218353738 | K177: 0 | L177: - | M177: - | N177: - | O177: - | P177: 2003-03-27 | Q177: 8.2
B178: 2003-03-28 | C178: 133 | D178: 1 | E178: 12.36713886 | F178: 0.02462647775 | G178: 1.297001023 | H178: 0.01696890119 | I178: 0.193842834 | J178: 0.002246454137 | K178: 0 | L178: - | M178: - | N178: - | O178: - | P178: 2003-03-28 | Q178: 8.3
B179: 2003-03-29 | C179: 134 | D179: 1 | E179: 12.40582466 | F179: 0.02518494661 | G179: 1.32218597 | H179: 0.01786578647 | I179: 0.2117086205 | J179: 0.002377531233 | K179: 0 | L179: - | M179: - | N179: - | O179: - | P179: 2003-03-29 | Q179: 8.5
B180: 2003-03-30 | C180: 135 | D180: 1 | E180: 12.44445324 | F180: 0.02573904943 | G180: 1.347925019 | H180: 0.01879376714 | I180: 0.2305023877 | J180: 0.002515891344 | K180: 0 | L180: - | M180: - | N180: - | O180: - | P180: 2003-03-30 | Q180: 8.7
B181: 2003-03-31 | C181: 136 | D181: 1 | E181: 12.48301888 | F181: 0.02628830708 | G181: 1.374213326 | H181: 0.01975222897 | I181: 0.2502546166 | J181: 0.002661895579 | K181: 0 | L181: - | M181: - | N181: - | O181: - | P181: 2003-03-31 | Q181: 8.9
B182: 2003-04-01 | C182: 137 | D182: 1 | E182: 12.52151585 | F182: 0.02683226912 | G182: 1.401045595 | H182: 0.02074037111 | I182: 0.2709949877 | J182: 0.002815917774 | K182: 0 | L182: - | M182: - | N182: - | O182: - | P182: 2003-04-01 | Q182: 9.1
B183: 2003-04-02 | C183: 138 | D183: 1 | E183: 12.55993938 | F183: 0.02754488884 | G183: 1.428590484 | H183: 0.02227601011 | I183: 0.2932709978 | J183: 0.003062833293 | K183: 0 | L183: - | M183: - | N183: - | O183: - | P183: 2003-04-02 | Q183: 9.4
B184: 2003-04-03 | C184: 139 | D184: 1 | E184: 12.59828377 | F184: 0.02807366201 | G184: 1.456664146 | H184: 0.02333358328 | I184: 0.3166045811 | J184: 0.003238617459 | K184: 0 | L184: - | M184: - | N184: - | O184: - | P184: 2003-04-03 | Q184: 9.6
B185: 2003-04-04 | C185: 140 | D185: 1 | E185: 12.63654232 | F185: 0.0285958537 | G185: 1.48526 | H185: 0.02441650857 | I185: 0.3410210897 | J185: 0.003423824574 | K185: 0 | L185: - | M185: - | N185: - | O185: - | P185: 2003-04-04 | Q185: 9.8
B186: 2003-04-05 | C186: 141 | D186: 1 | E186: 12.67471027 | F186: 0.02927273455 | G186: 1.514532734 | H186: 0.02608472232 | I186: 0.367105812 | J186: 0.003720240669 | K186: 0 | L186: - | M186: - | N186: - | O186: - | P186: 2003-04-05 | Q186: 10.1
B187: 2003-04-06 | C187: 142 | D187: 1 | E187: 12.71278 | F187: 0.02977715574 | G187: 1.54430989 | H187: 0.02722330715 | I187: 0.3943291192 | J187: 0.003930896543 | K187: 0 | L187: - | M187: - | N187: - | O187: - | P187: 2003-04-06 | Q187: 10.3
B188: 2003-04-07 | C188: 143 | D188: 1 | E188: 12.75074768 | F188: 0.03027407432 | G188: 1.574583964 | H188: 0.02838059832 | I188: 0.4227097175 | J188: 0.0041525137 | K188: 0 | L188: - | M188: - | N188: - | O188: - | P188: 2003-04-07 | Q188: 10.5
B189: 2003-04-08 | C189: 144 | D189: 1 | E189: 12.78860474 | F189: 0.03076326048 | G189: 1.605347225 | H189: 0.02955431864 | I189: 0.4522640361 | J189: 0.004385551146 | K189: 0 | L189: - | M189: - | N189: - | O189: - | P189: 2003-04-08 | Q189: 10.7
B190: 2003-04-09 | C190: 145 | D190: 1 | E190: 12.82634544 | F190: 0.031244526 | G190: 1.636591751 | H190: 0.03074204885 | I190: 0.483006085 | J190: 0.004630474323 | K190: 0 | L190: - | M190: - | N190: - | O190: - | P190: 2003-04-09 | Q190: 10.9
B191: 2003-04-10 | C191: 146 | D191: 1 | E191: 12.86396408 | F191: 0.03171770934 | G191: 1.66830946 | H191: 0.03194124611 | I191: 0.5149473311 | J191: 0.004887753581 | K191: 0 | L191: - | M191: - | N191: - | O191: - | P191: 2003-04-10 | Q191: 11.1
B192: 2003-04-11 | C192: 147 | D192: 1 | E192: 12.90145397 | F192: 0.03218266987 | G192: 1.70049213 | H192: 0.03314926474 | I192: 0.5480965958 | J192: 0.005157862432 | K192: 0 | L192: - | M192: - | N192: - | O192: - | P192: 2003-04-11 | Q192: 11.3
B193: 2003-04-12 | C193: 148 | D193: 1 | E193: 12.93880653 | F193: 0.032639282 | G193: 1.733131412 | H193: 0.034363379 | I193: 0.5824599748 | J193: 0.005441275585 | K193: 0 | L193: - | M193: - | N193: - | O193: - | P193: 2003-04-12 | Q193: 11.5
B194: 2003-04-13 | C194: 149 | D194: 1 | E194: 12.97601604 | F194: 0.0329565226 | G194: 1.766087935 | H194: 0.03497185422 | I194: 0.617431829 | J194: 0.005588119411 | K194: 0 | L194: - | M194: - | N194: - | O194: - | P194: 2003-04-13 | Q194: 11.6
B195: 2003-04-14 | C195: 150 | D195: 1 | E195: 13.01307583 | F195: 0.03340007209 | G195: 1.799488007 | H195: 0.03618988579 | I195: 0.6536217148 | J195: 0.00589237623 | K195: 0 | L195: - | M195: - | N195: - | O195: - | P195: 2003-04-14 | Q195: 11.8
B196: 2003-04-15 | C196: 151 | D196: 1 | E196: 13.04997635 | F196: 0.03383502916 | G196: 1.833323036 | H196: 0.0374070097 | I196: 0.6910287245 | J196: 0.006211114295 | K196: 0 | L196: - | M196: - | N196: - | O196: - | P196: 2003-04-15 | Q196: 12
B197: 2003-04-16 | C197: 152 | D197: 1 | E197: 13.08671188 | F197: 0.03413976189 | G197: 1.867462798 | H197: 0.03801435232 | I197: 0.7290430768 | J197: 0.0063760579 | K197: 0 | L197: - | M197: - | N197: - | O197: - | P197: 2003-04-16 | Q197: 12.1
B198: 2003-04-17 | C198: 153 | D198: 1 | E198: 13.12327385 | F198: 0.03456126654 | G198: 1.902024064 | H198: 0.03922485688 | I198: 0.7682679337 | J198: 0.006717376978 | K198: 0 | L198: - | M198: - | N198: - | O198: - | P198: 2003-04-17 | Q198: 12.3
B199: 2003-04-18 | C199: 154 | D199: 1 | E199: 13.15965462 | F199: 0.03497407005 | G199: 1.936998134 | H199: 0.04042750247 | I199: 0.8086954362 | J199: 0.007074306051 | K199: 0 | L199: - | M199: - | N199: - | O199: - | P199: 2003-04-18 | Q199: 12.5
B200: 2003-04-19 | C200: 155 | D200: 1 | E200: 13.1958456 | F200: 0.03526578058 | G200: 1.972263915 | H200: 0.04102503819 | I200: 0.8497204744 | J200: 0.007258758453 | K200: 0 | L200: - | M200: - | N200: - | O200: - | P200: 2003-04-19 | Q200: 12.6
B201: 2003-04-20 | C201: 156 | D201: 1 | E201: 13.23183823 | F201: 0.03566492324 | G201: 2.007928838 | H201: 0.04221090501 | I201: 0.8919313794 | J201: 0.007639896984 | K201: 0 | L201: - | M201: - | N201: - | O201: - | P201: 2003-04-20 | Q201: 12.8
B202: 2003-04-21 | C202: 157 | D202: 1 | E202: 13.2676239 | F202: 0.03605535299 | G202: 2.043984191 | H202: 0.04338240549 | I202: 0.9353137849 | J202: 0.008037674943 | K202: 0 | L202: - | M202: - | N202: - | O202: - | P202: 2003-04-21 | Q202: 13
B203: 2003-04-22 | C203: 158 | D203: 1 | E203: 13.30319309 | F203: 0.03633367681 | G203: 2.080317868 | H203: 0.04396201293 | I203: 0.9792757978 | J203: 0.008242920659 | K203: 0 | L203: - | M203: - | N203: - | O203: - | P203: 2003-04-22 | Q203: 13.1
... 80 more rows

Sheet 出芽期～
N2: 予測実施日 | Q2: =TODAY() -> 2022-04-18
B3: 出芽期から予測
B5: 予測地域 | D5: 地名コード | N5: 予測値
B6: 下妻 | D6: =HLOOKUP(B6,気象データ!$B$4:$O$5,2,FALSE) -> J | N6: 播 種 期: | P6: - | Q6: -
N7: 出 芽 期: | P7: =VLOOKUP("◎",L14:P283,5,FALSE) -> 2002-11-13 | Q7: =+IF(COUNT(P7)=1,P7,"*月 *日") -> 2002-11-13
B8: 出芽期 | N8: 茎 立 期: | P8: =VLOOKUP("◎",M14:P283,4,FALSE) -> 2003-03-18 | Q8: =+IF(COUNT(P8)=1,P8,"*月 *日") -> 2003-03-18 | U8: 平年比
B9: 月 | C9: 日 | N9: 出 穂 期: | P9: =VLOOKUP("◎",N14:P283,3,FALSE) -> 2003-04-17 | Q9: =+IF(COUNT(P9)=1,P9,"*月 *日") -> 2003-04-17 | U9: 0 | V9: ℃
B10: 11 | C10: 13 | N10: 成 熟 期: | P10: =VLOOKUP("◎",O14:P283,2,FALSE) -> 2003-06-10 | Q10: =+IF(COUNT(P10)=1,P10,"*月 *日") -> 2003-06-10 | U10: で推移した場合
B12: 月･日 | C12: 出芽後 日数 | D12: 出芽後 | E12: 日長(時間) | H12: 予測する本年の気温(出芽期～予測日)と生育値 | L12: 判 定 | P12: 月･日 | Q12: 平年平均 気温(℃) (水戸地方気象台1991-2020) | R12: 本年 平均 気温 (℃) | S12: 予測用データ
D13: 日数 | F13: DVR1 | G13: DVR1積算 | H13: DVR2 | I13: DVR2積算 | J13: DVR3 | K13: DVR3積算 | L13: 出 芽 期 | M13: 茎立期 | N13: 出 穂 期 | O13: 成 熟 期
B14: 2002-10-15 | C14: =+C13+D14 -> 0 | D14: =+IF((COUNT(S14))=1,1)+IF((COUNT(S14=0)),0) -> 0 | E14: =INDIRECT("気象データ!"&$D$6&ROW()+320) -> 11.27307129 | F14: =IF((E14-8.827682)<=0,0,(1-EXP(-0.2129892*(E14-8.827682)))/(1+EXP(-0.2556636*(S14-5.019251)))/15.01105) ->  | G14: =IF(D14=0,0,F14) -> 0 | H14: =1/(1+EXP(-0.3403*(S14-11.7356)))/13.9674 ->  | I14: =IF(G14>1,H14,0) -> 0 | J14: =1/(1+EXP(-0.296*(S14-18.9596)))/18.1999 ->  | K14: =IF(I14>1,J14,0) -> 0 | L14: =IF(C15=1,"◎","-") -> - | M14: =IF(AND(G14>=1,(G13)<1),"◎","-") -> - | N14: =IF(AND(I14>=1,(I13)<1),"◎","-") -> - | O14: =IF(AND(K14>=1,(K13)<1),"◎","-") -> - | P14: 2002-10-15 | Q14: =INDIRECT("気象データ!"&$D$6&ROW()-8) -> 16.9 | R14: 16.6 | S14: =IF(DATE(IF($B$10>=10,2002,2003),$B$10,$C$10)>=B14,"",IF(R14="",Q14+$U$9,R14)) -> 
B15: 2002-10-16 | C15: 0 | D15: 0 | E15: =INDIRECT("気象データ!"&$D$6&ROW()+320) -> 11.23603821 | G15: =IF(D15=0,0,G14+F15) -> 0 | H15: =1/(1+EXP(-0.3403*(S15-11.7356)))/13.9674 ->  | I15: =IF(G15>1,I14+H15,0) -> 0 | J15: =1/(1+EXP(-0.296*(S15-18.9596)))/18.1999 ->  | K15: =IF(I15>1,K14+J15,0) -> 0 | L15: - | M15: - | N15: - | O15: - | P15: 2002-10-16 | Q15: =INDIRECT("気象データ!"&$D$6&ROW()-8) -> 16.6 | R15: 17.9
B16: 2002-10-17 | C16: 0 | D16: 0 | E16: 11.19912434 | G16: 0 | I16: 0 | K16: 0 | L16: - | M16: - | N16: - | O16: - | P16: 2002-10-17 | Q16: 16.4 | R16: 14.5
B17: 2002-10-18 | C17: 0 | D17: 0 | E17: 11.16233826 | G17: 0 | I17: 0 | K17: 0 | L17: - | M17: - | N17: - | O17: - | P17: 2002-10-18 | Q17: 16.2 | R17: 14.7
B18: 2002-10-19 | C18: 0 | D18: 0 | E18: 11.12568855 | G18: 0 | I18: 0 | K18: 0 | L18: - | M18: - | N18: - | O18: - | P18: 2002-10-19 | Q18: 16 | R18: 14.5
B19: 2002-10-20 | C19: 0 | D19: 0 | E19: 11.08918285 | G19: 0 | I19: 0 | K19: 0 | L19: - | M19: - | N19: - | O19: - | P19: 2002-10-20 | Q19: 15.8 | R19: 14.2
B20: 2002-10-21 | C20: 0 | D20: 0 | E20: 11.05282974 | G20: 0 | I20: 0 | K20: 0 | L20: - | M20: - | N20: - | O20: - | P20: 2002-10-21 | Q20: 15.6 | R20: 17.1
B21: 2002-10-22 | C21: 0 | D21: 0 | E21: 11.01663971 | G21: 0 | I21: 0 | K21: 0 | L21: - | M21: - | N21: - | O21: - | P21: 2002-10-22 | Q21: 15.4 | R21: 16.6
B22: 2002-10-23 | C22: 0 | D22: 0 | E22: 10.98062134 | G22: 0 | I22: 0 | K22: 0 | L22: - | M22: - | N22: - | O22: - | P22: 2002-10-23 | Q22: 15.2 | R22: 15.4
B23: 2002-10-24 | C23: 0 | D23: 0 | E23: 10.94478416 | G23: 0 | I23: 0 | K23: 0 | L23: - | M23: - | N23: - | O23: - | P23: 2002-10-24 | Q23: 15 | R23: 14.7
B24: 2002-10-25 | C24: 0 | D24: 0 | E24: 10.90913868 | G24: 0 | I24: 0 | K24: 0 | L24: - | M24: - | N24: - | O24: - | P24: 2002-10-25 | Q24: 14.8 | R24: 17.8
B25: 2002-10-26 | C25: 0 | D25: 0 | E25: 10.87369537 | F25: =IF((E25-8.827682)<=0,0,(1-EXP(-0.2129892*(E25-8.827682)))/(1+EXP(-0.2556636*(S25-5.019251)))/15.01105) ->  | G25: 0 | I25: 0 | K25: 0 | L25: - | M25: - | N25: - | O25: - | P25: 2002-10-26 | Q25: 14.6 | R25: 13
B26: 2002-10-27 | C26: 0 | D26: 0 | E26: 10.83846378 | F26: =IF((E26-8.827682)<=0,0,(1-EXP(-0.2129892*(E26-8.827682)))/(1+EXP(-0.2556636*(S26-5.019251)))/15.01105) ->  | G26: 0 | I26: 0 | K26: 0 | L26: - | M26: - | N26: - | O26: - | P26: 2002-10-27 | Q26: 14.4 | R26: 11.8
B27: 2002-10-28 | C27: 0 | D27: 0 | E27: 10.80345535 | G27: 0 | I27: 0 | K27: 0 | L27: - | M27: - | N27: - | O27: - | P27: 2002-10-28 | Q27: 14.2 | R27: 11.8
B28: 2002-10-29 | C28: 0 | D28: 0 | E28: 10.76868153 | G28: 0 | I28: 0 | K28: 0 | L28: - | M28: - | N28: - | O28: - | P28: 2002-10-29 | Q28: 14 | R28: 12.8
B29: 2002-10-30 | C29: 0 | D29: 0 | E29: 10.73415375 | G29: 0 | I29: 0 | K29: 0 | L29: - | M29: - | N29: - | O29: - | P29: 2002-10-30 | Q29: 13.8 | R29: 15.9
B30: 2002-10-31 | C30: 0 | D30: 0 | E30: 10.69988346 | G30: 0 | I30: 0 | K30: 0 | L30: - | M30: - | N30: - | O30: - | P30: 2002-10-31 | Q30: 13.6 | R30: 13.7
B31: 2002-11-01 | C31: 0 | D31: 0 | E31: 10.66588402 | G31: 0 | I31: 0 | K31: 0 | L31: - | M31: - | N31: - | O31: - | P31: 2002-11-01 | Q31: 13.4 | R31: 13.2
B32: 2002-11-02 | C32: 0 | D32: 0 | E32: 10.63216686 | G32: 0 | I32: 0 | K32: 0 | L32: - | M32: - | N32: - | O32: - | P32: 2002-11-02 | Q32: 13.2 | R32: 13.8
B33: 2002-11-03 | C33: 0 | D33: =+IF((COUNT(S33))=1,1)+IF((COUNT(S33=0)),0) -> 0 | E33: 10.59874439 | G33: 0 | I33: 0 | K33: 0 | L33: - | M33: - | N33: - | O33: - | P33: 2002-11-03 | Q33: 13 | R33: 15.2
B34: 2002-11-04 | C34: 0 | D34: 0 | E34: 10.56563187 | G34: =IF(D34=0,0,G33+F34) -> 0 | I34: =IF(G34>1,I33+H34,0) -> 0 | K34: =IF(I34>1,K33+J34,0) -> 0 | L34: - | M34: - | N34: - | O34: - | P34: 2002-11-04 | Q34: 12.8 | R34: 14
B35: 2002-11-05 | C35: =+C34+D35 -> 0 | D35: 0 | E35: 10.53284073 | G35: =IF(D35=0,0,G34+F35) -> 0 | I35: =IF(G35>1,I34+H35,0) -> 0 | K35: =IF(I35>1,K34+J35,0) -> 0 | L35: - | M35: - | N35: - | O35: - | P35: 2002-11-05 | Q35: 12.6 | R35: 11.4
B36: 2002-11-06 | C36: 0 | D36: 0 | E36: 10.50038528 | G36: 0 | I36: 0 | K36: 0 | L36: - | M36: =IF(AND(G36>=1,(G35)<1),"◎","-") -> - | N36: =IF(AND(I36>=1,(I35)<1),"◎","-") -> - | O36: =IF(AND(K36>=1,(K35)<1),"◎","-") -> - | P36: 2002-11-06 | Q36: 12.5 | R36: 11.7
B37: 2002-11-07 | C37: 0 | D37: 0 | E37: 10.46828079 | G37: 0 | I37: 0 | K37: 0 | L37: - | M37: - | N37: - | O37: - | P37: 2002-11-07 | Q37: 12.3 | R37: 11.8
B38: 2002-11-08 | C38: 0 | D38: 0 | E38: 10.4365406 | G38: 0 | I38: 0 | K38: 0 | L38: - | M38: - | N38: - | O38: - | P38: 2002-11-08 | Q38: 12.1 | R38: 12.5
B39: 2002-11-09 | C39: 0 | D39: 0 | E39: 10.40517902 | G39: 0 | I39: 0 | K39: 0 | L39: - | M39: - | N39: - | O39: - | P39: 2002-11-09 | Q39: 11.9 | R39: 10
B40: 2002-11-10 | C40: 0 | D40: 0 | E40: 10.37421227 | G40: 0 | I40: 0 | K40: 0 | L40: - | M40: - | N40: - | O40: - | P40: 2002-11-10 | Q40: 11.7 | R40: 12.1
B41: 2002-11-11 | C41: 0 | D41: 0 | E41: 10.34365559 | G41: 0 | I41: 0 | K41: 0 | L41: - | M41: - | N41: - | O41: - | P41: 2002-11-11 | Q41: 11.5 | R41: 8.8
B42: 2002-11-12 | C42: 0 | D42: 0 | E42: 10.31352329 | G42: 0 | I42: 0 | K42: 0 | L42: - | M42: - | N42: - | O42: - | P42: 2002-11-12 | Q42: 11.2 | R42: 6.5
B43: 2002-11-13 | C43: =+C42+D43 -> 0 | D43: 0 | E43: 10.28383255 | G43: 0 | I43: 0 | K43: 0 | L43: ◎ | M43: =IF(AND(G43>=1,(G42)<1),"◎","-") -> - | N43: - | O43: - | P43: 2002-11-13 | Q43: 11 | R43: 5
B44: 2002-11-14 | C44: 1 | D44: 1 | E44: 10.25459862 | F44: 0.01089380181 | G44: =IF(D44=0,0,G43+F44) -> 0.01089380181 | H44: 0.01191181175 | I44: 0 | J44: 0.00154913753 | K44: 0 | L44: - | M44: - | N44: - | O44: - | P44: 2002-11-14 | Q44: 10.8 | R44: 7 | S44: 7
B45: 2002-11-15 | C45: 2 | D45: 1 | E45: 10.22583866 | F45: 0.01140830344 | G45: =IF(D45=0,0,G44+F45) -> 0.02230210525 | H45: 0.0144683218 | I45: 0 | J45: 0.001893502373 | K45: 0 | L45: - | M45: - | N45: - | O45: - | P45: 2002-11-15 | Q45: 10.6 | R45: 7.7 | S45: 7.7
B46: 2002-11-16 | C46: 3 | D46: 1 | E46: 10.19756794 | F46: 0.01229837237 | G46: =IF(D46=0,0,G45+F46) -> 0.03460047762 | H46: 0.01975222897 | I46: 0 | J46: 0.002661895579 | K46: 0 | L46: - | M46: - | N46: - | O46: - | P46: 2002-11-16 | Q46: 10.4 | R46: 8.9 | S46: 8.9
B47: 2002-11-17 | C47: 4 | D47: 1 | E47: 10.16980362 | F47: 0.01208307518 | G47: 0.0466835528 | H47: 0.01975222897 | I47: 0 | J47: 0.002661895579 | K47: 0 | L47: - | M47: - | N47: - | O47: - | P47: 2002-11-17 | Q47: 10.2 | R47: 8.9 | S47: 8.9
B48: 2002-11-18 | C48: 5 | D48: 1 | E48: 10.14256287 | F48: 0.01337335686 | G48: 0.06005690966 | H48: 0.0313403773 | I48: 0 | J48: 0.0047575399 | K48: 0 | L48: - | M48: - | N48: - | O48: - | P48: 2002-11-18 | Q48: 9.9 | R48: 11 | S48: 11
B49: 2002-11-19 | C49: 6 | D49: 1 | E49: 10.11586285 | F49: 0.0111606555 | G49: 0.07121756516 | H49: 0.01696890119 | I49: 0 | J49: 0.002246454137 | K49: 0 | L49: - | M49: - | N49: - | O49: - | P49: 2002-11-19 | Q49: 9.7 | R49: 8.3 | S49: 8.3
B50: 2002-11-20 | C50: 7 | D50: 1 | E50: 10.08971882 | F50: 0.009797497098 | G50: 0.08101506226 | H50: 0.01191181175 | I50: 0 | J50: 0.00154913753 | K50: 0 | L50: - | M50: - | N50: - | O50: - | P50: 2002-11-20 | Q50: 9.5 | R50: 7 | S50: 7
B51: 2002-11-21 | C51: 8 | D51: 1 | E51: 10.06415081 | F51: 0.009437829958 | G51: 0.09045289221 | H51: 0.01125123301 | I51: 0 | J51: 0.001462460524 | K51: 0 | L51: - | M51: - | N51: - | O51: - | P51: 2002-11-21 | Q51: 9.3 | R51: 6.8 | S51: 6.8
B52: 2002-11-22 | C52: 9 | D52: 1 | E52: 10.03917313 | F52: 0.009987742753 | G52: 0.100440635 | H52: 0.01407944269 | I52: 0 | J52: 0.001840125618 | K52: 0 | L52: - | M52: - | N52: - | O52: - | P52: 2002-11-22 | Q52: 9.2 | R52: 7.6 | S52: 7.6
B53: 2002-11-23 | C53: 10 | D53: 1 | E53: 10.01480579 | F53: 0.009638873618 | G53: 0.1100795086 | H53: 0.013325495 | I53: 0 | J53: 0.001737697159 | K53: 0 | L53: - | M53: - | N53: - | O53: - | P53: 2002-11-23 | Q53: 9 | R53: 7.4 | S53: 7.4
B54: 2002-11-24 | C54: 11 | D54: 1 | E54: 9.991063118 | F54: 0.009887065924 | G54: 0.1199665745 | H54: 0.0152699852 | I54: 0 | J54: 0.002004768727 | K54: 0 | L54: - | M54: - | N54: - | O54: - | P54: 2002-11-24 | Q54: 8.8 | R54: 7.9 | S54: 7.9
B55: 2002-11-25 | C55: 12 | D55: 1 | E55: 9.967964172 | F55: 0.01175144629 | G55: 0.1317180208 | H55: 0.03074204885 | I55: 0 | J55: 0.004630474323 | K55: 0 | L55: - | M55: - | N55: - | O55: - | P55: 2002-11-25 | Q55: 8.7 | R55: 10.9 | S55: 10.9
B56: 2002-11-26 | C56: 13 | D56: 1 | E56: 9.945526123 | F56: 0.01194870027 | G56: 0.1436667211 | H56: 0.03558080724 | I56: 0 | J56: 0.005738466741 | K56: 0 | L56: - | M56: - | N56: - | O56: - | P56: 2002-11-26 | Q56: 8.5 | R56: 11.7 | S56: 11.7
B57: 2002-11-27 | C57: 14 | D57: 1 | E57: 9.923764229 | F57: 0.009684227641 | G57: 0.1533509487 | H57: 0.01696890119 | I57: 0 | J57: 0.002246454137 | K57: 0 | L57: - | M57: - | N57: - | O57: - | P57: 2002-11-27 | Q57: 8.3 | R57: 8.3 | S57: 8.3
B58: 2002-11-28 | C58: 15 | D58: 1 | E58: 9.902696609 | F58: 0.008987059279 | G58: 0.162338008 | H58: 0.01407944269 | I58: 0 | J58: 0.001840125618 | K58: 0 | L58: - | M58: - | N58: - | O58: - | P58: 2002-11-28 | Q58: 8.2 | R58: 7.6 | S58: 7.6
B59: 2002-11-29 | C59: 16 | D59: 1 | E59: 9.882339478 | F59: 0.00711267082 | G59: 0.1694506788 | H59: 0.007659211703 | I59: 0 | J59: 0.001003865813 | K59: 0 | L59: - | M59: - | N59: - | O59: - | P59: 2002-11-29 | Q59: 8 | R59: 5.5 | S59: 5.5
B60: 2002-11-30 | C60: 17 | D60: 1 | E60: 9.862709999 | F60: 0.006405233616 | G60: 0.1758559124 | H60: 0.006175783403 | I60: 0 | J60: 0.0008187990119 | K60: 0 | L60: - | M60: - | N60: - | O60: - | P60: 2002-11-30 | Q60: 7.8 | R60: 4.8 | S60: 4.8
B61: 2002-12-01 | C61: 18 | D61: 1 | E61: 9.843822479 | F61: 0.006631926329 | G61: 0.1824878388 | H61: 0.00698842958 | I61: 0 | J61: 0.000919994135 | K61: 0 | L61: - | M61: - | N61: - | O61: - | P61: 2002-12-01 | Q61: 7.7 | R61: 5.2 | S61: 5.2
B62: 2002-12-02 | C62: 19 | D62: 1 | E62: 9.825695038 | F62: 0.007650025728 | G62: 0.1901378645 | H62: 0.01062076829 | I62: 0 | J62: 0.001380507866 | K62: 0 | L62: - | M62: - | N62: - | O62: - | P62: 2002-12-02 | Q62: 7.5 | R62: 6.6 | S62: 6.6
B63: 2002-12-03 | C63: 20 | D63: 1 | E63: 9.808341026 | F63: 0.008205599469 | G63: 0.1983434639 | H63: 0.01369850951 | I63: 0 | J63: 0.001788202806 | K63: 0 | L63: - | M63: - | N63: - | O63: - | P63: 2002-12-03 | Q63: 7.3 | R63: 7.5 | S63: 7.5
B64: 2002-12-04 | C64: 21 | D64: 1 | E64: 9.791775703 | F64: 0.008634208519 | G64: 0.2069776725 | H64: 0.01696890119 | I64: 0 | J64: 0.002246454137 | K64: 0 | L64: - | M64: - | N64: - | O64: - | P64: 2002-12-04 | Q64: 7.1 | R64: 8.3 | S64: 8.3
B65: 2002-12-05 | C65: 22 | D65: 1 | E65: 9.776015282 | F65: 0.007747509335 | G65: 0.2147251818 | H65: 0.01260307406 | I65: 0 | J65: 0.001640794101 | K65: 0 | L65: - | M65: - | N65: - | O65: - | P65: 2002-12-05 | Q65: 6.9 | R65: 7.2 | S65: 7.2
B66: 2002-12-06 | C66: 23 | D66: 1 | E66: 9.761072159 | F66: 0.00770801433 | G66: 0.2224331961 | H66: 0.01296036404 | I66: 0 | J66: 0.001688572671 | K66: 0 | L66: - | M66: - | N66: - | O66: - | P66: 2002-12-06 | Q66: 6.7 | R66: 7.3 | S66: 7.3
B67: 2002-12-07 | C67: 24 | D67: 1 | E67: 9.74696064 | F67: 0.006587035364 | G67: 0.2290202315 | H67: 0.008641272394 | I67: 0 | J67: 0.001127456855 | K67: 0 | L67: - | M67: - | N67: - | O67: - | P67: 2002-12-07 | Q67: 6.5 | R67: 5.9 | S67: 5.9
B68: 2002-12-08 | C68: 25 | D68: 1 | E68: 9.733693123 | F68: 0.005309543187 | G68: 0.2343297747 | H68: 0.005280780856 | I68: 0 | J68: 0.0007076083842 | K68: 0 | L68: - | M68: - | N68: - | O68: - | P68: 2002-12-08 | Q68: 6.3 | R68: 4.3 | S68: 4.3
B69: 2002-12-09 | C69: 26 | D69: 1 | E69: 9.721282959 | F69: 0.004736807791 | G69: 0.2390665825 | H69: 0.004227545634 | I69: 0 | J69: 0.0005765740748 | K69: 0 | L69: - | M69: - | N69: - | O69: - | P69: 2002-12-09 | Q69: 6.2 | R69: 3.6 | S69: 3.6
B70: 2002-12-10 | C70: 27 | D70: 1 | E70: 9.709741592 | F70: 0.006981721627 | G70: 0.2460483041 | H70: 0.01125123301 | I70: 0 | J70: 0.001462460524 | K70: 0 | L70: - | M70: - | N70: - | O70: - | P70: 2002-12-10 | Q70: 6 | R70: 6.8 | S70: 6.8
B71: 2002-12-11 | C71: 28 | D71: 1 | E71: 9.699079514 | F71: 0.005484173733 | G71: 0.2515324778 | H71: 0.006175783403 | I71: 0 | J71: 0.0008187990119 | K71: 0 | L71: - | M71: - | N71: - | O71: - | P71: 2002-12-11 | Q71: 5.8 | R71: 4.8 | S71: 4.8
B72: 2002-12-12 | C72: 29 | D72: 1 | E72: 9.689308167 | F72: 0.005713642898 | G72: 0.2572461207 | H72: 0.00698842958 | I72: 0 | J72: 0.000919994135 | K72: 0 | L72: - | M72: - | N72: - | O72: - | P72: 2002-12-12 | Q72: 5.6 | R72: 5.2 | S72: 5.2
B73: 2002-12-13 | C73: 30 | D73: 1 | E73: 9.680436134 | F73: 0.005024973233 | G73: 0.262271094 | H73: 0.005280780856 | I73: 0 | J73: 0.0007076083842 | K73: 0 | L73: - | M73: - | N73: - | O73: - | P73: 2002-12-13 | Q73: 5.5 | R73: 4.3 | S73: 4.3
B74: 2002-12-14 | C74: 31 | D74: 1 | E74: 9.672472 | F74: 0.005261312739 | G74: 0.2675324067 | H74: 0.005986434214 | I74: 0 | J74: 0.0007952633981 | K74: 0 | L74: - | M74: - | N74: - | O74: - | P74: 2002-12-14 | Q74: 5.3 | R74: 4.7 | S74: 4.7
B75: 2002-12-15 | C75: 32 | D75: 1 | E75: 9.665425301 | F75: 0.005082468599 | G75: 0.2726148753 | H75: 0.005623490893 | I75: 0 | J75: 0.0007501743895 | K75: 0 | L75: - | M75: - | N75: - | O75: - | P75: 2002-12-15 | Q75: 5.2 | R75: 4.5 | S75: 4.5
B76: 2002-12-16 | C76: 33 | D76: 1 | E76: 9.659301758 | F76: 0.004911147488 | G76: 0.2775260228 | H76: 0.005280780856 | I76: 0 | J76: 0.0007076083842 | K76: 0 | L76: - | M76: - | N76: - | O76: - | P76: 2002-12-16 | Q76: 5.1 | R76: 4.3 | S76: 4.3
B77: 2002-12-17 | C77: 34 | D77: 1 | E77: 9.654108047 | F77: 0.004477872831 | G77: 0.2820038956 | H77: 0.004364962962 | I77: 0 | J77: 0.0005937085953 | K77: 0 | L77: - | M77: - | N77: - | O77: - | P77: 2002-12-17 | Q77: 4.9 | R77: 3.7 | S77: 3.7
B78: 2002-12-18 | C78: 35 | D78: 1 | E78: 9.649850845 | F78: 0.004456766818 | G78: 0.2864606624 | H78: 0.004364962962 | I78: 0 | J78: 0.0005937085953 | K78: 0 | L78: =IF(C79=1,"◎","-") -> - | M78: - | N78: - | O78: - | P78: 2002-12-18 | Q78: 4.8 | R78: 3.7 | S78: =IF(DATE(IF($B$10>=10,2002,2003),$B$10,$C$10)>=B78,"",IF(R78="",Q78+$U$9,R78)) -> 3.7
B79: 2002-12-19 | C79: 36 | D79: 1 | E79: =INDIRECT("気象データ!"&$D$6&ROW()+320) -> 9.646533012 | F79: 0.00552212757 | G79: 0.29198279 | H79: =1/(1+EXP(-0.3403*(S79-11.7356)))/13.9674 -> 0.007205990688 | I79: 0 | J79: =1/(1+EXP(-0.296*(S79-18.9596)))/18.1999 -> 0.0009471565556 | K79: 0 | L79: - | M79: - | N79: - | O79: - | P79: 2002-12-19 | Q79: =INDIRECT("気象データ!"&$D$6&ROW()-8) -> 4.7 | R79: 5.3 | S79: 5.3
B80: 2002-12-20 | C80: 37 | D80: 1 | E80: 9.644159317 | F80: 0.005032071835 | G80: 0.2970148618 | H80: 0.005802375549 | I80: 0 | J80: 0.0007723946396 | K80: 0 | L80: - | M80: - | N80: - | O80: - | P80: 2002-12-20 | Q80: 4.6 | R80: 4.6 | S80: 4.6
B81: 2002-12-21 | C81: 38 | D81: 1 | E81: 9.642731667 | F81: 0.004754341858 | G81: 0.3017692037 | H81: 0.005116726146 | I81: 0 | J81: 0.0006872282618 | K81: 0 | L81: - | M81: - | N81: - | O81: - | P81: 2002-12-21 | Q81: 4.5 | R81: 4.2 | S81: 4.2
B82: 2002-12-22 | C82: 39 | D82: 1 | E82: 9.642251968 | F82: 0.003902262071 | G82: 0.3056714658 | H82: 0.003373688049 | I82: 0 | J82: 0.0004695944989 | K82: 0 | L82: - | M82: - | N82: - | O82: - | P82: 2002-12-22 | Q82: 4.4 | R82: 2.9 | S82: 2.9
B83: 2002-12-23 | C83: 40 | D83: 1 | E83: 9.642721176 | F83: 0.0031819721 | G83: 0.3088534379 | H83: 0.00227862153 | I83: 0 | J83: 0.0003300446556 | K83: 0 | L83: - | M83: - | N83: - | O83: - | P83: 2002-12-23 | Q83: 4.3 | R83: 1.7 | S83: 1.7
B84: 2002-12-24 | C84: 41 | D84: 1 | E84: 9.64413929 | F84: 0.004037792273 | G84: 0.3128912301 | H84: 0.003599349957 | I84: 0 | J84: 0.0004979742936 | K84: 0 | L84: - | M84: - | N84: - | O84: - | P84: 2002-12-24 | Q84: 4.2 | R84: 3.1 | S84: 3.1
B85: 2002-12-25 | C85: 42 | D85: 1 | E85: 9.646505356 | F85: 0.002971437124 | G85: 0.3158626673 | H85: 0.0019967267 | I85: 0 | J85: 0.0002933888621 | K85: 0 | L85: - | M85: - | N85: - | O85: - | P85: 2002-12-25 | Q85: 4.1 | R85: 1.3 | S85: 1.3
B86: 2002-12-26 | C86: 43 | D86: 1 | E86: 9.649816513 | F86: 0.004193129207 | G86: 0.3200557965 | H86: 0.003839256669 | I86: 0 | J86: 0.0005280525869 | K86: 0 | L86: - | M86: - | N86: - | O86: - | P86: 2002-12-26 | Q86: 3.9 | R86: 3.3 | S86: 3.3
B87: 2002-12-27 | C87: 44 | D87: 1 | E87: 9.654070854 | F87: 0.005225144381 | G87: 0.3252809409 | H87: 0.006175783403 | I87: 0 | J87: 0.0008187990119 | K87: 0 | L87: - | M87: - | N87: - | O87: - | P87: 2002-12-27 | Q87: 3.8 | R87: 4.8 | S87: 4.8
B88: 2002-12-28 | C88: 45 | D88: 1 | E88: 9.659263611 | F88: 0.003599469741 | G88: 0.3288804106 | H88: 0.002774768292 | I88: =IF(G88>1,I87+H88,0) -> 0 | J88: 0.0003937283655 | K88: 0 | L88: - | M88: - | N88: - | O88: - | P88: 2002-12-28 | Q88: 3.7 | R88: 2.3 | S88: 2.3
B89: 2002-12-29 | C89: 46 | D89: 1 | E89: 9.665390015 | F89: 0.00338083266 | G89: 0.3322612433 | H89: 0.002433648708 | I89: 0 | J89: 0.0003500449919 | K89: 0 | L89: - | M89: - | N89: - | O89: - | P89: 2002-12-29 | Q89: 3.6 | R89: 1.9 | S89: 1.9
B90: 2002-12-30 | C90: 47 | D90: 1 | E90: 9.672444344 | F90: =IF((E90-8.827682)<=0,0,(1-EXP(-0.2129892*(E90-8.827682)))/(1+EXP(-0.2556636*(S90-5.019251)))/15.01105) -> 0.003651545494 | G90: 0.3359127888 | H90: 0.002774768292 | I90: 0 | J90: 0.0003937283655 | K90: 0 | L90: - | M90: - | N90: - | O90: - | P90: 2002-12-30 | Q90: 3.5 | R90: 2.3 | S90: 2.3
B91: 2002-12-31 | C91: 48 | D91: 1 | E91: 9.680420876 | F91: 0.004201440606 | G91: 0.3401142294 | H91: 0.003599349957 | I91: 0 | J91: 0.0004979742936 | K91: 0 | L91: - | M91: - | N91: - | O91: - | P91: 2002-12-31 | Q91: 3.5 | R91: 3.1 | S91: 3.1
B92: 2003-01-01 | C92: 49 | D92: 1 | E92: 9.69054985 | F92: 0.005506723801 | G92: 0.3456209532 | H92: 0.006370540122 | I92: 0 | J92: 0.0008430203123 | K92: 0 | L92: - | M92: - | N92: - | O92: - | P92: 2003-01-01 | Q92: 3.4 | R92: 4.9 | S92: 4.9
B93: 2003-01-02 | C93: 50 | D93: 1 | E93: 9.700464249 | F93: 0.004706459376 | G93: 0.3503274125 | H93: 0.004364962962 | I93: 0 | J93: 0.0005937085953 | K93: 0 | L93: - | M93: - | N93: - | O93: - | P93: 2003-01-02 | Q93: 3.3 | R93: 3.7 | S93: 3.7
B94: 2003-01-03 | C94: 51 | D94: 1 | E94: 9.711275101 | F94: 0.00312670092 | G94: 0.3534541135 | H94: 0.001931723721 | I94: 0 | J94: 0.0002848761866 | K94: 0 | L94: - | M94: - | N94: - | O94: - | P94: 2003-01-03 | Q94: 3.3 | R94: 1.2 | S94: 1.2
B95: 2003-01-04 | C95: 52 | D95: 1 | E95: 9.722970963 | F95: 0.003915762844 | G95: 0.3573698763 | H95: 0.002866972429 | I95: 0 | J95: 0.0004054696352 | K95: 0 | L95: - | M95: - | N95: - | O95: - | P95: 2003-01-04 | Q95: 3.2 | R95: 2.4 | S95: 2.4
B96: 2003-01-05 | C96: 53 | D96: 1 | E96: 9.735541344 | F96: 0.002972074712 | G96: 0.360341951 | H96: 0.001691697244 | I96: 0 | J96: 0.0002532136865 | K96: 0 | L96: - | M96: - | N96: - | O96: - | P96: 2003-01-05 | Q96: 3.2 | R96: 0.8 | S96: 0.8
B97: 2003-01-06 | C97: 54 | D97: =+IF((COUNT(S97))=1,1)+IF((COUNT(S97=0)),0) -> 1 | E97: 9.7489748 | F97: 0.002787863498 | G97: 0.3631298145 | H97: 0.001480861286 | I97: 0 | J97: 0.0002250558185 | K97: 0 | L97: - | M97: - | N97: - | O97: - | P97: 2003-01-06 | Q97: 3.2 | R97: 0.4 | S97: 0.4
B98: 2003-01-07 | C98: =+C97+D98 -> 55 | D98: 1 | E98: 9.763260841 | F98: 0.002772007803 | G98: 0.3659018223 | H98: 0.001432306577 | I98: 0 | J98: 0.0002185178982 | K98: 0 | L98: - | M98: - | N98: - | O98: - | P98: 2003-01-07 | Q98: 3.1 | R98: 0.3 | S98: 0.3
B99: 2003-01-08 | C99: 56 | D99: 1 | E99: 9.778384209 | F99: 0.004934575998 | G99: 0.3708363983 | H99: 0.00409419101 | I99: =IF(G99>1,I98+H99,0) -> 0 | J99: 0.0005599289648 | K99: =IF(I99>1,K98+J99,0) -> 0 | L99: - | M99: =IF(AND(G99>=1,(G98)<1),"◎","-") -> - | N99: =IF(AND(I99>=1,(I98)<1),"◎","-") -> - | O99: =IF(AND(K99>=1,(K98)<1),"◎","-") -> - | P99: 2003-01-08 | Q99: 3.1 | R99: 3.5 | S99: 3.5
B100: 2003-01-09 | C100: 57 | D100: 1 | E100: 9.794334412 | F100: 0.006024254618 | G100: 0.3768606529 | H100: 0.006175783403 | I100: 0 | J100: 0.0008187990119 | K100: 0 | L100: - | M100: - | N100: - | O100: - | P100: 2003-01-09 | Q100: 3.1 | R100: 4.8 | S100: 4.8
B101: 2003-01-10 | C101: 58 | D101: 1 | E101: 9.811095238 | F101: 0.003317900504 | G101: 0.3801785534 | H101: 0.001807834179 | I101: 0 | J101: 0.0002685810483 | K101: 0 | L101: - | M101: - | N101: - | O101: - | P101: 2003-01-10 | Q101: 3 | R101: 1 | S101: 1
B102: 2003-01-11 | C102: 59 | D102: 1 | E102: 9.828653336 | F102: 0.003123373014 | G102: 0.3833019264 | H102: 0.001582851836 | I102: 0 | J102: 0.0002387217578 | K102: 0 | L102: - | M102: - | N102: - | O102: - | P102: 2003-01-11 | Q102: 3 | R102: 0.6 | S102: 0.6
B103: 2003-01-12 | C103: 60 | D103: 1 | E103: 9.846993446 | F103: 0.003758507806 | G103: 0.3870604343 | H103: 0.002133165233 | I103: 0 | J103: 0.0003111805546 | K103: 0 | L103: - | M103: - | N103: - | O103: - | P103: 2003-01-12 | Q103: 3 | R103: 1.5 | S103: 1.5
B104: 2003-01-13 | C104: 61 | D104: 1 | E104: 9.866101265 | F104: 0.003483752064 | G104: 0.3905441863 | H104: 0.001807834179 | I104: 0 | J104: 0.0002685810483 | K104: 0 | L104: - | M104: - | N104: - | O104: - | P104: 2003-01-13 | Q104: 2.9 | R104: 1 | S104: 1
B105: 2003-01-14 | C105: 62 | D105: 1 | E105: 9.885960579 | F105: 0.002375438169 | G105: 0.3929196245 | H105: 0.0009268846594 | I105: 0 | J105: 0.0001489095449 | K105: 0 | L105: - | M105: - | N105: - | O105: - | P105: 2003-01-14 | Q105: 2.9 | R105: -1 | S105: -1
B106: 2003-01-15 | C106: 63 | D106: 1 | E106: 9.906556129 | F106: 0.002737023779 | G106: 0.3956566483 | H106: 0.00113351746 | I106: 0 | J106: 0.000177756115 | K106: 0 | L106: - | M106: - | N106: - | O106: - | P106: 2003-01-15 | Q106: 2.9 | R106: -0.4 | S106: -0.4
B107: 2003-01-16 | C107: 64 | D107: 1 | E107: 9.92787075 | F107: 0.002900667794 | G107: 0.3985573161 | H107: 0.001211999112 | I107: 0 | J107: 0.0001885597979 | K107: 0 | L107: - | M107: - | N107: - | O107: - | P107: 2003-01-16 | Q107: 2.9 | R107: -0.2 | S107: -0.2
B108: 2003-01-17 | C108: 65 | D108: 1 | E108: 9.949888229 | F108: 0.006612068404 | G108: 0.4051693845 | H108: 0.005623490893 | I108: 0 | J108: 0.0007501743895 | K108: 0 | L108: - | M108: - | N108: - | O108: - | P108: 2003-01-17 | Q108: 2.9 | R108: 4.5 | S108: 4.5
B109: 2003-01-18 | C109: 66 | D109: 1 | E109: 9.972592354 | F109: 0.003728267151 | G109: 0.4088976516 | H109: 0.001748826036 | I109: 0 | J109: 0.0002607847366 | K109: 0 | L109: - | M109: - | N109: - | O109: - | P109: 2003-01-18 | Q109: 2.9 | R109: 0.9 | S109: 0.9
B110: 2003-01-19 | C110: 67 | D110: 1 | E110: 9.995965958 | F110: 0.003795310083 | G110: =IF(D110=0,0,G109+F110) -> 0.4126929617 | H110: 0.001748826036 | I110: =IF(G110>1,I109+H110,0) -> 0 | J110: 0.0002607847366 | K110: 0 | L110: - | M110: - | N110: - | O110: - | P110: 2003-01-19 | Q110: 2.9 | R110: 0.9 | S110: 0.9
B111: 2003-01-20 | C111: 68 | D111: 1 | E111: 10.01999092 | F111: 0.003307388888 | G111: 0.4160003506 | H111: 0.001339830727 | I111: =IF(G111>1,I110+H111,0) -> 0 | J111: 0.0002060041999 | K111: 0 | L111: - | M111: =IF(AND(G111>=1,(G110)<1),"◎","-") -> - | N111: - | O111: - | P111: 2003-01-20 | Q111: 2.9 | R111: 0.1 | S111: 0.1
B112: 2003-01-21 | C112: 69 | D112: 1 | E112: 10.04465199 | F112: 0.005594064015 | G112: 0.4215944146 | H112: 0.003373688049 | I112: 0 | J112: 0.0004695944989 | K112: 0 | L112: - | M112: =IF(AND(G112>=1,(G111)<1),"◎","-") -> - | N112: - | O112: - | P112: 2003-01-21 | Q112: 2.9 | R112: 2.9 | S112: 2.9
B113: 2003-01-22 | C113: 70 | D113: 1 | E113: 10.06993103 | F113: 0.004237211949 | G113: 0.4258316265 | H113: 0.001931723721 | I113: 0 | J113: 0.0002848761866 | K113: 0 | L113: - | M113: =IF(AND(G113>=1,(G112)<1),"◎","-") -> - | N113: - | O113: - | P113: 2003-01-22 | Q113: 2.9 | R113: 1.2 | S113: 1.2
B114: 2003-01-23 | C114: 71 | D114: 1 | E114: 10.09581089 | F114: 0.005338684223 | G114: 0.4311703108 | H114: 0.002866972429 | I114: 0 | J114: 0.0004054696352 | K114: 0 | L114: - | M114: - | N114: - | O114: - | P114: 2003-01-23 | Q114: 2.9 | R114: 2.4 | S114: 2.4
B115: 2003-01-24 | C115: 72 | D115: 1 | E115: 10.1222744 | F115: 0.006388752686 | G115: 0.4375590635 | H115: 0.003964795385 | I115: 0 | J115: 0.0005437595763 | K115: 0 | L115: - | M115: - | N115: - | O115: - | P115: 2003-01-24 | Q115: 2.9 | R115: 3.4 | S115: 3.4
B116: 2003-01-25 | C116: 73 | D116: 1 | E116: 10.14930439 | F116: 0.005627686103 | G116: 0.4431867496 | H116: 0.002962108589 | I116: 0 | J116: 0.0004175583582 | K116: 0 | L116: - | M116: - | N116: - | O116: - | P116: 2003-01-25 | Q116: 2.9 | R116: 2.5 | S116: 2.5
B117: 2003-01-26 | C117: 74 | D117: 1 | E117: 10.17688274 | F117: 0.008192471501 | G117: 0.4513792211 | H117: 0.006370540122 | I117: 0 | J117: 0.0008430203123 | K117: 0 | L117: - | M117: - | N117: - | O117: - | P117: 2003-01-26 | Q117: 3 | R117: 4.9 | S117: 4.9
B118: 2003-01-27 | C118: 75 | D118: 1 | E118: 10.2049942 | F118: 0.003675297786 | G118: 0.4550545188 | H118: 0.001295814689 | I118: 0 | J118: 0.0002000177103 | K118: 0 | L118: - | M118: - | N118: - | O118: - | P118: 2003-01-27 | Q118: 3 | R118: 0 | S118: 0
B119: 2003-01-28 | C119: 76 | D119: 1 | E119: 10.23362064 | F119: 0.00739456254 | G119: 0.4624490814 | H119: 0.004652408331 | I119: 0 | J119: 0.0006295025095 | K119: 0 | L119: - | M119: - | N119: - | O119: - | P119: 2003-01-28 | Q119: 3 | R119: 3.9 | S119: 3.9
B120: 2003-01-29 | C120: 77 | D120: 1 | E120: 10.26274586 | F120: 0.008079179018 | G120: 0.4705282604 | H120: 0.005449664365 | I120: 0 | J120: 0.0007285847744 | K120: 0 | L120: - | M120: - | N120: - | O120: - | P120: 2003-01-29 | Q120: 3 | R120: 4.4 | S120: 4.4
B121: 2003-01-30 | C121: 78 | D121: 1 | E121: 10.29235268 | F121: 0.008334738388 | G121: 0.4788629988 | H121: 0.005623490893 | I121: 0 | J121: 0.0007501743895 | K121: 0 | L121: - | M121: - | N121: - | O121: - | P121: 2003-01-30 | Q121: 3 | R121: 4.5 | S121: 4.5
B122: 2003-01-31 | C122: 79 | D122: 1 | E122: 10.32242584 | F122: 0.010214747 | G122: 0.4890777458 | H122: 0.008903198281 | I122: 0 | J122: 0.001160612933 | K122: 0 | L122: - | M122: - | N122: - | O122: - | P122: 2003-01-31 | Q122: 3.1 | R122: 6 | S122: 6
B123: 2003-02-01 | C123: 80 | D123: 1 | E123: 10.35294724 | F123: 0.007016725794 | G123: 0.4960944716 | H123: 0.003599349957 | I123: 0 | J123: 0.0004979742936 | K123: 0 | L123: - | M123: - | N123: - | O123: - | P123: 2003-02-01 | Q123: 3.1 | R123: 3.1 | S123: 3.1
B124: 2003-02-02 | C124: 81 | D124: 1 | E124: 10.38390255 | F124: 0.009614292779 | G124: 0.5057087644 | H124: 0.00698842958 | I124: 0 | J124: 0.000919994135 | K124: 0 | L124: - | M124: - | N124: - | O124: - | P124: 2003-02-02 | Q124: 3.1 | R124: 5.2 | S124: 5.2
B125: 2003-02-03 | C125: 82 | D125: 1 | E125: 10.41527557 | F125: 0.01169503548 | G125: 0.5174037998 | H125: 0.01125123301 | I125: 0 | J125: 0.001462460524 | K125: 0 | L125: - | M125: - | N125: - | O125: - | P125: 2003-02-03 | Q125: 3.2 | R125: 6.8 | S125: 6.8
B126: 2003-02-04 | C126: 83 | D126: 1 | E126: 10.44705009 | F126: 0.006358993321 | G126: 0.5237627932 | H126: 0.002685413649 | I126: 0 | J126: 0.0003823247068 | K126: 0 | L126: - | M126: - | N126: - | O126: - | P126: 2003-02-04 | Q126: 3.2 | R126: 2.2 | S126: 2.2
B127: 2003-02-05 | C127: 84 | D127: 1 | E127: 10.47921181 | F127: 0.002202168486 | G127: 0.5259649617 | H127: 0.0004566109626 | I127: 0 | J127: 8.007745819e-05 | K127: 0 | L127: - | M127: - | N127: - | O127: - | P127: 2003-02-05 | Q127: 3.3 | R127: -3.1 | S127: -3.1
B128: 2003-02-06 | C128: 85 | D128: 1 | E128: 10.51174545 | F128: 0.002989309956 | G128: 0.5289542716 | H128: 0.0007081665781 | I128: 0 | J128: 0.0001175790225 | K128: 0 | L128: - | M128: - | N128: - | O128: - | P128: 2003-02-06 | Q128: 3.3 | R128: -1.8 | S128: -1.8
B129: 2003-02-07 | C129: 86 | D129: 1 | E129: 10.54463577 | F129: 0.004699298251 | G129: 0.5336535699 | H129: 0.001432306577 | I129: 0 | J129: 0.0002185178982 | K129: 0 | L129: - | M129: - | N129: - | O129: - | P129: 2003-02-07 | Q129: 3.4 | R129: 0.3 | S129: 0.3
B130: 2003-02-08 | C130: 87 | D130: 1 | E130: 10.57786942 | F130: 0.003364583394 | G130: 0.5370181533 | H130: 0.0008102623221 | I130: 0 | J130: 0.0001323224436 | K130: 0 | L130: - | M130: - | N130: - | O130: - | P130: 2003-02-08 | Q130: 3.4 | R130: -1.4 | S130: -1.4
B131: 2003-02-09 | C131: 88 | D131: 1 | E131: 10.61143208 | F131: 0.004945741311 | G131: 0.5419638946 | H131: 0.001480861286 | I131: 0 | J131: 0.0002250558185 | K131: 0 | L131: - | M131: - | N131: - | O131: - | P131: 2003-02-09 | Q131: 3.5 | R131: 0.4 | S131: 0.4
B132: 2003-02-10 | C132: 89 | D132: 1 | E132: 10.6453104 | F132: 0.005959984081 | G132: 0.5479238786 | H132: 0.0019967267 | I132: 0 | J132: 0.0002933888621 | K132: 0 | L132: - | M132: - | N132: - | O132: - | P132: 2003-02-10 | Q132: 3.6 | R132: 1.3 | S132: 1.3
B133: 2003-02-11 | C133: 90 | D133: 1 | E133: 10.67949009 | F133: 0.006507729251 | G133: 0.5544316079 | H133: 0.00227862153 | I133: 0 | J133: 0.0003300446556 | K133: 0 | L133: - | M133: - | N133: - | O133: - | P133: 2003-02-11 | Q133: 3.7 | R133: 1.7 | S133: 1.7
B134: 2003-02-12 | C134: 91 | D134: 1 | E134: 10.71395874 | F134: 0.008105863875 | G134: 0.5625374718 | H134: 0.003373688049 | I134: 0 | J134: 0.0004695944989 | K134: 0 | L134: - | M134: - | N134: - | O134: - | P134: 2003-02-12 | Q134: 3.8 | R134: 2.9 | S134: 2.9
B135: 2003-02-13 | C135: 92 | D135: 1 | E135: 10.748703 | F135: 0.007194437108 | G135: 0.5697319089 | H135: 0.002598827795 | I135: 0 | J135: 0.0003712490875 | K135: 0 | L135: - | M135: - | N135: - | O135: - | P135: 2003-02-13 | Q135: 3.9 | R135: 2.1 | S135: 2.1
B136: 2003-02-14 | C136: 93 | D136: 1 | E136: 10.78371048 | F136: 0.005331288437 | G136: 0.5750631973 | H136: 0.001480861286 | I136: 0 | J136: 0.0002250558185 | K136: 0 | L136: - | M136: - | N136: - | O136: - | P136: 2003-02-14 | Q136: 3.9 | R136: 0.4 | S136: 0.4
B137: 2003-02-15 | C137: 94 | D137: 1 | E137: 10.81896973 | F137: 0.007151319799 | G137: 0.5822145171 | H137: 0.002433648708 | I137: 0 | J137: 0.0003500449919 | K137: 0 | L137: - | M137: - | N137: - | O137: - | P137: 2003-02-15 | Q137: 4 | R137: 1.9 | S137: 1.9
B138: 2003-02-16 | C138: 95 | D138: 1 | E138: 10.85446835 | F138: 0.01120126802 | G138: 0.5934157851 | H138: 0.005986434214 | I138: 0 | J138: 0.0007952633981 | K138: 0 | L138: - | M138: - | N138: - | O138: - | P138: 2003-02-16 | Q138: 4.1 | R138: 4.7 | S138: 4.7
B139: 2003-02-17 | C139: 96 | D139: 1 | E139: 10.89019585 | F139: 0.01030735434 | G139: 0.6037231395 | H139: 0.004802651382 | I139: 0 | J139: 0.0006481911948 | K139: 0 | L139: - | M139: - | N139: - | O139: - | P139: 2003-02-17 | Q139: 4.2 | R139: 4 | S139: 4
B140: 2003-02-18 | C140: 97 | D140: 1 | E140: 10.92613983 | F140: 0.007856758754 | G140: 0.6115798982 | H140: 0.002685413649 | I140: 0 | J140: 0.0003823247068 | K140: 0 | L140: - | M140: - | N140: - | O140: - | P140: 2003-02-18 | Q140: 4.3 | R140: 2.2 | S140: 2.2
B141: 2003-02-19 | C141: 98 | D141: 1 | E141: 10.96228981 | F141: 0.007035996806 | G141: 0.618615895 | H141: 0.002133165233 | I141: 0 | J141: 0.0003111805546 | K141: 0 | L141: - | M141: - | N141: - | O141: - | P141: 2003-02-19 | Q141: 4.4 | R141: 1.5 | S141: 1.5
B142: 2003-02-20 | C142: 99 | D142: 1 | E142: 10.99863529 | F142: 0.007525228334 | G142: 0.6261411234 | H142: 0.002354903106 | I142: 0 | J142: 0.0003398986631 | K142: 0 | L142: =IF(C143=1,"◎","-") -> - | M142: - | N142: - | O142: - | P142: 2003-02-20 | Q142: 4.5 | R142: 1.8 | S142: =IF(DATE(IF($B$10>=10,2002,2003),$B$10,$C$10)>=B142,"",IF(R142="",Q142+$U$9,R142)) -> 1.8
B143: 2003-02-21 | C143: 100 | D143: 1 | E143: =INDIRECT("気象データ!"&$D$6&ROW()+320) -> 11.03516674 | F143: 0.007489669629 | G143: 0.633630793 | H143: =1/(1+EXP(-0.3403*(S143-11.7356)))/13.9674 -> 0.00227862153 | I143: 0 | J143: =1/(1+EXP(-0.296*(S143-18.9596)))/18.1999 -> 0.0003300446556 | K143: 0 | L143: - | M143: - | N143: - | O143: - | P143: 2003-02-21 | Q143: =INDIRECT("気象データ!"&$D$6&ROW()-8) -> 4.6 | R143: 1.7 | S143: 1.7
B144: 2003-02-22 | C144: 101 | D144: 1 | E144: 11.07187366 | F144: 0.007185703982 | G144: 0.640816497 | H144: 0.002063852242 | I144: 0 | J144: 0.0003021545074 | K144: 0 | L144: - | M144: - | N144: - | O144: - | P144: 2003-02-22 | Q144: 4.7 | R144: 1.4 | S144: 1.4
B145: 2003-02-23 | C145: 102 | D145: 1 | E145: 11.10874653 | F145: 0.009125305344 | G145: 0.6499418023 | H145: 0.00316151624 | I145: 0 | J145: 0.0004428189283 | K145: 0 | L145: - | M145: - | N145: - | O145: - | P145: 2003-02-23 | Q145: 4.9 | R145: 2.7 | S145: 2.7
B146: 2003-02-24 | C146: 103 | D146: 1 | E146: 11.14577579 | F146: 0.01048950429 | G146: 0.6604313066 | H146: 0.00409419101 | I146: 0 | J146: 0.0005599289648 | K146: 0 | L146: - | M146: - | N146: - | O146: - | P146: 2003-02-24 | Q146: 5 | R146: 3.5 | S146: 3.5
B147: 2003-02-25 | C147: 104 | D147: 1 | E147: 11.18295288 | F147: 0.01160232362 | G147: 0.6720336302 | H147: 0.004957387022 | I147: 0 | J147: 0.0006674278925 | K147: 0 | L147: - | M147: - | N147: - | O147: - | P147: 2003-02-25 | Q147: 5.1 | R147: 4.1 | S147: 4.1
B148: 2003-02-26 | C148: 105 | D148: 1 | E148: 11.22026825 | F148: 0.01377598457 | G148: 0.6858096148 | H148: 0.007205990688 | I148: 0 | J148: 0.0009471565556 | K148: 0 | L148: - | M148: - | N148: - | O148: - | P148: 2003-02-26 | Q148: 5.2 | R148: 5.3 | S148: 5.3
B149: 2003-02-27 | C149: 106 | D149: 1 | E149: 11.25771427 | F149: 0.01663246802 | G149: 0.7024420828 | H149: 0.01157772046 | I149: 0 | J149: 0.001505192804 | K149: 0 | L149: - | M149: - | N149: - | O149: - | P149: 2003-02-27 | Q149: 5.4 | R149: 6.9 | S149: 6.9
B150: 2003-02-28 | C150: 107 | D150: 1 | E150: 11.29528236 | F150: 0.02287010548 | G150: 0.7253121883 | H150: 0.034363379 | I150: 0 | J150: 0.005441275585 | K150: 0 | L150: - | M150: - | N150: - | O150: - | P150: 2003-02-28 | Q150: 5.5 | R150: 11.5 | S150: 11.5
B151: 2003-03-01 | C151: 108 | D151: 1 | E151: 11.33296394 | F151: 0.01685577743 | G151: 0.7421679658 | H151: 0.01125123301 | I151: 0 | J151: 0.001462460524 | K151: 0 | L151: - | M151: - | N151: - | O151: - | P151: 2003-03-01 | Q151: 5.6 | R151: 6.8 | S151: 6.8
B152: 2003-03-02 | C152: 109 | D152: 1 | E152: 11.37075138 | F152: 0.01282967556 | G152: 0.7549976413 | H152: 0.005449664365 | I152: 0 | J152: 0.0007285847744 | K152: 0 | L152: - | M152: - | N152: - | O152: - | P152: 2003-03-02 | Q152: 5.7 | R152: 4.4 | S152: 4.4
B153: 2003-03-03 | C153: 110 | D153: 1 | E153: 11.408638 | F153: 0.01315222771 | G153: 0.768149869 | H153: 0.005623490893 | I153: 0 | J153: 0.0007501743895 | K153: 0 | L153: - | M153: - | N153: - | O153: - | P153: 2003-03-03 | Q153: 5.9 | R153: 4.5 | S153: 4.5
B154: 2003-03-04 | C154: 111 | D154: 1 | E154: 11.44661522 | F154: =IF((E154-8.827682)<=0,0,(1-EXP(-0.2129892*(E154-8.827682)))/(1+EXP(-0.2556636*(S154-5.019251)))/15.01105) -> 0.01150928102 | G154: 0.77965915 | H154: 0.00409419101 | I154: 0 | J154: 0.0005599289648 | K154: 0 | L154: - | M154: - | N154: - | O154: - | P154: 2003-03-04 | Q154: 6 | R154: 3.5 | S154: 3.5
B155: 2003-03-05 | C155: 112 | D155: 1 | E155: 11.48467731 | F155: 0.01380752231 | G155: 0.7934666724 | H155: 0.005986434214 | I155: 0 | J155: 0.0007952633981 | K155: 0 | L155: - | M155: - | N155: - | O155: - | P155: 2003-03-05 | Q155: 6.1 | R155: 4.7 | S155: 4.7
B156: 2003-03-06 | C156: 113 | D156: 1 | E156: 11.5228157 | F156: 0.01157870116 | G156: 0.8050453735 | H156: 0.003964795385 | I156: 0 | J156: 0.0005437595763 | K156: 0 | L156: - | M156: - | N156: - | O156: - | P156: 2003-03-06 | Q156: 6.2 | R156: 3.4 | S156: 3.4
B157: 2003-03-07 | C157: 114 | D157: 1 | E157: 11.56102562 | F157: 0.009455394915 | G157: 0.8145007684 | H157: 0.002598827795 | I157: 0 | J157: 0.0003712490875 | K157: 0 | L157: - | M157: - | N157: - | O157: - | P157: 2003-03-07 | Q157: 6.3 | R157: 2.1 | S157: 2.1
B158: 2003-03-08 | C158: 115 | D158: 1 | E158: 11.59929848 | F158: 0.009886906117 | G158: 0.8243876745 | H158: 0.002774768292 | I158: 0 | J158: 0.0003937283655 | K158: 0 | L158: - | M158: - | N158: - | O158: - | P158: 2003-03-08 | Q158: 6.4 | R158: 2.3 | S158: 2.3
B159: 2003-03-09 | C159: 116 | D159: 1 | E159: 11.63762856 | F159: 0.01139265562 | G159: 0.8357803302 | H159: 0.003599349957 | I159: 0 | J159: 0.0004979742936 | K159: 0 | L159: - | M159: - | N159: - | O159: - | P159: 2003-03-09 | Q159: 6.6 | R159: 3.1 | S159: 3.1
B160: 2003-03-10 | C160: 117 | D160: 1 | E160: 11.67601013 | F160: 0.01096374497 | G160: 0.8467440751 | H160: 0.003265961933 | I160: 0 | J160: 0.0004560118775 | K160: 0 | L160: - | M160: - | N160: - | O160: - | P160: 2003-03-10 | Q160: 6.7 | R160: 2.8 | S160: 2.8
B161: 2003-03-11 | C161: 118 | D161: =+IF((COUNT(S161))=1,1)+IF((COUNT(S161=0)),0) -> 1 | E161: 11.71443748 | F161: 0.01053492727 | G161: 0.8572790024 | H161: 0.002962108589 | I161: 0 | J161: 0.0004175583582 | K161: 0 | L161: - | M161: - | N161: - | O161: - | P161: 2003-03-11 | Q161: 6.8 | R161: 2.5 | S161: 2.5
B162: 2003-03-12 | C162: =+C161+D162 -> 119 | D162: 1 | E162: 11.75290298 | F162: 0.02018494337 | G162: 0.8774639458 | H162: 0.01369850951 | I162: 0 | J162: 0.001788202806 | K162: 0 | L162: - | M162: - | N162: - | O162: - | P162: 2003-03-12 | Q162: 7 | R162: 7.5 | S162: 7.5
B163: 2003-03-13 | C163: 120 | D163: 1 | E163: 11.79140186 | F163: 0.02321098391 | G163: 0.9006749297 | H163: 0.02124526967 | I163: 0 | J163: 0.002896055866 | K163: =IF(I163>1,K162+J163,0) -> 0 | L163: - | M163: =IF(AND(G163>=1,(G162)<1),"◎","-") -> - | N163: =IF(AND(I163>=1,(I162)<1),"◎","-") -> - | O163: =IF(AND(K163>=1,(K162)<1),"◎","-") -> - | P163: 2003-03-13 | Q163: 7.1 | R163: 9.2 | S163: 9.2
B164: 2003-03-14 | C164: 121 | D164: 1 | E164: 11.8299284 | F164: 0.02092632324 | G164: 0.9216012529 | H164: 0.0144683218 | I164: 0 | J164: 0.001893502373 | K164: 0 | L164: - | M164: - | N164: - | O164: - | P164: 2003-03-14 | Q164: 7.3 | R164: 7.7 | S164: 7.7
B165: 2003-03-15 | C165: 122 | D165: 1 | E165: 11.86847591 | F165: 0.01705596516 | G165: 0.9386572181 | H165: 0.007895103451 | I165: 0 | J165: 0.001033457139 | K165: 0 | L165: - | M165: - | N165: - | O165: - | P165: 2003-03-15 | Q165: 7.5 | R165: 5.6 | S165: 5.6
B166: 2003-03-16 | C166: 123 | D166: 1 | E166: 11.9070406 | F166: 0.020376041 | G166: 0.9590332591 | H166: 0.01260307406 | I166: 0 | J166: 0.001640794101 | K166: 0 | L166: - | M166: - | N166: - | O166: - | P166: 2003-03-16 | Q166: 7.7 | R166: 7.2 | S166: 7.2
B167: 2003-03-17 | C167: 124 | D167: 1 | E167: 11.94561577 | F167: 0.02167848221 | G167: 0.9807117413 | H167: 0.01486516584 | I167: 0 | J167: 0.001948370628 | K167: 0 | L167: - | M167: - | N167: - | O167: - | P167: 2003-03-17 | Q167: 7.8 | R167: 7.8 | S167: 7.8
B168: 2003-03-18 | C168: 125 | D168: 1 | E168: 11.98419666 | F168: 0.02727109524 | G168: 1.007982837 | H168: 0.03375573275 | I168: 0.03375573275 | J168: 0.005297876313 | K168: 0 | L168: - | M168: ◎ | N168: - | O168: - | P168: 2003-03-18 | Q168: 8 | R168: 11.4 | S168: 11.4
B169: 2003-03-19 | C169: 126 | D169: 1 | E169: 12.0227766 | F169: 0.02463836139 | G169: 1.032621198 | H169: 0.02175720086 | I169: 0.05551293361 | J169: 0.002978344303 | K169: 0 | L169: - | M169: - | N169: - | O169: - | P169: 2003-03-19 | Q169: 8.1 | R169: 9.3 | S169: 9.3
B170: 2003-03-20 | C170: 127 | D170: 1 | E170: 12.06135273 | F170: 0.01906461077 | G170: 1.051685809 | H170: 0.009447502954 | I170: 0.06496043657 | J170: 0.001229811427 | K170: 0 | L170: - | M170: - | N170: - | O170: - | P170: 2003-03-20 | Q170: 8.2 | R170: 6.2 | S170: 6.2
B171: 2003-03-21 | C171: 128 | D171: 1 | E171: 12.09991741 | F171: 0.02165392284 | G171: 1.073339732 | H171: 0.013325495 | I171: 0.07828593156 | J171: 0.001737697159 | K171: 0 | L171: - | M171: - | N171: - | O171: - | P171: 2003-03-21 | Q171: 8.4 | R171: 7.4 | S171: 7.4
B172: 2003-03-22 | C172: 129 | D172: 1 | E172: 12.13846684 | F172: 0.01937793711 | G172: 1.092717669 | H172: 0.009447502954 | I172: 0.08773343452 | J172: 0.001229811427 | K172: 0 | L172: - | M172: - | N172: - | O172: - | P172: 2003-03-22 | Q172: 8.5 | R172: 6.2 | S172: 6.2
B173: 2003-03-23 | C173: 130 | D173: 1 | E173: 12.17699528 | F173: 0.02316462314 | G173: 1.115882292 | H173: 0.01568278127 | I173: 0.1034162158 | J173: 0.0020627358 | K173: 0 | L173: - | M173: - | N173: - | O173: - | P173: 2003-03-23 | Q173: 8.6 | R173: 8 | S173: 8
B174: 2003-03-24 | C174: 131 | D174: 1 | E174: 12.21549797 | F174: 0.02719323148 | G174: =IF(D174=0,0,G173+F174) -> 1.143075523 | H174: 0.02722330715 | I174: 0.1306395229 | J174: 0.003930896543 | K174: =IF(I174>1,K173+J174,0) -> 0 | L174: - | M174: - | N174: - | O174: - | P174: 2003-03-24 | Q174: 8.7 | R174: 10.3 | S174: 10.3
B175: 2003-03-25 | C175: 132 | D175: 1 | E175: 12.25396919 | F175: 0.0306260917 | G175: 1.173701615 | H175: 0.04396201293 | I175: =IF(G175>1,I174+H175,0) -> 0.1746015359 | J175: 0.008242920659 | K175: =IF(I175>1,K174+J175,0) -> 0 | L175: - | M175: - | N175: - | O175: - | P175: 2003-03-25 | Q175: 8.8 | R175: 13.1 | S175: 13.1
B176: 2003-03-26 | C176: 133 | D176: 1 | E176: 12.29240417 | F176: 0.03085844977 | G176: 1.204560065 | H176: 0.04396201293 | I176: 0.2185635488 | J176: 0.008242920659 | K176: 0 | L176: - | M176: - | N176: - | O176: - | P176: 2003-03-26 | Q176: 9 | R176: 13.1 | S176: 13.1
B177: 2003-03-27 | C177: 134 | D177: 1 | E177: 12.3307972 | F177: 0.02810533304 | G177: 1.232665398 | H177: 0.02838059832 | I177: 0.2469441471 | J177: 0.0041525137 | K177: 0 | L177: - | M177: - | N177: - | O177: - | P177: 2003-03-27 | Q177: 9.1 | R177: 10.5 | S177: 10.5
B178: 2003-03-28 | C178: 135 | D178: 1 | E178: 12.36914253 | F178: 0.02938567089 | G178: 1.262051069 | H178: 0.03314926474 | I178: 0.2800934119 | J178: 0.005157862432 | K178: 0 | L178: - | M178: - | N178: - | O178: - | P178: 2003-03-28 | Q178: 9.3 | R178: 11.3 | S178: 11.3
B179: 2003-03-29 | C179: 136 | D179: 1 | E179: 12.40743637 | F179: 0.03221263923 | G179: 1.294263708 | H179: 0.04841559284 | I179: 0.3285090047 | J179: 0.01004277684 | K179: 0 | L179: - | M179: - | N179: - | O179: - | P179: 2003-03-29 | Q179: 9.5 | R179: 13.9 | S179: 13.9
B180: 2003-03-30 | C180: 137 | D180: 1 | E180: 12.44567299 | F180: 0.03176634701 | G180: 1.326030055 | H180: 0.04396201293 | I180: 0.3724710176 | J180: 0.008242920659 | K180: 0 | L180: - | M180: - | N180: - | O180: - | P180: 2003-03-30 | Q180: 9.7 | R180: 13.1 | S180: 13.1
B181: 2003-03-31 | C181: 138 | D181: 1 | E181: 12.48384571 | F181: 0.03198789291 | G181: 1.358017948 | H181: 0.04396201293 | I181: 0.4164330306 | J181: 0.008242920659 | K181: 0 | L181: - | M181: - | N181: - | O181: - | P181: 2003-03-31 | Q181: 9.9 | R181: 13.1 | S181: 13.1
B182: 2003-04-01 | C182: 139 | D182: 1 | E182: 12.52195072 | F182: 0.0300910251 | G182: 1.388108973 | H182: 0.03254432151 | I182: 0.4489773521 | J182: 0.005021174641 | K182: 0 | L182: - | M182: - | N182: - | O182: - | P182: 2003-04-01 | Q182: 10.1 | R182: 11.2 | S182: 11.2
B183: 2003-04-02 | C183: 140 | D183: 1 | E183: 12.55998135 | F183: 0.03104793069 | G183: 1.419156904 | H183: 0.03618988579 | I183: 0.4851672379 | J183: 0.00589237623 | K183: 0 | L183: - | M183: - | N183: - | O183: - | P183: 2003-04-02 | Q183: 10.3 | R183: 11.8 | S183: 11.8
B184: 2003-04-03 | C184: 141 | D184: 1 | E184: 12.59793186 | F184: 0.03193559707 | G184: 1.451092501 | H184: 0.03982733131 | I184: 0.5249945692 | J184: 0.006893863173 | K184: 0 | L184: - | M184: - | N184: - | O184: - | P184: 2003-04-03 | Q184: 10.5 | R184: 12.4 | S184: 12.4
B185: 2003-04-04 | C185: 142 | D185: 1 | E185: 12.6357975 | F185: 0.03285214599 | G185: 1.483944647 | H185: 0.04396201293 | I185: 0.5689565821 | J185: 0.008242920659 | K185: 0 | L185: - | M185: - | N185: - | O185: - | P185: 2003-04-04 | Q185: 10.7 | R185: 13.1 | S185: 13.1
B186: 2003-04-05 | C186: 143 | D186: 1 | E186: 12.67357159 | F186: 0.02860690524 | G186: 1.512551552 | H186: 0.023871977 | I186: 0.5928285591 | J186: 0.003330016697 | K186: 0 | L186: - | M186: - | N186: - | O186: - | P186: 2003-04-05 | Q186: 10.9 | R186: 9.7 | S186: 9.7
B187: 2003-04-06 | C187: 144 | D187: 1 | E187: 12.7112484 | F187: 0.02270936743 | G187: 1.535260919 | H187: 0.01093227535 | I187: 0.6037608345 | J187: 0.001420909153 | K187: 0 | L187: - | M187: - | N187: - | O187: - | P187: 2003-04-06 | Q187: 11.1 | R187: 6.7 | S187: 6.7
B188: 2003-04-07 | C188: 145 | D188: 1 | E188: 12.74882126 | F188: 0.02825931699 | G188: 1.563520236 | H188: 0.02175720086 | I188: 0.6255180353 | J188: 0.002978344303 | K188: 0 | L188: - | M188: - | N188: - | O188: - | P188: 2003-04-07 | Q188: 11.2 | R188: 9.3 | S188: 9.3
B189: 2003-04-08 | C189: 146 | D189: 1 | E189: 12.78628445 | F189: 0.0322511029 | G189: 1.595771339 | H189: 0.03618988579 | I189: 0.6617079211 | J189: 0.00589237623 | K189: 0 | L189: - | M189: - | N189: - | O189: - | P189: 2003-04-08 | Q189: 11.4 | R189: 11.8 | S189: 11.8
B190: 2003-04-09 | C190: 147 | D190: 1 | E190: 12.82363224 | F190: 0.0328078013 | G190: 1.628579141 | H190: 0.03801435232 | I190: 0.6997222734 | J190: 0.0063760579 | K190: 0 | L190: - | M190: - | N190: - | O190: - | P190: 2003-04-09 | Q190: 11.6 | R190: 12.1 | S190: 12.1
B191: 2003-04-10 | C191: 148 | D191: 1 | E191: 12.86085701 | F191: 0.03388201565 | G191: 1.662461156 | H191: 0.04279860422 | I191: 0.7425208776 | J191: 0.00783668222 | K191: 0 | L191: - | M191: - | N191: - | O191: - | P191: 2003-04-10 | Q191: 11.8 | R191: 12.9 | S191: 12.9
B192: 2003-04-11 | C192: 149 | D192: 1 | E192: 12.89795208 | F192: 0.02912057935 | G192: 1.691581736 | H192: 0.02227601011 | I192: 0.7647968877 | J192: 0.003062833293 | K192: 0 | L192: - | M192: - | N192: - | O192: - | P192: 2003-04-11 | Q192: 12 | R192: 9.4 | S192: 9.4
B193: 2003-04-12 | C193: 150 | D193: 1 | E193: 12.93491173 | F193: 0.02982786742 | G193: 1.721409603 | H193: 0.023871977 | I193: 0.7886688647 | J193: 0.003330016697 | K193: 0 | L193: - | M193: - | N193: - | O193: - | P193: 2003-04-12 | Q193: 12.2 | R193: 9.7 | S193: 9.7
B194: 2003-04-13 | C194: 151 | D194: 1 | E194: 12.97172737 | F194: 0.03118015614 | G194: 1.752589759 | H194: 0.02779975324 | I194: 0.816468618 | J194: 0.00404030644 | K194: 0 | L194: - | M194: - | N194: - | O194: - | P194: 2003-04-13 | Q194: 12.4 | R194: 10.4 | S194: 10.4
B195: 2003-04-14 | C195: 152 | D195: 1 | E195: 13.00839329 | F195: 0.03387122439 | G195: 1.786460983 | H195: 0.03862041658 | I195: 0.8550890346 | J195: 0.006544793528 | K195: 0 | L195: - | M195: - | N195: - | O195: - | P195: 2003-04-14 | Q195: 12.6 | R195: 12.2 | S195: 12.2
B196: 2003-04-15 | C196: 153 | D196: 1 | E196: 13.04490089 | F196: 0.03524218201 | G196: 1.821703165 | H196: 0.04510750864 | I196: 0.9001965432 | J196: 0.008666343665 | K196: 0 | L196: - | M196: - | N196: - | O196: - | P196: 2003-04-15 | Q196: 12.8 | R196: 13.3 | S196: 13.3
B197: 2003-04-16 | C197: 154 | D197: 1 | E197: 13.08124352 | F197: 0.03754079704 | G197: 1.859243963 | H197: 0.05873862351 | I197: 0.9589351667 | J197: 0.01683715359 | K197: 0 | L197: - | M197: - | N197: - | O197: - | P197: 2003-04-16 | Q197: 13 | R197: 16.2 | S197: 16.2
B198: 2003-04-17 | C198: 155 | D198: 1 | E198: 13.11741257 | F198: 0.03721394595 | G198: 1.896457908 | H198: 0.05518730814 | I198: 1.014122475 | J198: 0.01389529966 | K198: 0.01389529966 | L198: - | M198: - | N198: ◎ | O198: - | P198: 2003-04-17 | Q198: 13.2 | R198: 15.3 | S198: 15.3
B199: 2003-04-18 | C199: 156 | D199: 1 | E199: 13.15340042 | F199: 0.0296567428 | G199: 1.926114651 | H199: 0.02074037111 | I199: 1.034862846 | J199: 0.002815917774 | K199: 0.01671121743 | L199: - | M199: - | N199: - | O199: - | P199: 2003-04-18 | Q199: 13.4 | R199: 9.1 | S199: 9.1
B200: 2003-04-19 | C200: 157 | D200: 1 | E200: 13.18919945 | F200: 0.030197814 | G200: 1.956312465 | H200: 0.02175720086 | I200: 1.056620047 | J200: 0.002978344303 | K200: 0.01968956174 | L200: - | M200: - | N200: - | O200: - | P200: 2003-04-19 | Q200: 13.5 | R200: 9.3 | S200: 9.3
B201: 2003-04-20 | C201: 158 | D201: 1 | E201: 13.22480011 | F201: 0.02954879311 | G201: 1.985861258 | H201: 0.01975222897 | I201: 1.076372276 | J201: 0.002661895579 | K201: 0.02235145732 | L201: - | M201: - | N201: - | O201: - | P201: 2003-04-20 | Q201: 13.7 | R201: 8.9 | S201: 8.9
B202: 2003-04-21 | C202: 159 | D202: 1 | E202: 13.26019382 | F202: 0.03418134824 | G202: 2.020042607 | H202: 0.034363379 | I202: 1.110735655 | J202: 0.005441275585 | K202: 0.0277927329 | L202: - | M202: - | N202: - | O202: - | P202: 2003-04-21 | Q202: 13.9 | R202: 11.5 | S202: 11.5
B203: 2003-04-22 | C203: 160 | D203: 1 | E203: 13.29537296 | F203: 0.03715444866 | G203: 2.057197055 | H203: 0.04894578331 | I203: 1.159681438 | J203: 0.01028799409 | K203: 0.03808072699 | L203: - | M203: - | N203: - | O203: - | P203: 2003-04-22 | Q203: 14.1 | R203: 14 | S203: 14
... 80 more rows

Sheet 茎立期～
K2: 予測実施日 | N2: =TODAY() -> 2022-04-18
B3: 茎立期から予測
B5: 予測地域 | D5: 地名コード | L5: 予測値
B6: 下館 | D6: =HLOOKUP(B6,気象データ!$B$4:$O$5,2,FALSE) -> I | L6: 播種期: | M6: - | N6: -
L7: 出芽期: | M7: - | N7: -
B8: 茎立期 | L8: 茎立期 | M8: =VLOOKUP("◎",J14:M283,4,FALSE) -> 2003-03-21 | N8: =+IF(COUNT(M8)=1,M8,"*月 *日") -> 2003-03-21 | U8: 平年比
B9: 月 | C9: 日 | L9: 出穂期 | M9: =VLOOKUP("◎",K14:M283,3,FALSE) -> 2003-04-21 | N9: =+IF(COUNT(M9)=1,M9,"*月 *日") -> 2003-04-21 | U9: 0 | V9: ℃
B10: 3 | C10: 21 | L10: 成熟期 | M10: =VLOOKUP("◎",L14:M283,2,FALSE) -> 2003-06-03 | N10: =+IF(COUNT(M10)=1,M10,"*月 *日") -> 2003-06-03 | U10: で推移した場合
B12: 月･日 | C12: 茎立後 日数 | D12: 茎立後 | E12: 日長(時間) | H12: 予測する本年の気温(茎立期～予測日)と生育値 | J12: 判 定 | M12: 月･日 | N12: 平年平均 気温(℃) (水戸地方気象台1991-2020) | R12: 本年 平均 気温 (℃) | S12: 予測用データ
D13: 日数 | F13: DVR2 | G13: DVR2積算 | H13: DVR3 | I13: DVR3積算 | J13: 茎立期 | K13: 出穂期 | L13: 成熟期
B14: 2002-10-15 | C14: =+C13+D14 -> 0 | D14: =+IF((COUNT(S14))=1,1)+IF((COUNT(S14=0)),0) -> 0 | E14: 11.26513481 | F14: =1/(1+EXP(-0.3403*(S14-11.7356)))/13.9674 ->  | G14: =IF(D14=0,0,F14) -> 0 | H14: =1/(1+EXP(-0.296*(S14-18.9596)))/18.1999 ->  | I14: =IF(G14>1,H14,0) -> 0 | J14: =IF(C15=1,"◎","-") -> - | K14: =IF(AND(G14>=1,(G13)<1),"◎","-") -> - | L14: =IF(AND(I14>=1,(I13)<1),"◎","-") -> - | M14: 2002-10-15 | N14: =INDIRECT("気象データ!"&$D$6&ROW()-8) -> 16.7 | R14: 16.6 | S14: =IF(DATE(IF($B$10>=10,2002,2003),$B$10,$C$10)>=B14,"",IF(R14="",N14+$U$9,R14)) -> 
B15: 2002-10-16 | C15: 0 | D15: 0 | E15: 11.22772598 | F15: =1/(1+EXP(-0.3403*(S15-11.7356)))/13.9674 ->  | G15: =IF(D15=0,0,G14+F15) -> 0 | H15: =1/(1+EXP(-0.296*(S15-18.9596)))/18.1999 ->  | I15: =IF(G15>1,I14+H15,0) -> 0 | J15: - | K15: - | L15: - | M15: 2002-10-16 | N15: =INDIRECT("気象データ!"&$D$6&ROW()-8) -> 16.5 | R15: 17.9 | S15: =IF(DATE(IF($B$10>=10,2002,2003),$B$10,$C$10)>=B15,"",IF(R15="",N15+$U$9,R15)) -> 
B16: 2002-10-17 | C16: 0 | D16: 0 | E16: 11.19043636 | G16: 0 | I16: 0 | J16: - | K16: - | L16: - | M16: 2002-10-17 | N16: 16.3 | R16: 14.5
B17: 2002-10-18 | C17: 0 | D17: 0 | E17: 11.15327644 | G17: 0 | I17: 0 | J17: - | K17: - | L17: - | M17: 2002-10-18 | N17: 16.1 | R17: 14.7
B18: 2002-10-19 | C18: 0 | D18: 0 | E18: 11.1162529 | G18: 0 | I18: 0 | J18: - | K18: - | L18: - | M18: 2002-10-19 | N18: 15.9 | R18: 14.5
B19: 2002-10-20 | C19: 0 | D19: 0 | E19: 11.07937431 | G19: 0 | I19: 0 | J19: - | K19: - | L19: - | M19: 2002-10-20 | N19: 15.7 | R19: 14.2
B20: 2002-10-21 | C20: 0 | D20: 0 | E20: 11.04265022 | G20: 0 | I20: 0 | J20: - | K20: - | L20: - | M20: 2002-10-21 | N20: 15.5 | R20: 17.1
B21: 2002-10-22 | C21: 0 | D21: 0 | E21: 11.00609016 | G21: 0 | I21: 0 | J21: - | K21: - | L21: - | M21: 2002-10-22 | N21: 15.3 | R21: 16.6
B22: 2002-10-23 | C22: 0 | D22: 0 | E22: 10.96970272 | G22: 0 | I22: 0 | J22: - | K22: - | L22: - | M22: 2002-10-23 | N22: 15.1 | R22: 15.4
B23: 2002-10-24 | C23: 0 | D23: 0 | E23: 10.93349838 | G23: 0 | I23: 0 | J23: - | K23: - | L23: - | M23: 2002-10-24 | N23: 14.9 | R23: 14.7
B24: 2002-10-25 | C24: 0 | D24: 0 | E24: 10.89748669 | G24: 0 | I24: 0 | J24: - | K24: - | L24: - | M24: 2002-10-25 | N24: 14.7 | R24: 17.8
B25: 2002-10-26 | C25: 0 | D25: 0 | E25: 10.86167908 | G25: 0 | I25: 0 | J25: - | K25: - | L25: - | M25: 2002-10-26 | N25: 14.5 | R25: 13
B26: 2002-10-27 | C26: 0 | D26: 0 | E26: 10.82608414 | G26: 0 | I26: 0 | J26: - | K26: - | L26: - | M26: 2002-10-27 | N26: 14.3 | R26: 11.8
B27: 2002-10-28 | C27: 0 | D27: 0 | E27: 10.79072 | G27: 0 | I27: 0 | J27: - | K27: - | L27: - | M27: 2002-10-28 | N27: 14.1 | R27: 11.8
B28: 2002-10-29 | C28: 0 | D28: 0 | E28: 10.75558 | G28: 0 | I28: 0 | J28: - | K28: - | L28: - | M28: 2002-10-29 | N28: 13.9 | R28: 12.8
B29: 2002-10-30 | C29: 0 | D29: 0 | E29: 10.7207 | G29: 0 | I29: 0 | J29: - | K29: - | L29: - | M29: 2002-10-30 | N29: 13.7 | R29: 15.9
B30: 2002-10-31 | C30: 0 | D30: 0 | E30: 10.68607 | G30: 0 | I30: 0 | J30: - | K30: - | L30: - | M30: 2002-10-31 | N30: 13.5 | R30: 13.7
B31: 2002-11-01 | C31: 0 | D31: 0 | E31: 10.65172 | G31: 0 | I31: 0 | J31: - | K31: - | L31: - | M31: 2002-11-01 | N31: 13.3 | R31: 13.2
B32: 2002-11-02 | C32: 0 | D32: 0 | E32: 10.61765 | G32: 0 | I32: 0 | J32: - | K32: - | L32: - | M32: 2002-11-02 | N32: 13.1 | R32: 13.8
B33: 2002-11-03 | C33: 0 | D33: 0 | E33: 10.58388 | G33: 0 | I33: 0 | J33: - | K33: - | L33: - | M33: 2002-11-03 | N33: 12.9 | R33: 15.2
B34: 2002-11-04 | C34: 0 | D34: 0 | E34: 10.55042 | G34: 0 | I34: 0 | J34: - | K34: =IF(AND(G34>=1,(G33)<1),"◎","-") -> - | L34: - | M34: 2002-11-04 | N34: 12.8 | R34: 14
B35: 2002-11-05 | C35: 0 | D35: 0 | E35: 10.51728821 | G35: 0 | I35: 0 | J35: - | K35: - | L35: - | M35: 2002-11-05 | N35: 12.6 | R35: 11.4
B36: 2002-11-06 | C36: 0 | D36: 0 | E36: 10.48449326 | G36: 0 | I36: 0 | J36: - | K36: - | L36: - | M36: 2002-11-06 | N36: 12.4 | R36: 11.7
B37: 2002-11-07 | C37: 0 | D37: 0 | E37: 10.45205116 | G37: 0 | I37: 0 | J37: - | K37: - | L37: - | M37: 2002-11-07 | N37: 12.3 | R37: 11.8
B38: 2002-11-08 | C38: 0 | D38: 0 | E38: 10.41997719 | G38: 0 | I38: 0 | J38: - | K38: - | L38: - | M38: 2002-11-08 | N38: 12.1 | R38: 12.5
B39: 2002-11-09 | C39: 0 | D39: 0 | E39: 10.38828659 | G39: 0 | I39: 0 | J39: - | K39: - | L39: - | M39: 2002-11-09 | N39: 11.9 | R39: 10
B40: 2002-11-10 | C40: 0 | D40: 0 | E40: 10.35699272 | G40: 0 | I40: 0 | J40: - | K40: - | L40: =IF(AND(I40>=1,(I39)<1),"◎","-") -> - | M40: 2002-11-10 | N40: 11.7 | R40: 12.1
B41: 2002-11-11 | C41: 0 | D41: 0 | E41: 10.32611275 | G41: 0 | I41: 0 | J41: - | K41: - | L41: - | M41: 2002-11-11 | N41: 11.4 | R41: 8.8
B42: 2002-11-12 | C42: 0 | D42: 0 | E42: 10.29566193 | G42: 0 | I42: 0 | J42: - | K42: - | L42: - | M42: 2002-11-12 | N42: 11.2 | R42: 6.5
B43: 2002-11-13 | C43: 0 | D43: 0 | E43: 10.26565647 | G43: 0 | I43: 0 | J43: - | K43: - | L43: - | M43: 2002-11-13 | N43: 10.9 | R43: 5
B44: 2002-11-14 | C44: 0 | D44: 0 | E44: 10.23611164 | G44: 0 | I44: 0 | J44: - | K44: - | L44: - | M44: 2002-11-14 | N44: 10.7 | R44: 7
B45: 2002-11-15 | C45: 0 | D45: 0 | E45: 10.2070446 | G45: 0 | I45: 0 | J45: - | K45: - | L45: - | M45: 2002-11-15 | N45: 10.4 | R45: 7.7
B46: 2002-11-16 | C46: 0 | D46: 0 | E46: 10.17847252 | G46: 0 | I46: 0 | J46: - | K46: - | L46: - | M46: 2002-11-16 | N46: 10.2 | R46: 8.9
B47: 2002-11-17 | C47: 0 | D47: 0 | E47: 10.15041161 | G47: 0 | I47: 0 | J47: - | K47: - | L47: - | M47: 2002-11-17 | N47: 10 | R47: 8.9
B48: 2002-11-18 | C48: 0 | D48: 0 | E48: 10.12287998 | G48: 0 | I48: 0 | J48: - | K48: - | L48: - | M48: 2002-11-18 | N48: 9.8 | R48: 11
B49: 2002-11-19 | C49: 0 | D49: 0 | E49: 10.09589291 | G49: 0 | I49: 0 | J49: - | K49: - | L49: - | M49: 2002-11-19 | N49: 9.6 | R49: 8.3
B50: 2002-11-20 | C50: 0 | D50: 0 | E50: 10.0694685 | G50: 0 | I50: 0 | J50: - | K50: - | L50: - | M50: 2002-11-20 | N50: 9.4 | R50: 7
B51: 2002-11-21 | C51: 0 | D51: 0 | E51: 10.04362488 | G51: 0 | I51: 0 | J51: - | K51: - | L51: - | M51: 2002-11-21 | N51: 9.2 | R51: 6.8
B52: 2002-11-22 | C52: 0 | D52: 0 | E52: 10.01837826 | G52: 0 | I52: 0 | J52: - | K52: - | L52: - | M52: 2002-11-22 | N52: 9.1 | R52: 7.6
B53: 2002-11-23 | C53: 0 | D53: 0 | E53: 9.993746758 | G53: 0 | I53: 0 | J53: - | K53: - | L53: - | M53: 2002-11-23 | N53: 8.9 | R53: 7.4
B54: 2002-11-24 | C54: 0 | D54: 0 | E54: 9.969747543 | G54: 0 | I54: 0 | J54: - | K54: - | L54: - | M54: 2002-11-24 | N54: 8.8 | R54: 7.9
B55: 2002-11-25 | C55: 0 | D55: 0 | E55: 9.946398735 | G55: 0 | I55: 0 | J55: - | K55: - | L55: - | M55: 2002-11-25 | N55: 8.6 | R55: 10.9
B56: 2002-11-26 | C56: 0 | D56: 0 | E56: 9.923715591 | G56: 0 | I56: 0 | J56: - | K56: - | L56: - | M56: 2002-11-26 | N56: 8.5 | R56: 11.7
B57: 2002-11-27 | C57: 0 | D57: 0 | E57: 9.90171814 | G57: 0 | I57: 0 | J57: - | K57: - | L57: - | M57: 2002-11-27 | N57: 8.4 | R57: 8.3
B58: 2002-11-28 | C58: 0 | D58: 0 | E58: 9.880420685 | G58: 0 | I58: 0 | J58: - | K58: - | L58: - | M58: 2002-11-28 | N58: 8.2 | R58: 7.6
B59: 2002-11-29 | C59: 0 | D59: 0 | E59: 9.859841347 | G59: 0 | I59: 0 | J59: - | K59: - | L59: - | M59: 2002-11-29 | N59: 8 | R59: 5.5
B60: 2002-11-30 | C60: 0 | D60: 0 | E60: 9.839997292 | G60: 0 | I60: 0 | J60: - | K60: - | L60: - | M60: 2002-11-30 | N60: 7.8 | R60: 4.8
B61: 2002-12-01 | C61: 0 | D61: 0 | E61: 9.820902824 | G61: 0 | I61: 0 | J61: - | K61: - | L61: - | M61: 2002-12-01 | N61: 7.6 | R61: 5.2
B62: 2002-12-02 | C62: 0 | D62: 0 | E62: 9.802576065 | G62: 0 | I62: 0 | J62: - | K62: - | L62: - | M62: 2002-12-02 | N62: 7.4 | R62: 6.6
B63: 2002-12-03 | C63: 0 | D63: 0 | E63: 9.785032272 | G63: 0 | I63: 0 | J63: - | K63: - | L63: - | M63: 2002-12-03 | N63: 7.2 | R63: 7.5
B64: 2002-12-04 | C64: 0 | D64: 0 | E64: 9.768284798 | G64: 0 | I64: 0 | J64: - | K64: - | L64: - | M64: 2002-12-04 | N64: 7 | R64: 8.3
B65: 2002-12-05 | C65: 0 | D65: 0 | E65: 9.752350807 | G65: 0 | I65: 0 | J65: - | K65: - | L65: - | M65: 2002-12-05 | N65: 6.7 | R65: 7.2
B66: 2002-12-06 | C66: 0 | D66: 0 | E66: 9.737242699 | G66: 0 | I66: 0 | J66: - | K66: - | L66: - | M66: 2002-12-06 | N66: 6.5 | R66: 7.3
B67: 2002-12-07 | C67: 0 | D67: 0 | E67: 9.722975731 | G67: 0 | I67: 0 | J67: - | K67: - | L67: - | M67: 2002-12-07 | N67: 6.3 | R67: 5.9
B68: 2002-12-08 | C68: 0 | D68: 0 | E68: 9.709562302 | G68: 0 | I68: 0 | J68: - | K68: - | L68: - | M68: 2002-12-08 | N68: 6.1 | R68: 4.3
B69: 2002-12-09 | C69: 0 | D69: 0 | E69: 9.697014809 | G69: 0 | I69: 0 | J69: - | K69: - | L69: - | M69: 2002-12-09 | N69: 5.9 | R69: 3.6
B70: 2002-12-10 | C70: 0 | D70: 0 | E70: 9.685344696 | G70: 0 | I70: 0 | J70: - | K70: - | L70: - | M70: 2002-12-10 | N70: 5.7 | R70: 6.8
B71: 2002-12-11 | C71: 0 | D71: 0 | E71: 9.674565315 | G71: 0 | I71: 0 | J71: - | K71: - | L71: - | M71: 2002-12-11 | N71: 5.5 | R71: 4.8
B72: 2002-12-12 | C72: 0 | D72: 0 | E72: 9.664684296 | G72: 0 | I72: 0 | J72: - | K72: - | L72: - | M72: 2002-12-12 | N72: 5.3 | R72: 5.2
B73: 2002-12-13 | C73: 0 | D73: 0 | E73: 9.655714035 | G73: 0 | I73: 0 | J73: - | K73: - | L73: - | M73: 2002-12-13 | N73: 5.1 | R73: 4.3
B74: 2002-12-14 | C74: 0 | D74: 0 | E74: 9.647662163 | G74: 0 | I74: 0 | J74: - | K74: - | L74: - | M74: 2002-12-14 | N74: 5 | R74: 4.7
B75: 2002-12-15 | C75: 0 | D75: 0 | E75: 9.640536308 | G75: 0 | I75: 0 | J75: - | K75: - | L75: - | M75: 2002-12-15 | N75: 4.8 | R75: 4.5
B76: 2002-12-16 | C76: 0 | D76: 0 | E76: 9.634345055 | G76: 0 | I76: 0 | J76: - | K76: - | L76: - | M76: 2002-12-16 | N76: 4.7 | R76: 4.3
B77: 2002-12-17 | C77: 0 | D77: 0 | E77: 9.629094124 | G77: 0 | I77: 0 | J77: - | K77: - | L77: - | M77: 2002-12-17 | N77: 4.6 | R77: 3.7
B78: 2002-12-18 | C78: =+C77+D78 -> 0 | D78: =+IF((COUNT(S78))=1,1)+IF((COUNT(S78=0)),0) -> 0 | E78: 9.624789238 | G78: 0 | I78: 0 | J78: =IF(C79=1,"◎","-") -> - | K78: - | L78: - | M78: 2002-12-18 | N78: 4.5 | R78: 3.7
B79: 2002-12-19 | C79: 0 | D79: 0 | E79: 9.621434212 | F79: =1/(1+EXP(-0.3403*(S79-11.7356)))/13.9674 ->  | G79: =IF(D79=0,0,G78+F79) -> 0 | H79: =1/(1+EXP(-0.296*(S79-18.9596)))/18.1999 ->  | I79: =IF(G79>1,I78+H79,0) -> 0 | J79: - | K79: - | L79: - | M79: 2002-12-19 | N79: =INDIRECT("気象データ!"&$D$6&ROW()-8) -> 4.4 | R79: 5.3 | S79: =IF(DATE(IF($B$10>=10,2002,2003),$B$10,$C$10)>=B79,"",IF(R79="",N79+$U$9,R79)) -> 
B80: 2002-12-20 | C80: 0 | D80: 0 | E80: 9.619033813 | G80: 0 | I80: 0 | J80: - | K80: - | L80: - | M80: 2002-12-20 | N80: 4.2 | R80: 4.6
B81: 2002-12-21 | C81: 0 | D81: 0 | E81: 9.617589951 | G81: 0 | I81: 0 | J81: - | K81: - | L81: - | M81: 2002-12-21 | N81: 4.1 | R81: 4.2
B82: 2002-12-22 | C82: 0 | D82: 0 | E82: 9.617105484 | G82: 0 | I82: 0 | J82: - | K82: - | L82: - | M82: 2002-12-22 | N82: 4 | R82: 2.9
B83: 2002-12-23 | C83: 0 | D83: 0 | E83: 9.617580414 | G83: 0 | I83: 0 | J83: - | K83: - | L83: - | M83: 2002-12-23 | N83: 3.9 | R83: 1.7
B84: 2002-12-24 | C84: 0 | D84: 0 | E84: 9.619013786 | G84: 0 | I84: 0 | J84: - | K84: - | L84: - | M84: 2002-12-24 | N84: 3.8 | R84: 3.1
B85: 2002-12-25 | C85: 0 | D85: 0 | E85: 9.621405602 | G85: 0 | I85: 0 | J85: - | K85: - | L85: - | M85: 2002-12-25 | N85: 3.7 | R85: 1.3
B86: 2002-12-26 | C86: 0 | D86: 0 | E86: 9.624753952 | G86: 0 | I86: 0 | J86: - | K86: - | L86: - | M86: 2002-12-26 | N86: 3.5 | R86: 3.3
B87: 2002-12-27 | C87: 0 | D87: 0 | E87: 9.629055977 | G87: 0 | I87: 0 | J87: - | K87: - | L87: - | M87: 2002-12-27 | N87: 3.4 | R87: 4.8
B88: 2002-12-28 | C88: 0 | D88: 0 | E88: 9.634305954 | G88: 0 | I88: 0 | J88: - | K88: - | L88: - | M88: 2002-12-28 | N88: 3.2 | R88: 2.3
B89: 2002-12-29 | C89: 0 | D89: 0 | E89: 9.640501022 | G89: 0 | I89: 0 | J89: - | K89: - | L89: - | M89: 2002-12-29 | N89: 3.1 | R89: 1.9
B90: 2002-12-30 | C90: 0 | D90: 0 | E90: 9.647634506 | G90: 0 | I90: 0 | J90: - | K90: - | L90: - | M90: 2002-12-30 | N90: 3 | R90: 2.3
B91: 2002-12-31 | C91: 0 | D91: 0 | E91: 9.65569973 | G91: 0 | I91: 0 | J91: - | K91: - | L91: - | M91: 2002-12-31 | N91: 2.9 | R91: 3.1
B92: 2003-01-01 | C92: 0 | D92: 0 | E92: 9.66468811 | G92: 0 | I92: 0 | J92: - | K92: - | L92: - | M92: 2003-01-01 | N92: 2.8 | R92: 4.9
B93: 2003-01-02 | C93: 0 | D93: 0 | E93: 9.674592972 | G93: 0 | I93: 0 | J93: - | K93: - | L93: - | M93: 2003-01-02 | N93: 2.7 | R93: 3.7
B94: 2003-01-03 | C94: 0 | D94: 0 | E94: 9.685404778 | G94: 0 | I94: 0 | J94: - | K94: - | L94: - | M94: 2003-01-03 | N94: 2.7 | R94: 1.2
B95: 2003-01-04 | C95: 0 | D95: 0 | E95: 9.697113037 | G95: 0 | I95: 0 | J95: - | K95: - | L95: - | M95: 2003-01-04 | N95: 2.6 | R95: 2.4
B96: 2003-01-05 | C96: 0 | D96: 0 | E96: 9.70970726 | G96: 0 | I96: 0 | J96: - | K96: - | L96: - | M96: 2003-01-05 | N96: 2.6 | R96: 0.8
B97: 2003-01-06 | C97: 0 | D97: 0 | E97: 9.723175049 | G97: 0 | I97: 0 | J97: - | K97: - | L97: - | M97: 2003-01-06 | N97: 2.6 | R97: 0.4
B98: 2003-01-07 | C98: 0 | D98: 0 | E98: 9.737504959 | G98: 0 | I98: 0 | J98: - | K98: =IF(AND(G98>=1,(G97)<1),"◎","-") -> - | L98: =IF(AND(I98>=1,(I97)<1),"◎","-") -> - | M98: 2003-01-07 | N98: 2.6 | R98: 0.3
B99: 2003-01-08 | C99: 0 | D99: 0 | E99: 9.752685547 | G99: 0 | I99: 0 | J99: - | K99: - | L99: - | M99: 2003-01-08 | N99: 2.5 | R99: 3.5
B100: 2003-01-09 | C100: 0 | D100: 0 | E100: 9.768701553 | G100: 0 | I100: 0 | J100: - | K100: - | L100: - | M100: 2003-01-09 | N100: 2.5 | R100: 4.8
B101: 2003-01-10 | C101: 0 | D101: 0 | E101: 9.785539627 | G101: 0 | I101: 0 | J101: - | K101: - | L101: - | M101: 2003-01-10 | N101: 2.5 | R101: 1
B102: 2003-01-11 | C102: 0 | D102: 0 | E102: 9.803184509 | G102: 0 | I102: 0 | J102: - | K102: - | L102: - | M102: 2003-01-11 | N102: 2.5 | R102: 0.6
B103: 2003-01-12 | C103: 0 | D103: 0 | E103: 9.821622849 | G103: 0 | I103: 0 | J103: - | K103: - | L103: - | M103: 2003-01-12 | N103: 2.5 | R103: 1.5
B104: 2003-01-13 | C104: 0 | D104: 0 | E104: 9.840839386 | G104: 0 | I104: 0 | J104: - | K104: - | L104: - | M104: 2003-01-13 | N104: 2.5 | R104: 1
B105: 2003-01-14 | C105: 0 | D105: 0 | E105: 9.860816956 | G105: 0 | I105: 0 | J105: - | K105: - | L105: - | M105: 2003-01-14 | N105: 2.5 | R105: -1
B106: 2003-01-15 | C106: 0 | D106: 0 | E106: 9.881539345 | G106: 0 | I106: 0 | J106: - | K106: - | L106: - | M106: 2003-01-15 | N106: 2.5 | R106: -0.4
B107: 2003-01-16 | C107: 0 | D107: 0 | E107: 9.902991295 | G107: 0 | I107: 0 | J107: - | K107: - | L107: - | M107: 2003-01-16 | N107: 2.6 | R107: -0.2
B108: 2003-01-17 | C108: 0 | D108: 0 | E108: 9.925156593 | G108: 0 | I108: 0 | J108: - | K108: - | L108: - | M108: 2003-01-17 | N108: 2.6 | R108: 1.5
B109: 2003-01-18 | C109: 0 | D109: 0 | E109: 9.948016167 | G109: 0 | I109: 0 | J109: - | K109: - | L109: - | M109: 2003-01-18 | N109: 2.6 | R109: 0.9
B110: 2003-01-19 | C110: 0 | D110: 0 | E110: 9.971554756 | G110: 0 | I110: 0 | J110: - | K110: - | L110: - | M110: 2003-01-19 | N110: 2.6 | R110: 0.9
B111: 2003-01-20 | C111: 0 | D111: 0 | E111: 9.995755196 | G111: 0 | I111: 0 | J111: - | K111: - | L111: - | M111: 2003-01-20 | N111: 2.6 | R111: 0.1
B112: 2003-01-21 | C112: 0 | D112: 0 | E112: 10.02059841 | G112: 0 | I112: 0 | J112: - | K112: - | L112: - | M112: 2003-01-21 | N112: 2.6 | R112: 2.9
B113: 2003-01-22 | C113: 0 | D113: 0 | E113: 10.04606915 | G113: 0 | I113: 0 | J113: - | K113: - | L113: - | M113: 2003-01-22 | N113: 2.6 | R113: 1.2
B114: 2003-01-23 | C114: 0 | D114: 0 | E114: 10.07214832 | G114: 0 | I114: 0 | J114: - | K114: - | L114: - | M114: 2003-01-23 | N114: 2.6 | R114: 2.4
B115: 2003-01-24 | C115: 0 | D115: 0 | E115: 10.09881878 | G115: 0 | I115: 0 | J115: - | K115: - | L115: - | M115: 2003-01-24 | N115: 2.6 | R115: 3.4
B116: 2003-01-25 | C116: 0 | D116: 0 | E116: 10.1260643 | G116: 0 | I116: 0 | J116: - | K116: - | L116: - | M116: 2003-01-25 | N116: 2.7 | R116: 2.5
B117: 2003-01-26 | C117: 0 | D117: 0 | E117: 10.15386677 | G117: 0 | I117: 0 | J117: - | K117: - | L117: - | M117: 2003-01-26 | N117: 2.7 | R117: 4.9
B118: 2003-01-27 | C118: 0 | D118: 0 | E118: 10.18220806 | G118: 0 | I118: 0 | J118: - | K118: - | L118: - | M118: 2003-01-27 | N118: 2.7 | R118: 0
B119: 2003-01-28 | C119: 0 | D119: 0 | E119: 10.21107292 | G119: 0 | I119: 0 | J119: - | K119: - | L119: - | M119: 2003-01-28 | N119: 2.8 | R119: 3.9
B120: 2003-01-29 | C120: 0 | D120: 0 | E120: 10.24044228 | G120: 0 | I120: 0 | J120: - | K120: - | L120: - | M120: 2003-01-29 | N120: 2.8 | R120: 4.4
B121: 2003-01-30 | C121: 0 | D121: 0 | E121: 10.27030087 | G121: 0 | I121: 0 | J121: - | K121: - | L121: - | M121: 2003-01-30 | N121: 2.9 | R121: 4.5
B122: 2003-01-31 | C122: 0 | D122: 0 | E122: 10.30063152 | G122: 0 | I122: 0 | J122: - | K122: - | L122: - | M122: 2003-01-31 | N122: 2.9 | R122: 6
B123: 2003-02-01 | C123: 0 | D123: 0 | E123: 10.33141708 | G123: 0 | I123: 0 | J123: - | K123: - | L123: - | M123: 2003-02-01 | N123: 2.9 | R123: 3.1
B124: 2003-02-02 | C124: 0 | D124: 0 | E124: 10.36264324 | G124: 0 | I124: 0 | J124: - | K124: - | L124: - | M124: 2003-02-02 | N124: 3 | R124: 5.2
B125: 2003-02-03 | C125: 0 | D125: 0 | E125: 10.39429188 | G125: 0 | I125: 0 | J125: - | K125: - | L125: - | M125: 2003-02-03 | N125: 3 | R125: 6.8
B126: 2003-02-04 | C126: 0 | D126: 0 | E126: 10.42634869 | G126: 0 | I126: 0 | J126: - | K126: - | L126: - | M126: 2003-02-04 | N126: 3 | R126: 2.2
B127: 2003-02-05 | C127: 0 | D127: 0 | E127: 10.45879745 | G127: 0 | I127: 0 | J127: - | K127: - | L127: - | M127: 2003-02-05 | N127: 3.1 | R127: -3.1
B128: 2003-02-06 | C128: 0 | D128: 0 | E128: 10.49162292 | G128: 0 | I128: 0 | J128: - | K128: - | L128: - | M128: 2003-02-06 | N128: 3.1 | R128: -1.8
B129: 2003-02-07 | C129: 0 | D129: 0 | E129: 10.52481174 | G129: 0 | I129: 0 | J129: - | K129: - | L129: - | M129: 2003-02-07 | N129: 3.1 | R129: 0.3
B130: 2003-02-08 | C130: 0 | D130: 0 | E130: 10.5583477 | G130: 0 | I130: 0 | J130: - | K130: - | L130: - | M130: 2003-02-08 | N130: 3.2 | R130: -1.4
B131: 2003-02-09 | C131: 0 | D131: 0 | E131: 10.59221745 | G131: 0 | I131: 0 | J131: - | K131: - | L131: - | M131: 2003-02-09 | N131: 3.2 | R131: 0.4
B132: 2003-02-10 | C132: 0 | D132: 0 | E132: 10.62640762 | G132: 0 | I132: 0 | J132: - | K132: - | L132: - | M132: 2003-02-10 | N132: 3.3 | R132: 1.3
B133: 2003-02-11 | C133: 0 | D133: 0 | E133: 10.66090298 | G133: 0 | I133: 0 | J133: - | K133: - | L133: - | M133: 2003-02-11 | N133: 3.4 | R133: 1.7
B134: 2003-02-12 | C134: 0 | D134: 0 | E134: 10.69569111 | G134: 0 | I134: 0 | J134: - | K134: - | L134: - | M134: 2003-02-12 | N134: 3.5 | R134: 2.9
B135: 2003-02-13 | C135: 0 | D135: 0 | E135: 10.73075962 | G135: 0 | I135: 0 | J135: - | K135: - | L135: - | M135: 2003-02-13 | N135: 3.6 | R135: 2.1
B136: 2003-02-14 | C136: 0 | D136: 0 | E136: 10.76609516 | G136: 0 | I136: 0 | J136: - | K136: - | L136: - | M136: 2003-02-14 | N136: 3.8 | R136: 0.4
B137: 2003-02-15 | C137: 0 | D137: 0 | E137: 10.80168533 | G137: 0 | I137: 0 | J137: - | K137: - | L137: - | M137: 2003-02-15 | N137: 3.9 | R137: 1.9
B138: 2003-02-16 | C138: 0 | D138: 0 | E138: 10.83751965 | G138: 0 | I138: 0 | J138: - | K138: - | L138: - | M138: 2003-02-16 | N138: 4 | R138: 4.7
B139: 2003-02-17 | C139: 0 | D139: 0 | E139: 10.87358475 | G139: 0 | I139: 0 | J139: - | K139: - | L139: - | M139: 2003-02-17 | N139: 4.2 | R139: 4
B140: 2003-02-18 | C140: 0 | D140: 0 | E140: 10.90987015 | G140: 0 | I140: 0 | J140: - | K140: - | L140: - | M140: 2003-02-18 | N140: 4.3 | R140: 2.2
B141: 2003-02-19 | C141: 0 | D141: 0 | E141: 10.9463644 | G141: 0 | I141: 0 | J141: - | K141: - | L141: - | M141: 2003-02-19 | N141: 4.5 | R141: 1.5
B142: 2003-02-20 | C142: =+C141+D142 -> 0 | D142: =+IF((COUNT(S142))=1,1)+IF((COUNT(S142=0)),0) -> 0 | E142: 10.98305702 | G142: 0 | I142: 0 | J142: =IF(C143=1,"◎","-") -> - | K142: - | L142: - | M142: 2003-02-20 | N142: 4.6 | R142: 1.8
B143: 2003-02-21 | C143: 0 | D143: 0 | E143: 11.01993847 | F143: =1/(1+EXP(-0.3403*(S143-11.7356)))/13.9674 ->  | G143: =IF(D143=0,0,G142+F143) -> 0 | H143: =1/(1+EXP(-0.296*(S143-18.9596)))/18.1999 ->  | I143: =IF(G143>1,I142+H143,0) -> 0 | J143: - | K143: - | L143: - | M143: 2003-02-21 | N143: =INDIRECT("気象データ!"&$D$6&ROW()-8) -> 4.7 | R143: 1.7 | S143: =IF(DATE(IF($B$10>=10,2002,2003),$B$10,$C$10)>=B143,"",IF(R143="",N143+$U$9,R143)) -> 
B144: 2003-02-22 | C144: 0 | D144: 0 | E144: 11.0569973 | G144: 0 | I144: 0 | J144: - | K144: - | L144: - | M144: 2003-02-22 | N144: 4.9 | R144: 1.4
B145: 2003-02-23 | C145: 0 | D145: 0 | E145: 11.09422493 | G145: 0 | I145: 0 | J145: - | K145: - | L145: - | M145: 2003-02-23 | N145: 5 | R145: 2.7
B146: 2003-02-24 | C146: 0 | D146: 0 | E146: 11.13161182 | G146: 0 | I146: 0 | J146: - | K146: - | L146: - | M146: 2003-02-24 | N146: 5.1 | R146: 3.5
B147: 2003-02-25 | C147: 0 | D147: 0 | E147: 11.16914845 | G147: 0 | I147: 0 | J147: - | K147: - | L147: - | M147: 2003-02-25 | N147: 5.3 | R147: 4.1
B148: 2003-02-26 | C148: 0 | D148: 0 | E148: 11.20682526 | G148: 0 | I148: 0 | J148: - | K148: - | L148: - | M148: 2003-02-26 | N148: 5.4 | R148: 5.3
B149: 2003-02-27 | C149: 0 | D149: 0 | E149: 11.24463463 | G149: 0 | I149: 0 | J149: - | K149: - | L149: - | M149: 2003-02-27 | N149: 5.5 | R149: 6.9
B150: 2003-02-28 | C150: 0 | D150: 0 | E150: 11.28256798 | G150: 0 | I150: 0 | J150: - | K150: - | L150: - | M150: 2003-02-28 | N150: 5.6 | R150: 11.5
B151: 2003-03-01 | C151: 0 | D151: 0 | E151: 11.32061672 | G151: 0 | I151: 0 | J151: - | K151: - | L151: - | M151: 2003-03-01 | N151: 5.7 | R151: 6.8
B152: 2003-03-02 | C152: 0 | D152: 0 | E152: 11.35877419 | G152: 0 | I152: 0 | J152: - | K152: - | L152: - | M152: 2003-03-02 | N152: 5.8 | R152: 4.4
B153: 2003-03-03 | C153: 0 | D153: 0 | E153: 11.39703083 | G153: 0 | I153: 0 | J153: - | K153: - | L153: - | M153: 2003-03-03 | N153: 5.9 | R153: 4.5
B154: 2003-03-04 | C154: 0 | D154: 0 | E154: 11.43538094 | G154: 0 | I154: 0 | J154: - | K154: - | L154: - | M154: 2003-03-04 | N154: 6 | R154: 3.5
B155: 2003-03-05 | C155: 0 | D155: 0 | E155: 11.47381592 | G155: 0 | I155: 0 | J155: - | K155: - | L155: - | M155: 2003-03-05 | N155: 6.1 | R155: 4.7
B156: 2003-03-06 | C156: 0 | D156: 0 | E156: 11.51233006 | G156: 0 | I156: 0 | J156: - | K156: - | L156: - | M156: 2003-03-06 | N156: 6.3 | R156: 3.4
B157: 2003-03-07 | C157: 0 | D157: 0 | E157: 11.55091572 | G157: 0 | I157: 0 | J157: - | K157: - | L157: - | M157: 2003-03-07 | N157: 6.4 | R157: 2.1
B158: 2003-03-08 | C158: 0 | D158: 0 | E158: 11.58956623 | G158: 0 | I158: 0 | J158: - | K158: - | L158: - | M158: 2003-03-08 | N158: 6.5 | R158: 2.3
B159: 2003-03-09 | C159: 0 | D159: 0 | E159: 11.62827587 | G159: 0 | I159: 0 | J159: - | K159: - | L159: - | M159: 2003-03-09 | N159: 6.7 | R159: 3.1
B160: 2003-03-10 | C160: 0 | D160: 0 | E160: 11.66703701 | G160: 0 | I160: 0 | J160: - | K160: - | L160: - | M160: 2003-03-10 | N160: 6.8 | R160: 2.8
B161: 2003-03-11 | C161: 0 | D161: 0 | E161: 11.70584488 | G161: 0 | I161: 0 | J161: - | K161: - | L161: - | M161: 2003-03-11 | N161: 7 | R161: 2.5
B162: 2003-03-12 | C162: 0 | D162: 0 | E162: 11.74469185 | G162: 0 | I162: 0 | J162: - | K162: =IF(AND(G162>=1,(G161)<1),"◎","-") -> - | L162: =IF(AND(I162>=1,(I161)<1),"◎","-") -> - | M162: 2003-03-12 | N162: 7.2 | R162: 7.5
B163: 2003-03-13 | C163: 0 | D163: 0 | E163: 11.7835741 | G163: 0 | I163: 0 | J163: - | K163: - | L163: - | M163: 2003-03-13 | N163: 7.3 | R163: 9.2
B164: 2003-03-14 | C164: 0 | D164: 0 | E164: 11.82248402 | G164: 0 | I164: 0 | J164: - | K164: - | L164: - | M164: 2003-03-14 | N164: 7.5 | R164: 7.7
B165: 2003-03-15 | C165: 0 | D165: 0 | E165: 11.86141682 | G165: 0 | I165: 0 | J165: - | K165: - | L165: - | M165: 2003-03-15 | N165: 7.7 | R165: 5.6
B166: 2003-03-16 | C166: 0 | D166: 0 | E166: 11.90036583 | G166: 0 | I166: 0 | J166: - | K166: - | L166: - | M166: 2003-03-16 | N166: 7.8 | R166: 7.2
B167: 2003-03-17 | C167: 0 | D167: 0 | E167: 11.93932724 | G167: 0 | I167: 0 | J167: - | K167: - | L167: - | M167: 2003-03-17 | N167: 8 | R167: 7.8
B168: 2003-03-18 | C168: 0 | D168: 0 | E168: 11.97829533 | G168: 0 | I168: 0 | J168: - | K168: - | L168: - | M168: 2003-03-18 | N168: 8.1 | R168: 11.4
B169: 2003-03-19 | C169: 0 | D169: 0 | E169: 12.01726341 | G169: 0 | I169: 0 | J169: - | K169: - | L169: - | M169: 2003-03-19 | N169: 8.2 | R169: 9.3
B170: 2003-03-20 | C170: 0 | D170: 0 | E170: 12.05622673 | G170: 0 | I170: 0 | J170: - | K170: - | L170: - | M170: 2003-03-20 | N170: 8.3 | R170: 6.2
B171: 2003-03-21 | C171: 0 | D171: 0 | E171: 12.09518051 | G171: 0 | I171: 0 | J171: ◎ | K171: - | L171: - | M171: 2003-03-21 | N171: 8.4 | R171: 7.4
B172: 2003-03-22 | C172: 1 | D172: 1 | E172: 12.13411808 | F172: 0.009447502954 | G172: 0.009447502954 | H172: 0.001229811427 | I172: 0 | J172: - | K172: - | L172: - | M172: 2003-03-22 | N172: 8.5 | R172: 6.2 | S172: 6.2
B173: 2003-03-23 | C173: 2 | D173: 1 | E173: 12.17303658 | F173: 0.01568278127 | G173: 0.02513028423 | H173: 0.0020627358 | I173: 0 | J173: - | K173: - | L173: - | M173: 2003-03-23 | N173: 8.6 | R173: 8 | S173: 8
B174: 2003-03-24 | C174: 3 | D174: 1 | E174: 12.21192932 | F174: 0.02722330715 | G174: 0.05235359138 | H174: 0.003930896543 | I174: 0 | J174: - | K174: - | L174: - | M174: 2003-03-24 | N174: 8.7 | R174: 10.3 | S174: 10.3
B175: 2003-03-25 | C175: 4 | D175: 1 | E175: 12.2507906 | F175: 0.04396201293 | G175: 0.09631560431 | H175: 0.008242920659 | I175: 0 | J175: - | K175: - | L175: - | M175: 2003-03-25 | N175: 8.8 | R175: 13.1 | S175: 13.1
B176: 2003-03-26 | C176: 5 | D176: 1 | E176: 12.28961658 | F176: 0.04396201293 | G176: 0.1402776172 | H176: 0.008242920659 | I176: 0 | J176: - | K176: - | L176: - | M176: 2003-03-26 | N176: 8.9 | R176: 13.1 | S176: 13.1
B177: 2003-03-27 | C177: 6 | D177: 1 | E177: 12.32840061 | F177: 0.02838059832 | G177: 0.1686582156 | H177: 0.0041525137 | I177: 0 | J177: - | K177: - | L177: - | M177: 2003-03-27 | N177: 9 | R177: 10.5 | S177: 10.5
B178: 2003-03-28 | C178: 7 | D178: 1 | E178: 12.36713886 | F178: 0.03314926474 | G178: 0.2018074803 | H178: 0.005157862432 | I178: 0 | J178: - | K178: - | L178: - | M178: 2003-03-28 | N178: 9.2 | R178: 11.3 | S178: 11.3
B179: 2003-03-29 | C179: 8 | D179: 1 | E179: 12.40582466 | F179: 0.04841559284 | G179: 0.2502230731 | H179: 0.01004277684 | I179: 0 | J179: - | K179: - | L179: - | M179: 2003-03-29 | N179: 9.4 | R179: 13.9 | S179: 13.9
B180: 2003-03-30 | C180: 9 | D180: 1 | E180: 12.44445324 | F180: 0.04396201293 | G180: 0.2941850861 | H180: 0.008242920659 | I180: 0 | J180: - | K180: - | L180: - | M180: 2003-03-30 | N180: 9.6 | R180: 13.1 | S180: 13.1
B181: 2003-03-31 | C181: 10 | D181: 1 | E181: 12.48301888 | F181: 0.04396201293 | G181: 0.338147099 | H181: 0.008242920659 | I181: 0 | J181: - | K181: - | L181: - | M181: 2003-03-31 | N181: 9.8 | R181: 13.1 | S181: 13.1
B182: 2003-04-01 | C182: 11 | D182: 1 | E182: 12.52151585 | F182: 0.03254432151 | G182: 0.3706914205 | H182: 0.005021174641 | I182: 0 | J182: - | K182: - | L182: - | M182: 2003-04-01 | N182: 10 | R182: 11.2 | S182: 11.2
B183: 2003-04-02 | C183: 12 | D183: 1 | E183: 12.55993938 | F183: 0.03618988579 | G183: 0.4068813063 | H183: 0.00589237623 | I183: 0 | J183: - | K183: - | L183: - | M183: 2003-04-02 | N183: 10.2 | R183: 11.8 | S183: 11.8
B184: 2003-04-03 | C184: 13 | D184: 1 | E184: 12.59828377 | F184: 0.03982733131 | G184: 0.4467086376 | H184: 0.006893863173 | I184: 0 | J184: - | K184: - | L184: - | M184: 2003-04-03 | N184: 10.4 | R184: 12.4 | S184: 12.4
B185: 2003-04-04 | C185: 14 | D185: 1 | E185: 12.63654232 | F185: 0.04396201293 | G185: 0.4906706505 | H185: 0.008242920659 | I185: 0 | J185: - | K185: - | L185: - | M185: 2003-04-04 | N185: 10.6 | R185: 13.1 | S185: 13.1
B186: 2003-04-05 | C186: 15 | D186: 1 | E186: 12.67471027 | F186: 0.023871977 | G186: 0.5145426275 | H186: 0.003330016697 | I186: 0 | J186: - | K186: - | L186: - | M186: 2003-04-05 | N186: 10.8 | R186: 9.7 | S186: 9.7
B187: 2003-04-06 | C187: 16 | D187: 1 | E187: 12.71278 | F187: 0.01093227535 | G187: 0.5254749029 | H187: 0.001420909153 | I187: 0 | J187: - | K187: - | L187: - | M187: 2003-04-06 | N187: 10.9 | R187: 6.7 | S187: 6.7
B188: 2003-04-07 | C188: 17 | D188: 1 | E188: 12.75074768 | F188: 0.02175720086 | G188: 0.5472321038 | H188: 0.002978344303 | I188: 0 | J188: - | K188: - | L188: - | M188: 2003-04-07 | N188: 11.1 | R188: 9.3 | S188: 9.3
B189: 2003-04-08 | C189: 18 | D189: 1 | E189: 12.78860474 | F189: 0.03618988579 | G189: 0.5834219895 | H189: 0.00589237623 | I189: 0 | J189: - | K189: - | L189: - | M189: 2003-04-08 | N189: 11.3 | R189: 11.8 | S189: 11.8
B190: 2003-04-09 | C190: 19 | D190: 1 | E190: 12.82634544 | F190: 0.03801435232 | G190: 0.6214363419 | H190: 0.0063760579 | I190: 0 | J190: - | K190: - | L190: - | M190: 2003-04-09 | N190: 11.4 | R190: 12.1 | S190: 12.1
B191: 2003-04-10 | C191: 20 | D191: 1 | E191: 12.86396408 | F191: 0.04279860422 | G191: 0.6642349461 | H191: 0.00783668222 | I191: 0 | J191: - | K191: - | L191: - | M191: 2003-04-10 | N191: 11.6 | R191: 12.9 | S191: 12.9
B192: 2003-04-11 | C192: 21 | D192: 1 | E192: 12.90145397 | F192: 0.02227601011 | G192: 0.6865109562 | H192: 0.003062833293 | I192: 0 | J192: - | K192: - | L192: - | M192: 2003-04-11 | N192: 11.8 | R192: 9.4 | S192: 9.4
B193: 2003-04-12 | C193: 22 | D193: 1 | E193: 12.93880653 | F193: 0.023871977 | G193: 0.7103829332 | H193: 0.003330016697 | I193: 0 | J193: - | K193: - | L193: - | M193: 2003-04-12 | N193: 12 | R193: 9.7 | S193: 9.7
B194: 2003-04-13 | C194: 23 | D194: 1 | E194: 12.97601604 | F194: 0.02779975324 | G194: 0.7381826864 | H194: 0.00404030644 | I194: 0 | J194: - | K194: - | L194: - | M194: 2003-04-13 | N194: 12.2 | R194: 10.4 | S194: 10.4
B195: 2003-04-14 | C195: 24 | D195: 1 | E195: 13.01307583 | F195: 0.03862041658 | G195: 0.776803103 | H195: 0.006544793528 | I195: 0 | J195: - | K195: - | L195: - | M195: 2003-04-14 | N195: 12.4 | R195: 12.2 | S195: 12.2
B196: 2003-04-15 | C196: 25 | D196: 1 | E196: 13.04997635 | F196: 0.04510750864 | G196: 0.8219106116 | H196: 0.008666343665 | I196: 0 | J196: - | K196: - | L196: - | M196: 2003-04-15 | N196: 12.5 | R196: 13.3 | S196: 13.3
B197: 2003-04-16 | C197: 26 | D197: 1 | E197: 13.08671188 | F197: 0.05873862351 | G197: 0.8806492351 | H197: 0.01683715359 | I197: 0 | J197: - | K197: - | L197: - | M197: 2003-04-16 | N197: 12.7 | R197: 16.2 | S197: 16.2
B198: 2003-04-17 | C198: 27 | D198: 1 | E198: 13.12327385 | F198: 0.05518730814 | G198: 0.9358365433 | H198: 0.01389529966 | I198: 0 | J198: - | K198: - | L198: - | M198: 2003-04-17 | N198: 12.9 | R198: 15.3 | S198: 15.3
B199: 2003-04-18 | C199: 28 | D199: 1 | E199: 13.15965462 | F199: 0.02074037111 | G199: 0.9565769144 | H199: 0.002815917774 | I199: 0 | J199: - | K199: - | L199: - | M199: 2003-04-18 | N199: 13.1 | R199: 9.1 | S199: 9.1
B200: 2003-04-19 | C200: 29 | D200: 1 | E200: 13.1958456 | F200: 0.02175720086 | G200: 0.9783341152 | H200: 0.002978344303 | I200: 0 | J200: - | K200: - | L200: - | M200: 2003-04-19 | N200: 13.2 | R200: 9.3 | S200: 9.3
B201: 2003-04-20 | C201: 30 | D201: 1 | E201: 13.23183823 | F201: 0.01975222897 | G201: 0.9980863442 | H201: 0.002661895579 | I201: 0 | J201: - | K201: - | L201: - | M201: 2003-04-20 | N201: 13.4 | R201: 8.9 | S201: 8.9
B202: 2003-04-21 | C202: 31 | D202: 1 | E202: 13.2676239 | F202: 0.034363379 | G202: 1.032449723 | H202: 0.005441275585 | I202: 0.005441275585 | J202: - | K202: ◎ | L202: - | M202: 2003-04-21 | N202: 13.6 | R202: 11.5 | S202: 11.5
B203: 2003-04-22 | C203: 32 | D203: 1 | E203: 13.30319309 | F203: 0.04894578331 | G203: 1.081395507 | H203: 0.01028799409 | I203: 0.01572926967 | J203: - | K203: - | L203: - | M203: 2003-04-22 | N203: 13.8 | R203: 14 | S203: 14
... 80 more rows

Sheet 出穂期～
H2: 予測実施日 | K2: =TODAY() -> 2022-04-18
B3: 出穂期から予測
B5: 予測地域 | D5: 地名コード | I5: 予測値
B6: 下館 | D6: =HLOOKUP(B6,気象データ!$B$4:$O$5,2,FALSE) -> I | I6: 播種期 | J6: - | K6: -
I7: 出芽期 | J7: - | K7: -
B8: 出穂期 | I8: 茎立期 | J8: - | K8: - | U8: 平年比
B9: 月 | C9: 日 | I9: 出穂期 | J9: =VLOOKUP("◎",H14:J283,3,FALSE) -> 2003-04-25 | K9: =+IF(COUNT(J9)=1,J9,"*月 *日") -> 2003-04-25 | U9: 0 | V9: ℃
B10: 4 | C10: 25 | I10: 成熟期 | J10: =VLOOKUP("◎",I14:J283,2,FALSE) -> 2003-06-04 | K10: =+IF(COUNT(J10)=1,J10,"*月 *日") -> 2003-06-04
B12: 月･日 | C12: 出穂後 日数 | D12: 茎立後 | E12: 日長(時間) | H12: 判 定 | J12: 月･日 | K12: 平年平均 気温(℃) (水戸地方気象台1991-2020) | R12: 本年 平均 気温 (℃) | S12: 予測用データ
D13: 日数 | F13: DVR2 | G13: DVR2積算 | H13: 出穂期 | I13: 成熟期
B14: 2002-10-15 | C14: =+C13+D14 -> 0 | D14: =+IF((COUNT(S14))=1,1)+IF((COUNT(S14=0)),0) -> 0 | E14: 11.26513481 | F14: =1/(1+EXP(-0.296*(S14-18.9596)))/18.1999 ->  | G14: =IF(D14=0,0,F14) -> 0 | H14: =IF(C15=1,"◎","-") -> - | I14: =IF(AND(G14>=1,(G13)<1),"◎","-") -> - | J14: 2002-10-15 | K14: =INDIRECT("気象データ!"&$D$6&ROW()-8) -> 16.7 | R14: 16.6 | S14: =IF(DATE(IF($B$10>=10,2002,2003),$B$10,$C$10)>=B14,"",IF(R14="",K14+$U$9,R14)) -> 
B15: 2002-10-16 | C15: 0 | D15: 0 | E15: 11.22772598 | F15: =1/(1+EXP(-0.296*(S15-18.9596)))/18.1999 ->  | G15: =IF(D15=0,0,G14+F15) -> 0 | H15: - | I15: - | J15: 2002-10-16 | K15: =INDIRECT("気象データ!"&$D$6&ROW()-8) -> 16.5 | R15: 17.9 | S15: =IF(DATE(IF($B$10>=10,2002,2003),$B$10,$C$10)>=B15,"",IF(R15="",K15+$U$9,R15)) -> 
B16: 2002-10-17 | C16: 0 | D16: 0 | E16: 11.19043636 | G16: 0 | H16: - | I16: - | J16: 2002-10-17 | K16: 16.3 | R16: 14.5
B17: 2002-10-18 | C17: 0 | D17: 0 | E17: 11.15327644 | G17: 0 | H17: - | I17: - | J17: 2002-10-18 | K17: 16.1 | R17: 14.7
B18: 2002-10-19 | C18: 0 | D18: 0 | E18: 11.1162529 | G18: 0 | H18: - | I18: - | J18: 2002-10-19 | K18: 15.9 | R18: 14.5
B19: 2002-10-20 | C19: 0 | D19: 0 | E19: 11.07937431 | G19: 0 | H19: - | I19: - | J19: 2002-10-20 | K19: 15.7 | R19: 14.2
B20: 2002-10-21 | C20: 0 | D20: 0 | E20: 11.04265022 | G20: 0 | H20: - | I20: - | J20: 2002-10-21 | K20: 15.5 | R20: 17.1
B21: 2002-10-22 | C21: 0 | D21: 0 | E21: 11.00609016 | G21: 0 | H21: - | I21: - | J21: 2002-10-22 | K21: 15.3 | R21: 16.6
B22: 2002-10-23 | C22: 0 | D22: 0 | E22: 10.96970272 | G22: 0 | H22: - | I22: - | J22: 2002-10-23 | K22: 15.1 | R22: 15.4
B23: 2002-10-24 | C23: 0 | D23: 0 | E23: 10.93349838 | G23: 0 | H23: - | I23: - | J23: 2002-10-24 | K23: 14.9 | R23: 14.7
B24: 2002-10-25 | C24: 0 | D24: 0 | E24: 10.89748669 | G24: 0 | H24: - | I24: - | J24: 2002-10-25 | K24: 14.7 | R24: 17.8
B25: 2002-10-26 | C25: 0 | D25: 0 | E25: 10.86167908 | G25: 0 | H25: - | I25: - | J25: 2002-10-26 | K25: 14.5 | R25: 13
B26: 2002-10-27 | C26: 0 | D26: 0 | E26: 10.82608414 | G26: 0 | H26: - | I26: - | J26: 2002-10-27 | K26: 14.3 | R26: 11.8
B27: 2002-10-28 | C27: 0 | D27: 0 | E27: 10.79072 | G27: 0 | H27: - | I27: - | J27: 2002-10-28 | K27: 14.1 | R27: 11.8
B28: 2002-10-29 | C28: 0 | D28: 0 | E28: 10.75558 | G28: 0 | H28: - | I28: - | J28: 2002-10-29 | K28: 13.9 | R28: 12.8
B29: 2002-10-30 | C29: 0 | D29: 0 | E29: 10.7207 | G29: 0 | H29: - | I29: - | J29: 2002-10-30 | K29: 13.7 | R29: 15.9
B30: 2002-10-31 | C30: 0 | D30: 0 | E30: 10.68607 | G30: 0 | H30: - | I30: - | J30: 2002-10-31 | K30: 13.5 | R30: 13.7
B31: 2002-11-01 | C31: 0 | D31: 0 | E31: 10.65172 | G31: 0 | H31: - | I31: - | J31: 2002-11-01 | K31: 13.3 | R31: 13.2
B32: 2002-11-02 | C32: 0 | D32: 0 | E32: 10.61765 | G32: 0 | H32: - | I32: - | J32: 2002-11-02 | K32: 13.1 | R32: 13.8
B33: 2002-11-03 | C33: 0 | D33: 0 | E33: 10.58388 | G33: 0 | H33: - | I33: - | J33: 2002-11-03 | K33: 12.9 | R33: 15.2
B34: 2002-11-04 | C34: 0 | D34: 0 | E34: 10.55042 | G34: 0 | H34: - | I34: - | J34: 2002-11-04 | K34: 12.8 | R34: 14
B35: 2002-11-05 | C35: 0 | D35: 0 | E35: 10.51728821 | G35: 0 | H35: - | I35: - | J35: 2002-11-05 | K35: 12.6 | R35: 11.4
B36: 2002-11-06 | C36: 0 | D36: 0 | E36: 10.48449326 | G36: 0 | H36: - | I36: - | J36: 2002-11-06 | K36: 12.4 | R36: 11.7
B37: 2002-11-07 | C37: 0 | D37: 0 | E37: 10.45205116 | G37: 0 | H37: - | I37: - | J37: 2002-11-07 | K37: 12.3 | R37: 11.8
B38: 2002-11-08 | C38: 0 | D38: 0 | E38: 10.41997719 | G38: 0 | H38: - | I38: - | J38: 2002-11-08 | K38: 12.1 | R38: 12.5
B39: 2002-11-09 | C39: 0 | D39: 0 | E39: 10.38828659 | G39: 0 | H39: - | I39: - | J39: 2002-11-09 | K39: 11.9 | R39: 10
B40: 2002-11-10 | C40: 0 | D40: 0 | E40: 10.35699272 | G40: 0 | H40: - | I40: - | J40: 2002-11-10 | K40: 11.7 | R40: 12.1
B41: 2002-11-11 | C41: 0 | D41: 0 | E41: 10.32611275 | G41: 0 | H41: - | I41: - | J41: 2002-11-11 | K41: 11.4 | R41: 8.8
B42: 2002-11-12 | C42: 0 | D42: 0 | E42: 10.29566193 | G42: 0 | H42: - | I42: - | J42: 2002-11-12 | K42: 11.2 | R42: 6.5
B43: 2002-11-13 | C43: 0 | D43: 0 | E43: 10.26565647 | G43: 0 | H43: - | I43: - | J43: 2002-11-13 | K43: 10.9 | R43: 5
B44: 2002-11-14 | C44: 0 | D44: 0 | E44: 10.23611164 | G44: 0 | H44: - | I44: - | J44: 2002-11-14 | K44: 10.7 | R44: 7
B45: 2002-11-15 | C45: 0 | D45: 0 | E45: 10.2070446 | G45: 0 | H45: - | I45: - | J45: 2002-11-15 | K45: 10.4 | R45: 7.7
B46: 2002-11-16 | C46: 0 | D46: 0 | E46: 10.17847252 | G46: 0 | H46: - | I46: - | J46: 2002-11-16 | K46: 10.2 | R46: 8.9
B47: 2002-11-17 | C47: 0 | D47: 0 | E47: 10.15041161 | G47: 0 | H47: - | I47: - | J47: 2002-11-17 | K47: 10 | R47: 8.9
B48: 2002-11-18 | C48: 0 | D48: 0 | E48: 10.12287998 | G48: 0 | H48: - | I48: - | J48: 2002-11-18 | K48: 9.8 | R48: 11
B49: 2002-11-19 | C49: 0 | D49: 0 | E49: 10.09589291 | G49: 0 | H49: - | I49: - | J49: 2002-11-19 | K49: 9.6 | R49: 8.3
B50: 2002-11-20 | C50: 0 | D50: 0 | E50: 10.0694685 | G50: 0 | H50: - | I50: - | J50: 2002-11-20 | K50: 9.4 | R50: 7
B51: 2002-11-21 | C51: 0 | D51: 0 | E51: 10.04362488 | G51: 0 | H51: - | I51: - | J51: 2002-11-21 | K51: 9.2 | R51: 6.8
B52: 2002-11-22 | C52: 0 | D52: 0 | E52: 10.01837826 | G52: 0 | H52: - | I52: - | J52: 2002-11-22 | K52: 9.1 | R52: 7.6
B53: 2002-11-23 | C53: 0 | D53: 0 | E53: 9.993746758 | G53: 0 | H53: - | I53: - | J53: 2002-11-23 | K53: 8.9 | R53: 7.4
B54: 2002-11-24 | C54: 0 | D54: 0 | E54: 9.969747543 | G54: 0 | H54: - | I54: - | J54: 2002-11-24 | K54: 8.8 | R54: 7.9
B55: 2002-11-25 | C55: 0 | D55: 0 | E55: 9.946398735 | G55: 0 | H55: - | I55: - | J55: 2002-11-25 | K55: 8.6 | R55: 10.9
B56: 2002-11-26 | C56: 0 | D56: 0 | E56: 9.923715591 | G56: 0 | H56: - | I56: - | J56: 2002-11-26 | K56: 8.5 | R56: 11.7
B57: 2002-11-27 | C57: 0 | D57: 0 | E57: 9.90171814 | G57: 0 | H57: - | I57: - | J57: 2002-11-27 | K57: 8.4 | R57: 8.3
B58: 2002-11-28 | C58: 0 | D58: 0 | E58: 9.880420685 | G58: 0 | H58: - | I58: - | J58: 2002-11-28 | K58: 8.2 | R58: 7.6
B59: 2002-11-29 | C59: 0 | D59: 0 | E59: 9.859841347 | G59: 0 | H59: - | I59: - | J59: 2002-11-29 | K59: 8 | R59: 5.5
B60: 2002-11-30 | C60: 0 | D60: 0 | E60: 9.839997292 | G60: 0 | H60: - | I60: - | J60: 2002-11-30 | K60: 7.8 | R60: 4.8
B61: 2002-12-01 | C61: 0 | D61: 0 | E61: 9.820902824 | G61: 0 | H61: - | I61: - | J61: 2002-12-01 | K61: 7.6 | R61: 5.2
B62: 2002-12-02 | C62: 0 | D62: 0 | E62: 9.802576065 | G62: 0 | H62: - | I62: - | J62: 2002-12-02 | K62: 7.4 | R62: 6.6
B63: 2002-12-03 | C63: 0 | D63: 0 | E63: 9.785032272 | G63: 0 | H63: - | I63: - | J63: 2002-12-03 | K63: 7.2 | R63: 7.5
B64: 2002-12-04 | C64: 0 | D64: 0 | E64: 9.768284798 | G64: 0 | H64: - | I64: - | J64: 2002-12-04 | K64: 7 | R64: 8.3
B65: 2002-12-05 | C65: 0 | D65: 0 | E65: 9.752350807 | G65: 0 | H65: - | I65: - | J65: 2002-12-05 | K65: 6.7 | R65: 7.2
B66: 2002-12-06 | C66: 0 | D66: 0 | E66: 9.737242699 | G66: 0 | H66: - | I66: - | J66: 2002-12-06 | K66: 6.5 | R66: 7.3
B67: 2002-12-07 | C67: 0 | D67: 0 | E67: 9.722975731 | G67: 0 | H67: - | I67: - | J67: 2002-12-07 | K67: 6.3 | R67: 5.9
B68: 2002-12-08 | C68: 0 | D68: 0 | E68: 9.709562302 | G68: 0 | H68: - | I68: - | J68: 2002-12-08 | K68: 6.1 | R68: 4.3
B69: 2002-12-09 | C69: 0 | D69: 0 | E69: 9.697014809 | G69: 0 | H69: - | I69: - | J69: 2002-12-09 | K69: 5.9 | R69: 3.6
B70: 2002-12-10 | C70: 0 | D70: 0 | E70: 9.685344696 | G70: 0 | H70: - | I70: - | J70: 2002-12-10 | K70: 5.7 | R70: 6.8
B71: 2002-12-11 | C71: 0 | D71: 0 | E71: 9.674565315 | G71: 0 | H71: - | I71: - | J71: 2002-12-11 | K71: 5.5 | R71: 4.8
B72: 2002-12-12 | C72: 0 | D72: 0 | E72: 9.664684296 | G72: 0 | H72: - | I72: - | J72: 2002-12-12 | K72: 5.3 | R72: 5.2
B73: 2002-12-13 | C73: 0 | D73: 0 | E73: 9.655714035 | G73: 0 | H73: - | I73: - | J73: 2002-12-13 | K73: 5.1 | R73: 4.3
B74: 2002-12-14 | C74: 0 | D74: 0 | E74: 9.647662163 | G74: 0 | H74: - | I74: - | J74: 2002-12-14 | K74: 5 | R74: 4.7
B75: 2002-12-15 | C75: 0 | D75: 0 | E75: 9.640536308 | G75: 0 | H75: - | I75: - | J75: 2002-12-15 | K75: 4.8 | R75: 4.5
B76: 2002-12-16 | C76: 0 | D76: 0 | E76: 9.634345055 | G76: 0 | H76: - | I76: - | J76: 2002-12-16 | K76: 4.7 | R76: 4.3
B77: 2002-12-17 | C77: 0 | D77: 0 | E77: 9.629094124 | G77: 0 | H77: - | I77: - | J77: 2002-12-17 | K77: 4.6 | R77: 3.7
B78: 2002-12-18 | C78: =+C77+D78 -> 0 | D78: =+IF((COUNT(S78))=1,1)+IF((COUNT(S78=0)),0) -> 0 | E78: 9.624789238 | G78: 0 | H78: =IF(C79=1,"◎","-") -> - | I78: =IF(AND(G78>=1,(G77)<1),"◎","-") -> - | J78: 2002-12-18 | K78: 4.5 | R78: 3.7
B79: 2002-12-19 | C79: 0 | D79: 0 | E79: 9.621434212 | F79: =1/(1+EXP(-0.296*(S79-18.9596)))/18.1999 ->  | G79: =IF(D79=0,0,G78+F79) -> 0 | H79: - | I79: - | J79: 2002-12-19 | K79: =INDIRECT("気象データ!"&$D$6&ROW()-8) -> 4.4 | R79: 5.3 | S79: =IF(DATE(IF($B$10>=10,2002,2003),$B$10,$C$10)>=B79,"",IF(R79="",K79+$U$9,R79)) -> 
B80: 2002-12-20 | C80: 0 | D80: 0 | E80: 9.619033813 | G80: 0 | H80: - | I80: - | J80: 2002-12-20 | K80: 4.2 | R80: 4.6
B81: 2002-12-21 | C81: 0 | D81: 0 | E81: 9.617589951 | G81: 0 | H81: - | I81: - | J81: 2002-12-21 | K81: 4.1 | R81: 4.2
B82: 2002-12-22 | C82: 0 | D82: 0 | E82: 9.617105484 | G82: 0 | H82: - | I82: - | J82: 2002-12-22 | K82: 4 | R82: 2.9
B83: 2002-12-23 | C83: 0 | D83: 0 | E83: 9.617580414 | G83: 0 | H83: - | I83: - | J83: 2002-12-23 | K83: 3.9 | R83: 1.7
B84: 2002-12-24 | C84: 0 | D84: 0 | E84: 9.619013786 | G84: 0 | H84: - | I84: - | J84: 2002-12-24 | K84: 3.8 | R84: 3.1
B85: 2002-12-25 | C85: 0 | D85: 0 | E85: 9.621405602 | G85: 0 | H85: - | I85: - | J85: 2002-12-25 | K85: 3.7 | R85: 1.3
B86: 2002-12-26 | C86: 0 | D86: 0 | E86: 9.624753952 | G86: 0 | H86: - | I86: - | J86: 2002-12-26 | K86: 3.5 | R86: 3.3
B87: 2002-12-27 | C87: 0 | D87: 0 | E87: 9.629055977 | G87: 0 | H87: - | I87: - | J87: 2002-12-27 | K87: 3.4 | R87: 4.8
B88: 2002-12-28 | C88: 0 | D88: 0 | E88: 9.634305954 | G88: 0 | H88: - | I88: - | J88: 2002-12-28 | K88: 3.2 | R88: 2.3
B89: 2002-12-29 | C89: 0 | D89: 0 | E89: 9.640501022 | G89: 0 | H89: - | I89: - | J89: 2002-12-29 | K89: 3.1 | R89: 1.9
B90: 2002-12-30 | C90: 0 | D90: 0 | E90: 9.647634506 | G90: 0 | H90: - | I90: - | J90: 2002-12-30 | K90: 3 | R90: 2.3
B91: 2002-12-31 | C91: 0 | D91: 0 | E91: 9.65569973 | G91: 0 | H91: - | I91: - | J91: 2002-12-31 | K91: 2.9 | R91: 3.1
B92: 2003-01-01 | C92: 0 | D92: 0 | E92: 9.66468811 | G92: 0 | H92: - | I92: - | J92: 2003-01-01 | K92: 2.8 | R92: 4.9
B93: 2003-01-02 | C93: 0 | D93: 0 | E93: 9.674592972 | G93: 0 | H93: - | I93: - | J93: 2003-01-02 | K93: 2.7 | R93: 3.7
B94: 2003-01-03 | C94: 0 | D94: 0 | E94: 9.685404778 | G94: 0 | H94: - | I94: - | J94: 2003-01-03 | K94: 2.7 | R94: 1.2
B95: 2003-01-04 | C95: 0 | D95: 0 | E95: 9.697113037 | G95: 0 | H95: - | I95: - | J95: 2003-01-04 | K95: 2.6 | R95: 2.4
B96: 2003-01-05 | C96: 0 | D96: 0 | E96: 9.70970726 | G96: 0 | H96: - | I96: - | J96: 2003-01-05 | K96: 2.6 | R96: 0.8
B97: 2003-01-06 | C97: 0 | D97: 0 | E97: 9.723175049 | G97: 0 | H97: - | I97: - | J97: 2003-01-06 | K97: 2.6 | R97: 0.4
B98: 2003-01-07 | C98: 0 | D98: 0 | E98: 9.737504959 | G98: 0 | H98: - | I98: - | J98: 2003-01-07 | K98: 2.6 | R98: 0.3
B99: 2003-01-08 | C99: 0 | D99: 0 | E99: 9.752685547 | G99: 0 | H99: - | I99: - | J99: 2003-01-08 | K99: 2.5 | R99: 3.5
B100: 2003-01-09 | C100: 0 | D100: 0 | E100: 9.768701553 | G100: 0 | H100: - | I100: - | J100: 2003-01-09 | K100: 2.5 | R100: 4.8
B101: 2003-01-10 | C101: 0 | D101: 0 | E101: 9.785539627 | G101: 0 | H101: - | I101: - | J101: 2003-01-10 | K101: 2.5 | R101: 1
B102: 2003-01-11 | C102: 0 | D102: 0 | E102: 9.803184509 | G102: 0 | H102: - | I102: - | J102: 2003-01-11 | K102: 2.5 | R102: 0.6
B103: 2003-01-12 | C103: 0 | D103: 0 | E103: 9.821622849 | G103: 0 | H103: - | I103: - | J103: 2003-01-12 | K103: 2.5 | R103: 1.5
B104: 2003-01-13 | C104: 0 | D104: 0 | E104: 9.840839386 | G104: 0 | H104: - | I104: - | J104: 2003-01-13 | K104: 2.5 | R104: 1
B105: 2003-01-14 | C105: 0 | D105: 0 | E105: 9.860816956 | G105: 0 | H105: - | I105: - | J105: 2003-01-14 | K105: 2.5 | R105: -1
B106: 2003-01-15 | C106: 0 | D106: 0 | E106: 9.881539345 | G106: 0 | H106: - | I106: - | J106: 2003-01-15 | K106: 2.5 | R106: -0.4
B107: 2003-01-16 | C107: 0 | D107: 0 | E107: 9.902991295 | G107: 0 | H107: - | I107: - | J107: 2003-01-16 | K107: 2.6 | R107: -0.2
B108: 2003-01-17 | C108: 0 | D108: 0 | E108: 9.925156593 | G108: 0 | H108: - | I108: - | J108: 2003-01-17 | K108: 2.6 | R108: 1.5
B109: 2003-01-18 | C109: 0 | D109: 0 | E109: 9.948016167 | G109: 0 | H109: - | I109: - | J109: 2003-01-18 | K109: 2.6 | R109: 0.9
B110: 2003-01-19 | C110: 0 | D110: 0 | E110: 9.971554756 | G110: 0 | H110: - | I110: - | J110: 2003-01-19 | K110: 2.6 | R110: 0.9
B111: 2003-01-20 | C111: 0 | D111: 0 | E111: 9.995755196 | G111: 0 | H111: - | I111: - | J111: 2003-01-20 | K111: 2.6 | R111: 0.1
B112: 2003-01-21 | C112: 0 | D112: 0 | E112: 10.02059841 | G112: 0 | H112: - | I112: - | J112: 2003-01-21 | K112: 2.6 | R112: 2.9
B113: 2003-01-22 | C113: 0 | D113: 0 | E113: 10.04606915 | G113: 0 | H113: - | I113: - | J113: 2003-01-22 | K113: 2.6 | R113: 1.2
B114: 2003-01-23 | C114: 0 | D114: 0 | E114: 10.07214832 | G114: 0 | H114: - | I114: - | J114: 2003-01-23 | K114: 2.6 | R114: 2.4
B115: 2003-01-24 | C115: 0 | D115: 0 | E115: 10.09881878 | G115: 0 | H115: - | I115: - | J115: 2003-01-24 | K115: 2.6 | R115: 3.4
B116: 2003-01-25 | C116: 0 | D116: 0 | E116: 10.1260643 | G116: 0 | H116: - | I116: - | J116: 2003-01-25 | K116: 2.7 | R116: 2.5
B117: 2003-01-26 | C117: 0 | D117: 0 | E117: 10.15386677 | G117: 0 | H117: - | I117: - | J117: 2003-01-26 | K117: 2.7 | R117: 4.9
B118: 2003-01-27 | C118: 0 | D118: 0 | E118: 10.18220806 | G118: 0 | H118: - | I118: - | J118: 2003-01-27 | K118: 2.7 | R118: 0
B119: 2003-01-28 | C119: 0 | D119: 0 | E119: 10.21107292 | G119: 0 | H119: - | I119: - | J119: 2003-01-28 | K119: 2.8 | R119: 3.9
B120: 2003-01-29 | C120: 0 | D120: 0 | E120: 10.24044228 | G120: 0 | H120: - | I120: - | J120: 2003-01-29 | K120: 2.8 | R120: 4.4
B121: 2003-01-30 | C121: 0 | D121: 0 | E121: 10.27030087 | G121: 0 | H121: - | I121: - | J121: 2003-01-30 | K121: 2.9 | R121: 4.5
B122: 2003-01-31 | C122: 0 | D122: 0 | E122: 10.30063152 | G122: 0 | H122: - | I122: - | J122: 2003-01-31 | K122: 2.9 | R122: 6
B123: 2003-02-01 | C123: 0 | D123: 0 | E123: 10.33141708 | G123: 0 | H123: - | I123: - | J123: 2003-02-01 | K123: 2.9 | R123: 3.1
B124: 2003-02-02 | C124: 0 | D124: 0 | E124: 10.36264324 | G124: 0 | H124: - | I124: - | J124: 2003-02-02 | K124: 3 | R124: 5.2
B125: 2003-02-03 | C125: 0 | D125: 0 | E125: 10.39429188 | G125: 0 | H125: - | I125: - | J125: 2003-02-03 | K125: 3 | R125: 6.8
B126: 2003-02-04 | C126: 0 | D126: 0 | E126: 10.42634869 | G126: 0 | H126: - | I126: - | J126: 2003-02-04 | K126: 3 | R126: 2.2
B127: 2003-02-05 | C127: 0 | D127: 0 | E127: 10.45879745 | G127: 0 | H127: - | I127: - | J127: 2003-02-05 | K127: 3.1 | R127: -3.1
B128: 2003-02-06 | C128: 0 | D128: 0 | E128: 10.49162292 | G128: 0 | H128: - | I128: - | J128: 2003-02-06 | K128: 3.1 | R128: -1.8
B129: 2003-02-07 | C129: 0 | D129: 0 | E129: 10.52481174 | G129: 0 | H129: - | I129: - | J129: 2003-02-07 | K129: 3.1 | R129: 0.3
B130: 2003-02-08 | C130: 0 | D130: 0 | E130: 10.5583477 | G130: 0 | H130: - | I130: - | J130: 2003-02-08 | K130: 3.2 | R130: -1.4
B131: 2003-02-09 | C131: 0 | D131: 0 | E131: 10.59221745 | G131: 0 | H131: - | I131: - | J131: 2003-02-09 | K131: 3.2 | R131: 0.4
B132: 2003-02-10 | C132: 0 | D132: 0 | E132: 10.62640762 | G132: 0 | H132: - | I132: - | J132: 2003-02-10 | K132: 3.3 | R132: 1.3
B133: 2003-02-11 | C133: 0 | D133: 0 | E133: 10.66090298 | G133: 0 | H133: - | I133: - | J133: 2003-02-11 | K133: 3.4 | R133: 1.7
B134: 2003-02-12 | C134: 0 | D134: 0 | E134: 10.69569111 | G134: 0 | H134: - | I134: - | J134: 2003-02-12 | K134: 3.5 | R134: 2.9
B135: 2003-02-13 | C135: 0 | D135: 0 | E135: 10.73075962 | G135: 0 | H135: - | I135: - | J135: 2003-02-13 | K135: 3.6 | R135: 2.1
B136: 2003-02-14 | C136: 0 | D136: 0 | E136: 10.76609516 | G136: 0 | H136: - | I136: - | J136: 2003-02-14 | K136: 3.8 | R136: 0.4
B137: 2003-02-15 | C137: 0 | D137: 0 | E137: 10.80168533 | G137: 0 | H137: - | I137: - | J137: 2003-02-15 | K137: 3.9 | R137: 1.9
B138: 2003-02-16 | C138: 0 | D138: 0 | E138: 10.83751965 | G138: 0 | H138: - | I138: - | J138: 2003-02-16 | K138: 4 | R138: 4.7
B139: 2003-02-17 | C139: 0 | D139: 0 | E139: 10.87358475 | G139: 0 | H139: - | I139: - | J139: 2003-02-17 | K139: 4.2 | R139: 4
B140: 2003-02-18 | C140: 0 | D140: 0 | E140: 10.90987015 | G140: 0 | H140: - | I140: - | J140: 2003-02-18 | K140: 4.3 | R140: 2.2
B141: 2003-02-19 | C141: 0 | D141: 0 | E141: 10.9463644 | G141: 0 | H141: - | I141: - | J141: 2003-02-19 | K141: 4.5 | R141: 1.5
B142: 2003-02-20 | C142: =+C141+D142 -> 0 | D142: =+IF((COUNT(S142))=1,1)+IF((COUNT(S142=0)),0) -> 0 | E142: 10.98305702 | G142: 0 | H142: =IF(C143=1,"◎","-") -> - | I142: =IF(AND(G142>=1,(G141)<1),"◎","-") -> - | J142: 2003-02-20 | K142: 4.6 | R142: 1.8
B143: 2003-02-21 | C143: 0 | D143: 0 | E143: 11.01993847 | F143: =1/(1+EXP(-0.296*(S143-18.9596)))/18.1999 ->  | G143: =IF(D143=0,0,G142+F143) -> 0 | H143: - | I143: - | J143: 2003-02-21 | K143: =INDIRECT("気象データ!"&$D$6&ROW()-8) -> 4.7 | R143: 1.7 | S143: =IF(DATE(IF($B$10>=10,2002,2003),$B$10,$C$10)>=B143,"",IF(R143="",K143+$U$9,R143)) -> 
B144: 2003-02-22 | C144: 0 | D144: 0 | E144: 11.0569973 | G144: 0 | H144: - | I144: - | J144: 2003-02-22 | K144: 4.9 | R144: 1.4
B145: 2003-02-23 | C145: 0 | D145: 0 | E145: 11.09422493 | G145: 0 | H145: - | I145: - | J145: 2003-02-23 | K145: 5 | R145: 2.7
B146: 2003-02-24 | C146: 0 | D146: 0 | E146: 11.13161182 | G146: 0 | H146: - | I146: - | J146: 2003-02-24 | K146: 5.1 | R146: 3.5
B147: 2003-02-25 | C147: 0 | D147: 0 | E147: 11.16914845 | G147: 0 | H147: - | I147: - | J147: 2003-02-25 | K147: 5.3 | R147: 4.1
